Workbook

Sheet Formato2019
A2: VEEDURIA DISTRITAL - RENDICION DE CUENTAS DE LA GESTION CONTRACTUAL EN EL DISTRITO CAPITAL (Acuerdo 380 de 2009)
A3: INFORMACION GENERAL DE CONTRATACION ENTIDADES DISTRITALES - ENERO 1 A 31 DICIEMBRE DE 2019
A5: 1. Entidad: | D5: FONDO DE DESARROLLO LOCAL DE SAN CRISTÓBAL | G5: 2. Sector | H5: SDG-LOCALIDADES
A6: 3. Presupuesto Disponible Inversión Directa PREDIS | D6: 65724606710 | G6: 5. Presupuesto Disponible Funcionamiento PREDIS | H6: 2691287000 | U6: 9. Nombre de quien diligencia el formato | W6: CÉSAR CORREDOR GÓMEZ
A7: 4. Presupuesto Comprometido de Inversión Directa según PREDIS | D7: 65716374905 | G7: 6. Presupuesto Comprometido Funcionamiento según PREDIS | H7: 2593067134 | U7: Cargo | W7: ABOGADO FDLSC
U8: Dependencia | W8: JURIDICA FDL
A9: 7. Presupuesto Disponible Operación (Regimen Privado) | U9: Teléfono | W9: 3103427588
A10: 8. Presupuesto Comprometido Operación mediante contratos | U10: Correo Electrónico | W10: cesar.corredor@gobiernobogota.gov.co
A11: 1- INFORMACION GENERAL | O11: 2- INFORMACION FINANCIERA | V11: 3 - PLAZOS | AA11: 4 - ESTADO | AF11: 5. % Avance y/o cumplimiento
A12: 1 | B12: 2 | C12: 3 | D12: 4 | E12: 5 | F12: 6 | G12: 7 | H12: 8 | L12: 9 | M12: 10 | O12: 11 | P12: 12 | Q12: 13 | R12: 14 | S12: 15 | T12: 16 | U12: 17 | V12: 18 | W12: 19 | X12: 20 | Y12: 21 | Z12: 22 | AA12: 23 | AF12: 24
A13: Número Contrato | B13: Año | C13: Número de proceso contractual | D13: Tipo de contrato | E13: Modalidad de Selección | F13: Procedimiento o causal | G13: Objeto | H13: Afectación | I13: Número Programa | J13: Equivalencia número de programa | K13: Eje / Pilar | L13: Número Proyecto | M13: Número de Identificación del contratista (NIT con digito de verificación) | N13: Nombre del contratista | O13: Valor Inicial del contrato | P13: Número de reducciones | Q13: Valor total reducciones (En valor negativo) | R13: Número de adiciones | S13: Valor total de adiciones | T13: Valor Final | U13: Giros (Valor en pesos) | V13: Fecha de suscripción (DD/MM/AAAA) | W13: Fecha de inicio (DD/MM/AAAA) | X13: Fecha de terminación (DD/MM/AAAA) | Y13: Plazo en días | Z13: Prorroga en días | AA13: Anulado | AB13: Celebrado o por iniciar | AC13: En Ejecución | AD13: Terminado | AE13: Liquidado | AF13: % Avance y/o Cumplimiento | AH13: Total Contratos | AI13: Validación Tipo | AJ13: Validación Modalidad | AK13: Validación procedimiento | AL13: Validación afectación | AM13: Validación programa
A14: 12019 | B14: 2019 | C14: FDLSC-CPS-001-2019 | D14: Contratos de prestación de servicios profesionales y de apoyo a la gestión | E14: Contratación directa | F14: Prestación de servicios profesionales y de apoyo a la gestión, o para la ejecución de trabajos artísticos que sólo puedan encomendarse a determinadas personas naturales; | G14: EL CONTRATISTA SE OBLIGA CON EL FONDO DE DESARROLLO LOCAL DE SAN CRISTOBAL A PRESTAR SERVICIOS PROFESIONALES ESPECIALIZADOS PARA TRAMITAR LAS ETAPAS PRECONTRACTUALES Y CONTRACTUALES DE ACUERDO AL PLAN DE ADQUISICIONES Y AL PLAN DE CONTRATACIÓN QUE ADELANTE EL FONDO DE DESARROLLO LOCAL DE SAN CRISTÓBAL | H14: Inversión | I14: 45 | J14: =IF(ISERROR(VLOOKUP(I14,Eje_Pilar!$C$2:$E$47,2,FALSE))," ",VLOOKUP(I14,Eje_Pilar!$C$2:$E$47,2,FALSE)) -> Gobernanza e influencia local, regional e internacional | K14: =IF(ISERROR(VLOOKUP(I14,Eje_Pilar!$C$2:$E$47,3,FALSE))," ",VLOOKUP(I14,Eje_Pilar!$C$2:$E$47,3,FALSE)) -> Eje Transversal 4 Gobierno Legitimo, Fortalecimiento Local y Eficiencia | L14: 3-3-1-15-07-45-1531-000 | M14: 519669401 | N14: ALEYRA CAPERA RODRIGUEZ | O14: 88000000 | R14: 1 | S14: 9866667 | T14: =+O14+Q14+S14 -> 97866667 | U14: 81866666 | V14: 2019-01-24 | W14: 2019-01-24 | X14: 2019-12-23 | Y14: 330 | AC14: x | AF14: =IF(ISERROR(U14/T14),"-",(U14/T14)) -> 0.8365122519 | AH14: =IF(SUMPRODUCT((A$14:A14=A14)*(B$14:B14=B14)*(C$14:C14=C14))>1,0,1) -> 1 | AI14: =IFERROR(VLOOKUP(D14,tipo,1,FALSE),"NO") -> Contratos de prestación de servicios profesionales y de apoyo a la gestión | AJ14: =IFERROR(VLOOKUP(E14,modal,1,FALSE),"NO") -> Contratación directa | AK14: =IFERROR(VLOOKUP(F14,Tipo!$C$12:$C$27,1,FALSE),"NO") -> Prestación de servicios profesionales y de apoyo a la gestión, o para la ejecución de trabajos artísticos que sólo puedan encomendarse a determinadas personas naturales; | AL14: =IFERROR(VLOOKUP(H14,afectacion,1,FALSE),"NO") -> Inversión | AM14: =IFERROR(VLOOKUP(I14,programa,1,FALSE),"NO") -> 45
A15: 22019 | B15: 2019 | C15: FDLSC-CPS-002-2019 | D15: Contratos de prestación de servicios profesionales y de apoyo a la gestión | E15: Contratación directa | F15: Prestación de servicios profesionales y de apoyo a la gestión, o para la ejecución de trabajos artísticos que sólo puedan encomendarse a determinadas personas naturales; | G15: EL CONTRATISTA SE OBLIGA A PRESTAR SUS SERVICIOS TECNICOS PARA QUE REALICE LAS ACTIVIDADES CONCERNIENTES A LOS TRÁMITES RELACIONADOS CON EL ALMACÉN Y APOYAR LAS AREAS DE GESTIÓN QUE CONFORMAN LA ALCALDIA LOCAL DE SAN CRISTOBAL | H15: Inversión | I15: 45 | J15: =IF(ISERROR(VLOOKUP(I15,Eje_Pilar!$C$2:$E$47,2,FALSE))," ",VLOOKUP(I15,Eje_Pilar!$C$2:$E$47,2,FALSE)) -> Gobernanza e influencia local, regional e internacional | K15: =IF(ISERROR(VLOOKUP(I15,Eje_Pilar!$C$2:$E$47,3,FALSE))," ",VLOOKUP(I15,Eje_Pilar!$C$2:$E$47,3,FALSE)) -> Eje Transversal 4 Gobierno Legitimo, Fortalecimiento Local y Eficiencia | L15: 3-3-1-15-07-45-1531-000 | M15: 801188044 | N15: LUIS CARLOS MORA VICTORINO | O15: 37345000 | R15: 1 | S15: 3734500 | T15: 41079500 | U15: 37345000 | V15: 2019-01-28 | W15: 2019-01-28 | X15: 2019-12-27 | Y15: 330 | AC15: x | AF15: =IF(ISERROR(U15/T15),"-",(U15/T15)) -> 0.9090909091 | AH15: =IF(SUMPRODUCT((A$14:A15=A15)*(B$14:B15=B15)*(C$14:C15=C15))>1,0,1) -> 1 | AI15: Contratos de prestación de servicios profesionales y de apoyo a la gestión | AJ15: Contratación directa | AK15: =IFERROR(VLOOKUP(F15,Tipo!$C$12:$C$27,1,FALSE),"NO") -> Prestación de servicios profesionales y de apoyo a la gestión, o para la ejecución de trabajos artísticos que sólo puedan encomendarse a determinadas personas naturales; | AL15: Inversión | AM15: 45
A16: 32019 | B16: 2019 | C16: FDLSC-CPS-003-2019 | D16: Contratos de prestación de servicios profesionales y de apoyo a la gestión | E16: Contratación directa | F16: Prestación de servicios profesionales y de apoyo a la gestión, o para la ejecución de trabajos artísticos que sólo puedan encomendarse a determinadas personas naturales; | G16: El CONTRATISTA SE OBLIGA CON EL FONDO DE DESARROLLO LOCAL A PRESTAR SERVICIOS PROFESIONALES PARA APOYAR EL AREA DE GESTION DEL DESARROLLO LOCAL Y LA OFICINA DE PLANEACION LOCAL EN LOS TEMAS ADMINISTRATIVOS PROPIOS DE CADA AREA | H16: Inversión | I16: 45 | J16: =IF(ISERROR(VLOOKUP(I16,Eje_Pilar!$C$2:$E$47,2,FALSE))," ",VLOOKUP(I16,Eje_Pilar!$C$2:$E$47,2,FALSE)) -> Gobernanza e influencia local, regional e internacional | K16: =IF(ISERROR(VLOOKUP(I16,Eje_Pilar!$C$2:$E$47,3,FALSE))," ",VLOOKUP(I16,Eje_Pilar!$C$2:$E$47,3,FALSE)) -> Eje Transversal 4 Gobierno Legitimo, Fortalecimiento Local y Eficiencia | L16: 3-3-1-15-07-45-1531-000 | M16: 10184684467 | N16: ANDERSSON FABIAN NAVARRETE CARO | O16: 54780000 | R16: 1 | S16: 5478000 | T16: 60258000 | U16: 49302000 | V16: 2019-01-28 | W16: 2019-01-28 | X16: 2019-12-27 | Y16: 330 | AC16: x | AF16: =IF(ISERROR(U16/T16),"-",(U16/T16)) -> 0.8181818182 | AH16: =IF(SUMPRODUCT((A$14:A16=A16)*(B$14:B16=B16)*(C$14:C16=C16))>1,0,1) -> 1 | AI16: Contratos de prestación de servicios profesionales y de apoyo a la gestión | AJ16: Contratación directa | AK16: =IFERROR(VLOOKUP(F16,Tipo!$C$12:$C$27,1,FALSE),"NO") -> Prestación de servicios profesionales y de apoyo a la gestión, o para la ejecución de trabajos artísticos que sólo puedan encomendarse a determinadas personas naturales; | AL16: Inversión | AM16: 45
A17: 42019 | B17: 2019 | C17: FDLSC-CPS-004-2019 | D17: Contratos de prestación de servicios profesionales y de apoyo a la gestión | E17: Contratación directa | F17: Prestación de servicios profesionales y de apoyo a la gestión, o para la ejecución de trabajos artísticos que sólo puedan encomendarse a determinadas personas naturales; | G17: EL CONTRATISTA SE OBLIGA PARA CON EL FONDO DE DESARROLLO LOCAL A PRESTAR SUS SERVICIOS TECNICOS PARA LA CONDUCCIÓN DE VEHICULOS PESADOS, MAQUINARIA PESADA Y VEHICULOS QUE SE ENCUENTRAN AL SERVICIO DE LA ALCALDIA LOCAL DE SAN CRISTOBAL EN EL MARCO DEL PLAN DE DESARROLLO 2017-2020. | H17: Inversión | I17: 45 | J17: =IF(ISERROR(VLOOKUP(I17,Eje_Pilar!$C$2:$E$47,2,FALSE))," ",VLOOKUP(I17,Eje_Pilar!$C$2:$E$47,2,FALSE)) -> Gobernanza e influencia local, regional e internacional | K17: =IF(ISERROR(VLOOKUP(I17,Eje_Pilar!$C$2:$E$47,3,FALSE))," ",VLOOKUP(I17,Eje_Pilar!$C$2:$E$47,3,FALSE)) -> Eje Transversal 4 Gobierno Legitimo, Fortalecimiento Local y Eficiencia | L17: 3-3-1-15-07-45-1531-000 | M17: 129093183 | N17: DIKSON FERMIN TORRES CORTES | O17: 44000000 | T17: 44000000 | U17: 11333333 | V17: 2019-02-01 | W17: 2019-02-01 | X17: 2019-12-31 | Y17: 330 | AD17: x | AF17: 0.25757575 | AH17: =IF(SUMPRODUCT((A$14:A17=A17)*(B$14:B17=B17)*(C$14:C17=C17))>1,0,1) -> 1 | AI17: Contratos de prestación de servicios profesionales y de apoyo a la gestión | AJ17: Contratación directa | AK17: =IFERROR(VLOOKUP(F17,Tipo!$C$12:$C$27,1,FALSE),"NO") -> Prestación de servicios profesionales y de apoyo a la gestión, o para la ejecución de trabajos artísticos que sólo puedan encomendarse a determinadas personas naturales; | AL17: Inversión | AM17: 45
A18: 52019 | B18: 2019 | C18: FDLSC-CPS-005-2019 | D18: Contratos de prestación de servicios profesionales y de apoyo a la gestión | E18: Contratación directa | F18: Prestación de servicios profesionales y de apoyo a la gestión, o para la ejecución de trabajos artísticos que sólo puedan encomendarse a determinadas personas naturales; | G18: EL CONTRATISTA SE OBLIGA A PRESTAR SUS SERVICIOS TECNICOS PARA QUE REALICE LAS ACTIVIDADES CONCERNIENTES A LOS TRÁMITES RELACIONADOS CON EL ALMACÉN Y APOYAR LAS AREAS DE GESTIÓN QUE CONFORMAN LA ALCALDIA LOCAL DE SAN CRISTOBAL | H18: Inversión | I18: 45 | J18: =IF(ISERROR(VLOOKUP(I18,Eje_Pilar!$C$2:$E$47,2,FALSE))," ",VLOOKUP(I18,Eje_Pilar!$C$2:$E$47,2,FALSE)) -> Gobernanza e influencia local, regional e internacional | K18: =IF(ISERROR(VLOOKUP(I18,Eje_Pilar!$C$2:$E$47,3,FALSE))," ",VLOOKUP(I18,Eje_Pilar!$C$2:$E$47,3,FALSE)) -> Eje Transversal 4 Gobierno Legitimo, Fortalecimiento Local y Eficiencia | L18: 3-3-1-15-07-45-1531-000 | M18: 799779201 | N18: CARLOS ANDRES CASTILLO PAEZ | O18: 37345000 | R18: 1 | S18: 3621333 | T18: 40966333 | U18: 37345000 | V18: 2019-01-29 | W18: 2019-01-29 | X18: 2019-12-28 | Y18: 330 | AC18: x | AF18: 0.9116022174 | AH18: =IF(SUMPRODUCT((A$14:A18=A18)*(B$14:B18=B18)*(C$14:C18=C18))>1,0,1) -> 1 | AI18: Contratos de prestación de servicios profesionales y de apoyo a la gestión | AJ18: Contratación directa | AK18: =IFERROR(VLOOKUP(F18,Tipo!$C$12:$C$27,1,FALSE),"NO") -> Prestación de servicios profesionales y de apoyo a la gestión, o para la ejecución de trabajos artísticos que sólo puedan encomendarse a determinadas personas naturales; | AL18: Inversión | AM18: 45
A19: 62019 | B19: 2019 | C19: FDLSC-CPS-006-2019 | D19: Contratos de prestación de servicios profesionales y de apoyo a la gestión | E19: Contratación directa | F19: Prestación de servicios profesionales y de apoyo a la gestión, o para la ejecución de trabajos artísticos que sólo puedan encomendarse a determinadas personas naturales; | G19: EL CONTRATISTA SE OBLIGA PARA CON EL FONDO DE DESARROLLO LOCAL DE SAN CRISTOBAL PARA PRESTAR SUS SERVICIOS TECNICOS EN EL MANEJO Y SEGUIMIENTO DE LA AGENDA DEL ALCALDE LOCAL Y TRAMITES ADMINISTRATIVOS DE CARACTER SECRETARIAL EN EL DESPACHO DE CONFORMIDAD CON LAS CONDICIONES Y OBLIGACIONES CONTENIDAS EN LOS ESTUDIOS PREVIOS | H19: Inversión | I19: 45 | J19: =IF(ISERROR(VLOOKUP(I19,Eje_Pilar!$C$2:$E$47,2,FALSE))," ",VLOOKUP(I19,Eje_Pilar!$C$2:$E$47,2,FALSE)) -> Gobernanza e influencia local, regional e internacional | K19: =IF(ISERROR(VLOOKUP(I19,Eje_Pilar!$C$2:$E$47,3,FALSE))," ",VLOOKUP(I19,Eje_Pilar!$C$2:$E$47,3,FALSE)) -> Eje Transversal 4 Gobierno Legitimo, Fortalecimiento Local y Eficiencia | L19: 3-3-1-15-07-45-1531-000 | M19: 519887913 | N19: BILSAM LOPEZ CARDENAS | O19: 33000000 | R19: 1 | S19: 2700000 | T19: =+O19+Q19+S19 -> 35700000 | U19: 32700000 | V19: 2019-02-04 | W19: 2019-02-04 | X19: 2020-01-03 | Y19: 330 | AC19: x | AF19: 0.9159663866 | AH19: =IF(SUMPRODUCT((A$14:A19=A19)*(B$14:B19=B19)*(C$14:C19=C19))>1,0,1) -> 1 | AI19: =IFERROR(VLOOKUP(D19,tipo,1,FALSE),"NO") -> Contratos de prestación de servicios profesionales y de apoyo a la gestión | AJ19: =IFERROR(VLOOKUP(E19,modal,1,FALSE),"NO") -> Contratación directa | AK19: =IFERROR(VLOOKUP(F19,Tipo!$C$12:$C$27,1,FALSE),"NO") -> Prestación de servicios profesionales y de apoyo a la gestión, o para la ejecución de trabajos artísticos que sólo puedan encomendarse a determinadas personas naturales; | AL19: =IFERROR(VLOOKUP(H19,afectacion,1,FALSE),"NO") -> Inversión | AM19: =IFERROR(VLOOKUP(I19,programa,1,FALSE),"NO") -> 45
A20: 72019 | B20: 2019 | C20: FDLSC-CPS-007-2019 | D20: Contratos de prestación de servicios profesionales y de apoyo a la gestión | E20: Contratación directa | F20: Prestación de servicios profesionales y de apoyo a la gestión, o para la ejecución de trabajos artísticos que sólo puedan encomendarse a determinadas personas naturales; | G20: EL CONTRATISTA SE OBLIGA PARA CON EL FONDO DE DESARROLLO LOCAL DE SAN CRISTOBAL A PRESTAR SUS SERVICIOS TECNICOS EN EL DESPACHO DEL ALCALDE LOCAL, REALIZANDO EL TRATAMIENTO, PROCESAMIENTO Y CONSERVACIÓN DEL ARCHIVO OFICIAL DEL DESPACHO Y LAS ACTIVIDADES OPERATIVAS, APLICANDO LA NORMATIVIDAD VIGENTE, LOS PROCESOS Y PROCEDIMIENTOS ESTABLECIDOS EN EL SIG. | H20: Inversión | I20: 45 | J20: =IF(ISERROR(VLOOKUP(I20,Eje_Pilar!$C$2:$E$47,2,FALSE))," ",VLOOKUP(I20,Eje_Pilar!$C$2:$E$47,2,FALSE)) -> Gobernanza e influencia local, regional e internacional | K20: =IF(ISERROR(VLOOKUP(I20,Eje_Pilar!$C$2:$E$47,3,FALSE))," ",VLOOKUP(I20,Eje_Pilar!$C$2:$E$47,3,FALSE)) -> Eje Transversal 4 Gobierno Legitimo, Fortalecimiento Local y Eficiencia | L20: 3-3-1-15-07-45-1531-000 | M20: 521702717 | N20: GLORIA MIREYA CARO CIFUENTES | O20: 33000000 | R20: 1 | S20: 2700000 | T20: 35700000 | U20: 32700000 | V20: 2019-02-04 | W20: 2019-02-04 | X20: 2020-01-03 | Y20: 330 | AC20: x | AF20: 0.9159663866 | AH20: =IF(SUMPRODUCT((A$14:A20=A20)*(B$14:B20=B20)*(C$14:C20=C20))>1,0,1) -> 1
A21: 82019 | B21: 2019 | C21: FDLSC-CPS-008-2019 | D21: Contratos de prestación de servicios profesionales y de apoyo a la gestión | E21: Contratación directa | F21: Prestación de servicios profesionales y de apoyo a la gestión, o para la ejecución de trabajos artísticos que sólo puedan encomendarse a determinadas personas naturales; | G21: EL CONTRATISTA SE OBLIGA PARA CON EL FONDO DE DESARROLLO LOCAL A PRESTAR SUS SERVICIOS PROFESIONALES PARA EL AREA DE GESTION DE DESARROLLO LOCAL EN LA FORMULACION Y ACOMPAÑAMIENTO EN LAS ETAPAS PRECONTRACTUALES CONTRACTUALES Y POSCONTRACTUALES DE LOS PROCESOS DE MANTENIMIENTO DE VEHICULOS, ASEO Y CAFETERIA, PAPELERIA, SEGUROS DE LA ENTIDAD, SEGUROS DE LOS EDILES, COMBUSTIBLE Y LOS DEMAS QUE LE SEAN ASIGNADOS EN EL MARCO DEL PLAN DE DESARROLLO 2017-2020 | H21: Inversión | I21: 45 | J21: =IF(ISERROR(VLOOKUP(I21,Eje_Pilar!$C$2:$E$47,2,FALSE))," ",VLOOKUP(I21,Eje_Pilar!$C$2:$E$47,2,FALSE)) -> Gobernanza e influencia local, regional e internacional | K21: =IF(ISERROR(VLOOKUP(I21,Eje_Pilar!$C$2:$E$47,3,FALSE))," ",VLOOKUP(I21,Eje_Pilar!$C$2:$E$47,3,FALSE)) -> Eje Transversal 4 Gobierno Legitimo, Fortalecimiento Local y Eficiencia | L21: 3-3-1-15-07-45-1531-000 | M21: 10770832146 | N21: DARWIN JOHAN CRISTANCHO MICAN | O21: 66000000 | R21: 1 | S21: 6400000 | T21: 72400000 | U21: 66000000 | V21: 2019-01-29 | W21: 2019-01-29 | X21: 2019-12-28 | Y21: 330 | AC21: x | AF21: 0.9116022099 | AH21: =IF(SUMPRODUCT((A$14:A21=A21)*(B$14:B21=B21)*(C$14:C21=C21))>1,0,1) -> 1
A22: 92019 | B22: 2019 | C22: FDLSC-CPS-009-2019 | D22: Contratos de prestación de servicios profesionales y de apoyo a la gestión | E22: Contratación directa | F22: Prestación de servicios profesionales y de apoyo a la gestión, o para la ejecución de trabajos artísticos que sólo puedan encomendarse a determinadas personas naturales; | G22: EL CONTRATISTA SE OBLIGA PARA CON EL FONDO DE DESARROLLO LOCAL A PRESTAR SUS SERVICIOS TECNICOS EN LA CONDUCCIÓN DEL VEHICULO ASIGNADO AL DESPACHO DEL ALCALDE LOCAL DE SAN CRISTOBAL | H22: Inversión | I22: 45 | J22: =IF(ISERROR(VLOOKUP(I22,Eje_Pilar!$C$2:$E$47,2,FALSE))," ",VLOOKUP(I22,Eje_Pilar!$C$2:$E$47,2,FALSE)) -> Gobernanza e influencia local, regional e internacional | K22: =IF(ISERROR(VLOOKUP(I22,Eje_Pilar!$C$2:$E$47,3,FALSE))," ",VLOOKUP(I22,Eje_Pilar!$C$2:$E$47,3,FALSE)) -> Eje Transversal 4 Gobierno Legitimo, Fortalecimiento Local y Eficiencia | L22: 3-3-1-15-07-45-1531-000 | M22: 802068500 | N22: MIGUEL FERNANDO SANCHEZ RUIZ | O22: 38500000 | R22: 1 | S22: 3150000 | T22: 41650000 | U22: 37916666 | V22: 2019-02-04 | W22: 2019-02-04 | X22: 2020-01-03 | Y22: 330 | AC22: x | AF22: 0.9103641297 | AH22: =IF(SUMPRODUCT((A$14:A22=A22)*(B$14:B22=B22)*(C$14:C22=C22))>1,0,1) -> 1 | AI22: Contratos de prestación de servicios profesionales y de apoyo a la gestión | AJ22: Contratación directa | AK22: =IFERROR(VLOOKUP(F22,Tipo!$C$12:$C$27,1,FALSE),"NO") -> Prestación de servicios profesionales y de apoyo a la gestión, o para la ejecución de trabajos artísticos que sólo puedan encomendarse a determinadas personas naturales; | AL22: Inversión | AM22: 45
A23: 102019 | B23: 2019 | C23: FDLSC-CPS-010-2019 | D23: Contratos de prestación de servicios profesionales y de apoyo a la gestión | E23: Contratación directa | F23: Prestación de servicios profesionales y de apoyo a la gestión, o para la ejecución de trabajos artísticos que sólo puedan encomendarse a determinadas personas naturales; | G23: EL CONTRATISTA SE OBLIGA PARA CON EL FONDO DE DESARROLLO LOCAL A PRESTAR SUS SERVICIOS TECNICOS PARA LA CONDUCCIÓN DE VEHICULOS PESADOS, MAQUINARIA PESADA Y VEHICULOS QUE SE ENCUENTRAN AL SERVICIO DE LA ALCALDIA LOCAL DE SAN CRISTOBAL EN EL MARCO DEL PLAN DE DESARROLLO 2017-2020 | H23: Inversión | I23: 45 | J23: =IF(ISERROR(VLOOKUP(I23,Eje_Pilar!$C$2:$E$47,2,FALSE))," ",VLOOKUP(I23,Eje_Pilar!$C$2:$E$47,2,FALSE)) -> Gobernanza e influencia local, regional e internacional | K23: =IF(ISERROR(VLOOKUP(I23,Eje_Pilar!$C$2:$E$47,3,FALSE))," ",VLOOKUP(I23,Eje_Pilar!$C$2:$E$47,3,FALSE)) -> Eje Transversal 4 Gobierno Legitimo, Fortalecimiento Local y Eficiencia | L23: 3-3-1-15-07-45-1531-000 | M23: 807672450 | N23: JOSE LUIS GARZON RAMIREZ | O23: 35200000 | R23: 1 | S23: 3200000 | T23: 38400000 | U23: 33250000 | V23: 2019-02-01 | W23: 2019-02-01 | X23: 2019-12-31 | Y23: 330 | AC23: x | AF23: 0.8658854167 | AH23: =IF(SUMPRODUCT((A$14:A23=A23)*(B$14:B23=B23)*(C$14:C23=C23))>1,0,1) -> 1 | AI23: Contratos de prestación de servicios profesionales y de apoyo a la gestión | AJ23: Contratación directa | AK23: =IFERROR(VLOOKUP(F23,Tipo!$C$12:$C$27,1,FALSE),"NO") -> Prestación de servicios profesionales y de apoyo a la gestión, o para la ejecución de trabajos artísticos que sólo puedan encomendarse a determinadas personas naturales; | AL23: Inversión | AM23: 45
A24: 112019 | B24: 2019 | C24: FDLSC-CPS-011-2019 | D24: Contratos de prestación de servicios profesionales y de apoyo a la gestión | E24: Contratación directa | F24: Prestación de servicios profesionales y de apoyo a la gestión, o para la ejecución de trabajos artísticos que sólo puedan encomendarse a determinadas personas naturales; | G24: PRESTAR LOS SERVICIOS PERSONALES PARA APOYAR LAS LABORES DE ENTREGA Y RECIBO DE LAS COMUNICACIONES EMITIDAS O RECIBIDAS POR LA ALCALDIA LOCAL DE SAN CRISTOBAL. | H24: Inversión | I24: 45 | J24: =IF(ISERROR(VLOOKUP(I24,Eje_Pilar!$C$2:$E$47,2,FALSE))," ",VLOOKUP(I24,Eje_Pilar!$C$2:$E$47,2,FALSE)) -> Gobernanza e influencia local, regional e internacional | K24: =IF(ISERROR(VLOOKUP(I24,Eje_Pilar!$C$2:$E$47,3,FALSE))," ",VLOOKUP(I24,Eje_Pilar!$C$2:$E$47,3,FALSE)) -> Eje Transversal 4 Gobierno Legitimo, Fortalecimiento Local y Eficiencia | L24: 3-3-1-15-07-45-1531-000 | M24: 963409825 | N24: JULIO EDUARDO BURBANO TORO | O24: 26070000 | R24: 1 | S24: 1975000 | T24: 28045000 | U24: 23305000 | V24: 2019-02-05 | W24: 2019-02-06 | X24: 2020-01-05 | Y24: 330 | AC24: x | AF24: 0.8309859155 | AH24: =IF(SUMPRODUCT((A$14:A24=A24)*(B$14:B24=B24)*(C$14:C24=C24))>1,0,1) -> 1 | AI24: Contratos de prestación de servicios profesionales y de apoyo a la gestión | AJ24: Contratación directa | AK24: =IFERROR(VLOOKUP(F24,Tipo!$C$12:$C$27,1,FALSE),"NO") -> Prestación de servicios profesionales y de apoyo a la gestión, o para la ejecución de trabajos artísticos que sólo puedan encomendarse a determinadas personas naturales; | AL24: Inversión | AM24: 45
A25: 122019 | B25: 2019 | C25: FDLSC-CPS-012-2019 | D25: Contratos de prestación de servicios profesionales y de apoyo a la gestión | E25: Contratación directa | F25: Prestación de servicios profesionales y de apoyo a la gestión, o para la ejecución de trabajos artísticos que sólo puedan encomendarse a determinadas personas naturales; | G25: PRESTAR LOS SERVICIOS PERSONALES PARA APOYAR LAS LABORES DE ENTREGA Y RECIBO DE LAS COMUNICACIONES EMITIDAS O RECIBIDAS POR LA ALCALDIA LOCAL DE SAN CRISTOBAL. | H25: Inversión | I25: 45 | J25: =IF(ISERROR(VLOOKUP(I25,Eje_Pilar!$C$2:$E$47,2,FALSE))," ",VLOOKUP(I25,Eje_Pilar!$C$2:$E$47,2,FALSE)) -> Gobernanza e influencia local, regional e internacional | K25: =IF(ISERROR(VLOOKUP(I25,Eje_Pilar!$C$2:$E$47,3,FALSE))," ",VLOOKUP(I25,Eje_Pilar!$C$2:$E$47,3,FALSE)) -> Eje Transversal 4 Gobierno Legitimo, Fortalecimiento Local y Eficiencia | L25: 3-3-1-15-07-45-1531-000 | M25: 10238916955 | N25: LUIS FERNANDO URREGO FONSECA | O25: 26070000 | R25: 1 | S25: 1975000 | T25: 28045000 | U25: 23305000 | V25: 2019-02-06 | W25: 2019-02-06 | X25: 2020-01-05 | Y25: 330 | AC25: x | AF25: 0.8309859155 | AH25: =IF(SUMPRODUCT((A$14:A25=A25)*(B$14:B25=B25)*(C$14:C25=C25))>1,0,1) -> 1 | AI25: Contratos de prestación de servicios profesionales y de apoyo a la gestión | AJ25: Contratación directa | AK25: =IFERROR(VLOOKUP(F25,Tipo!$C$12:$C$27,1,FALSE),"NO") -> Prestación de servicios profesionales y de apoyo a la gestión, o para la ejecución de trabajos artísticos que sólo puedan encomendarse a determinadas personas naturales; | AL25: Inversión | AM25: 45
A26: 132019 | B26: 2019 | C26: FDLSC-CPS-013-2019 | D26: Contratos de prestación de servicios profesionales y de apoyo a la gestión | E26: Contratación directa | F26: Prestación de servicios profesionales y de apoyo a la gestión, o para la ejecución de trabajos artísticos que sólo puedan encomendarse a determinadas personas naturales; | G26: PRESTAR LOS SERVICIOS PERSONALES PARA APOYAR LAS LABORES DE ENTREGA Y RECIBO DE LAS COMUNICACIONES EMITIDAS O RECIBIDAS POR LA ALCALDIA LOCAL DE SAN CRISTOBAL. | H26: Inversión | I26: 45 | J26: =IF(ISERROR(VLOOKUP(I26,Eje_Pilar!$C$2:$E$47,2,FALSE))," ",VLOOKUP(I26,Eje_Pilar!$C$2:$E$47,2,FALSE)) -> Gobernanza e influencia local, regional e internacional | K26: =IF(ISERROR(VLOOKUP(I26,Eje_Pilar!$C$2:$E$47,3,FALSE))," ",VLOOKUP(I26,Eje_Pilar!$C$2:$E$47,3,FALSE)) -> Eje Transversal 4 Gobierno Legitimo, Fortalecimiento Local y Eficiencia | L26: 3-3-1-15-07-45-1531-000 | M26: 797610668 | N26: FRANCISCO ANTONIO CAMACHO GUTIERREZ | O26: 26070000 | R26: 1 | S26: 2054000 | T26: 28124000 | U26: 25754000 | V26: 2019-02-05 | W26: 2019-02-05 | X26: 2020-01-04 | Y26: 330 | AC26: x | AF26: 0.9157303371 | AH26: =IF(SUMPRODUCT((A$14:A26=A26)*(B$14:B26=B26)*(C$14:C26=C26))>1,0,1) -> 1 | AI26: Contratos de prestación de servicios profesionales y de apoyo a la gestión | AJ26: Contratación directa | AK26: =IFERROR(VLOOKUP(F26,Tipo!$C$12:$C$27,1,FALSE),"NO") -> Prestación de servicios profesionales y de apoyo a la gestión, o para la ejecución de trabajos artísticos que sólo puedan encomendarse a determinadas personas naturales; | AL26: Inversión | AM26: 45
A27: 142019 | B27: 2019 | C27: FDLSC-CPS-014-2019 | D27: Contratos de prestación de servicios profesionales y de apoyo a la gestión | E27: Contratación directa | F27: Prestación de servicios profesionales y de apoyo a la gestión, o para la ejecución de trabajos artísticos que sólo puedan encomendarse a determinadas personas naturales; | G27: PRESTAR LOS SERVICIOS PERSONALES PARA APOYAR LAS LABORES DE ENTREGA Y RECIBO DE LAS COMUNICACIONES EMITIDAS O RECIBIDAS POR LA ALCALDIA LOCAL DE SAN CRISTOBAL. | H27: Inversión | I27: 45 | J27: =IF(ISERROR(VLOOKUP(I27,Eje_Pilar!$C$2:$E$47,2,FALSE))," ",VLOOKUP(I27,Eje_Pilar!$C$2:$E$47,2,FALSE)) -> Gobernanza e influencia local, regional e internacional | K27: =IF(ISERROR(VLOOKUP(I27,Eje_Pilar!$C$2:$E$47,3,FALSE))," ",VLOOKUP(I27,Eje_Pilar!$C$2:$E$47,3,FALSE)) -> Eje Transversal 4 Gobierno Legitimo, Fortalecimiento Local y Eficiencia | L27: 3-3-1-15-07-45-1531-000 | M27: 10238842985 | N27: CRISTIAN ALEJANDRO SANTAMARIA | O27: 26070000 | R27: 1 | S27: 1975000 | T27: 28045000 | U27: 23305000 | V27: 2019-02-05 | W27: 2019-02-06 | X27: 2020-01-05 | Y27: 330 | AC27: x | AF27: 0.8309859155 | AH27: =IF(SUMPRODUCT((A$14:A27=A27)*(B$14:B27=B27)*(C$14:C27=C27))>1,0,1) -> 1 | AI27: Contratos de prestación de servicios profesionales y de apoyo a la gestión | AJ27: Contratación directa | AK27: =IFERROR(VLOOKUP(F27,Tipo!$C$12:$C$27,1,FALSE),"NO") -> Prestación de servicios profesionales y de apoyo a la gestión, o para la ejecución de trabajos artísticos que sólo puedan encomendarse a determinadas personas naturales; | AL27: Inversión | AM27: 45
A28: 152019 | B28: 2019 | C28: FDLSC-CPS-015-2019 | D28: Contratos de prestación de servicios profesionales y de apoyo a la gestión | E28: Contratación directa | F28: Prestación de servicios profesionales y de apoyo a la gestión, o para la ejecución de trabajos artísticos que sólo puedan encomendarse a determinadas personas naturales; | G28: EL CONTRATISTA SE OBLIGA PARA CON EL FONDO DE DESARROLLO LOCAL DE SAN CRISTOBAL A PRESTAR SUS SERVICIOS PROFESIONALES, PARA FORTALECER LA ETAPA POSTCONTRACTUAL DE LOS PROCESOS DE ADQUISICIÓN DE BIENES Y SERVICIOS DE ACUERDO A LOS PROCEDIMIENTOS ESTABLECIDOS EN LA NORMATIVIDAD VIGENTE PARA PAGOS Y LIQUIDACIÓN DE LOS CONTRATOS | H28: Inversión | I28: 45 | J28: =IF(ISERROR(VLOOKUP(I28,Eje_Pilar!$C$2:$E$47,2,FALSE))," ",VLOOKUP(I28,Eje_Pilar!$C$2:$E$47,2,FALSE)) -> Gobernanza e influencia local, regional e internacional | K28: =IF(ISERROR(VLOOKUP(I28,Eje_Pilar!$C$2:$E$47,3,FALSE))," ",VLOOKUP(I28,Eje_Pilar!$C$2:$E$47,3,FALSE)) -> Eje Transversal 4 Gobierno Legitimo, Fortalecimiento Local y Eficiencia | L28: 3-3-1-15-07-45-1531-000 | M28: 809011061 | N28: LUCAS ANDRES CEDIEL MENDEZ | O28: 52470000 | R28: 1 | S28: 4770000 | T28: 57240000 | U28: 52470000 | V28: 2019-02-01 | W28: 2019-02-01 | X28: 2019-12-31 | Y28: 330 | AC28: x | AF28: 0.9166666667 | AH28: =IF(SUMPRODUCT((A$14:A28=A28)*(B$14:B28=B28)*(C$14:C28=C28))>1,0,1) -> 1 | AI28: Contratos de prestación de servicios profesionales y de apoyo a la gestión | AJ28: Contratación directa | AK28: =IFERROR(VLOOKUP(F28,Tipo!$C$12:$C$27,1,FALSE),"NO") -> Prestación de servicios profesionales y de apoyo a la gestión, o para la ejecución de trabajos artísticos que sólo puedan encomendarse a determinadas personas naturales; | AL28: Inversión | AM28: 45
A29: 162019 | B29: 2019 | C29: FDLSC-CPS-016-2019 | D29: Contratos de prestación de servicios profesionales y de apoyo a la gestión | E29: Contratación directa | F29: Prestación de servicios profesionales y de apoyo a la gestión, o para la ejecución de trabajos artísticos que sólo puedan encomendarse a determinadas personas naturales; | G29: EL CONTRATISTA SE OBLIGA PARA CON EL FONDO DE DESARROLLO LOCAL DE SAN CRISTOBAL A PRESTAR SUS SERVICIOS PROFESIONALES, PARA FORTALECER LA ETAPA POSTCONTRACTUAL DE LOS PROCESOS DE ADQUISICIÓN DE BIENES Y SERVICIOS DE ACUERDO A LOS PROCEDIMIENTOS ESTABLECIDOS EN LA NORMATIVIDAD VIGENTE PARA PAGOS Y LIQUIDACIÓN DE LOS CONTRATOS | H29: Inversión | I29: 45 | J29: =IF(ISERROR(VLOOKUP(I29,Eje_Pilar!$C$2:$E$47,2,FALSE))," ",VLOOKUP(I29,Eje_Pilar!$C$2:$E$47,2,FALSE)) -> Gobernanza e influencia local, regional e internacional | K29: =IF(ISERROR(VLOOKUP(I29,Eje_Pilar!$C$2:$E$47,3,FALSE))," ",VLOOKUP(I29,Eje_Pilar!$C$2:$E$47,3,FALSE)) -> Eje Transversal 4 Gobierno Legitimo, Fortalecimiento Local y Eficiencia | L29: 3-3-1-15-07-45-1531-000 | M29: 10136181405 | N29: JENNY PAOLA RINCON BAREÑO | O29: 52470000 | R29: 1 | S29: 4293000 | T29: 56763000 | U29: 51993000 | V29: 2019-02-04 | W29: 2019-02-04 | X29: 2020-01-03 | Y29: 330 | AC29: x | AF29: 0.9159663866 | AH29: =IF(SUMPRODUCT((A$14:A29=A29)*(B$14:B29=B29)*(C$14:C29=C29))>1,0,1) -> 1 | AI29: Contratos de prestación de servicios profesionales y de apoyo a la gestión | AJ29: Contratación directa | AK29: =IFERROR(VLOOKUP(F29,Tipo!$C$12:$C$27,1,FALSE),"NO") -> Prestación de servicios profesionales y de apoyo a la gestión, o para la ejecución de trabajos artísticos que sólo puedan encomendarse a determinadas personas naturales; | AL29: Inversión | AM29: 45
A30: 172019 | B30: 2019 | C30: FDLSC-CPS-017-2019 | D30: Contratos de prestación de servicios profesionales y de apoyo a la gestión | E30: Contratación directa | F30: Prestación de servicios profesionales y de apoyo a la gestión, o para la ejecución de trabajos artísticos que sólo puedan encomendarse a determinadas personas naturales; | G30: EL CONTRATISTA SE OBLIGA PARA CON EL FONDO DE DESARROLLO LOCAL DE SAN CRISTOBAL A PRESTAR SUS SERVICIOS TECNICOS DE APOYO Y ASISTENCIA ADMINISTRATIVA EN EL ÁREA GESTIÓN DE DESARROLLO LOCAL LIQUIDACIONES EN MARCO DEL PLAN DE DESARROLLO LOCAL 2017-2020 DE ACUERDO A LOS PRESENTES ESTUDIOS PREVIOS | H30: Inversión | I30: 45 | J30: =IF(ISERROR(VLOOKUP(I30,Eje_Pilar!$C$2:$E$47,2,FALSE))," ",VLOOKUP(I30,Eje_Pilar!$C$2:$E$47,2,FALSE)) -> Gobernanza e influencia local, regional e internacional | K30: =IF(ISERROR(VLOOKUP(I30,Eje_Pilar!$C$2:$E$47,3,FALSE))," ",VLOOKUP(I30,Eje_Pilar!$C$2:$E$47,3,FALSE)) -> Eje Transversal 4 Gobierno Legitimo, Fortalecimiento Local y Eficiencia | L30: 3-3-1-15-07-45-1531-000 | M30: 192402685 | N30: JAIRO MOLANO GUZMAN | O30: 36300000 | R30: 1 | S30: 3300000 | T30: 39600000 | U30: 36300000 | V30: 2019-02-01 | W30: 2019-02-01 | X30: 2019-12-31 | Y30: 330 | AC30: x | AF30: 0.9166666667 | AH30: =IF(SUMPRODUCT((A$14:A30=A30)*(B$14:B30=B30)*(C$14:C30=C30))>1,0,1) -> 1 | AI30: Contratos de prestación de servicios profesionales y de apoyo a la gestión | AJ30: Contratación directa | AK30: =IFERROR(VLOOKUP(F30,Tipo!$C$12:$C$27,1,FALSE),"NO") -> Prestación de servicios profesionales y de apoyo a la gestión, o para la ejecución de trabajos artísticos que sólo puedan encomendarse a determinadas personas naturales; | AL30: Inversión | AM30: 45
A31: 182019 | B31: 2019 | C31: FDLSC-CPS-018-2019 | D31: Contratos de prestación de servicios profesionales y de apoyo a la gestión | E31: Contratación directa | F31: Prestación de servicios profesionales y de apoyo a la gestión, o para la ejecución de trabajos artísticos que sólo puedan encomendarse a determinadas personas naturales; | G31: EL CONTRATISTA SE OBLIGA CON EL FONDO DE DESARROLLO LOCAL DE SAN CRISTOBAL A PRESTAR SUS SERVICIOS PROFESIONALES ESPECIALIZADOS PARA EL AREA DE GESTIÓN DE DESARROLLO LOCAL, ORGANIZANDO LA FORMULACION, PRESENTACION, EVALUACION Y SEGUIMIENTO DE LOS PROYECTOS DE INGENIERIA E INFRAESTRUCTURA CIVIL, APOYANDO EN GENERAL TODOS LOS PROCESOS DE GESTIONES EN LA LOCALIDAD Y DE COMPETENCIA DEL FONDO DE DESARROLLO LOCAL¿. | H31: Inversión | I31: 18 | J31: =IF(ISERROR(VLOOKUP(I31,Eje_Pilar!$C$2:$E$47,2,FALSE))," ",VLOOKUP(I31,Eje_Pilar!$C$2:$E$47,2,FALSE)) -> Mejor movilidad para todos | K31: =IF(ISERROR(VLOOKUP(I31,Eje_Pilar!$C$2:$E$47,3,FALSE))," ",VLOOKUP(I31,Eje_Pilar!$C$2:$E$47,3,FALSE)) -> Pilar 2 Democracía Urbana | L31: 3-3-1-15-02-18-1557-000 | M31: 798183305 | N31: EDGAR ANDRES TOQUICA GIRALDO | O31: 82500000 | R31: 1 | S31: 4000000 | T31: 86500000 | U31: 71250000 | V31: 2019-02-01 | W31: 2019-02-01 | X31: 2019-12-31 | Y31: 330 | AC31: x | AF31: 0.823699422 | AH31: =IF(SUMPRODUCT((A$14:A31=A31)*(B$14:B31=B31)*(C$14:C31=C31))>1,0,1) -> 1 | AI31: Contratos de prestación de servicios profesionales y de apoyo a la gestión | AJ31: Contratación directa | AK31: =IFERROR(VLOOKUP(F31,Tipo!$C$12:$C$27,1,FALSE),"NO") -> Prestación de servicios profesionales y de apoyo a la gestión, o para la ejecución de trabajos artísticos que sólo puedan encomendarse a determinadas personas naturales; | AL31: Inversión | AM31: 18
A32: 192019 | B32: 2019 | C32: FDLSC-CPS-019-2019 | D32: Contratos de prestación de servicios profesionales y de apoyo a la gestión | E32: Contratación directa | F32: Prestación de servicios profesionales y de apoyo a la gestión, o para la ejecución de trabajos artísticos que sólo puedan encomendarse a determinadas personas naturales; | G32: EL CONTRATISTA SE OBLIGA CON EL FONDO DE DESARROLLO LOCAL DE SAN CRISTOBAL A PRESTAR SUS SERVICIOS PROFESIONALES PARA LA GESTIÓN EN EL AREA DE DESARROLLO LOCAL DE SAN CRISTOBAL, EN EL APOYO DE LA FORMULACION, PLANEACION, PRESENTACIÓN Y SEGUIMIENTO DE LOS PROYECTOS DE INFRAESTRUCTURA Y OBRAS CIVILES QUE DESARROLLE LA ENTIDAD, Y EN LOS REQUERMIENTOS DE INFRAESTRUCTURA CIVIL QUE TENGA LA ALCALDIA LOCAL DE SAN CRISTOBAL. | H32: Inversión | I32: 18 | J32: =IF(ISERROR(VLOOKUP(I32,Eje_Pilar!$C$2:$E$47,2,FALSE))," ",VLOOKUP(I32,Eje_Pilar!$C$2:$E$47,2,FALSE)) -> Mejor movilidad para todos | K32: =IF(ISERROR(VLOOKUP(I32,Eje_Pilar!$C$2:$E$47,3,FALSE))," ",VLOOKUP(I32,Eje_Pilar!$C$2:$E$47,3,FALSE)) -> Pilar 2 Democracía Urbana | L32: 3-3-1-15-02-18-1557-000 | M32: 10160240581 | N32: JOHN FREDY AGUIRRE CORREA | O32: 63800000 | R32: 1 | S32: 5800000 | T32: 69600000 | U32: 63800000 | V32: 2019-02-01 | W32: 2019-02-01 | X32: 2019-12-31 | Y32: 330 | AC32: x | AF32: 0.9166666667 | AH32: =IF(SUMPRODUCT((A$14:A32=A32)*(B$14:B32=B32)*(C$14:C32=C32))>1,0,1) -> 1 | AI32: Contratos de prestación de servicios profesionales y de apoyo a la gestión | AJ32: Contratación directa | AK32: =IFERROR(VLOOKUP(F32,Tipo!$C$12:$C$27,1,FALSE),"NO") -> Prestación de servicios profesionales y de apoyo a la gestión, o para la ejecución de trabajos artísticos que sólo puedan encomendarse a determinadas personas naturales; | AL32: Inversión | AM32: 18
A33: 202019 | B33: 2019 | C33: FDLSC-CPS-020-2019 | D33: Contratos de prestación de servicios profesionales y de apoyo a la gestión | E33: Contratación directa | F33: Prestación de servicios profesionales y de apoyo a la gestión, o para la ejecución de trabajos artísticos que sólo puedan encomendarse a determinadas personas naturales; | G33: EL CONTRATISTA SE OBLIGA CON EL FONDO DE DESARROLLO LOCAL DE SAN CRISTOBAL A LA PRESTACION DE SERVICIOS PROFESIONALES PARA ADELANTRAR EL PROCESO DE COBROS PERSUASIVOS DE LAS MULTAS IMPUESTAS POR LA ALCALDIA LOCAL DE SAN CRISTOBAL | H33: Inversión | I33: 45 | J33: =IF(ISERROR(VLOOKUP(I33,Eje_Pilar!$C$2:$E$47,2,FALSE))," ",VLOOKUP(I33,Eje_Pilar!$C$2:$E$47,2,FALSE)) -> Gobernanza e influencia local, regional e internacional | K33: =IF(ISERROR(VLOOKUP(I33,Eje_Pilar!$C$2:$E$47,3,FALSE))," ",VLOOKUP(I33,Eje_Pilar!$C$2:$E$47,3,FALSE)) -> Eje Transversal 4 Gobierno Legitimo, Fortalecimiento Local y Eficiencia | L33: 3-3-1-15-07-45-1531-000 | M33: 795150893 | N33: ERNESTO CAPERA RODRIGUEZ | O33: 57200000 | R33: 1 | S33: 5200000 | T33: 62400000 | U33: 52000000 | V33: 2019-02-01 | W33: 2019-02-01 | X33: 2019-12-31 | Y33: 330 | AC33: x | AF33: 0.8333333333 | AH33: =IF(SUMPRODUCT((A$14:A33=A33)*(B$14:B33=B33)*(C$14:C33=C33))>1,0,1) -> 1 | AI33: Contratos de prestación de servicios profesionales y de apoyo a la gestión | AJ33: Contratación directa | AK33: =IFERROR(VLOOKUP(F33,Tipo!$C$12:$C$27,1,FALSE),"NO") -> Prestación de servicios profesionales y de apoyo a la gestión, o para la ejecución de trabajos artísticos que sólo puedan encomendarse a determinadas personas naturales; | AL33: Inversión | AM33: 45
A34: 212019 | B34: 2019 | C34: FDLSC-CPS-021-2019 | D34: Contratos de prestación de servicios profesionales y de apoyo a la gestión | E34: Contratación directa | F34: Prestación de servicios profesionales y de apoyo a la gestión, o para la ejecución de trabajos artísticos que sólo puedan encomendarse a determinadas personas naturales; | G34: EL CONTRATISTA SE OBLIGA CON EL FONDO DE DESARROLLO LOCAL DE SAN CRISTOBAL A LA PRESTACION DE SERVICIOS TECNICOS PARA ADELANTAR EL PROCESO DE COBROS PERSUASIVOS DE LAS MULTAS IMPUESTAS POR LA ALCALDIA LOCAL | H34: Inversión | I34: 45 | J34: =IF(ISERROR(VLOOKUP(I34,Eje_Pilar!$C$2:$E$47,2,FALSE))," ",VLOOKUP(I34,Eje_Pilar!$C$2:$E$47,2,FALSE)) -> Gobernanza e influencia local, regional e internacional | K34: =IF(ISERROR(VLOOKUP(I34,Eje_Pilar!$C$2:$E$47,3,FALSE))," ",VLOOKUP(I34,Eje_Pilar!$C$2:$E$47,3,FALSE)) -> Eje Transversal 4 Gobierno Legitimo, Fortalecimiento Local y Eficiencia | L34: 3-3-1-15-07-45-1531-000 | M34: 529597977 | N34: LILIA YOBANA ESPINAL ESPINAL | O34: 37950000 | R34: 1 | S34: 3105000 | T34: 41055000 | U34: 34200000 | V34: 2019-02-04 | W34: 2019-02-04 | X34: 2020-01-03 | Y34: 330 | AC34: x | AF34: 0.8330288637 | AH34: =IF(SUMPRODUCT((A$14:A34=A34)*(B$14:B34=B34)*(C$14:C34=C34))>1,0,1) -> 1 | AI34: Contratos de prestación de servicios profesionales y de apoyo a la gestión | AJ34: Contratación directa | AK34: =IFERROR(VLOOKUP(F34,Tipo!$C$12:$C$27,1,FALSE),"NO") -> Prestación de servicios profesionales y de apoyo a la gestión, o para la ejecución de trabajos artísticos que sólo puedan encomendarse a determinadas personas naturales; | AL34: Inversión | AM34: 45
A35: 222019 | B35: 2019 | C35: FDLSC-CPS-022-2019 | D35: Contratos de prestación de servicios profesionales y de apoyo a la gestión | E35: Contratación directa | F35: Prestación de servicios profesionales y de apoyo a la gestión, o para la ejecución de trabajos artísticos que sólo puedan encomendarse a determinadas personas naturales; | G35: EL CONTRATISTA SE OBLIGA PARA CON EL FONDO DE DESARROLLO LOCAL DE SAN CRISTOBAL A PRESTAR SUS SERVICIOS PROFESIONALES QUE CONLLEVEN AL CUMPLIMIENTO DE LAS NORMAS ESTATALES DE CONTRATACIÓN EN CUMPLIMIENTO A LAS METAS ESTABLECIDAS EN EL PLAN DE DESARROLLO ECONÓMICO, SOCIAL, AMBIENTAL Y DE OBRAS PÚBLICAS 2017-2020 DE LA LOCALIDAD DE SAN CRISTÓBAL. | H35: Inversión | I35: 45 | J35: =IF(ISERROR(VLOOKUP(I35,Eje_Pilar!$C$2:$E$47,2,FALSE))," ",VLOOKUP(I35,Eje_Pilar!$C$2:$E$47,2,FALSE)) -> Gobernanza e influencia local, regional e internacional | K35: =IF(ISERROR(VLOOKUP(I35,Eje_Pilar!$C$2:$E$47,3,FALSE))," ",VLOOKUP(I35,Eje_Pilar!$C$2:$E$47,3,FALSE)) -> Eje Transversal 4 Gobierno Legitimo, Fortalecimiento Local y Eficiencia | L35: 3-3-1-15-07-45-1531-000 | M35: 530924482 | N35: MONICA ALEXANDRA GOMEZ SARMIENTO | O35: 45551000 | R35: 1 | S35: 4141000 | T35: 49692000 | U35: 41410000 | V35: 2019-02-01 | W35: 2019-02-01 | X35: 2019-12-31 | Y35: 330 | AC35: x | AF35: 0.8333333333 | AH35: =IF(SUMPRODUCT((A$14:A35=A35)*(B$14:B35=B35)*(C$14:C35=C35))>1,0,1) -> 1 | AI35: Contratos de prestación de servicios profesionales y de apoyo a la gestión | AJ35: Contratación directa | AK35: =IFERROR(VLOOKUP(F35,Tipo!$C$12:$C$27,1,FALSE),"NO") -> Prestación de servicios profesionales y de apoyo a la gestión, o para la ejecución de trabajos artísticos que sólo puedan encomendarse a determinadas personas naturales; | AL35: Inversión | AM35: 45
A36: 232019 | B36: 2019 | C36: FDLSC-CPS-023-2019 | D36: Contratos de prestación de servicios profesionales y de apoyo a la gestión | E36: Contratación directa | F36: Prestación de servicios profesionales y de apoyo a la gestión, o para la ejecución de trabajos artísticos que sólo puedan encomendarse a determinadas personas naturales; | G36: EL CONTRATISTA SE OBLIGA PARA CON EL FONDO DE DESARROLLO LOCAL DE SAN CRISTOBAL A PRESTAR SUS SERVICIOS TECNICOS DE APOYO Y ASISTENCIA ADMINISTRATIVA AL ÁREA DE GESTIÓN DEL DESARROLLO LOCAL -CONTRATACIÓN, PARA FORTALECER LAS ETAPAS CONTRACTUALES DE ACUERDO AL PLAN ANUAL DE ADQUISICIONES DE LA ALCALDIA LOCAL DE SAN CRISTOBAL | H36: Inversión | I36: 45 | J36: =IF(ISERROR(VLOOKUP(I36,Eje_Pilar!$C$2:$E$47,2,FALSE))," ",VLOOKUP(I36,Eje_Pilar!$C$2:$E$47,2,FALSE)) -> Gobernanza e influencia local, regional e internacional | K36: =IF(ISERROR(VLOOKUP(I36,Eje_Pilar!$C$2:$E$47,3,FALSE))," ",VLOOKUP(I36,Eje_Pilar!$C$2:$E$47,3,FALSE)) -> Eje Transversal 4 Gobierno Legitimo, Fortalecimiento Local y Eficiencia | L36: 3-3-1-15-07-45-1531-000 | M36: 10239075633 | N36: YEIMI ALEJANDRA ROJAS CORREA | O36: 33464200 | R36: 1 | S36: 2230947 | T36: =+O36+Q36+S36 -> 35695147 | U36: 29610747 | V36: 2019-02-01 | W36: 2019-02-01 | X36: 2019-12-31 | Y36: 330 | AC36: x | AF36: 0.8295454561 | AH36: =IF(SUMPRODUCT((A$14:A36=A36)*(B$14:B36=B36)*(C$14:C36=C36))>1,0,1) -> 1 | AI36: =IFERROR(VLOOKUP(D36,tipo,1,FALSE),"NO") -> Contratos de prestación de servicios profesionales y de apoyo a la gestión | AJ36: =IFERROR(VLOOKUP(E36,modal,1,FALSE),"NO") -> Contratación directa | AK36: =IFERROR(VLOOKUP(F36,Tipo!$C$12:$C$27,1,FALSE),"NO") -> Prestación de servicios profesionales y de apoyo a la gestión, o para la ejecución de trabajos artísticos que sólo puedan encomendarse a determinadas personas naturales; | AL36: =IFERROR(VLOOKUP(H36,afectacion,1,FALSE),"NO") -> Inversión | AM36: =IFERROR(VLOOKUP(I36,programa,1,FALSE),"NO") -> 45
A37: 242019 | B37: 2019 | C37: FDLSC-CPS-024-2019 | D37: Contratos de prestación de servicios profesionales y de apoyo a la gestión | E37: Contratación directa | F37: Prestación de servicios profesionales y de apoyo a la gestión, o para la ejecución de trabajos artísticos que sólo puedan encomendarse a determinadas personas naturales; | G37: EL CONTRATISTA SE OBLIGA CON EL FONDO DE DESARROLLO LOCAL DE SAN CRISTOBAL A PRESTAR SUS SERVICIOS PROFESIONALES PARA LA GESTIÓN EN EL AREA DE DESARROLLO LOCAL DE SAN CRISTOBAL, EN EL APOYO DE LA FORMULACION, PLANEACION, PRESENTACIÓN Y SEGUIMIENTO DE LOS PROYECTOS DE INFRAESTRUCTURA Y OBRAS CIVILES QUE DESARROLLE LA ENTIDAD, Y EN LOS REQUERMIENTOS DE INFRAESTRUCTURA CIVIL QUE TENGA LA ALCALDIA LOCAL DE SAN CRISTOBAL. | H37: Inversión | I37: 18 | J37: =IF(ISERROR(VLOOKUP(I37,Eje_Pilar!$C$2:$E$47,2,FALSE))," ",VLOOKUP(I37,Eje_Pilar!$C$2:$E$47,2,FALSE)) -> Mejor movilidad para todos | K37: =IF(ISERROR(VLOOKUP(I37,Eje_Pilar!$C$2:$E$47,3,FALSE))," ",VLOOKUP(I37,Eje_Pilar!$C$2:$E$47,3,FALSE)) -> Pilar 2 Democracía Urbana | L37: 3-3-1-15-02-18-1557-000 | M37: 10136369161 | N37: ANDRES CAMILO VELASQUEZ LEON | O37: 63800000 | R37: 1 | S37: 4833333 | T37: 68633333 | U37: 57033333 | V37: 2019-02-05 | W37: 2019-01-06 | X37: 2020-01-05 | Y37: 330 | AC37: x | AF37: 0.8309859147 | AH37: =IF(SUMPRODUCT((A$14:A37=A37)*(B$14:B37=B37)*(C$14:C37=C37))>1,0,1) -> 1 | AI37: Contratos de prestación de servicios profesionales y de apoyo a la gestión | AJ37: Contratación directa | AK37: =IFERROR(VLOOKUP(F37,Tipo!$C$12:$C$27,1,FALSE),"NO") -> Prestación de servicios profesionales y de apoyo a la gestión, o para la ejecución de trabajos artísticos que sólo puedan encomendarse a determinadas personas naturales; | AL37: Inversión | AM37: 18
A38: 252019 | B38: 2019 | C38: FDLSC-CPS-025-2019 | D38: Contratos de prestación de servicios profesionales y de apoyo a la gestión | E38: Contratación directa | F38: Prestación de servicios profesionales y de apoyo a la gestión, o para la ejecución de trabajos artísticos que sólo puedan encomendarse a determinadas personas naturales; | G38: EL CONTRATISTA SE OBLIGA PARA CON EL FONDO DE DESARROLLO LOCAL DE SAN CRISTÓBAL A PRESTAR SUS SERVICIOS PROFESIONALES, DE APOYO AL ÁREA DE GESTIÓN DEL DESARROLLO LOCAL - CONTRATACIÓN, PARA FORTALECER LAS ETAPAS PRECONTRACTUALES Y CONTRACTUALES QUE ADELANTE LA ADMINISTRACIÓN LOCAL DE SAN CRISTÓBAL | H38: Inversión | I38: 45 | J38: =IF(ISERROR(VLOOKUP(I38,Eje_Pilar!$C$2:$E$47,2,FALSE))," ",VLOOKUP(I38,Eje_Pilar!$C$2:$E$47,2,FALSE)) -> Gobernanza e influencia local, regional e internacional | K38: =IF(ISERROR(VLOOKUP(I38,Eje_Pilar!$C$2:$E$47,3,FALSE))," ",VLOOKUP(I38,Eje_Pilar!$C$2:$E$47,3,FALSE)) -> Eje Transversal 4 Gobierno Legitimo, Fortalecimiento Local y Eficiencia | L38: 3-3-1-15-07-45-1531-000 | M38: 795803070 | N38: CESAR FRUTO CORREDOR GOMEZ | O38: 66000000 | R38: 1 | S38: 3200000 | T38: =+O38+Q38+S38 -> 69200000 | U38: 63200000 | V38: 2019-02-01 | W38: 2019-02-01 | X38: 2019-12-31 | Y38: 330 | AC38: x | AF38: 0.9132947977 | AH38: =IF(SUMPRODUCT((A$14:A38=A38)*(B$14:B38=B38)*(C$14:C38=C38))>1,0,1) -> 1 | AI38: =IFERROR(VLOOKUP(D38,tipo,1,FALSE),"NO") -> Contratos de prestación de servicios profesionales y de apoyo a la gestión | AJ38: =IFERROR(VLOOKUP(E38,modal,1,FALSE),"NO") -> Contratación directa | AK38: =IFERROR(VLOOKUP(F38,Tipo!$C$12:$C$27,1,FALSE),"NO") -> Prestación de servicios profesionales y de apoyo a la gestión, o para la ejecución de trabajos artísticos que sólo puedan encomendarse a determinadas personas naturales; | AL38: =IFERROR(VLOOKUP(H38,afectacion,1,FALSE),"NO") -> Inversión | AM38: =IFERROR(VLOOKUP(I38,programa,1,FALSE),"NO") -> 45
A39: 262019 | B39: 2019 | C39: FDLSC-CPS-026-2019 | D39: Contratos de prestación de servicios profesionales y de apoyo a la gestión | E39: Contratación directa | F39: Prestación de servicios profesionales y de apoyo a la gestión, o para la ejecución de trabajos artísticos que sólo puedan encomendarse a determinadas personas naturales; | G39: EL CONTRATISTA SE OBLIGA CON EL FONDO DE DESARROLLO LOCAL DE SAN CRISTOBAL A PRESTAR SUS SERVICIOS PROFESIONALES PARA LA GESTIÓN EN EL AREA DE DESARROLLO LOCAL DE SAN CRISTOBAL, EN EL APOYO DE LA FORMULACION, PLANEACION, PRESENTACIÓN Y SEGUIMIENTO DE LOS PROYECTOS DE INFRAESTRUCTURA Y OBRAS CIVILES QUE DESARROLLE LA ENTIDAD, Y EN LOS REQUERMIENTOS DE INFRAESTRUCTURA CIVIL QUE TENGA LA ALCALDIA LOCAL DE SAN CRISTOBAL. | H39: Inversión | I39: 18 | J39: =IF(ISERROR(VLOOKUP(I39,Eje_Pilar!$C$2:$E$47,2,FALSE))," ",VLOOKUP(I39,Eje_Pilar!$C$2:$E$47,2,FALSE)) -> Mejor movilidad para todos | K39: =IF(ISERROR(VLOOKUP(I39,Eje_Pilar!$C$2:$E$47,3,FALSE))," ",VLOOKUP(I39,Eje_Pilar!$C$2:$E$47,3,FALSE)) -> Pilar 2 Democracía Urbana | L39: 3-3-1-15-02-18-1557-000 | M39: 71741469 | N39: JOSE MISAEL PUIN CASTRO | O39: 63800000 | R39: 1 | S39: 4833333 | T39: 68633333 | U39: 28033333 | V39: 2019-02-06 | W39: 2019-02-06 | X39: 2020-01-05 | Y39: 330 | AC39: x | AF39: 0.4084507014 | AH39: =IF(SUMPRODUCT((A$14:A39=A39)*(B$14:B39=B39)*(C$14:C39=C39))>1,0,1) -> 1 | AI39: Contratos de prestación de servicios profesionales y de apoyo a la gestión | AJ39: Contratación directa | AK39: =IFERROR(VLOOKUP(F39,Tipo!$C$12:$C$27,1,FALSE),"NO") -> Prestación de servicios profesionales y de apoyo a la gestión, o para la ejecución de trabajos artísticos que sólo puedan encomendarse a determinadas personas naturales; | AL39: Inversión | AM39: 18
A40: 272019 | B40: 2019 | C40: FDLSC-CPS-027-2019 | D40: Contratos de prestación de servicios profesionales y de apoyo a la gestión | E40: Contratación directa | F40: Prestación de servicios profesionales y de apoyo a la gestión, o para la ejecución de trabajos artísticos que sólo puedan encomendarse a determinadas personas naturales; | G40: EL CONTRATISTA SE OBLIGA CON EL FONDO DE DESARROLLO LOCAL DE SAN CRISTOBAL A PRESTAR SUS SERVICIOS PROFESIONALES PARA LA GESTIÓN EN EL AREA DE DESARROLLO LOCAL DE SAN CRISTOBAL, EN EL APOYO DE LA FORMULACION, PLANEACION, PRESENTACIÓN Y SEGUIMIENTO DE LOS PROYECTOS DE INFRAESTRUCTURA Y OBRAS CIVILES QUE DESARROLLE LA ENTIDAD, Y EN LOS REQUERMIENTOS DE INFRAESTRUCTURA CIVIL QUE TENGA LA ALCALDIA LOCAL DE SAN CRISTOBAL. | H40: Inversión | I40: 18 | J40: =IF(ISERROR(VLOOKUP(I40,Eje_Pilar!$C$2:$E$47,2,FALSE))," ",VLOOKUP(I40,Eje_Pilar!$C$2:$E$47,2,FALSE)) -> Mejor movilidad para todos | K40: =IF(ISERROR(VLOOKUP(I40,Eje_Pilar!$C$2:$E$47,3,FALSE))," ",VLOOKUP(I40,Eje_Pilar!$C$2:$E$47,3,FALSE)) -> Pilar 2 Democracía Urbana | L40: 3-3-1-15-02-18-1557-000 | M40: 797435917 | N40: CAMILO ANDRES ALVAREZ GACHARNA | O40: 63800000 | R40: 1 | S40: 4833333 | T40: 68633333 | U40: 57033333 | V40: 2019-02-05 | W40: 2019-02-06 | X40: 2020-01-05 | Y40: 330 | AC40: x | AF40: 0.8309859147 | AH40: =IF(SUMPRODUCT((A$14:A40=A40)*(B$14:B40=B40)*(C$14:C40=C40))>1,0,1) -> 1 | AI40: Contratos de prestación de servicios profesionales y de apoyo a la gestión | AJ40: Contratación directa | AK40: =IFERROR(VLOOKUP(F40,Tipo!$C$12:$C$27,1,FALSE),"NO") -> Prestación de servicios profesionales y de apoyo a la gestión, o para la ejecución de trabajos artísticos que sólo puedan encomendarse a determinadas personas naturales; | AL40: Inversión | AM40: 18
A41: 282019 | B41: 2019 | C41: FDLSC-CPS-028-2019 | D41: Contratos de prestación de servicios profesionales y de apoyo a la gestión | E41: Contratación directa | F41: Prestación de servicios profesionales y de apoyo a la gestión, o para la ejecución de trabajos artísticos que sólo puedan encomendarse a determinadas personas naturales; | G41: EL CONTRATISTA SE OBLIGA CON EL FONDO DE DESARROLLO LOCAL A PRESTAR SUS SERVICIOS PROFESIONALES PARA APOYAR LOS TEMAS PRESUPUESTALES EN EL MARCO DEL PLAN DE DESARROLLO 2017-2020. | H41: Inversión | I41: 45 | J41: =IF(ISERROR(VLOOKUP(I41,Eje_Pilar!$C$2:$E$47,2,FALSE))," ",VLOOKUP(I41,Eje_Pilar!$C$2:$E$47,2,FALSE)) -> Gobernanza e influencia local, regional e internacional | K41: =IF(ISERROR(VLOOKUP(I41,Eje_Pilar!$C$2:$E$47,3,FALSE))," ",VLOOKUP(I41,Eje_Pilar!$C$2:$E$47,3,FALSE)) -> Eje Transversal 4 Gobierno Legitimo, Fortalecimiento Local y Eficiencia | L41: 3-3-1-15-07-45-1531-000 | M41: 517255775 | N41: MARLENE CONTRERAS LOZANO | O41: 52470000 | R41: 1 | S41: 4770000 | T41: 57240000 | U41: 52470000 | V41: 2019-02-01 | W41: 2019-02-01 | X41: 2019-12-31 | Y41: 330 | AC41: x | AF41: 0.9166666667 | AH41: =IF(SUMPRODUCT((A$14:A41=A41)*(B$14:B41=B41)*(C$14:C41=C41))>1,0,1) -> 1 | AI41: Contratos de prestación de servicios profesionales y de apoyo a la gestión | AJ41: Contratación directa | AK41: =IFERROR(VLOOKUP(F41,Tipo!$C$12:$C$27,1,FALSE),"NO") -> Prestación de servicios profesionales y de apoyo a la gestión, o para la ejecución de trabajos artísticos que sólo puedan encomendarse a determinadas personas naturales; | AL41: Inversión | AM41: 45
A42: 292019 | B42: 2019 | C42: FDLSC-CPS-029-2019 | D42: Contratos de prestación de servicios profesionales y de apoyo a la gestión | E42: Contratación directa | F42: Prestación de servicios profesionales y de apoyo a la gestión, o para la ejecución de trabajos artísticos que sólo puedan encomendarse a determinadas personas naturales; | G42: PRESTAR LOS SERVICIOS TECNICOS PARA APOYAR Y DAR SOPORTE TECNICO AL ADMINISTRADOR Y USUARIO FINAL DE LA RED DE SISTEMAS Y TECNOLOGIA E INFORMACION DE LA ALCALDIA LOCAL | H42: Inversión | I42: 45 | J42: =IF(ISERROR(VLOOKUP(I42,Eje_Pilar!$C$2:$E$47,2,FALSE))," ",VLOOKUP(I42,Eje_Pilar!$C$2:$E$47,2,FALSE)) -> Gobernanza e influencia local, regional e internacional | K42: =IF(ISERROR(VLOOKUP(I42,Eje_Pilar!$C$2:$E$47,3,FALSE))," ",VLOOKUP(I42,Eje_Pilar!$C$2:$E$47,3,FALSE)) -> Eje Transversal 4 Gobierno Legitimo, Fortalecimiento Local y Eficiencia | L42: 3-3-1-15-07-45-1531-000 | M42: 796156924 | N42: RAFAEL RODRIGUEZ GARCIA | O42: 38500000 | R42: 1 | S42: 3500000 | T42: 42000000 | U42: 35000000 | V42: 2019-02-01 | W42: 2019-02-01 | X42: 2019-12-31 | Y42: 330 | AC42: x | AF42: 0.8333333333 | AH42: =IF(SUMPRODUCT((A$14:A42=A42)*(B$14:B42=B42)*(C$14:C42=C42))>1,0,1) -> 1 | AI42: Contratos de prestación de servicios profesionales y de apoyo a la gestión | AJ42: Contratación directa | AK42: =IFERROR(VLOOKUP(F42,Tipo!$C$12:$C$27,1,FALSE),"NO") -> Prestación de servicios profesionales y de apoyo a la gestión, o para la ejecución de trabajos artísticos que sólo puedan encomendarse a determinadas personas naturales; | AL42: Inversión | AM42: 45
A43: 302019 | B43: 2019 | C43: FDLSC-CPS-030-2019 | D43: Contratos de prestación de servicios profesionales y de apoyo a la gestión | E43: Contratación directa | F43: Prestación de servicios profesionales y de apoyo a la gestión, o para la ejecución de trabajos artísticos que sólo puedan encomendarse a determinadas personas naturales; | G43: PRESTAR LOS SERVICIOS COMO ADMINISTRADOR DE RED EN LO RELACIONADO CON LA PLATAFORMA INFORMÁTICA Y MEDIOS TECNOLÓGICOS DE LA ALCALDÍA LOCAL DE SAN CRISTOBAL Y SER EL ENLACE CON LA SECRETARIA DISTRITAL DE GOBIERNO | H43: Inversión | I43: 45 | J43: =IF(ISERROR(VLOOKUP(I43,Eje_Pilar!$C$2:$E$47,2,FALSE))," ",VLOOKUP(I43,Eje_Pilar!$C$2:$E$47,2,FALSE)) -> Gobernanza e influencia local, regional e internacional | K43: =IF(ISERROR(VLOOKUP(I43,Eje_Pilar!$C$2:$E$47,3,FALSE))," ",VLOOKUP(I43,Eje_Pilar!$C$2:$E$47,3,FALSE)) -> Eje Transversal 4 Gobierno Legitimo, Fortalecimiento Local y Eficiencia | L43: 3-3-1-15-07-45-1531-000 | M43: 372701602 | N43: LEYDI JOHANNA TAMARA RODRIGUEZ | O43: 60500000 | T43: 60500000 | U43: 37400002 | V43: 2019-02-04 | W43: 2019-02-04 | X43: 2020-01-03 | Y43: 330 | AC43: x | AF43: 0.6181818512 | AH43: =IF(SUMPRODUCT((A$14:A43=A43)*(B$14:B43=B43)*(C$14:C43=C43))>1,0,1) -> 1 | AI43: Contratos de prestación de servicios profesionales y de apoyo a la gestión | AJ43: Contratación directa | AK43: =IFERROR(VLOOKUP(F43,Tipo!$C$12:$C$27,1,FALSE),"NO") -> Prestación de servicios profesionales y de apoyo a la gestión, o para la ejecución de trabajos artísticos que sólo puedan encomendarse a determinadas personas naturales; | AL43: Inversión | AM43: 45
A44: 312019 | B44: 2019 | C44: FDLSC-CPS-031-2019 | D44: Contratos de prestación de servicios profesionales y de apoyo a la gestión | E44: Contratación directa | F44: Prestación de servicios profesionales y de apoyo a la gestión, o para la ejecución de trabajos artísticos que sólo puedan encomendarse a determinadas personas naturales; | G44: EL CONTRATISTA SE OBLIGA PARA CON EL FONDO DE DESARROLLO LOCAL A APOYAR LA CONDUCCIÓN DE VEHICULOS LIVIANOS, PESADOS Y/ O MAQUINARIA PESADA QUE SE ENCUENTRAN AL SERVICIO DE LA ALCALDIA LOCAL DE SAN CRISTOBAL EN EL MARCO DEL PLAN DE DESARROLLO 2017-2020. | H44: Inversión | I44: 45 | J44: =IF(ISERROR(VLOOKUP(I44,Eje_Pilar!$C$2:$E$47,2,FALSE))," ",VLOOKUP(I44,Eje_Pilar!$C$2:$E$47,2,FALSE)) -> Gobernanza e influencia local, regional e internacional | K44: =IF(ISERROR(VLOOKUP(I44,Eje_Pilar!$C$2:$E$47,3,FALSE))," ",VLOOKUP(I44,Eje_Pilar!$C$2:$E$47,3,FALSE)) -> Eje Transversal 4 Gobierno Legitimo, Fortalecimiento Local y Eficiencia | L44: 3-3-1-15-07-45-1531-000 | M44: 795266037 | N44: MARIO CHAVARRO | O44: 25652000 | R44: 1 | S44: 2021067 | T44: 27673067 | U44: 25341067 | V44: 2019-02-05 | W44: 2019-02-05 | X44: 2020-01-04 | Y44: 330 | AC44: x | AF44: 0.9157303381 | AH44: =IF(SUMPRODUCT((A$14:A44=A44)*(B$14:B44=B44)*(C$14:C44=C44))>1,0,1) -> 1 | AI44: Contratos de prestación de servicios profesionales y de apoyo a la gestión | AJ44: Contratación directa | AK44: =IFERROR(VLOOKUP(F44,Tipo!$C$12:$C$27,1,FALSE),"NO") -> Prestación de servicios profesionales y de apoyo a la gestión, o para la ejecución de trabajos artísticos que sólo puedan encomendarse a determinadas personas naturales; | AL44: Inversión | AM44: 45
A45: 322019 | B45: 2019 | C45: FDLSC-CPS-032-2019 | D45: Contratos de prestación de servicios profesionales y de apoyo a la gestión | E45: Contratación directa | F45: Prestación de servicios profesionales y de apoyo a la gestión, o para la ejecución de trabajos artísticos que sólo puedan encomendarse a determinadas personas naturales; | G45: EL CONTRATISTA SE OBLIGA PARA CON EL FONDO DE DESARROLLO LOCAL A APOYAR LA CONDUCCIÓN DE VEHICULOS LIVIANOS, PESADOS Y/ O MAQUINARIA PESADA QUE SE ENCUENTRAN AL SERVICIO DE LA ALCALDIA LOCAL DE SAN CRISTOBAL EN EL MARCO DEL PLAN DE DESARROLLO 2017-2020. | H45: Inversión | I45: 45 | J45: =IF(ISERROR(VLOOKUP(I45,Eje_Pilar!$C$2:$E$47,2,FALSE))," ",VLOOKUP(I45,Eje_Pilar!$C$2:$E$47,2,FALSE)) -> Gobernanza e influencia local, regional e internacional | K45: =IF(ISERROR(VLOOKUP(I45,Eje_Pilar!$C$2:$E$47,3,FALSE))," ",VLOOKUP(I45,Eje_Pilar!$C$2:$E$47,3,FALSE)) -> Eje Transversal 4 Gobierno Legitimo, Fortalecimiento Local y Eficiencia | L45: 3-3-1-15-07-45-1531-000 | M45: 793703736 | N45: BAUDILIO DURAN MENDIVELSO | O45: 25652000 | R45: 1 | S45: 2021067 | T45: 27673067 | U45: 25341067 | V45: 2019-02-05 | W45: 2019-02-05 | X45: 2020-01-04 | Y45: 330 | AC45: x | AF45: 0.9157303381 | AH45: =IF(SUMPRODUCT((A$14:A45=A45)*(B$14:B45=B45)*(C$14:C45=C45))>1,0,1) -> 1 | AI45: Contratos de prestación de servicios profesionales y de apoyo a la gestión | AJ45: Contratación directa | AK45: =IFERROR(VLOOKUP(F45,Tipo!$C$12:$C$27,1,FALSE),"NO") -> Prestación de servicios profesionales y de apoyo a la gestión, o para la ejecución de trabajos artísticos que sólo puedan encomendarse a determinadas personas naturales; | AL45: Inversión | AM45: 45
A46: 332019 | B46: 2019 | C46: FDLSC-CPS-033-2019 | D46: Contratos de prestación de servicios profesionales y de apoyo a la gestión | E46: Contratación directa | F46: Prestación de servicios profesionales y de apoyo a la gestión, o para la ejecución de trabajos artísticos que sólo puedan encomendarse a determinadas personas naturales; | G46: EL CONTRATISTA SE OBLIGA PARA CON EL FONDO DE DESARROLLO LOCAL A APOYAR LA CONDUCCIÓN DE VEHICULOS LIVIANOS, PESADOS Y/ O MAQUINARIA PESADA QUE SE ENCUENTRAN AL SERVICIO DE LA ALCALDIA LOCAL DE SAN CRISTOBAL EN EL MARCO DEL PLAN DE DESARROLLO 2017-2020. | H46: Inversión | I46: 45 | J46: =IF(ISERROR(VLOOKUP(I46,Eje_Pilar!$C$2:$E$47,2,FALSE))," ",VLOOKUP(I46,Eje_Pilar!$C$2:$E$47,2,FALSE)) -> Gobernanza e influencia local, regional e internacional | K46: =IF(ISERROR(VLOOKUP(I46,Eje_Pilar!$C$2:$E$47,3,FALSE))," ",VLOOKUP(I46,Eje_Pilar!$C$2:$E$47,3,FALSE)) -> Eje Transversal 4 Gobierno Legitimo, Fortalecimiento Local y Eficiencia | L46: 3-3-1-15-07-45-1531-000 | M46: 796063115 | N46: JOSE WILSON PINZON BERMUDEZ | O46: 25652000 | R46: 1 | S46: 1865600 | T46: 27517600 | U46: 25165600 | V46: 2019-02-07 | W46: 2019-02-07 | X46: 2020-01-06 | Y46: 330 | AC46: x | AF46: 0.9145274297 | AH46: =IF(SUMPRODUCT((A$14:A46=A46)*(B$14:B46=B46)*(C$14:C46=C46))>1,0,1) -> 1 | AI46: =IFERROR(VLOOKUP(D46,tipo,1,FALSE),"NO") -> Contratos de prestación de servicios profesionales y de apoyo a la gestión | AJ46: =IFERROR(VLOOKUP(E46,modal,1,FALSE),"NO") -> Contratación directa | AK46: =IFERROR(VLOOKUP(F46,Tipo!$C$12:$C$27,1,FALSE),"NO") -> Prestación de servicios profesionales y de apoyo a la gestión, o para la ejecución de trabajos artísticos que sólo puedan encomendarse a determinadas personas naturales; | AL46: =IFERROR(VLOOKUP(H46,afectacion,1,FALSE),"NO") -> Inversión | AM46: =IFERROR(VLOOKUP(I46,programa,1,FALSE),"NO") -> 45
A47: 342019 | B47: 2019 | C47: FDLSC-CPS-034-2019 | D47: Contratos de prestación de servicios profesionales y de apoyo a la gestión | E47: Contratación directa | F47: Prestación de servicios profesionales y de apoyo a la gestión, o para la ejecución de trabajos artísticos que sólo puedan encomendarse a determinadas personas naturales; | G47: EL CONTRATISTA SE OBLIGA PARA CON EL FONDO DE DESARROLLO LOCAL A APOYAR LA CONDUCCIÓN DE VEHICULOS LIVIANOS, PESADOS Y/ O MAQUINARIA PESADA QUE SE ENCUENTRAN AL SERVICIO DE LA ALCALDIA LOCAL DE SAN CRISTOBAL EN EL MARCO DEL PLAN DE DESARROLLO 2017-2020. | H47: Inversión | I47: 45 | J47: =IF(ISERROR(VLOOKUP(I47,Eje_Pilar!$C$2:$E$47,2,FALSE))," ",VLOOKUP(I47,Eje_Pilar!$C$2:$E$47,2,FALSE)) -> Gobernanza e influencia local, regional e internacional | K47: =IF(ISERROR(VLOOKUP(I47,Eje_Pilar!$C$2:$E$47,3,FALSE))," ",VLOOKUP(I47,Eje_Pilar!$C$2:$E$47,3,FALSE)) -> Eje Transversal 4 Gobierno Legitimo, Fortalecimiento Local y Eficiencia | L47: 3-3-1-15-07-45-1531-000 | M47: 10239102987 | N47: LUIS MIGUEL BELTRAN GAMBOA | O47: 25652000 | R47: 1 | S47: 1865600 | T47: =+O47+Q47+S47 -> 27517600 | U47: 25185600 | V47: 2019-02-06 | W47: 2019-02-07 | X47: 2020-01-06 | Y47: 330 | AC47: x | AF47: 0.9152542373 | AH47: =IF(SUMPRODUCT((A$14:A47=A47)*(B$14:B47=B47)*(C$14:C47=C47))>1,0,1) -> 1 | AI47: Contratos de prestación de servicios profesionales y de apoyo a la gestión | AJ47: Contratación directa | AK47: =IFERROR(VLOOKUP(F47,Tipo!$C$12:$C$27,1,FALSE),"NO") -> Prestación de servicios profesionales y de apoyo a la gestión, o para la ejecución de trabajos artísticos que sólo puedan encomendarse a determinadas personas naturales; | AL47: Inversión | AM47: 45
A48: 352019 | B48: 2019 | C48: FDLSC-CPS-035-2019 | D48: Contratos de prestación de servicios profesionales y de apoyo a la gestión | E48: Contratación directa | F48: Prestación de servicios profesionales y de apoyo a la gestión, o para la ejecución de trabajos artísticos que sólo puedan encomendarse a determinadas personas naturales; | G48: EL CONTRATISTA SE OBLIGA CON EL FONDO DE DESARROLLO LOCAL DE SAN CRISTOBAL A PRESTAR SERVICIOS PROFESIONALES EN EL DESPACHO EN LAS ACTIVIDADES DE SEGUIMIENTO, REVISION Y TRAMITES DE PROCESOS ADMINISTRATIVOS, DE PLANEACIÓN Y DE CONTRATACIÓN DE CONFORMIDAD CON LAS DISPOSICIONES LEGALES EN CUMPLIMIENTO A LAS METAS ESTABLECIDAS EN EL "PLAN DE DESARROLLO LOCAL 2017-2020 | H48: Inversión | I48: 45 | J48: =IF(ISERROR(VLOOKUP(I48,Eje_Pilar!$C$2:$E$47,2,FALSE))," ",VLOOKUP(I48,Eje_Pilar!$C$2:$E$47,2,FALSE)) -> Gobernanza e influencia local, regional e internacional | K48: =IF(ISERROR(VLOOKUP(I48,Eje_Pilar!$C$2:$E$47,3,FALSE))," ",VLOOKUP(I48,Eje_Pilar!$C$2:$E$47,3,FALSE)) -> Eje Transversal 4 Gobierno Legitimo, Fortalecimiento Local y Eficiencia | L48: 3-3-1-15-07-45-1531-000 | M48: 10262512180 | N48: LUZ HEIDI QUIROGA GARCIA | O48: 82500000 | T48: 82500000 | U48: 73750000 | V48: 2019-02-04 | W48: 2019-02-06 | X48: 2020-01-05 | Y48: 330 | AC48: x | AF48: 0.8939393939 | AH48: =IF(SUMPRODUCT((A$14:A48=A48)*(B$14:B48=B48)*(C$14:C48=C48))>1,0,1) -> 1 | AI48: Contratos de prestación de servicios profesionales y de apoyo a la gestión | AJ48: Contratación directa | AK48: =IFERROR(VLOOKUP(F48,Tipo!$C$12:$C$27,1,FALSE),"NO") -> Prestación de servicios profesionales y de apoyo a la gestión, o para la ejecución de trabajos artísticos que sólo puedan encomendarse a determinadas personas naturales; | AL48: Inversión | AM48: 45
A49: 362019 | B49: 2019 | C49: FDLSC-CPS-036-2019 | D49: Contratos de prestación de servicios profesionales y de apoyo a la gestión | E49: Contratación directa | F49: Prestación de servicios profesionales y de apoyo a la gestión, o para la ejecución de trabajos artísticos que sólo puedan encomendarse a determinadas personas naturales; | G49: EL CONTRATISTA SE OBLIGA CON EL FONDO DE DESARROLLO LOCAL DE SAN CRISTOBAL A PRESTAR SERVICIOS PROFESIONALES ESPECIALIZADOSAL DESPACHO ESPECIFICAMENTE EN ACTIVIDADES DE SEGUIMIENTO, REVISION Y ATENCION A LOS REQUERIMIENTOS REALIZADOS POR ENTES DE CONTROL Y/O CIUDADANIA EN GENERAL, FORTALECIENDO LOS PROCESOS ADMINISTRATIVOS EN CUMPLIMIENTO A LAS METAS ESTABLECIDAS EN EL "PLAN DE DESARROLLO LOCAL 2017-2020 | H49: Inversión | I49: 45 | J49: =IF(ISERROR(VLOOKUP(I49,Eje_Pilar!$C$2:$E$47,2,FALSE))," ",VLOOKUP(I49,Eje_Pilar!$C$2:$E$47,2,FALSE)) -> Gobernanza e influencia local, regional e internacional | K49: =IF(ISERROR(VLOOKUP(I49,Eje_Pilar!$C$2:$E$47,3,FALSE))," ",VLOOKUP(I49,Eje_Pilar!$C$2:$E$47,3,FALSE)) -> Eje Transversal 4 Gobierno Legitimo, Fortalecimiento Local y Eficiencia | L49: 3-3-1-15-07-45-1531-000 | M49: 801172929 | N49: OSWALDO GOMEZ VEGA | O49: 88000000 | T49: 88000000 | U49: 83733333 | V49: 2019-02-04 | W49: 2019-02-07 | X49: 2020-01-06 | Y49: 330 | AC49: x | AF49: 0.9515151477 | AH49: =IF(SUMPRODUCT((A$14:A49=A49)*(B$14:B49=B49)*(C$14:C49=C49))>1,0,1) -> 1 | AI49: Contratos de prestación de servicios profesionales y de apoyo a la gestión | AJ49: Contratación directa | AK49: =IFERROR(VLOOKUP(F49,Tipo!$C$12:$C$27,1,FALSE),"NO") -> Prestación de servicios profesionales y de apoyo a la gestión, o para la ejecución de trabajos artísticos que sólo puedan encomendarse a determinadas personas naturales; | AL49: Inversión | AM49: 45
A50: 372019 | B50: 2019 | C50: FDLSC-CPS-037-2019 | D50: Contratos de prestación de servicios profesionales y de apoyo a la gestión | E50: Contratación directa | F50: Prestación de servicios profesionales y de apoyo a la gestión, o para la ejecución de trabajos artísticos que sólo puedan encomendarse a determinadas personas naturales; | G50: EL CONTRATISTA SE OBLIGA CON EL FONDO DE DESARROLLO LOCAL DE SAN CRISTOBAL A PRESTAR SERVICIOS PROFESIONALES ESPECIALIZADOS AL DESPACHO, ESPECIFICAMENTE EN TEMAS DE ORDEN ADMINISTRATIVO, REALIZANDO COORDINACIÓN Y SEGUIMIENTO A LOS PROYECTOS DE INVERSION DE ACUERDO AL PLAN DE DESARROLLO LOCAL | H50: Inversión | I50: 45 | J50: =IF(ISERROR(VLOOKUP(I50,Eje_Pilar!$C$2:$E$47,2,FALSE))," ",VLOOKUP(I50,Eje_Pilar!$C$2:$E$47,2,FALSE)) -> Gobernanza e influencia local, regional e internacional | K50: =IF(ISERROR(VLOOKUP(I50,Eje_Pilar!$C$2:$E$47,3,FALSE))," ",VLOOKUP(I50,Eje_Pilar!$C$2:$E$47,3,FALSE)) -> Eje Transversal 4 Gobierno Legitimo, Fortalecimiento Local y Eficiencia | L50: 3-3-1-15-07-45-1531-000 | M50: 194906135 | N50: JOSE ARMANDO RUIZ CALDERON | O50: 87450000 | R50: 1 | S50: 6095000 | T50: 93545000 | U50: 77645000 | V50: 2019-02-08 | W50: 2019-02-08 | X50: 2020-01-07 | Y50: 330 | AC50: x | AF50: 0.8300283286 | AH50: =IF(SUMPRODUCT((A$14:A50=A50)*(B$14:B50=B50)*(C$14:C50=C50))>1,0,1) -> 1 | AI50: Contratos de prestación de servicios profesionales y de apoyo a la gestión | AJ50: Contratación directa | AK50: =IFERROR(VLOOKUP(F50,Tipo!$C$12:$C$27,1,FALSE),"NO") -> Prestación de servicios profesionales y de apoyo a la gestión, o para la ejecución de trabajos artísticos que sólo puedan encomendarse a determinadas personas naturales; | AL50: Inversión | AM50: 45
A51: 382019 | B51: 2019 | C51: FDLSC-CPS-038-2019 | D51: Contratos de prestación de servicios profesionales y de apoyo a la gestión | E51: Contratación directa | F51: Prestación de servicios profesionales y de apoyo a la gestión, o para la ejecución de trabajos artísticos que sólo puedan encomendarse a determinadas personas naturales; | G51: PRESTAR LOS SERVICIOS PROFESIONALES PARA APOYAR TECNICAMENTE LA FORMULACION DE PROYECTOS Y REALIZAR ACTIVIDADES DE LOGISITICA DE LAS AREAS DE GESTION DEL FONDO DE DESARROLLO LOCAL DE SAN CRISTOBAL, EN LOS DIFERENTES EVENTOS Y LUGARES DEL TERRITORIO LOCAL | H51: Inversión | I51: 45 | J51: =IF(ISERROR(VLOOKUP(I51,Eje_Pilar!$C$2:$E$47,2,FALSE))," ",VLOOKUP(I51,Eje_Pilar!$C$2:$E$47,2,FALSE)) -> Gobernanza e influencia local, regional e internacional | K51: =IF(ISERROR(VLOOKUP(I51,Eje_Pilar!$C$2:$E$47,3,FALSE))," ",VLOOKUP(I51,Eje_Pilar!$C$2:$E$47,3,FALSE)) -> Eje Transversal 4 Gobierno Legitimo, Fortalecimiento Local y Eficiencia | L51: 3-3-1-15-07-45-1531-000 | M51: 10692595971 | N51: LUIS CARLOS GARZON CORTES | O51: 52470000 | R51: 1 | T51: 52470000 | U51: 47223000 | V51: 2019-02-04 | W51: 2019-02-04 | X51: 2020-01-03 | Y51: 330 | AC51: x | AF51: 0.9 | AH51: =IF(SUMPRODUCT((A$14:A51=A51)*(B$14:B51=B51)*(C$14:C51=C51))>1,0,1) -> 1 | AI51: Contratos de prestación de servicios profesionales y de apoyo a la gestión | AJ51: Contratación directa | AK51: =IFERROR(VLOOKUP(F51,Tipo!$C$12:$C$27,1,FALSE),"NO") -> Prestación de servicios profesionales y de apoyo a la gestión, o para la ejecución de trabajos artísticos que sólo puedan encomendarse a determinadas personas naturales; | AL51: Inversión | AM51: 45
A52: 392019 | B52: 2019 | C52: FDLSC-CPS-039-2019 | D52: Contratos de prestación de servicios profesionales y de apoyo a la gestión | E52: Contratación directa | F52: Prestación de servicios profesionales y de apoyo a la gestión, o para la ejecución de trabajos artísticos que sólo puedan encomendarse a determinadas personas naturales; | G52: PRESTAR LOS SERVICIOS TECNICOS PARA APOYAR LA ORGANIZACIÓN Y MONTAJE DE LAS ACTIVIDADES Y EVENTOS QUE SE REALICEN DESDE LA ALCALDIA LOCAL DE SAN CRISTOBAL EN EL TERRITORIO LOCAL | H52: Inversión | I52: 45 | J52: =IF(ISERROR(VLOOKUP(I52,Eje_Pilar!$C$2:$E$47,2,FALSE))," ",VLOOKUP(I52,Eje_Pilar!$C$2:$E$47,2,FALSE)) -> Gobernanza e influencia local, regional e internacional | K52: =IF(ISERROR(VLOOKUP(I52,Eje_Pilar!$C$2:$E$47,3,FALSE))," ",VLOOKUP(I52,Eje_Pilar!$C$2:$E$47,3,FALSE)) -> Eje Transversal 4 Gobierno Legitimo, Fortalecimiento Local y Eficiencia | L52: 3-3-1-15-07-45-1531-000 | M52: 10185010379 | N52: JUAN DAVID CASTRO CASTILLO | O52: 33000000 | R52: 1 | S52: 2500000 | T52: 35500000 | U52: 32600000 | V52: 2019-02-06 | W52: 2019-02-06 | X52: 2020-01-05 | Y52: 330 | AC52: x | AF52: 0.9183098592 | AH52: =IF(SUMPRODUCT((A$14:A52=A52)*(B$14:B52=B52)*(C$14:C52=C52))>1,0,1) -> 1 | AI52: Contratos de prestación de servicios profesionales y de apoyo a la gestión | AJ52: Contratación directa | AK52: =IFERROR(VLOOKUP(F52,Tipo!$C$12:$C$27,1,FALSE),"NO") -> Prestación de servicios profesionales y de apoyo a la gestión, o para la ejecución de trabajos artísticos que sólo puedan encomendarse a determinadas personas naturales; | AL52: Inversión | AM52: 45
A53: 402019 | B53: 2019 | C53: FDLSC-CPS-040-2019 | D53: Contratos de prestación de servicios profesionales y de apoyo a la gestión | E53: Contratación directa | F53: Prestación de servicios profesionales y de apoyo a la gestión, o para la ejecución de trabajos artísticos que sólo puedan encomendarse a determinadas personas naturales; | G53: PRESTAR SERVICIOS PROFESIONALES PARA APOYAR LA ORGANIZACIÓN Y DISPOSICION GENERAL DEL PARQUE AUTOMOTOR QUE SE ENCUENTRA AL SERVICIO DE LA ALCALDIA LOCAL DE SAN CRISTOBAL EN EL MARCO DEL PLAN DE DESARROLLO 2017-2020. | H53: Inversión | I53: 45 | J53: =IF(ISERROR(VLOOKUP(I53,Eje_Pilar!$C$2:$E$47,2,FALSE))," ",VLOOKUP(I53,Eje_Pilar!$C$2:$E$47,2,FALSE)) -> Gobernanza e influencia local, regional e internacional | K53: =IF(ISERROR(VLOOKUP(I53,Eje_Pilar!$C$2:$E$47,3,FALSE))," ",VLOOKUP(I53,Eje_Pilar!$C$2:$E$47,3,FALSE)) -> Eje Transversal 4 Gobierno Legitimo, Fortalecimiento Local y Eficiencia | L53: 3-3-1-15-07-45-1531-000 | M53: 801472697 | N53: ALEXANDER RAMIREZ GRANADOS | O53: 52470000 | R53: 1 | S53: 3180000 | T53: 55650000 | U53: 50880000 | V53: 2019-02-11 | W53: 2019-02-11 | X53: 2020-01-10 | Y53: 330 | AC53: x | AF53: 0.9142857143 | AH53: =IF(SUMPRODUCT((A$14:A53=A53)*(B$14:B53=B53)*(C$14:C53=C53))>1,0,1) -> 1 | AI53: Contratos de prestación de servicios profesionales y de apoyo a la gestión | AJ53: Contratación directa | AK53: =IFERROR(VLOOKUP(F53,Tipo!$C$12:$C$27,1,FALSE),"NO") -> Prestación de servicios profesionales y de apoyo a la gestión, o para la ejecución de trabajos artísticos que sólo puedan encomendarse a determinadas personas naturales; | AL53: Inversión | AM53: 45
A54: 412019 | B54: 2019 | C54: FDLSC-CPS-041-2019 | D54: Contratos de prestación de servicios profesionales y de apoyo a la gestión | E54: Contratación directa | F54: Prestación de servicios profesionales y de apoyo a la gestión, o para la ejecución de trabajos artísticos que sólo puedan encomendarse a determinadas personas naturales; | G54: EL CONTRATISTA SE OBLIGA PARA CON LA ALCALDÍA LOCAL DE SAN CRISTOBAL A PRESTAR SUS SERVICIOS PERSONALES EN EL AREA DE GESTION DE DESARROLLO LOCAL PARA LA GESTION DOCUMENTAL, REALIZANDO LAS ACTIVIDADES QUE REQUIERA EL ARCHIVO EN LO RELATIVO A CLASIFICACION, FOLIACION, DEPURACION, SEGÚN LOS PROGRAMAS Y PROCEDIMIENTOS ESTABLECIDOS. | H54: Inversión | I54: 45 | J54: =IF(ISERROR(VLOOKUP(I54,Eje_Pilar!$C$2:$E$47,2,FALSE))," ",VLOOKUP(I54,Eje_Pilar!$C$2:$E$47,2,FALSE)) -> Gobernanza e influencia local, regional e internacional | K54: =IF(ISERROR(VLOOKUP(I54,Eje_Pilar!$C$2:$E$47,3,FALSE))," ",VLOOKUP(I54,Eje_Pilar!$C$2:$E$47,3,FALSE)) -> Eje Transversal 4 Gobierno Legitimo, Fortalecimiento Local y Eficiencia | L54: 3-3-1-15-07-45-1531-000 | M54: 10238818911 | N54: ELIANA YURIED BENITO LADINO | O54: 17686100 | R54: 1 | S54: 376300 | T54: 18062400 | U54: 15353040 | V54: 2019-02-26 | W54: 2019-02-25 | X54: 2020-01-24 | Y54: 330 | AC54: x | AF54: 0.85 | AH54: =IF(SUMPRODUCT((A$14:A54=A54)*(B$14:B54=B54)*(C$14:C54=C54))>1,0,1) -> 1 | AI54: Contratos de prestación de servicios profesionales y de apoyo a la gestión | AJ54: Contratación directa | AK54: =IFERROR(VLOOKUP(F54,Tipo!$C$12:$C$27,1,FALSE),"NO") -> Prestación de servicios profesionales y de apoyo a la gestión, o para la ejecución de trabajos artísticos que sólo puedan encomendarse a determinadas personas naturales; | AL54: Inversión | AM54: 45
A55: 422019 | B55: 2019 | C55: FDLSC-CPS-042-2019 | D55: Contratos de prestación de servicios profesionales y de apoyo a la gestión | E55: Contratación directa | F55: Prestación de servicios profesionales y de apoyo a la gestión, o para la ejecución de trabajos artísticos que sólo puedan encomendarse a determinadas personas naturales; | G55: EL CONTRATISTA SE OBLIGA PARA CON LA ALCALDÍA LOCAL DE SAN CRISTOBAL A PRESTAR SUS SERVICIOS PERSONALES EN EL AREA DE GESTION DE DESARROLLO LOCAL PARA LA GESTION DOCUMENTAL, REALIZANDO LAS ACTIVIDADES QUE REQUIERA EL ARCHIVO EN LO RELATIVO A CLASIFICACION, FOLIACION, DEPURACION, SEGÚN LOS PROGRAMAS Y PROCEDIMIENTOS ESTABLECIDOS. | H55: Inversión | I55: 45 | J55: =IF(ISERROR(VLOOKUP(I55,Eje_Pilar!$C$2:$E$47,2,FALSE))," ",VLOOKUP(I55,Eje_Pilar!$C$2:$E$47,2,FALSE)) -> Gobernanza e influencia local, regional e internacional | K55: =IF(ISERROR(VLOOKUP(I55,Eje_Pilar!$C$2:$E$47,3,FALSE))," ",VLOOKUP(I55,Eje_Pilar!$C$2:$E$47,3,FALSE)) -> Eje Transversal 4 Gobierno Legitimo, Fortalecimiento Local y Eficiencia | L55: 3-3-1-15-07-45-1531-000 | M55: 303091170 | N55: CLAUDIA LILIANA MONTOYA MAULEDOUX | O55: 11213740 | R55: 1 | T55: 11213740 | U55: 8805420 | V55: 2019-05-02 | W55: 2019-05-02 | X55: 2020-02-01 | Y55: 330 | AC55: x | AF55: 0.7852348993 | AH55: =IF(SUMPRODUCT((A$14:A55=A55)*(B$14:B55=B55)*(C$14:C55=C55))>1,0,1) -> 1 | AI55: Contratos de prestación de servicios profesionales y de apoyo a la gestión | AJ55: Contratación directa | AK55: =IFERROR(VLOOKUP(F55,Tipo!$C$12:$C$27,1,FALSE),"NO") -> Prestación de servicios profesionales y de apoyo a la gestión, o para la ejecución de trabajos artísticos que sólo puedan encomendarse a determinadas personas naturales; | AL55: Inversión | AM55: 45
A56: 432019 | B56: 2019 | C56: FDLSC-CPS-043-2019 | D56: Contratos de prestación de servicios profesionales y de apoyo a la gestión | E56: Contratación directa | F56: Prestación de servicios profesionales y de apoyo a la gestión, o para la ejecución de trabajos artísticos que sólo puedan encomendarse a determinadas personas naturales; | G56: EL CONTRATISTA SE OBLIGA PARA CON LA ALCALDÍA LOCAL DE SAN CRISTOBAL A PRESTAR SUS SERVICIOS TECNICOS EN EL AREA DE GESTION DEL DESARROLLO LOCAL PARA LA GESTION DOCUMENTAL, CON EL FIN DE RECEPCIONAR, REVISAR, ORGANIZAR, CLASIFICAR Y PRESERVAR LA DOCUMENTACION DE LA ENTIDAD Y PROPORCIONAR SEGURIDAD DE LOS ARCHIVOS Y DOCUMENTOS DE CADA UNA DE LAS DEPENDENCIAS DE LA ALCADIA LOCAL, REALIZANDO LAS ACTIVIDADES QUE REQUIERA EL ARCHIVO, SEGÚN LOS PROGRAMAS Y PROCEDIMIENTOS ESTABLECIDOS. | H56: Inversión | I56: 45 | J56: =IF(ISERROR(VLOOKUP(I56,Eje_Pilar!$C$2:$E$47,2,FALSE))," ",VLOOKUP(I56,Eje_Pilar!$C$2:$E$47,2,FALSE)) -> Gobernanza e influencia local, regional e internacional | K56: =IF(ISERROR(VLOOKUP(I56,Eje_Pilar!$C$2:$E$47,3,FALSE))," ",VLOOKUP(I56,Eje_Pilar!$C$2:$E$47,3,FALSE)) -> Eje Transversal 4 Gobierno Legitimo, Fortalecimiento Local y Eficiencia | L56: 3-3-1-15-07-45-1531-000 | M56: 520111922 | N56: OLGA LUCIA HERNANDEZ MELO | O56: 34980000 | R56: 1 | S56: 2756000 | T56: 37736000 | U56: 34556000 | V56: 2019-02-05 | W56: 2019-02-05 | X56: 2020-01-04 | Y56: 330 | AC56: x | AF56: 0.9157303371 | AH56: =IF(SUMPRODUCT((A$14:A56=A56)*(B$14:B56=B56)*(C$14:C56=C56))>1,0,1) -> 1 | AI56: Contratos de prestación de servicios profesionales y de apoyo a la gestión | AJ56: Contratación directa | AK56: =IFERROR(VLOOKUP(F56,Tipo!$C$12:$C$27,1,FALSE),"NO") -> Prestación de servicios profesionales y de apoyo a la gestión, o para la ejecución de trabajos artísticos que sólo puedan encomendarse a determinadas personas naturales; | AL56: Inversión | AM56: 45
A57: 442019 | B57: 2019 | C57: FDLSC-CPS-044-2019 | D57: Contratos de prestación de servicios profesionales y de apoyo a la gestión | E57: Contratación directa | F57: Prestación de servicios profesionales y de apoyo a la gestión, o para la ejecución de trabajos artísticos que sólo puedan encomendarse a determinadas personas naturales; | G57: EL CONTRATISTA SE OBLIGA PARA CON FONDO DE DESARROLLO LOCAL A PRESTAR SUS SERVICIOS PROFESIONALES PARA APOYAR EL AREA DESARROLLO LOCAL EN LOS PROCESOS CONTABLES Y FINANCIEROS | H57: Inversión | I57: 45 | J57: =IF(ISERROR(VLOOKUP(I57,Eje_Pilar!$C$2:$E$47,2,FALSE))," ",VLOOKUP(I57,Eje_Pilar!$C$2:$E$47,2,FALSE)) -> Gobernanza e influencia local, regional e internacional | K57: =IF(ISERROR(VLOOKUP(I57,Eje_Pilar!$C$2:$E$47,3,FALSE))," ",VLOOKUP(I57,Eje_Pilar!$C$2:$E$47,3,FALSE)) -> Eje Transversal 4 Gobierno Legitimo, Fortalecimiento Local y Eficiencia | L57: 3-3-1-15-07-45-1531-000 | M57: 515632545 | N57: MARTHA CECILIA HERNANDEZ TIBADUIZA | O57: 52470000 | R57: 1 | S57: 3657000 | T57: 56127000 | U57: 51357000 | V57: 2019-02-04 | W57: 2019-02-04 | X57: 2020-01-03 | Y57: 330 | AC57: x | AF57: 0.9150141643 | AH57: =IF(SUMPRODUCT((A$14:A57=A57)*(B$14:B57=B57)*(C$14:C57=C57))>1,0,1) -> 1 | AI57: Contratos de prestación de servicios profesionales y de apoyo a la gestión | AJ57: Contratación directa | AK57: =IFERROR(VLOOKUP(F57,Tipo!$C$12:$C$27,1,FALSE),"NO") -> Prestación de servicios profesionales y de apoyo a la gestión, o para la ejecución de trabajos artísticos que sólo puedan encomendarse a determinadas personas naturales; | AL57: Inversión | AM57: 45
A58: 452019 | B58: 2019 | C58: FDLSC-CPS-045-2019 | D58: Contratos de prestación de servicios profesionales y de apoyo a la gestión | E58: Contratación directa | F58: Prestación de servicios profesionales y de apoyo a la gestión, o para la ejecución de trabajos artísticos que sólo puedan encomendarse a determinadas personas naturales; | G58: EL CONTRATISTA SE OBLIGA PARA CON FONDO DE DESARROLLO LOCAL A PRESTAR SUS SERVICIOS PROFESIONALES PARA APOYAR EL AREA DESARROLLO LOCAL EN LOS PROCESOS CONTABLES Y FINANCIEROS | H58: Inversión | I58: 45 | J58: =IF(ISERROR(VLOOKUP(I58,Eje_Pilar!$C$2:$E$47,2,FALSE))," ",VLOOKUP(I58,Eje_Pilar!$C$2:$E$47,2,FALSE)) -> Gobernanza e influencia local, regional e internacional | K58: =IF(ISERROR(VLOOKUP(I58,Eje_Pilar!$C$2:$E$47,3,FALSE))," ",VLOOKUP(I58,Eje_Pilar!$C$2:$E$47,3,FALSE)) -> Eje Transversal 4 Gobierno Legitimo, Fortalecimiento Local y Eficiencia | L58: 3-3-1-15-07-45-1531-000 | M58: 51688411 | N58: NELLY STELLA LOPEZ SILVA | O58: 52470000 | R58: 1 | S58: 4293000 | T58: 56763000 | U58: 51993000 | V58: 2019-02-04 | W58: 2019-02-04 | X58: 2020-01-03 | Y58: 330 | AC58: x | AF58: 0.9159663866 | AH58: =IF(SUMPRODUCT((A$14:A58=A58)*(B$14:B58=B58)*(C$14:C58=C58))>1,0,1) -> 1 | AI58: Contratos de prestación de servicios profesionales y de apoyo a la gestión | AJ58: Contratación directa | AK58: =IFERROR(VLOOKUP(F58,Tipo!$C$12:$C$27,1,FALSE),"NO") -> Prestación de servicios profesionales y de apoyo a la gestión, o para la ejecución de trabajos artísticos que sólo puedan encomendarse a determinadas personas naturales; | AL58: Inversión | AM58: 45
A59: 462019 | B59: 2019 | C59: FDLSC-CPS-046-2019 | D59: Contratos de prestación de servicios profesionales y de apoyo a la gestión | E59: Contratación directa | F59: Prestación de servicios profesionales y de apoyo a la gestión, o para la ejecución de trabajos artísticos que sólo puedan encomendarse a determinadas personas naturales; | G59: EL CONTRATISTA SE OBLIGA A PRESTAR SUS SERVICIOS PROFESIONALES DE APOYO TECNICO A LAS DISTINTAS ETAPAS DE LOS PROCESOS DE COMPETENCIA DE LAS INSPECCIONES DE POLICIA DE LA LOCALIDAD, SEGÚN REPARTO | H59: Inversión | I59: 45 | J59: =IF(ISERROR(VLOOKUP(I59,Eje_Pilar!$C$2:$E$47,2,FALSE))," ",VLOOKUP(I59,Eje_Pilar!$C$2:$E$47,2,FALSE)) -> Gobernanza e influencia local, regional e internacional | K59: =IF(ISERROR(VLOOKUP(I59,Eje_Pilar!$C$2:$E$47,3,FALSE))," ",VLOOKUP(I59,Eje_Pilar!$C$2:$E$47,3,FALSE)) -> Eje Transversal 4 Gobierno Legitimo, Fortalecimiento Local y Eficiencia | L59: 3-3-1-15-07-45-1531-000 | M59: 800544955 | N59: CRISTIAN FERNANDO FLOREZ HERRERA | O59: 59400000 | R59: 1 | S59: 4500000 | T59: 63900000 | U59: 58500000 | V59: 2019-02-06 | W59: 2019-02-06 | X59: 2020-01-05 | Y59: 330 | AC59: x | AF59: 0.9154929577 | AH59: =IF(SUMPRODUCT((A$14:A59=A59)*(B$14:B59=B59)*(C$14:C59=C59))>1,0,1) -> 1 | AI59: Contratos de prestación de servicios profesionales y de apoyo a la gestión | AJ59: Contratación directa | AK59: =IFERROR(VLOOKUP(F59,Tipo!$C$12:$C$27,1,FALSE),"NO") -> Prestación de servicios profesionales y de apoyo a la gestión, o para la ejecución de trabajos artísticos que sólo puedan encomendarse a determinadas personas naturales; | AL59: Inversión | AM59: 45
A60: 472019 | B60: 2019 | C60: FDLSC-CPS-047-2019 | D60: Contratos de prestación de servicios profesionales y de apoyo a la gestión | E60: Contratación directa | F60: Prestación de servicios profesionales y de apoyo a la gestión, o para la ejecución de trabajos artísticos que sólo puedan encomendarse a determinadas personas naturales; | G60: EL CONTRATISTA SE OBLIGA CON EL FONDO DE DESARROLLO LOCAL DE SAN CRISTOBAL A PRESTAR SERVICIOS PROFESIONALES ESPECIALIZADOS PARA APOYAR AL ALCALDE LOCAL EN LA FORMULACIÓN, SEGUIMIENTO E IMPLEMENTACION DE LA ESTRATEGIA LOCAL PARA LA TERMINACION JURIDICA DE LAS ACTUACIONES JUDICIALES O ADMINISTRATIVAS QUE CURSAN EN LA ALCALDIA LOCAL | H60: Inversión | I60: 45 | J60: =IF(ISERROR(VLOOKUP(I60,Eje_Pilar!$C$2:$E$47,2,FALSE))," ",VLOOKUP(I60,Eje_Pilar!$C$2:$E$47,2,FALSE)) -> Gobernanza e influencia local, regional e internacional | K60: =IF(ISERROR(VLOOKUP(I60,Eje_Pilar!$C$2:$E$47,3,FALSE))," ",VLOOKUP(I60,Eje_Pilar!$C$2:$E$47,3,FALSE)) -> Eje Transversal 4 Gobierno Legitimo, Fortalecimiento Local y Eficiencia | L60: 3-3-1-15-07-45-1531-000 | M60: 795588768 | N60: JOHN YEZID HERRERA MATIAS | O60: 49280000 | R60: 1 | S60: 24640000 | T60: 73920000 | U60: 49280000 | V60: 2019-02-14 | W60: 2019-02-14 | X60: 2019-09-13 | Y60: 210 | AC60: x | AF60: 0.6666666667 | AH60: =IF(SUMPRODUCT((A$14:A60=A60)*(B$14:B60=B60)*(C$14:C60=C60))>1,0,1) -> 1 | AI60: Contratos de prestación de servicios profesionales y de apoyo a la gestión | AJ60: Contratación directa | AK60: =IFERROR(VLOOKUP(F60,Tipo!$C$12:$C$27,1,FALSE),"NO") -> Prestación de servicios profesionales y de apoyo a la gestión, o para la ejecución de trabajos artísticos que sólo puedan encomendarse a determinadas personas naturales; | AL60: Inversión | AM60: 45
A61: 482019 | B61: 2019 | C61: FDLSC-CPS-048-2019 | D61: Contratos de prestación de servicios profesionales y de apoyo a la gestión | E61: Contratación directa | F61: Prestación de servicios profesionales y de apoyo a la gestión, o para la ejecución de trabajos artísticos que sólo puedan encomendarse a determinadas personas naturales; | G61: EL CONTRATISTA SE OBLIGA CON EL FONDO DE DESARROLLO LOCAL DE SAN CRISTOBAL A PRESTAR SUS SERVICIOS PROFESIONALES PARA APOYAR TECNICAMENTE A LOS RESPONSABLES E INTEGRANTES DE LOS PROCESOS EN LA IMPLEMENTACION DE HERRAMIENTAS DE GESTION SIGUIENDO LOS LINEAMIENTOS METODOLOGICOS ESTABLECIDOS POR LA OFICINA ASESORA DE PLANEACION DE LA SECRETARIA DISTRITAL DE GOBIERNO | H61: Inversión | I61: 45 | J61: =IF(ISERROR(VLOOKUP(I61,Eje_Pilar!$C$2:$E$47,2,FALSE))," ",VLOOKUP(I61,Eje_Pilar!$C$2:$E$47,2,FALSE)) -> Gobernanza e influencia local, regional e internacional | K61: =IF(ISERROR(VLOOKUP(I61,Eje_Pilar!$C$2:$E$47,3,FALSE))," ",VLOOKUP(I61,Eje_Pilar!$C$2:$E$47,3,FALSE)) -> Eje Transversal 4 Gobierno Legitimo, Fortalecimiento Local y Eficiencia | L61: 3-3-1-15-07-45-1531-000 | M61: 796963831 | N61: ARCADIO SARMIENTO RAMIREZ | O61: 52470000 | R61: 1 | S61: 4293000 | T61: 56763000 | U61: 51993000 | V61: 2019-02-04 | W61: 2019-02-04 | X61: 2020-01-03 | Y61: 330 | AC61: x | AF61: 0.9159663866 | AH61: =IF(SUMPRODUCT((A$14:A61=A61)*(B$14:B61=B61)*(C$14:C61=C61))>1,0,1) -> 1 | AI61: Contratos de prestación de servicios profesionales y de apoyo a la gestión | AJ61: Contratación directa | AK61: =IFERROR(VLOOKUP(F61,Tipo!$C$12:$C$27,1,FALSE),"NO") -> Prestación de servicios profesionales y de apoyo a la gestión, o para la ejecución de trabajos artísticos que sólo puedan encomendarse a determinadas personas naturales; | AL61: Inversión | AM61: 45
A62: 492019 | B62: 2019 | C62: FDLSC-CPS-049-2019 | D62: Contratos de prestación de servicios profesionales y de apoyo a la gestión | E62: Contratación directa | F62: Prestación de servicios profesionales y de apoyo a la gestión, o para la ejecución de trabajos artísticos que sólo puedan encomendarse a determinadas personas naturales; | G62: EL CONTRATISTA SE OBLIGA CON EL FONDO DE DESARROLLO LOCAL DE SAN CRISTOBAL A PRESTAR SERVICIOS PROFESIONALES ESPECIALIZADOS AL DESPACHO Y A LAS DIFERENTES AREAS EN CUMPLIMIENTO A LAS METAS ESTABLECIDAS EN EL "PLAN DE DESARROLLO LOCAL 2017-2020 | H62: Inversión | I62: 45 | J62: =IF(ISERROR(VLOOKUP(I62,Eje_Pilar!$C$2:$E$47,2,FALSE))," ",VLOOKUP(I62,Eje_Pilar!$C$2:$E$47,2,FALSE)) -> Gobernanza e influencia local, regional e internacional | K62: =IF(ISERROR(VLOOKUP(I62,Eje_Pilar!$C$2:$E$47,3,FALSE))," ",VLOOKUP(I62,Eje_Pilar!$C$2:$E$47,3,FALSE)) -> Eje Transversal 4 Gobierno Legitimo, Fortalecimiento Local y Eficiencia | L62: 3-3-1-15-07-45-1531-000 | M62: 792917439 | N62: JAIRO RODRIGUEZ VALDERRAMA | O62: 96778000 | T62: 96778000 | U62: 82114667 | V62: 2019-02-05 | W62: 2019-02-06 | X62: 2020-01-05 | Y62: 330 | AC62: x | AF62: 0.8484848519 | AH62: =IF(SUMPRODUCT((A$14:A62=A62)*(B$14:B62=B62)*(C$14:C62=C62))>1,0,1) -> 1 | AI62: Contratos de prestación de servicios profesionales y de apoyo a la gestión | AJ62: Contratación directa | AK62: =IFERROR(VLOOKUP(F62,Tipo!$C$12:$C$27,1,FALSE),"NO") -> Prestación de servicios profesionales y de apoyo a la gestión, o para la ejecución de trabajos artísticos que sólo puedan encomendarse a determinadas personas naturales; | AL62: Inversión | AM62: 45
A63: 502019 | B63: 2019 | C63: FDLSC-CPS-050-2019 | D63: Contratos de prestación de servicios profesionales y de apoyo a la gestión | E63: Contratación directa | F63: Prestación de servicios profesionales y de apoyo a la gestión, o para la ejecución de trabajos artísticos que sólo puedan encomendarse a determinadas personas naturales; | G63: EL CONTRATISTA SE OBLIGA CON EL FONDO DE DESARROLLO LOCAL DE SAN CRISTOBAL A LA PRESTACION DE SERVICIOS PROFESIONALES EN EL AREA DE GESTION DE DESARROLLO LOCAL PARA LA FORMULACIÓN, EVALUACIÓN, PRESENTACIÓN Y SEGUIMIENTO DEL PROYECTO 1492 COMPONENTE DOTACION DE JARDINES INFANTILES Y 1486 EN SAN CRISTOBAL SE CONTRIBUYE A UNA MEJOR EDUCACION EN EL CUMPLIMIENTO DEL PLAN DE SARROLLO 2017-2020 | H63: Inversión | I63: 45 | J63: =IF(ISERROR(VLOOKUP(I63,Eje_Pilar!$C$2:$E$47,2,FALSE))," ",VLOOKUP(I63,Eje_Pilar!$C$2:$E$47,2,FALSE)) -> Gobernanza e influencia local, regional e internacional | K63: =IF(ISERROR(VLOOKUP(I63,Eje_Pilar!$C$2:$E$47,3,FALSE))," ",VLOOKUP(I63,Eje_Pilar!$C$2:$E$47,3,FALSE)) -> Eje Transversal 4 Gobierno Legitimo, Fortalecimiento Local y Eficiencia | L63: 3-3-1-15-07-45-1531-000 | M63: 531646061 | N63: LINDA VANESSA ACUÑA RAMIREZ | O63: 52470000 | R63: 1 | S63: 3816000 | T63: 56286000 | U63: 51516000 | V63: 2019-02-06 | W63: 2019-02-07 | X63: 2020-01-06 | Y63: 330 | AC63: x | AF63: 0.9152542373 | AH63: =IF(SUMPRODUCT((A$14:A63=A63)*(B$14:B63=B63)*(C$14:C63=C63))>1,0,1) -> 1 | AI63: Contratos de prestación de servicios profesionales y de apoyo a la gestión | AJ63: Contratación directa | AK63: =IFERROR(VLOOKUP(F63,Tipo!$C$12:$C$27,1,FALSE),"NO") -> Prestación de servicios profesionales y de apoyo a la gestión, o para la ejecución de trabajos artísticos que sólo puedan encomendarse a determinadas personas naturales; | AL63: Inversión | AM63: 45
A64: 512019 | B64: 2019 | C64: FDLSC-CPS-051-2019 | D64: Contratos de prestación de servicios profesionales y de apoyo a la gestión | E64: Contratación directa | F64: Prestación de servicios profesionales y de apoyo a la gestión, o para la ejecución de trabajos artísticos que sólo puedan encomendarse a determinadas personas naturales; | G64: EL CONTRATISTA SE OBLIGA CON EL FONDO DE DESARROLLO LOCAL DE SAN CRISTOBAL A LA PRESTACION DE SERVICIOS PROFESIONALES PARA APOYAR LA FORMULACIÓN, EVALUACIÓN, PRESENTACIÓN Y SEGUIMIENTO DE LOS PROYECTOS DE GESTION DEPORTIVA, ACTIVIDAD FISICA Y RECREATIVA, EN GENERAL PRESTANDO APOYO A TODOS LOS PROCESOS DEPORTIVOS DESARROLLADOS EN LA LOCALIDAD Y AQUELLOS QUE SEAN DE COMPETENCIA DEL FONDO EN EL CUMPLIMIENTO DEL PLAN DE SARROLLO 2017-2020 | H64: Inversión | I64: 45 | J64: =IF(ISERROR(VLOOKUP(I64,Eje_Pilar!$C$2:$E$47,2,FALSE))," ",VLOOKUP(I64,Eje_Pilar!$C$2:$E$47,2,FALSE)) -> Gobernanza e influencia local, regional e internacional | K64: =IF(ISERROR(VLOOKUP(I64,Eje_Pilar!$C$2:$E$47,3,FALSE))," ",VLOOKUP(I64,Eje_Pilar!$C$2:$E$47,3,FALSE)) -> Eje Transversal 4 Gobierno Legitimo, Fortalecimiento Local y Eficiencia | L64: 3-3-1-15-07-45-1531-000 | M64: 194387251 | N64: WILLIAM CESAR PARADA PAEZ | O64: 52470000 | R64: 1 | S64: 3180000 | T64: 55650000 | U64: 50880000 | V64: 2019-02-11 | W64: 2019-02-11 | X64: 2020-01-10 | Y64: 330 | AC64: x | AF64: 0.9142857143 | AH64: =IF(SUMPRODUCT((A$14:A64=A64)*(B$14:B64=B64)*(C$14:C64=C64))>1,0,1) -> 1 | AI64: Contratos de prestación de servicios profesionales y de apoyo a la gestión | AJ64: Contratación directa | AK64: =IFERROR(VLOOKUP(F64,Tipo!$C$12:$C$27,1,FALSE),"NO") -> Prestación de servicios profesionales y de apoyo a la gestión, o para la ejecución de trabajos artísticos que sólo puedan encomendarse a determinadas personas naturales; | AL64: Inversión | AM64: 45
A65: 522019 | B65: 2019 | C65: FDLSC-CPS-052-2019 | D65: Contratos de prestación de servicios profesionales y de apoyo a la gestión | E65: Contratación directa | F65: Prestación de servicios profesionales y de apoyo a la gestión, o para la ejecución de trabajos artísticos que sólo puedan encomendarse a determinadas personas naturales; | G65: EL CONTRATISTA SE OBLIGA CON EL FONDO DE DESARROLLO LOCAL DE SAN CRISTOBAL A LA PRESTACION DE SERVICIOS PROFESIONALES PARA LA FORMULACIÓN, EVALUACIÓN, PRESENTACIÓN Y SEGUIMIENTO DE LOS PROYECTOS DEL FONDO EN TEMAS DEPORTIVOS, ACTIVIDAD FISICA Y RECREATIVA EN EL TERRITORIO Y EN GENERAL PRESTANDO APOYO A TODOS LOS PROCESOS DEPORTIVOS DESARROLLADOS EN LA LOCALIDAD Y AQUELLOS QUE SEAN DE COMPETENCIA DEL FONDO EN EL CUMPLIMIENTO DEL PLAN DE SARROLLO 2017-2020 | H65: Inversión | I65: 45 | J65: =IF(ISERROR(VLOOKUP(I65,Eje_Pilar!$C$2:$E$47,2,FALSE))," ",VLOOKUP(I65,Eje_Pilar!$C$2:$E$47,2,FALSE)) -> Gobernanza e influencia local, regional e internacional | K65: =IF(ISERROR(VLOOKUP(I65,Eje_Pilar!$C$2:$E$47,3,FALSE))," ",VLOOKUP(I65,Eje_Pilar!$C$2:$E$47,3,FALSE)) -> Eje Transversal 4 Gobierno Legitimo, Fortalecimiento Local y Eficiencia | L65: 3-3-1-15-07-45-1531-000 | M65: 10305922210 | N65: MIGUEL ANGEL DELGADO BARRERA | O65: 52470000 | R65: 1 | S65: 3975000 | T65: 56445000 | U65: 37571333 | V65: 2019-02-06 | W65: 2019-02-06 | X65: 2020-01-05 | Y65: 330 | AC65: x | AF65: 0.6656273009 | AH65: =IF(SUMPRODUCT((A$14:A65=A65)*(B$14:B65=B65)*(C$14:C65=C65))>1,0,1) -> 1 | AI65: Contratos de prestación de servicios profesionales y de apoyo a la gestión | AJ65: Contratación directa | AK65: =IFERROR(VLOOKUP(F65,Tipo!$C$12:$C$27,1,FALSE),"NO") -> Prestación de servicios profesionales y de apoyo a la gestión, o para la ejecución de trabajos artísticos que sólo puedan encomendarse a determinadas personas naturales; | AL65: Inversión | AM65: 45
A66: 532019 | B66: 2019 | C66: FDLSC-CPS-053-2019 | D66: Contratos de prestación de servicios profesionales y de apoyo a la gestión | E66: Contratación directa | F66: Prestación de servicios profesionales y de apoyo a la gestión, o para la ejecución de trabajos artísticos que sólo puedan encomendarse a determinadas personas naturales; | G66: EL CONTRATISTA SE OBLIGA CON EL FONDO DE DESARROLLO LOCAL DE SAN CRISTOBAL A PRESTAR SUS SERVICIOS PERSONALES PARA APOYAR LA GESTIÓN LOCAL Y TERRITORIAL DE LOS TEMAS DE SEGURIDAD Y CONVIVENCIA CIUDADANA, EN EL MARCO DEL PLAN DE DESARROLLO 2017-2020. MEJOR SEGURIDAD Y CONVIVENCIA PARA TODOS ¿ PROYECTO 1555 | H66: Inversión | I66: 19 | J66: =IF(ISERROR(VLOOKUP(I66,Eje_Pilar!$C$2:$E$47,2,FALSE))," ",VLOOKUP(I66,Eje_Pilar!$C$2:$E$47,2,FALSE)) -> Seguridad y convivencia para todos | K66: =IF(ISERROR(VLOOKUP(I66,Eje_Pilar!$C$2:$E$47,3,FALSE))," ",VLOOKUP(I66,Eje_Pilar!$C$2:$E$47,3,FALSE)) -> Pilar 3 Construcción de Comunidad y Cultura Ciudadana | L66: 3-3-1-15-03-19-1555-000 | M66: 801458601 | N66: JAIME ALEXANDER ARBELAEZ ANGEL | O66: 24200000 | R66: 1 | S66: 1760000 | T66: 25960000 | U66: 23760000 | V66: 2019-02-07 | W66: 2019-02-07 | X66: 2020-01-06 | Y66: 330 | AC66: x | AF66: 0.9152542373 | AH66: =IF(SUMPRODUCT((A$14:A66=A66)*(B$14:B66=B66)*(C$14:C66=C66))>1,0,1) -> 1 | AI66: Contratos de prestación de servicios profesionales y de apoyo a la gestión | AJ66: Contratación directa | AK66: =IFERROR(VLOOKUP(F66,Tipo!$C$12:$C$27,1,FALSE),"NO") -> Prestación de servicios profesionales y de apoyo a la gestión, o para la ejecución de trabajos artísticos que sólo puedan encomendarse a determinadas personas naturales; | AL66: Inversión | AM66: 19
A67: 542019 | B67: 2019 | C67: FDLSC-CPS-054-2019 | D67: Contratos de prestación de servicios profesionales y de apoyo a la gestión | E67: Contratación directa | F67: Prestación de servicios profesionales y de apoyo a la gestión, o para la ejecución de trabajos artísticos que sólo puedan encomendarse a determinadas personas naturales; | G67: EL CONTRATISTA SE OBLIGA CON EL FONDO DE DESARROLLO LOCAL DE SAN CRISTOBAL A PRESTAR SUS SERVICIOS PERSONALES PARA APOYAR LA GESTIÓN LOCAL Y TERRITORIAL DE LOS TEMAS DE SEGURIDAD Y CONVIVENCIA CIUDADANA, EN EL MARCO DEL PLAN DE DESARROLLO 2017-2020. MEJOR SEGURIDAD Y CONVIVENCIA PARA TODOS ¿ PROYECTO 1555 | H67: Inversión | I67: 19 | J67: =IF(ISERROR(VLOOKUP(I67,Eje_Pilar!$C$2:$E$47,2,FALSE))," ",VLOOKUP(I67,Eje_Pilar!$C$2:$E$47,2,FALSE)) -> Seguridad y convivencia para todos | K67: =IF(ISERROR(VLOOKUP(I67,Eje_Pilar!$C$2:$E$47,3,FALSE))," ",VLOOKUP(I67,Eje_Pilar!$C$2:$E$47,3,FALSE)) -> Pilar 3 Construcción de Comunidad y Cultura Ciudadana | L67: 3-3-1-15-03-19-1555-000 | M67: 795622868 | N67: ROBINSON PITTA JIMENEZ | O67: 24200000 | R67: 1 | S67: 1760000 | T67: 25960000 | U67: 23760000 | V67: 2019-02-07 | W67: 2019-02-07 | X67: 2020-01-06 | Y67: 330 | AC67: x | AF67: 0.9152542373 | AH67: =IF(SUMPRODUCT((A$14:A67=A67)*(B$14:B67=B67)*(C$14:C67=C67))>1,0,1) -> 1 | AI67: Contratos de prestación de servicios profesionales y de apoyo a la gestión | AJ67: Contratación directa | AK67: =IFERROR(VLOOKUP(F67,Tipo!$C$12:$C$27,1,FALSE),"NO") -> Prestación de servicios profesionales y de apoyo a la gestión, o para la ejecución de trabajos artísticos que sólo puedan encomendarse a determinadas personas naturales; | AL67: Inversión | AM67: 19
A68: 552019 | B68: 2019 | C68: FDLSC-CPS-055-2019 | D68: Contratos de prestación de servicios profesionales y de apoyo a la gestión | E68: Contratación directa | F68: Prestación de servicios profesionales y de apoyo a la gestión, o para la ejecución de trabajos artísticos que sólo puedan encomendarse a determinadas personas naturales; | G68: EL CONTRATISTA SE OBLIGA CON EL FONDO DE DESARROLLO LOCAL DE SAN CRISTOBAL A PRESTAR SUS SERVICIOS PERSONALES PARA APOYAR LA GESTIÓN LOCAL Y TERRITORIAL DE LOS TEMAS DE SEGURIDAD Y CONVIVENCIA CIUDADANA, EN EL MARCO DEL PLAN DE DESARROLLO 2017-2020. MEJOR SEGURIDAD Y CONVIVENCIA PARA TODOS ¿ PROYECTO 1555 | H68: Inversión | I68: 19 | J68: =IF(ISERROR(VLOOKUP(I68,Eje_Pilar!$C$2:$E$47,2,FALSE))," ",VLOOKUP(I68,Eje_Pilar!$C$2:$E$47,2,FALSE)) -> Seguridad y convivencia para todos | K68: =IF(ISERROR(VLOOKUP(I68,Eje_Pilar!$C$2:$E$47,3,FALSE))," ",VLOOKUP(I68,Eje_Pilar!$C$2:$E$47,3,FALSE)) -> Pilar 3 Construcción de Comunidad y Cultura Ciudadana | L68: 3-3-1-15-03-19-1555-000 | M68: 10239195778 | N68: ALBERT YESID GIL PEREZ | O68: 24200000 | R68: 1 | S68: 366667 | T68: 24566667 | U68: 23760000 | V68: 2019-02-07 | W68: 2019-02-07 | X68: 2020-01-06 | Y68: 330 | AC68: x | AF68: 0.967164166 | AH68: =IF(SUMPRODUCT((A$14:A68=A68)*(B$14:B68=B68)*(C$14:C68=C68))>1,0,1) -> 1 | AI68: Contratos de prestación de servicios profesionales y de apoyo a la gestión | AJ68: Contratación directa | AK68: =IFERROR(VLOOKUP(F68,Tipo!$C$12:$C$27,1,FALSE),"NO") -> Prestación de servicios profesionales y de apoyo a la gestión, o para la ejecución de trabajos artísticos que sólo puedan encomendarse a determinadas personas naturales; | AL68: Inversión | AM68: 19
A69: 562019 | B69: 2019 | C69: FDLSC-CPS-056-2019 | D69: Contratos de prestación de servicios profesionales y de apoyo a la gestión | E69: Contratación directa | F69: Prestación de servicios profesionales y de apoyo a la gestión, o para la ejecución de trabajos artísticos que sólo puedan encomendarse a determinadas personas naturales; | G69: EL CONTRATISTA SE OBLIGA CON EL FONDO DE DESARROLLO LOCAL DE SAN CRISTOBAL A PRESTAR SUS SERVICIOS PERSONALES PARA APOYAR LA GESTIÓN LOCAL Y TERRITORIAL DE LOS TEMAS DE SEGURIDAD Y CONVIVENCIA CIUDADANA, EN EL MARCO DEL PLAN DE DESARROLLO 2017-2020. MEJOR SEGURIDAD Y CONVIVENCIA PARA TODOS ¿ PROYECTO 1555 | H69: Inversión | I69: 19 | J69: =IF(ISERROR(VLOOKUP(I69,Eje_Pilar!$C$2:$E$47,2,FALSE))," ",VLOOKUP(I69,Eje_Pilar!$C$2:$E$47,2,FALSE)) -> Seguridad y convivencia para todos | K69: =IF(ISERROR(VLOOKUP(I69,Eje_Pilar!$C$2:$E$47,3,FALSE))," ",VLOOKUP(I69,Eje_Pilar!$C$2:$E$47,3,FALSE)) -> Pilar 3 Construcción de Comunidad y Cultura Ciudadana | L69: 3-3-1-15-03-19-1555-000 | M69: 796988831 | N69: GERMAN LOPEZ ARIAS | O69: 24200000 | R69: 1 | S69: 1760000 | T69: 25960000 | U69: 23760000 | V69: 2019-02-07 | W69: 2019-02-07 | X69: 2020-01-06 | Y69: 330 | AC69: x | AF69: 0.9152542373 | AH69: =IF(SUMPRODUCT((A$14:A69=A69)*(B$14:B69=B69)*(C$14:C69=C69))>1,0,1) -> 1 | AI69: Contratos de prestación de servicios profesionales y de apoyo a la gestión | AJ69: Contratación directa | AK69: =IFERROR(VLOOKUP(F69,Tipo!$C$12:$C$27,1,FALSE),"NO") -> Prestación de servicios profesionales y de apoyo a la gestión, o para la ejecución de trabajos artísticos que sólo puedan encomendarse a determinadas personas naturales; | AL69: Inversión | AM69: 19
A70: 572019 | B70: 2019 | C70: FDLSC-CPS-057-2019 | D70: Contratos de prestación de servicios profesionales y de apoyo a la gestión | E70: Contratación directa | F70: Prestación de servicios profesionales y de apoyo a la gestión, o para la ejecución de trabajos artísticos que sólo puedan encomendarse a determinadas personas naturales; | G70: EL CONTRATISTA SE OBLIGA CON EL FONDO DE DESARROLLO LOCAL DE SAN CRISTOBAL A PRESTAR SUS SERVICIOS PERSONALES PARA APOYAR LA GESTIÓN LOCAL Y TERRITORIAL DE LOS TEMAS DE SEGURIDAD Y CONVIVENCIA CIUDADANA, EN EL MARCO DEL PLAN DE DESARROLLO 2017-2020. MEJOR SEGURIDAD Y CONVIVENCIA PARA TODOS ¿ PROYECTO 1555 | H70: Inversión | I70: 19 | J70: =IF(ISERROR(VLOOKUP(I70,Eje_Pilar!$C$2:$E$47,2,FALSE))," ",VLOOKUP(I70,Eje_Pilar!$C$2:$E$47,2,FALSE)) -> Seguridad y convivencia para todos | K70: =IF(ISERROR(VLOOKUP(I70,Eje_Pilar!$C$2:$E$47,3,FALSE))," ",VLOOKUP(I70,Eje_Pilar!$C$2:$E$47,3,FALSE)) -> Pilar 3 Construcción de Comunidad y Cultura Ciudadana | L70: 3-3-1-15-03-19-1555-000 | M70: 10136398197 | N70: ROSALBA DAZA PARRA | O70: 24200000 | R70: 1 | S70: 1760000 | T70: 25960000 | U70: 23759200 | V70: 2019-02-07 | W70: 2019-02-07 | X70: 2020-01-06 | Y70: 330 | AC70: x | AF70: 0.9152234206 | AH70: =IF(SUMPRODUCT((A$14:A70=A70)*(B$14:B70=B70)*(C$14:C70=C70))>1,0,1) -> 1 | AI70: Contratos de prestación de servicios profesionales y de apoyo a la gestión | AJ70: Contratación directa | AK70: =IFERROR(VLOOKUP(F70,Tipo!$C$12:$C$27,1,FALSE),"NO") -> Prestación de servicios profesionales y de apoyo a la gestión, o para la ejecución de trabajos artísticos que sólo puedan encomendarse a determinadas personas naturales; | AL70: Inversión | AM70: 19
A71: 582019 | B71: 2019 | C71: FDLSC-CPS-058-2019 | D71: Contratos de prestación de servicios profesionales y de apoyo a la gestión | E71: Contratación directa | F71: Prestación de servicios profesionales y de apoyo a la gestión, o para la ejecución de trabajos artísticos que sólo puedan encomendarse a determinadas personas naturales; | G71: EL CONTRATISTA SE OBLIGA CON EL FONDO DE DESARROLLO LOCAL DE SAN CRISTOBAL A PRESTAR SUS SERVICIOS PERSONALES PARA APOYAR LA GESTIÓN LOCAL Y TERRITORIAL DE LOS TEMAS DE SEGURIDAD Y CONVIVENCIA CIUDADANA, EN EL MARCO DEL PLAN DE DESARROLLO 2017-2020. MEJOR SEGURIDAD Y CONVIVENCIA PARA TODOS ¿ PROYECTO 1555 | H71: Inversión | I71: 19 | J71: =IF(ISERROR(VLOOKUP(I71,Eje_Pilar!$C$2:$E$47,2,FALSE))," ",VLOOKUP(I71,Eje_Pilar!$C$2:$E$47,2,FALSE)) -> Seguridad y convivencia para todos | K71: =IF(ISERROR(VLOOKUP(I71,Eje_Pilar!$C$2:$E$47,3,FALSE))," ",VLOOKUP(I71,Eje_Pilar!$C$2:$E$47,3,FALSE)) -> Pilar 3 Construcción de Comunidad y Cultura Ciudadana | L71: 3-3-1-15-03-19-1555-000 | M71: 10239433471 | N71: CRISTIAN CAMILO RAMOS QUIJANO | O71: 24200000 | R71: 1 | S71: 1760000 | T71: 25960000 | U71: 21627000 | V71: 2019-02-07 | W71: 2019-02-07 | X71: 2020-01-06 | Y71: 330 | AC71: x | AF71: 0.8330893683 | AH71: =IF(SUMPRODUCT((A$14:A71=A71)*(B$14:B71=B71)*(C$14:C71=C71))>1,0,1) -> 1 | AI71: Contratos de prestación de servicios profesionales y de apoyo a la gestión | AJ71: Contratación directa | AK71: =IFERROR(VLOOKUP(F71,Tipo!$C$12:$C$27,1,FALSE),"NO") -> Prestación de servicios profesionales y de apoyo a la gestión, o para la ejecución de trabajos artísticos que sólo puedan encomendarse a determinadas personas naturales; | AL71: Inversión | AM71: 19
A72: 592019 | B72: 2019 | C72: FDLSC-CPS-059-2019 | D72: Contratos de prestación de servicios profesionales y de apoyo a la gestión | E72: Contratación directa | F72: Prestación de servicios profesionales y de apoyo a la gestión, o para la ejecución de trabajos artísticos que sólo puedan encomendarse a determinadas personas naturales; | G72: EL CONTRATISTA SE OBLIGA CON EL FONDO DE DESARROLLO LOCAL DE SAN CRISTOBAL A PRESTAR SUS SERVICIOS TECNICOS PARA APOYAR LA GESTIÓN LOCAL Y TERRITORIAL DE LOS TEMAS DE SEGURIDAD Y CONVIVENCIA CIUDADANA, EN EL MARCO DEL PLAN DE DESARROLLO 2017-2020. MEJOR SEGURIDAD Y CONVIVENCIA PARA TODOS ¿ PROYECTO 1555 | H72: Inversión | I72: 19 | J72: =IF(ISERROR(VLOOKUP(I72,Eje_Pilar!$C$2:$E$47,2,FALSE))," ",VLOOKUP(I72,Eje_Pilar!$C$2:$E$47,2,FALSE)) -> Seguridad y convivencia para todos | K72: =IF(ISERROR(VLOOKUP(I72,Eje_Pilar!$C$2:$E$47,3,FALSE))," ",VLOOKUP(I72,Eje_Pilar!$C$2:$E$47,3,FALSE)) -> Pilar 3 Construcción de Comunidad y Cultura Ciudadana | L72: 3-3-1-15-03-19-1555-000 | M72: 10238646461 | N72: EDNA ROCIO ZULUAGA FAJARDO | O72: 33000000 | R72: 1 | S72: 2640000 | T72: 35640000 | U72: 32450000 | V72: 2019-02-07 | W72: 2019-02-07 | X72: 2020-01-06 | Y72: 330 | AC72: x | AF72: 0.9104938272 | AH72: =IF(SUMPRODUCT((A$14:A72=A72)*(B$14:B72=B72)*(C$14:C72=C72))>1,0,1) -> 1 | AI72: Contratos de prestación de servicios profesionales y de apoyo a la gestión | AJ72: Contratación directa | AK72: =IFERROR(VLOOKUP(F72,Tipo!$C$12:$C$27,1,FALSE),"NO") -> Prestación de servicios profesionales y de apoyo a la gestión, o para la ejecución de trabajos artísticos que sólo puedan encomendarse a determinadas personas naturales; | AL72: Inversión | AM72: 19
A73: 602019 | B73: 2019 | C73: FDLSC-CPS-060-2019 | D73: Contratos de prestación de servicios profesionales y de apoyo a la gestión | E73: Contratación directa | F73: Prestación de servicios profesionales y de apoyo a la gestión, o para la ejecución de trabajos artísticos que sólo puedan encomendarse a determinadas personas naturales; | G73: EL CONTRATISTA SE OBLIGA CON EL FONDO DE DESARROLLO LOCAL DE SAN CRISTOBAL A PRESTAR SUS SERVICIOS TECNICOS PARA APOYAR LA GESTIÓN LOCAL Y TERRITORIAL DE LOS TEMAS DE SEGURIDAD Y CONVIVENCIA CIUDADANA, EN EL MARCO DEL PLAN DE DESARROLLO 2017-2020. MEJOR SEGURIDAD Y CONVIVENCIA PARA TODOS ¿ PROYECTO 1555 | H73: Inversión | I73: 19 | J73: =IF(ISERROR(VLOOKUP(I73,Eje_Pilar!$C$2:$E$47,2,FALSE))," ",VLOOKUP(I73,Eje_Pilar!$C$2:$E$47,2,FALSE)) -> Seguridad y convivencia para todos | K73: =IF(ISERROR(VLOOKUP(I73,Eje_Pilar!$C$2:$E$47,3,FALSE))," ",VLOOKUP(I73,Eje_Pilar!$C$2:$E$47,3,FALSE)) -> Pilar 3 Construcción de Comunidad y Cultura Ciudadana | L73: 3-3-1-15-03-19-1555-000 | M73: 10136175854 | N73: JENNIFER ANDREA CASTRO PRIETO | O73: 33000000 | R73: 1 | S73: 2640000 | T73: 35640000 | U73: 32450000 | V73: 2019-02-07 | W73: 2019-02-07 | X73: 2020-01-06 | Y73: 330 | AC73: x | AF73: 0.9104938272 | AH73: =IF(SUMPRODUCT((A$14:A73=A73)*(B$14:B73=B73)*(C$14:C73=C73))>1,0,1) -> 1 | AI73: Contratos de prestación de servicios profesionales y de apoyo a la gestión | AJ73: Contratación directa | AK73: =IFERROR(VLOOKUP(F73,Tipo!$C$12:$C$27,1,FALSE),"NO") -> Prestación de servicios profesionales y de apoyo a la gestión, o para la ejecución de trabajos artísticos que sólo puedan encomendarse a determinadas personas naturales; | AL73: Inversión | AM73: 19
A74: 612019 | B74: 2019 | C74: FDLSC-CPS-061-2019 | D74: Contratos de prestación de servicios profesionales y de apoyo a la gestión | E74: Contratación directa | F74: Prestación de servicios profesionales y de apoyo a la gestión, o para la ejecución de trabajos artísticos que sólo puedan encomendarse a determinadas personas naturales; | G74: EL CONTRATISTA SE OBLIGA CON EL FONDO DE DESARROLLO LOCAL A PRESTAR SUS SERVICIOS PROFESIONALES PARA APOYAR LA GESTION DE LOS ASUNTOS RELACIONADOS CON SEGURIDAD CIUDADANA, CONVIVENCIA Y PREVENCION DE CONFLICTIVIDADES, VIOLENCIAS Y DELITOS EN LA LOCALIDAD, DE CONFORMIDAD CON EL MARCO NORMATIVO APLICABLE EN LA MATERIA. | H74: Inversión | I74: 19 | J74: =IF(ISERROR(VLOOKUP(I74,Eje_Pilar!$C$2:$E$47,2,FALSE))," ",VLOOKUP(I74,Eje_Pilar!$C$2:$E$47,2,FALSE)) -> Seguridad y convivencia para todos | K74: =IF(ISERROR(VLOOKUP(I74,Eje_Pilar!$C$2:$E$47,3,FALSE))," ",VLOOKUP(I74,Eje_Pilar!$C$2:$E$47,3,FALSE)) -> Pilar 3 Construcción de Comunidad y Cultura Ciudadana | L74: 3-3-1-15-03-19-1555-000 | M74: 809135942 | N74: CARLOS ALEXANDER CASTILLO MUÑOZ | O74: 60500000 | R74: 1 | S74: 4400000 | T74: 64900000 | U74: 59401999 | V74: 2019-02-07 | W74: 2019-02-08 | X74: 2020-01-07 | Y74: 330 | AC74: x | AF74: 0.9152850385 | AH74: =IF(SUMPRODUCT((A$14:A74=A74)*(B$14:B74=B74)*(C$14:C74=C74))>1,0,1) -> 1 | AI74: Contratos de prestación de servicios profesionales y de apoyo a la gestión | AJ74: Contratación directa | AK74: =IFERROR(VLOOKUP(F74,Tipo!$C$12:$C$27,1,FALSE),"NO") -> Prestación de servicios profesionales y de apoyo a la gestión, o para la ejecución de trabajos artísticos que sólo puedan encomendarse a determinadas personas naturales; | AL74: Inversión | AM74: 19
A75: 622019 | B75: 2019 | C75: FDLSC-CPS-062-2019 | D75: Contratos de prestación de servicios profesionales y de apoyo a la gestión | E75: Contratación directa | F75: Prestación de servicios profesionales y de apoyo a la gestión, o para la ejecución de trabajos artísticos que sólo puedan encomendarse a determinadas personas naturales; | G75: PRESTAR LOS SERVICIOS PROFESIONALES PARA LA OPERACIÓN, SEGUIMIENTO Y CUMPLIMIENTO DE LOS PROCESOS Y PROCEDIMIENTOS DEL SERVICIO APOYO ECONÓMICO TIPO C, REQUERIDOS PARA EL OPORTUNO Y ADECUADO REGISTRO, CRUCE Y REPORTE DE LOS DATOS EN EL SISTEMA MISIONAL ¿ SIRBE, QUE CONTRIBUYAN A LA GARANTÍA DE LOS DERECHOS DE LA POBLACIÓN MAYOR EN EL MARCO DE LA POLÍTICA PÚBLICA SOCIAL PARA EL ENVEJECIMIENTO Y LA VEJEZ EN EL DISTRITO CAPITAL A CARGO DE LA ALCALDÍA LOCAL | H75: Inversión | I75: 3 | J75: =IF(ISERROR(VLOOKUP(I75,Eje_Pilar!$C$2:$E$47,2,FALSE))," ",VLOOKUP(I75,Eje_Pilar!$C$2:$E$47,2,FALSE)) -> Igualdad y autonomía para una Bogotá incluyente | K75: =IF(ISERROR(VLOOKUP(I75,Eje_Pilar!$C$2:$E$47,3,FALSE))," ",VLOOKUP(I75,Eje_Pilar!$C$2:$E$47,3,FALSE)) -> Pilar 1 Igualdad de Calidad de Vida | L75: 3-3-1-15-01-03-1509-000 | M75: 10647107591 | N75: INDRYS MILENA GUERRERO MARTINEZ | O75: 57200000 | R75: 1 | S75: 3986667 | T75: 61186667 | U75: 55986659 | V75: 2019-02-08 | W75: 2019-02-08 | X75: 2020-01-07 | Y75: 330 | AC75: x | AF75: 0.915014034 | AH75: =IF(SUMPRODUCT((A$14:A75=A75)*(B$14:B75=B75)*(C$14:C75=C75))>1,0,1) -> 1 | AI75: Contratos de prestación de servicios profesionales y de apoyo a la gestión | AJ75: Contratación directa | AK75: =IFERROR(VLOOKUP(F75,Tipo!$C$12:$C$27,1,FALSE),"NO") -> Prestación de servicios profesionales y de apoyo a la gestión, o para la ejecución de trabajos artísticos que sólo puedan encomendarse a determinadas personas naturales; | AL75: Inversión | AM75: 3
A76: 632019 | B76: 2019 | C76: FDLSC-CPS-063-2019 | D76: Contratos de prestación de servicios profesionales y de apoyo a la gestión | E76: Contratación directa | F76: Prestación de servicios profesionales y de apoyo a la gestión, o para la ejecución de trabajos artísticos que sólo puedan encomendarse a determinadas personas naturales; | G76: PRESTAR LOS SERVICIOS PROFESIONALES PARA LA OPERACIÓN, SEGUIMIENTO Y CUMPLIMIENTO DE LOS PROCESOS Y PROCEDIMIENTOS DEL SERVICIO APOYO ECONÓMICO TIPO C, REQUERIDOS PARA EL OPORTUNO Y ADECUADO REGISTRO, CRUCE Y REPORTE DE LOS DATOS EN EL SISTEMA MISIONAL ¿ SIRBE, QUE CONTRIBUYAN A LA GARANTÍA DE LOS DERECHOS DE LA POBLACIÓN MAYOR EN EL MARCO DE LA POLÍTICA PÚBLICA SOCIAL PARA EL ENVEJECIMIENTO Y LA VEJEZ EN EL DISTRITO CAPITAL A CARGO DE LA ALCALDÍA LOCAL | H76: Inversión | I76: 3 | J76: =IF(ISERROR(VLOOKUP(I76,Eje_Pilar!$C$2:$E$47,2,FALSE))," ",VLOOKUP(I76,Eje_Pilar!$C$2:$E$47,2,FALSE)) -> Igualdad y autonomía para una Bogotá incluyente | K76: =IF(ISERROR(VLOOKUP(I76,Eje_Pilar!$C$2:$E$47,3,FALSE))," ",VLOOKUP(I76,Eje_Pilar!$C$2:$E$47,3,FALSE)) -> Pilar 1 Igualdad de Calidad de Vida | L76: 3-3-1-15-01-03-1509-000 | M76: 521884959 | N76: MARY LUZ VIASUS ROMERO | O76: 57200000 | R76: 1 | S76: 3986667 | T76: 61186667 | U76: 55986659 | V76: 2019-02-08 | W76: 2019-02-08 | X76: 2020-01-07 | Y76: 330 | AC76: x | AF76: 0.915014034 | AH76: =IF(SUMPRODUCT((A$14:A76=A76)*(B$14:B76=B76)*(C$14:C76=C76))>1,0,1) -> 1 | AI76: Contratos de prestación de servicios profesionales y de apoyo a la gestión | AJ76: Contratación directa | AK76: =IFERROR(VLOOKUP(F76,Tipo!$C$12:$C$27,1,FALSE),"NO") -> Prestación de servicios profesionales y de apoyo a la gestión, o para la ejecución de trabajos artísticos que sólo puedan encomendarse a determinadas personas naturales; | AL76: Inversión | AM76: 3
A77: 642019 | B77: 2019 | C77: FDLSC-CPS-064-2019 | D77: Contratos de prestación de servicios profesionales y de apoyo a la gestión | E77: Contratación directa | F77: Prestación de servicios profesionales y de apoyo a la gestión, o para la ejecución de trabajos artísticos que sólo puedan encomendarse a determinadas personas naturales; | G77: EL CONTRATISTA SE OBLIGA A PRESTAR SUS SERVICIOS PROFESIONALES DE APOYO TECNICO A LAS DISTINTAS ETAPAS DE LOS PROCESOS DE COMPETENCIA DE LAS INSPECCIONES DE POLICIA DE LA LOCALIDAD, SEGÚN REPARTO | H77: Inversión | I77: 45 | J77: =IF(ISERROR(VLOOKUP(I77,Eje_Pilar!$C$2:$E$47,2,FALSE))," ",VLOOKUP(I77,Eje_Pilar!$C$2:$E$47,2,FALSE)) -> Gobernanza e influencia local, regional e internacional | K77: =IF(ISERROR(VLOOKUP(I77,Eje_Pilar!$C$2:$E$47,3,FALSE))," ",VLOOKUP(I77,Eje_Pilar!$C$2:$E$47,3,FALSE)) -> Eje Transversal 4 Gobierno Legitimo, Fortalecimiento Local y Eficiencia | L77: 3-3-1-15-07-45-1531-000 | M77: 794952545 | N77: JAIRO ARGUELLO BORDA | O77: 59400000 | R77: 1 | S77: 3600000 | T77: 63000000 | U77: 57600000 | V77: 2019-02-11 | W77: 2019-02-11 | X77: 2020-01-10 | Y77: 330 | AC77: x | AF77: 0.9142857143 | AH77: =IF(SUMPRODUCT((A$14:A77=A77)*(B$14:B77=B77)*(C$14:C77=C77))>1,0,1) -> 1 | AI77: Contratos de prestación de servicios profesionales y de apoyo a la gestión | AJ77: Contratación directa | AK77: =IFERROR(VLOOKUP(F77,Tipo!$C$12:$C$27,1,FALSE),"NO") -> Prestación de servicios profesionales y de apoyo a la gestión, o para la ejecución de trabajos artísticos que sólo puedan encomendarse a determinadas personas naturales; | AL77: Inversión | AM77: 45
A78: 652019 | B78: 2019 | C78: FDLSC-CPS-065-2019 | D78: Contratos de prestación de servicios profesionales y de apoyo a la gestión | E78: Contratación directa | F78: Prestación de servicios profesionales y de apoyo a la gestión, o para la ejecución de trabajos artísticos que sólo puedan encomendarse a determinadas personas naturales; | G78: EL CONTRATISTA SE OBLIGA PARA CON LA ALCALDÍA LOCAL DE SAN CRISTOBAL A PRESTAR SUS SERVICIOS PROFESIONALES EN EL ÁREA DE GESTIÓN DE DESARROLLO LOCAL - PLANEACIÓN, REALIZANDO ACTIVIDADES DE IDENTIFICACION, GEORREFERENCIACIÓN Y ADQUISICION DE INFORMACION PREDIAL PARA LOS DIFERENTES PROYECTOS DE LA ALCALDIA LOCAL DE SAN CRISTOBAL-ESTE CDP REEMPLAZA EL 530 Y EL RP 526 POR ERROR AL MOMENTEO DE EMITIRSE | H78: Inversión | I78: 45 | J78: =IF(ISERROR(VLOOKUP(I78,Eje_Pilar!$C$2:$E$47,2,FALSE))," ",VLOOKUP(I78,Eje_Pilar!$C$2:$E$47,2,FALSE)) -> Gobernanza e influencia local, regional e internacional | K78: =IF(ISERROR(VLOOKUP(I78,Eje_Pilar!$C$2:$E$47,3,FALSE))," ",VLOOKUP(I78,Eje_Pilar!$C$2:$E$47,3,FALSE)) -> Eje Transversal 4 Gobierno Legitimo, Fortalecimiento Local y Eficiencia | L78: 3-3-1-15-07-45-1531-000 | M78: 803115164 | N78: DANILO ALFONSO HERNANDEZ MONTENEGRO | O78: 69300000 | T78: 69300000 | U78: 67200000 | V78: 2019-02-28 | W78: 2019-02-11 | X78: 2020-01-10 | Y78: 330 | AC78: x | AF78: 0.9696969697 | AH78: =IF(SUMPRODUCT((A$14:A78=A78)*(B$14:B78=B78)*(C$14:C78=C78))>1,0,1) -> 1 | AI78: Contratos de prestación de servicios profesionales y de apoyo a la gestión | AJ78: Contratación directa | AK78: =IFERROR(VLOOKUP(F78,Tipo!$C$12:$C$27,1,FALSE),"NO") -> Prestación de servicios profesionales y de apoyo a la gestión, o para la ejecución de trabajos artísticos que sólo puedan encomendarse a determinadas personas naturales; | AL78: Inversión | AM78: 45
A79: 662019 | B79: 2019 | C79: FDLSC-CPS-066-2019 | D79: Contratos de prestación de servicios profesionales y de apoyo a la gestión | E79: Contratación directa | F79: Prestación de servicios profesionales y de apoyo a la gestión, o para la ejecución de trabajos artísticos que sólo puedan encomendarse a determinadas personas naturales; | G79: PRESTAR LOS SERVICIOS TÉCNICOS PARA LA OPERACIÓN, SEGUIMIENTO Y CUMPLIMIENTO DE LOS PROCESOS Y PROCEDIMIENTOS DEL SERVICIO APOYOS PARA LA SEGURIDAD ECONÓMICA TIPO C, REQUERIDOS PARA EL OPORTUNO Y ADECUADO REGISTRO, CRUCE Y REPORTE DE LOS DATOS EN EL SISTEMA MISIONAL¿SIRBE, QUE CONTRIBUYAN A LA GARANTÍA DE LOS DERECHOS DE LA POBLACIÓN MAYOR EN EL MARCO DE LA POLÍTICA PÚBLICA SOCIAL PARA EL ENVEJECIMIENTO Y LA VEJEZ EN EL DISTRITO CAPITAL A CARGO DE LA ALCALDÍA LOCAL. | H79: Inversión | I79: 3 | J79: =IF(ISERROR(VLOOKUP(I79,Eje_Pilar!$C$2:$E$47,2,FALSE))," ",VLOOKUP(I79,Eje_Pilar!$C$2:$E$47,2,FALSE)) -> Igualdad y autonomía para una Bogotá incluyente | K79: =IF(ISERROR(VLOOKUP(I79,Eje_Pilar!$C$2:$E$47,3,FALSE))," ",VLOOKUP(I79,Eje_Pilar!$C$2:$E$47,3,FALSE)) -> Pilar 1 Igualdad de Calidad de Vida | L79: 3-3-1-15-01-03-1509-000 | M79: 531547216 | N79: JOHANNA XIMENA GOMEZ MALPICA | O79: 35200000 | R79: 1 | S79: 2026667 | T79: 37226667 | U79: 34026654 | V79: 2019-02-08 | W79: 2019-02-08 | X79: 2020-01-07 | Y79: 330 | AC79: x | AF79: 0.9140397662 | AH79: =IF(SUMPRODUCT((A$14:A79=A79)*(B$14:B79=B79)*(C$14:C79=C79))>1,0,1) -> 1 | AI79: Contratos de prestación de servicios profesionales y de apoyo a la gestión | AJ79: Contratación directa | AK79: =IFERROR(VLOOKUP(F79,Tipo!$C$12:$C$27,1,FALSE),"NO") -> Prestación de servicios profesionales y de apoyo a la gestión, o para la ejecución de trabajos artísticos que sólo puedan encomendarse a determinadas personas naturales; | AL79: Inversión | AM79: 3
A80: 672019 | B80: 2019 | C80: FDLSC-CPS-067-2019 | D80: Contratos de prestación de servicios profesionales y de apoyo a la gestión | E80: Contratación directa | F80: Prestación de servicios profesionales y de apoyo a la gestión, o para la ejecución de trabajos artísticos que sólo puedan encomendarse a determinadas personas naturales; | G80: PRESTAR LOS SERVICIOS PROFESIONALES PARA LA OPERACIÓN, SEGUIMIENTO Y CUMPLIMIENTO DE LOS PROCESOS Y PROCEDIMIENTOS DEL SERVICIO APOYO ECONÓMICO TIPO C, REQUERIDOS PARA EL OPORTUNO Y ADECUADO REGISTRO, CRUCE Y REPORTE DE LOS DATOS EN EL SISTEMA MISIONAL ¿ SIRBE, QUE CONTRIBUYAN A LA GARANTÍA DE LOS DERECHOS DE LA POBLACIÓN MAYOR EN EL MARCO DE LA POLÍTICA PÚBLICA SOCIAL PARA EL ENVEJECIMIENTO Y LA VEJEZ EN EL DISTRITO CAPITAL A CARGO DE LA ALCALDÍA LOCAL | H80: Inversión | I80: 3 | J80: =IF(ISERROR(VLOOKUP(I80,Eje_Pilar!$C$2:$E$47,2,FALSE))," ",VLOOKUP(I80,Eje_Pilar!$C$2:$E$47,2,FALSE)) -> Igualdad y autonomía para una Bogotá incluyente | K80: =IF(ISERROR(VLOOKUP(I80,Eje_Pilar!$C$2:$E$47,3,FALSE))," ",VLOOKUP(I80,Eje_Pilar!$C$2:$E$47,3,FALSE)) -> Pilar 1 Igualdad de Calidad de Vida | L80: 3-3-1-15-01-03-1509-000 | M80: 516142244 | N80: LUZ MARINA VARELA VILLALOBOS | O80: 57200000 | R80: 1 | S80: 3200000 | T80: 60400000 | U80: 51200000 | V80: 2019-02-08 | W80: 2019-02-11 | X80: 2020-01-10 | Y80: 330 | AC80: x | AF80: =IF(ISERROR(U80/T80),"-",(U80/T80)) -> 0.8476821192 | AH80: =IF(SUMPRODUCT((A$14:A80=A80)*(B$14:B80=B80)*(C$14:C80=C80))>1,0,1) -> 1 | AI80: Contratos de prestación de servicios profesionales y de apoyo a la gestión | AJ80: Contratación directa | AK80: =IFERROR(VLOOKUP(F80,Tipo!$C$12:$C$27,1,FALSE),"NO") -> Prestación de servicios profesionales y de apoyo a la gestión, o para la ejecución de trabajos artísticos que sólo puedan encomendarse a determinadas personas naturales; | AL80: Inversión | AM80: 3
A81: 682019 | B81: 2019 | C81: FDLSC-CPS-068-2019 | D81: Contratos de prestación de servicios profesionales y de apoyo a la gestión | E81: Contratación directa | F81: Prestación de servicios profesionales y de apoyo a la gestión, o para la ejecución de trabajos artísticos que sólo puedan encomendarse a determinadas personas naturales; | G81: PRESTAR LOS SERVICIOS PROFESIONALES PARA LA OPERACIÓN, PRESTACIÓN, SEGUIMIENTO Y CUMPLIMIENTO DE LOS PROCEDIMIENTOS ADMINISTRATIVOS, OPERATIVOS Y PROGRAMÁTICOS DEL SERVICIO APOYO ECONÓMICO TIPO C, QUE CONTRIBUYAN A LA GARANTÍA DE LOS DERECHOS DE LA POBLACIÓN MAYOR EN EL MARCO DE LA POLÍTICA PÚBLICA SOCIAL PARA EL ENVEJECIMIENTO Y LA VEJEZ EN EL DISTRITO CAPITAL A CARGO DE LA ALCALDÍA LOCAL. | H81: Inversión | I81: 3 | J81: =IF(ISERROR(VLOOKUP(I81,Eje_Pilar!$C$2:$E$47,2,FALSE))," ",VLOOKUP(I81,Eje_Pilar!$C$2:$E$47,2,FALSE)) -> Igualdad y autonomía para una Bogotá incluyente | K81: =IF(ISERROR(VLOOKUP(I81,Eje_Pilar!$C$2:$E$47,3,FALSE))," ",VLOOKUP(I81,Eje_Pilar!$C$2:$E$47,3,FALSE)) -> Pilar 1 Igualdad de Calidad de Vida | L81: 3-3-1-15-01-03-1509-000 | M81: 531681977 | N81: NIDIA ESPERANZA MURILLO BRICEÑO | O81: 52800000 | R81: 1 | S81: 3200000 | T81: 56000000 | U81: 51200000 | V81: 2019-02-11 | W81: 2019-02-11 | X81: 2020-01-10 | Y81: 330 | AC81: x | AF81: 0.9142857143 | AH81: =IF(SUMPRODUCT((A$14:A81=A81)*(B$14:B81=B81)*(C$14:C81=C81))>1,0,1) -> 1 | AI81: Contratos de prestación de servicios profesionales y de apoyo a la gestión | AJ81: Contratación directa | AK81: =IFERROR(VLOOKUP(F81,Tipo!$C$12:$C$27,1,FALSE),"NO") -> Prestación de servicios profesionales y de apoyo a la gestión, o para la ejecución de trabajos artísticos que sólo puedan encomendarse a determinadas personas naturales; | AL81: Inversión | AM81: 3
A82: 692019 | B82: 2019 | C82: FDLSC-CPS-069-2019 | D82: Contratos de prestación de servicios profesionales y de apoyo a la gestión | E82: Contratación directa | F82: Prestación de servicios profesionales y de apoyo a la gestión, o para la ejecución de trabajos artísticos que sólo puedan encomendarse a determinadas personas naturales; | G82: PRESTAR LOS SERVICIOS PROFESIONALES PARA LA OPERACIÓN, PRESTACIÓN, SEGUIMIENTO Y CUMPLIMIENTO DE LOS PROCEDIMIENTOS ADMINISTRATIVOS, OPERATIVOS Y PROGRAMÁTICOS DEL SERVICIO APOYO ECONÓMICO TIPO C, QUE CONTRIBUYAN A LA GARANTÍA DE LOS DERECHOS DE LA POBLACIÓN MAYOR EN EL MARCO DE LA POLÍTICA PÚBLICA SOCIAL PARA EL ENVEJECIMIENTO Y LA VEJEZ EN EL DISTRITO CAPITAL A CARGO DE LA ALCALDÍA LOCAL. | H82: Inversión | I82: 3 | J82: =IF(ISERROR(VLOOKUP(I82,Eje_Pilar!$C$2:$E$47,2,FALSE))," ",VLOOKUP(I82,Eje_Pilar!$C$2:$E$47,2,FALSE)) -> Igualdad y autonomía para una Bogotá incluyente | K82: =IF(ISERROR(VLOOKUP(I82,Eje_Pilar!$C$2:$E$47,3,FALSE))," ",VLOOKUP(I82,Eje_Pilar!$C$2:$E$47,3,FALSE)) -> Pilar 1 Igualdad de Calidad de Vida | L82: 3-3-1-15-01-03-1509-000 | M82: 31860626 | N82: JOSE DAVID URBINA TORRES | O82: 52800000 | R82: 1 | S82: 3680000 | T82: 56480000 | U82: 51680000 | V82: 2019-02-08 | W82: 2019-02-08 | X82: 2020-01-07 | Y82: 330 | AC82: x | AF82: 0.9150141643 | AH82: =IF(SUMPRODUCT((A$14:A82=A82)*(B$14:B82=B82)*(C$14:C82=C82))>1,0,1) -> 1 | AI82: Contratos de prestación de servicios profesionales y de apoyo a la gestión | AJ82: Contratación directa | AK82: =IFERROR(VLOOKUP(F82,Tipo!$C$12:$C$27,1,FALSE),"NO") -> Prestación de servicios profesionales y de apoyo a la gestión, o para la ejecución de trabajos artísticos que sólo puedan encomendarse a determinadas personas naturales; | AL82: Inversión | AM82: 3
A83: 702019 | B83: 2019 | C83: FDLSC-CPS-070-2019 | D83: Contratos de prestación de servicios profesionales y de apoyo a la gestión | E83: Contratación directa | F83: Prestación de servicios profesionales y de apoyo a la gestión, o para la ejecución de trabajos artísticos que sólo puedan encomendarse a determinadas personas naturales; | G83: EL CONTRATISTA SE OBLIGA PARA CON LA ALCALDÍA LOCAL DE SAN CRISTOBAL A PRESTAR SUS SERVICIOS PROFESIONALES PARA APOYAR LA FORMULACION, GESTION Y SEGUIMIENTO DE ACTIVIDADES ENFOCADAS A LA GESTION AMBIENTAL EXTERNA, ENCAMINADAS A LA MITIGACION DE LOS DIFERENTES IMPACTOS AMBIENTALES Y LA CONSERVACION DE LOS RECURSOS NATURALES DE LA LOCALIDAD. | H83: Inversión | I83: 45 | J83: =IF(ISERROR(VLOOKUP(I83,Eje_Pilar!$C$2:$E$47,2,FALSE))," ",VLOOKUP(I83,Eje_Pilar!$C$2:$E$47,2,FALSE)) -> Gobernanza e influencia local, regional e internacional | K83: =IF(ISERROR(VLOOKUP(I83,Eje_Pilar!$C$2:$E$47,3,FALSE))," ",VLOOKUP(I83,Eje_Pilar!$C$2:$E$47,3,FALSE)) -> Eje Transversal 4 Gobierno Legitimo, Fortalecimiento Local y Eficiencia | L83: 3-3-1-15-07-45-1531-000 | M83: 530818076 | N83: DIANA CAROLINA PEREZ RANGEL | O83: 57200000 | R83: 1 | S83: 4160000 | T83: 61360000 | U83: 56160000 | V83: 2019-02-07 | W83: 2019-02-07 | X83: 2020-01-06 | Y83: 330 | AC83: x | AF83: 0.9152542373 | AH83: =IF(SUMPRODUCT((A$14:A83=A83)*(B$14:B83=B83)*(C$14:C83=C83))>1,0,1) -> 1 | AI83: Contratos de prestación de servicios profesionales y de apoyo a la gestión | AJ83: Contratación directa | AK83: =IFERROR(VLOOKUP(F83,Tipo!$C$12:$C$27,1,FALSE),"NO") -> Prestación de servicios profesionales y de apoyo a la gestión, o para la ejecución de trabajos artísticos que sólo puedan encomendarse a determinadas personas naturales; | AL83: Inversión | AM83: 45
A84: 712019 | B84: 2019 | C84: FDLSC-CPS-071-2019 | D84: Contratos de prestación de servicios profesionales y de apoyo a la gestión | E84: Contratación directa | F84: Prestación de servicios profesionales y de apoyo a la gestión, o para la ejecución de trabajos artísticos que sólo puedan encomendarse a determinadas personas naturales; | G84: EL CONTRATISTA SE OBLIGA PARA CON EL FONDO DE DESARROLLO LOCAL A APOYAR LA CONDUCCIÓN DE VEHICULOS LIVIANOS, PESADOS Y/ O MAQUINARIA PESADA QUE SE ENCUENTRAN AL SERVICIO DE LA ALCALDIA LOCAL DE SAN CRISTOBAL EN EL MARCO DEL PLAN DE DESARROLLO 2017-2020. | H84: Inversión | I84: 45 | J84: =IF(ISERROR(VLOOKUP(I84,Eje_Pilar!$C$2:$E$47,2,FALSE))," ",VLOOKUP(I84,Eje_Pilar!$C$2:$E$47,2,FALSE)) -> Gobernanza e influencia local, regional e internacional | K84: =IF(ISERROR(VLOOKUP(I84,Eje_Pilar!$C$2:$E$47,3,FALSE))," ",VLOOKUP(I84,Eje_Pilar!$C$2:$E$47,3,FALSE)) -> Eje Transversal 4 Gobierno Legitimo, Fortalecimiento Local y Eficiencia | L84: 3-3-1-15-07-45-1531-000 | M84: 193241782 | N84: GUILLERMO ACOSTA VERA | O84: 25652000 | T84: 25652000 | U84: 22542666 | V84: 2019-02-08 | W84: 2019-02-13 | X84: 2020-01-12 | Y84: 330 | AC84: x | AF84: 0.8787878528 | AH84: =IF(SUMPRODUCT((A$14:A84=A84)*(B$14:B84=B84)*(C$14:C84=C84))>1,0,1) -> 1 | AI84: Contratos de prestación de servicios profesionales y de apoyo a la gestión | AJ84: Contratación directa | AK84: =IFERROR(VLOOKUP(F84,Tipo!$C$12:$C$27,1,FALSE),"NO") -> Prestación de servicios profesionales y de apoyo a la gestión, o para la ejecución de trabajos artísticos que sólo puedan encomendarse a determinadas personas naturales; | AL84: Inversión | AM84: 45
A85: 722019 | B85: 2019 | C85: FDLSC-CPS-072-2019 | D85: Contratos de prestación de servicios profesionales y de apoyo a la gestión | E85: Contratación directa | F85: Prestación de servicios profesionales y de apoyo a la gestión, o para la ejecución de trabajos artísticos que sólo puedan encomendarse a determinadas personas naturales; | G85: PRESTAR LOS SERVICIOS PERSONALES PARA APOYAR LA JUNTA ADMINISTRADORA LOCAL DE SAN CRISTOBAL EN TAREAS ASISTENCIALES Y DE TRANSCRIPCION DE ACTAS DE SESIONES ORDINARIAS, EXTRAORDINARIAS Y DE COMISIONES PERMANENTES, DE ACUERDO A LA NECESIDAD DE LA CORPORACION | H85: Inversión | I85: 45 | J85: =IF(ISERROR(VLOOKUP(I85,Eje_Pilar!$C$2:$E$47,2,FALSE))," ",VLOOKUP(I85,Eje_Pilar!$C$2:$E$47,2,FALSE)) -> Gobernanza e influencia local, regional e internacional | K85: =IF(ISERROR(VLOOKUP(I85,Eje_Pilar!$C$2:$E$47,3,FALSE))," ",VLOOKUP(I85,Eje_Pilar!$C$2:$E$47,3,FALSE)) -> Eje Transversal 4 Gobierno Legitimo, Fortalecimiento Local y Eficiencia | L85: 3-3-1-15-07-45-1531-000 | M85: 10239244494 | N85: MARIA ALEJANDRA ZULUAGA ABRIL | O85: 24860000 | R85: 1 | S85: 452000 | T85: 25312000 | U85: 20868000 | V85: 2019-02-08 | W85: 2019-02-08 | X85: 2020-01-07 | Y85: 330 | AC85: x | AF85: 0.8244310999 | AH85: =IF(SUMPRODUCT((A$14:A85=A85)*(B$14:B85=B85)*(C$14:C85=C85))>1,0,1) -> 1 | AI85: Contratos de prestación de servicios profesionales y de apoyo a la gestión | AJ85: Contratación directa | AK85: =IFERROR(VLOOKUP(F85,Tipo!$C$12:$C$27,1,FALSE),"NO") -> Prestación de servicios profesionales y de apoyo a la gestión, o para la ejecución de trabajos artísticos que sólo puedan encomendarse a determinadas personas naturales; | AL85: Inversión | AM85: 45
A86: 732019 | B86: 2019 | C86: FDLSC-CPS-073-2019 | D86: Contratos de prestación de servicios profesionales y de apoyo a la gestión | E86: Contratación directa | F86: Prestación de servicios profesionales y de apoyo a la gestión, o para la ejecución de trabajos artísticos que sólo puedan encomendarse a determinadas personas naturales; | G86: EL CONTRATISTA SE OBLIGA CON EL FONDO DE DESARROLLO LOCAL DE SAN CRISTÓBAL A LA PRESTACIÓN DE SERVICIOS PROFESIONALES EN EL ÁREA DE GESTIÓN DE DESARROLLO LOCAL PARA LA FORMULACIÓN, EVALUACIÓN, PRESENTACIÓN Y SEGUIMIENTO DEL PROYECTO 1502 SUPERANDO LAS BARRERAS DE LA DISCAPACIDAD EN SAN CRISTOBAL EN EL CUMPLIMIENTO DEL PLAN DESARROLLO 2017-2020 | H86: Inversión | I86: 45 | J86: =IF(ISERROR(VLOOKUP(I86,Eje_Pilar!$C$2:$E$47,2,FALSE))," ",VLOOKUP(I86,Eje_Pilar!$C$2:$E$47,2,FALSE)) -> Gobernanza e influencia local, regional e internacional | K86: =IF(ISERROR(VLOOKUP(I86,Eje_Pilar!$C$2:$E$47,3,FALSE))," ",VLOOKUP(I86,Eje_Pilar!$C$2:$E$47,3,FALSE)) -> Eje Transversal 4 Gobierno Legitimo, Fortalecimiento Local y Eficiencia | L86: 3-3-1-15-07-45-1531-000 | M86: 525151324 | N86: JENNY ANDREA MONTOYA HERNANDEZ | O86: 52470000 | R86: 1 | S86: 3180000 | T86: 55650000 | U86: 50880000 | V86: 2019-02-11 | W86: 2019-02-11 | X86: 2020-01-10 | Y86: 330 | AC86: x | AF86: 0.9142857143 | AH86: =IF(SUMPRODUCT((A$14:A86=A86)*(B$14:B86=B86)*(C$14:C86=C86))>1,0,1) -> 1 | AI86: Contratos de prestación de servicios profesionales y de apoyo a la gestión | AJ86: Contratación directa | AK86: =IFERROR(VLOOKUP(F86,Tipo!$C$12:$C$27,1,FALSE),"NO") -> Prestación de servicios profesionales y de apoyo a la gestión, o para la ejecución de trabajos artísticos que sólo puedan encomendarse a determinadas personas naturales; | AL86: Inversión | AM86: 45
A87: 742019 | B87: 2019 | C87: FDLSC-CPS-074-2019 | D87: Contratos de prestación de servicios profesionales y de apoyo a la gestión | E87: Contratación directa | F87: Prestación de servicios profesionales y de apoyo a la gestión, o para la ejecución de trabajos artísticos que sólo puedan encomendarse a determinadas personas naturales; | G87: El CONTRATISTA SE OBLIGA CON EL FONDO DE DESARROLLO LOCAL A PRESTAR SERVICIOS PROFESIONALES PARA APOYAR EL AREA DE GESTION DEL DESARROLLO LOCAL EN LOS TEMAS DE ARTICULACION Y GESTIÓN DE OFERTA INSTITUCIONAL EN LA LOCALIDAD DE SAN CRISTOBAL | H87: Inversión | I87: 45 | J87: =IF(ISERROR(VLOOKUP(I87,Eje_Pilar!$C$2:$E$47,2,FALSE))," ",VLOOKUP(I87,Eje_Pilar!$C$2:$E$47,2,FALSE)) -> Gobernanza e influencia local, regional e internacional | K87: =IF(ISERROR(VLOOKUP(I87,Eje_Pilar!$C$2:$E$47,3,FALSE))," ",VLOOKUP(I87,Eje_Pilar!$C$2:$E$47,3,FALSE)) -> Eje Transversal 4 Gobierno Legitimo, Fortalecimiento Local y Eficiencia | L87: 3-3-1-15-07-45-1531-000 | M87: 10101791685 | N87: MONICA ALEJANDRA PERILLA FONTECHA | O87: 52470000 | T87: 52470000 | U87: 31800000 | V87: 2019-02-08 | W87: 2019-02-08 | X87: 2020-01-07 | Y87: 330 | AC87: x | AF87: 0.6060606061 | AH87: =IF(SUMPRODUCT((A$14:A87=A87)*(B$14:B87=B87)*(C$14:C87=C87))>1,0,1) -> 1 | AI87: Contratos de prestación de servicios profesionales y de apoyo a la gestión | AJ87: Contratación directa | AK87: =IFERROR(VLOOKUP(F87,Tipo!$C$12:$C$27,1,FALSE),"NO") -> Prestación de servicios profesionales y de apoyo a la gestión, o para la ejecución de trabajos artísticos que sólo puedan encomendarse a determinadas personas naturales; | AL87: Inversión | AM87: 45
A88: 752019 | B88: 2019 | C88: FDLSC-CPS-075-2019 | D88: Contratos de prestación de servicios profesionales y de apoyo a la gestión | E88: Contratación directa | F88: Prestación de servicios profesionales y de apoyo a la gestión, o para la ejecución de trabajos artísticos que sólo puedan encomendarse a determinadas personas naturales; | G88: PRESTAR LOS SERVICIOS TÉCNICOS PARA LA OPERACIÓN, SEGUIMIENTO Y CUMPLIMIENTO DE LOS PROCESOS Y PROCEDIMIENTOS DEL SERVICIO APOYOS PARA LA SEGURIDAD ECONÓMICA TIPO C, REQUERIDOS PARA EL OPORTUNO Y ADECUADO REGISTRO, CRUCE Y REPORTE DE LOS DATOS EN EL SISTEMA MISIONAL¿SIRBE, QUE CONTRIBUYAN A LA GARANTÍA DE LOS DERECHOS DE LA POBLACIÓN MAYOR EN EL MARCO DE LA POLÍTICA PÚBLICA SOCIAL PARA EL ENVEJECIMIENTO Y LA VEJEZ EN EL DISTRITO CAPITAL A CARGO DE LA ALCALDÍA LOCAL. | H88: Inversión | I88: 3 | J88: =IF(ISERROR(VLOOKUP(I88,Eje_Pilar!$C$2:$E$47,2,FALSE))," ",VLOOKUP(I88,Eje_Pilar!$C$2:$E$47,2,FALSE)) -> Igualdad y autonomía para una Bogotá incluyente | K88: =IF(ISERROR(VLOOKUP(I88,Eje_Pilar!$C$2:$E$47,3,FALSE))," ",VLOOKUP(I88,Eje_Pilar!$C$2:$E$47,3,FALSE)) -> Pilar 1 Igualdad de Calidad de Vida | L88: 3-3-1-15-01-03-1509-000 | M88: 10224120024 | N88: CARLOS EDUARDO QUIROGA PINZON | O88: 35200000 | R88: 1 | S88: 2453333 | T88: 37653333 | U88: 34559984 | V88: 2019-02-08 | W88: 2019-02-08 | X88: 2020-01-07 | Y88: 330 | AC88: x | AF88: 0.9178466087 | AH88: =IF(SUMPRODUCT((A$14:A88=A88)*(B$14:B88=B88)*(C$14:C88=C88))>1,0,1) -> 1 | AI88: Contratos de prestación de servicios profesionales y de apoyo a la gestión | AJ88: Contratación directa | AK88: =IFERROR(VLOOKUP(F88,Tipo!$C$12:$C$27,1,FALSE),"NO") -> Prestación de servicios profesionales y de apoyo a la gestión, o para la ejecución de trabajos artísticos que sólo puedan encomendarse a determinadas personas naturales; | AL88: Inversión | AM88: 3
A89: 762019 | B89: 2019 | C89: FDLSC-CPS-076-2019 | D89: Contratos de prestación de servicios profesionales y de apoyo a la gestión | E89: Contratación directa | F89: Prestación de servicios profesionales y de apoyo a la gestión, o para la ejecución de trabajos artísticos que sólo puedan encomendarse a determinadas personas naturales; | G89: PRESTACIÓN DE SERVICIOS DE APOYO EN LA EJECUCIÓN DE ACTIVIDADES AUXILIARES DE OBRA CIVIL, QUE CONLLEVEN AL MEJORAMIENTO Y ADECUACIÓN DEL ESPACIO PÚBLICO DE LA LOCALIDAD DE SAN CRISTÓBAL. | H89: Inversión | I89: 18 | J89: =IF(ISERROR(VLOOKUP(I89,Eje_Pilar!$C$2:$E$47,2,FALSE))," ",VLOOKUP(I89,Eje_Pilar!$C$2:$E$47,2,FALSE)) -> Mejor movilidad para todos | K89: =IF(ISERROR(VLOOKUP(I89,Eje_Pilar!$C$2:$E$47,3,FALSE))," ",VLOOKUP(I89,Eje_Pilar!$C$2:$E$47,3,FALSE)) -> Pilar 2 Democracía Urbana | L89: 3-3-1-15-02-18-1557-000 | M89: 10239504114 | N89: YEISON ESTIVEN GALINDO BARBOSA | O89: 24200000 | R89: 1 | S89: 1686667 | T89: 25886667 | U89: 21486667 | V89: 2019-02-08 | W89: 2019-02-08 | X89: 2020-01-07 | Y89: 330 | AC89: x | AF89: 0.8300283308 | AH89: =IF(SUMPRODUCT((A$14:A89=A89)*(B$14:B89=B89)*(C$14:C89=C89))>1,0,1) -> 1 | AI89: Contratos de prestación de servicios profesionales y de apoyo a la gestión | AJ89: Contratación directa | AK89: =IFERROR(VLOOKUP(F89,Tipo!$C$12:$C$27,1,FALSE),"NO") -> Prestación de servicios profesionales y de apoyo a la gestión, o para la ejecución de trabajos artísticos que sólo puedan encomendarse a determinadas personas naturales; | AL89: Inversión | AM89: 18
A90: 772019 | B90: 2019 | C90: FDLSC-CPS-077-2019 | D90: Contratos de prestación de servicios profesionales y de apoyo a la gestión | E90: Contratación directa | F90: Prestación de servicios profesionales y de apoyo a la gestión, o para la ejecución de trabajos artísticos que sólo puedan encomendarse a determinadas personas naturales; | G90: PRESTAR SUS SERVICIOS DE APOYO PARA REALIZAR ACTIVIDADES ADMINISTRATIVAS Y ARCHIVISTAS AL COMPONENTE DE TITULACIÓN DE LA LOCALIDAD DE SAN CRISTÓBAL Y LO RELACIONADO CON EL SECTOR HÁBITAT | H90: Inversión | I90: 15 | J90: =IF(ISERROR(VLOOKUP(I90,Eje_Pilar!$C$2:$E$47,2,FALSE))," ",VLOOKUP(I90,Eje_Pilar!$C$2:$E$47,2,FALSE)) -> Recuperación, incorporación, vida urbana y control de la ilegalidad | K90: =IF(ISERROR(VLOOKUP(I90,Eje_Pilar!$C$2:$E$47,3,FALSE))," ",VLOOKUP(I90,Eje_Pilar!$C$2:$E$47,3,FALSE)) -> Pilar 2 Democracía Urbana | L90: 3-3-1-15-02-15-1581-000 | M90: 10239098811 | N90: YENIFER ALEJANDRA NIÑO VARGAS | O90: 24200000 | R90: 1 | S90: 1686667 | T90: 25886667 | U90: 23686666 | V90: 2019-02-08 | W90: 2019-02-08 | X90: 2020-01-07 | Y90: 330 | AC90: x | AF90: 0.9150141268 | AH90: =IF(SUMPRODUCT((A$14:A90=A90)*(B$14:B90=B90)*(C$14:C90=C90))>1,0,1) -> 1 | AI90: Contratos de prestación de servicios profesionales y de apoyo a la gestión | AJ90: Contratación directa | AK90: =IFERROR(VLOOKUP(F90,Tipo!$C$12:$C$27,1,FALSE),"NO") -> Prestación de servicios profesionales y de apoyo a la gestión, o para la ejecución de trabajos artísticos que sólo puedan encomendarse a determinadas personas naturales; | AL90: Inversión | AM90: 15
A91: 782019 | B91: 2019 | C91: FDLSC-CPS-078-2019 | D91: Contratos de prestación de servicios profesionales y de apoyo a la gestión | E91: Contratación directa | F91: Prestación de servicios profesionales y de apoyo a la gestión, o para la ejecución de trabajos artísticos que sólo puedan encomendarse a determinadas personas naturales; | G91: PRESTAR SUS SERVICIOS PROFESIONALES DE APOYO TÉCNICO EN EL ACOMPAÑAMIENTO AL COMPONENTE DE TITULACIÓN DE PREDIOS DE LA LOCALIDAD DE SAN CRISTÓBAL, ENFOCADOS A LA UBICACIÓN E IDENTIFICACIÓN DE PREDIOS, EN CONCORDANCIA CON LA NORMAS TÉCNICAS VIGENTES Y A LOS LINEAMIENTOS INSTITUCIONALES, ASÍ COMO A LO RELACIONADO CON EL SECTOR HÁBITAT DE LA LOCALIDAD.¿ | H91: Inversión | I91: 15 | J91: =IF(ISERROR(VLOOKUP(I91,Eje_Pilar!$C$2:$E$47,2,FALSE))," ",VLOOKUP(I91,Eje_Pilar!$C$2:$E$47,2,FALSE)) -> Recuperación, incorporación, vida urbana y control de la ilegalidad | K91: =IF(ISERROR(VLOOKUP(I91,Eje_Pilar!$C$2:$E$47,3,FALSE))," ",VLOOKUP(I91,Eje_Pilar!$C$2:$E$47,3,FALSE)) -> Pilar 2 Democracía Urbana | L91: 3-3-1-15-02-15-1581-000 | M91: 10229431575 | N91: ANDERSSON FABIAN RINCON ALMARIO | O91: 51370000 | R91: 1 | S91: 3580333 | T91: 54950333 | U91: 50280333 | V91: 2019-02-08 | W91: 2019-02-08 | X91: 2020-01-07 | Y91: 330 | AC91: x | AF91: 0.9150141638 | AH91: =IF(SUMPRODUCT((A$14:A91=A91)*(B$14:B91=B91)*(C$14:C91=C91))>1,0,1) -> 1 | AI91: Contratos de prestación de servicios profesionales y de apoyo a la gestión | AJ91: Contratación directa | AK91: =IFERROR(VLOOKUP(F91,Tipo!$C$12:$C$27,1,FALSE),"NO") -> Prestación de servicios profesionales y de apoyo a la gestión, o para la ejecución de trabajos artísticos que sólo puedan encomendarse a determinadas personas naturales; | AL91: Inversión | AM91: 15
A92: 792019 | B92: 2019 | C92: FDLSC-CPS-079-2019 | D92: Contratos de prestación de servicios profesionales y de apoyo a la gestión | E92: Contratación directa | F92: Prestación de servicios profesionales y de apoyo a la gestión, o para la ejecución de trabajos artísticos que sólo puedan encomendarse a determinadas personas naturales; | G92: PRESTAR SUS SERVICIOS PROFESIONALES DE APOYO JURÍDICO EN EL ACOMPAÑAMIENTO AL COMPONENTE DE TITULACIÓN DE PREDIOS Y DEL SECTOR HÁBITAT DE LA LOCALIDAD DE SAN CRISTÓBAL, A TRAVÉS DE ESTUDIOS DE TÍTULOS, ASESORÍA A BENEFICIARIOS, RECOLECCIÓN DE DOCUMENTACIÓN Y PRESENTACIÓN DE DEMANDAS | H92: Inversión | I92: 15 | J92: =IF(ISERROR(VLOOKUP(I92,Eje_Pilar!$C$2:$E$47,2,FALSE))," ",VLOOKUP(I92,Eje_Pilar!$C$2:$E$47,2,FALSE)) -> Recuperación, incorporación, vida urbana y control de la ilegalidad | K92: =IF(ISERROR(VLOOKUP(I92,Eje_Pilar!$C$2:$E$47,3,FALSE))," ",VLOOKUP(I92,Eje_Pilar!$C$2:$E$47,3,FALSE)) -> Pilar 2 Democracía Urbana | L92: 3-3-1-15-02-15-1581-000 | M92: 10779684861 | N92: LEIDY JOHANA RODRIGUEZ MARTINEZ | O92: 51370000 | R92: 1 | S92: 3580333 | T92: 54950333 | U92: 50280333 | V92: 2019-02-08 | W92: 2019-02-08 | X92: 2020-01-07 | Y92: 330 | AC92: x | AF92: 0.9150141638 | AH92: =IF(SUMPRODUCT((A$14:A92=A92)*(B$14:B92=B92)*(C$14:C92=C92))>1,0,1) -> 1 | AI92: Contratos de prestación de servicios profesionales y de apoyo a la gestión | AJ92: Contratación directa | AK92: =IFERROR(VLOOKUP(F92,Tipo!$C$12:$C$27,1,FALSE),"NO") -> Prestación de servicios profesionales y de apoyo a la gestión, o para la ejecución de trabajos artísticos que sólo puedan encomendarse a determinadas personas naturales; | AL92: Inversión | AM92: 15
A93: 802019 | B93: 2019 | C93: FDLSC-CPS-080-2019 | D93: Contratos de prestación de servicios profesionales y de apoyo a la gestión | E93: Contratación directa | F93: Prestación de servicios profesionales y de apoyo a la gestión, o para la ejecución de trabajos artísticos que sólo puedan encomendarse a determinadas personas naturales; | G93: PRESTAR SUS SERVICIOS PROFESIONALES DE APOYO JURÍDICO EN EL ACOMPAÑAMIENTO AL COMPONENTE DE TITULACIÓN DE PREDIOS Y DEL SECTOR HÁBITAT DE LA LOCALIDAD DE SAN CRISTÓBAL, A TRAVÉS DE ESTUDIOS DE TÍTULOS, ASESORÍA A BENEFICIARIOS, RECOLECCIÓN DE DOCUMENTACIÓN Y PRESENTACIÓN DE DEMANDAS | H93: Inversión | I93: 15 | J93: =IF(ISERROR(VLOOKUP(I93,Eje_Pilar!$C$2:$E$47,2,FALSE))," ",VLOOKUP(I93,Eje_Pilar!$C$2:$E$47,2,FALSE)) -> Recuperación, incorporación, vida urbana y control de la ilegalidad | K93: =IF(ISERROR(VLOOKUP(I93,Eje_Pilar!$C$2:$E$47,3,FALSE))," ",VLOOKUP(I93,Eje_Pilar!$C$2:$E$47,3,FALSE)) -> Pilar 2 Democracía Urbana | L93: 3-3-1-15-02-15-1581-000 | M93: 11408646955 | N93: JAVIER DEJESUS TRESPALACIOS QUINTERO | O93: 51370000 | R93: 1 | S93: 2802000 | T93: 54172000 | U93: 49501999 | V93: 2019-02-08 | W93: 2019-02-08 | X93: 2020-01-07 | Y93: 330 | AC93: x | AF93: 0.913793085 | AH93: =IF(SUMPRODUCT((A$14:A93=A93)*(B$14:B93=B93)*(C$14:C93=C93))>1,0,1) -> 1 | AI93: Contratos de prestación de servicios profesionales y de apoyo a la gestión | AJ93: Contratación directa | AK93: =IFERROR(VLOOKUP(F93,Tipo!$C$12:$C$27,1,FALSE),"NO") -> Prestación de servicios profesionales y de apoyo a la gestión, o para la ejecución de trabajos artísticos que sólo puedan encomendarse a determinadas personas naturales; | AL93: Inversión | AM93: 15
A94: 812019 | B94: 2019 | C94: FDLSC-CPS-081-2019 | D94: Contratos de prestación de servicios profesionales y de apoyo a la gestión | E94: Contratación directa | F94: Prestación de servicios profesionales y de apoyo a la gestión, o para la ejecución de trabajos artísticos que sólo puedan encomendarse a determinadas personas naturales; | G94: PRESTAR SERVICIOS PROFESIONALES EN LO CONCERNIENTE A LA FORMULACION, EJECUCION, SEGUIMIENTO Y MEJORA CONTINUA DE LAS HERRAMIENTAS QUE CONFORMAN LA GESTION AMBIENTAL Y DE RIESGO EN LA LOCALIDAD DE SAN CRISTOBAL, ASÍ COMO ORIENTAR Y REGULAR EL EQUIPO DE GESTORES AMBIENTALES Y DE RIESGO | H94: Inversión | I94: 4 | J94: =IF(ISERROR(VLOOKUP(I94,Eje_Pilar!$C$2:$E$47,2,FALSE))," ",VLOOKUP(I94,Eje_Pilar!$C$2:$E$47,2,FALSE)) -> Familias protegidas y adaptadas al cambio climático | K94: =IF(ISERROR(VLOOKUP(I94,Eje_Pilar!$C$2:$E$47,3,FALSE))," ",VLOOKUP(I94,Eje_Pilar!$C$2:$E$47,3,FALSE)) -> Pilar 1 Igualdad de Calidad de Vida | L94: 3-3-1-15-01-04-1579-000 | M94: 528588427 | N94: ADRIANA MARCELA FANDIÑO MONSALVE | O94: 52470000 | R94: 1 | S94: 3180000 | T94: 55650000 | U94: 50880000 | V94: 2019-02-11 | W94: 2019-02-11 | X94: 2020-01-10 | Y94: 330 | AC94: x | AF94: 0.9142857143 | AH94: =IF(SUMPRODUCT((A$14:A94=A94)*(B$14:B94=B94)*(C$14:C94=C94))>1,0,1) -> 1 | AI94: Contratos de prestación de servicios profesionales y de apoyo a la gestión | AJ94: Contratación directa | AK94: =IFERROR(VLOOKUP(F94,Tipo!$C$12:$C$27,1,FALSE),"NO") -> Prestación de servicios profesionales y de apoyo a la gestión, o para la ejecución de trabajos artísticos que sólo puedan encomendarse a determinadas personas naturales; | AL94: Inversión | AM94: 4
A95: 822019 | B95: 2019 | C95: FDLSC-CPS-082-2019 | D95: Contratos de prestación de servicios profesionales y de apoyo a la gestión | E95: Contratación directa | F95: Prestación de servicios profesionales y de apoyo a la gestión, o para la ejecución de trabajos artísticos que sólo puedan encomendarse a determinadas personas naturales; | G95: PRESTAR SUS SERVICIOS DE APOYO PARA REALIZAR ACTIVIDADES ADMINISTRATIVAS Y ARCHIVISTAS AL COMPONENTE DE TITULACIÓN DE LA LOCALIDAD DE SAN CRISTÓBAL Y LO RELACIONADO CON EL SECTOR HÁBITAT | H95: Inversión | I95: 15 | J95: =IF(ISERROR(VLOOKUP(I95,Eje_Pilar!$C$2:$E$47,2,FALSE))," ",VLOOKUP(I95,Eje_Pilar!$C$2:$E$47,2,FALSE)) -> Recuperación, incorporación, vida urbana y control de la ilegalidad | K95: =IF(ISERROR(VLOOKUP(I95,Eje_Pilar!$C$2:$E$47,3,FALSE))," ",VLOOKUP(I95,Eje_Pilar!$C$2:$E$47,3,FALSE)) -> Pilar 2 Democracía Urbana | L95: 3-3-1-15-02-15-1581-000 | M95: 521614414 | N95: DIANA ISABEL BRAVO CORDOBA | O95: 24200000 | R95: 1 | S95: 1686667 | T95: 25886667 | U95: 23686666 | V95: 2019-02-08 | W95: 2019-02-08 | X95: 2020-01-07 | Y95: 330 | AC95: x | AF95: 0.9150141268 | AH95: =IF(SUMPRODUCT((A$14:A95=A95)*(B$14:B95=B95)*(C$14:C95=C95))>1,0,1) -> 1 | AI95: Contratos de prestación de servicios profesionales y de apoyo a la gestión | AJ95: Contratación directa | AK95: =IFERROR(VLOOKUP(F95,Tipo!$C$12:$C$27,1,FALSE),"NO") -> Prestación de servicios profesionales y de apoyo a la gestión, o para la ejecución de trabajos artísticos que sólo puedan encomendarse a determinadas personas naturales; | AL95: Inversión | AM95: 15
A96: 832019 | B96: 2019 | C96: FDLSC-CPS-083-2019 | D96: Contratos de prestación de servicios profesionales y de apoyo a la gestión | E96: Contratación directa | F96: Prestación de servicios profesionales y de apoyo a la gestión, o para la ejecución de trabajos artísticos que sólo puedan encomendarse a determinadas personas naturales; | G96: PRESTAR SUS SERVICIOS PROFESIONALES DE APOYO SOCIAL EN EL ACOMPAÑAMIENTO AL COMPONENTE DE TITULACIÓN DE PREDIOS DE LA LOCALIDAD DE SAN CRISTÓBAL, PARA REALIZAR ACTIVIDADES DE SOCIALIZACIÓN, ACOMPAÑAMIENTO Y RECOLECCIÓN DE DOCUMENTACIÓN, EN CONCORDANCIA CON EL SECTOR HÁBITAT DEL DISTRITO.¿ | H96: Inversión | I96: 15 | J96: =IF(ISERROR(VLOOKUP(I96,Eje_Pilar!$C$2:$E$47,2,FALSE))," ",VLOOKUP(I96,Eje_Pilar!$C$2:$E$47,2,FALSE)) -> Recuperación, incorporación, vida urbana y control de la ilegalidad | K96: =IF(ISERROR(VLOOKUP(I96,Eje_Pilar!$C$2:$E$47,3,FALSE))," ",VLOOKUP(I96,Eje_Pilar!$C$2:$E$47,3,FALSE)) -> Pilar 2 Democracía Urbana | L96: 3-3-1-15-02-15-1581-000 | M96: 523612115 | N96: MARIA DEL PILAR TRUJILLO PINZON | O96: 52800000 | R96: 1 | S96: 3680000 | T96: 56480000 | U96: 51680000 | V96: 2019-02-08 | W96: 2019-02-08 | X96: 2020-01-07 | Y96: 330 | AC96: x | AF96: 0.9150141643 | AH96: =IF(SUMPRODUCT((A$14:A96=A96)*(B$14:B96=B96)*(C$14:C96=C96))>1,0,1) -> 1 | AI96: Contratos de prestación de servicios profesionales y de apoyo a la gestión | AJ96: Contratación directa | AK96: =IFERROR(VLOOKUP(F96,Tipo!$C$12:$C$27,1,FALSE),"NO") -> Prestación de servicios profesionales y de apoyo a la gestión, o para la ejecución de trabajos artísticos que sólo puedan encomendarse a determinadas personas naturales; | AL96: Inversión | AM96: 15
A97: 842019 | B97: 2019 | C97: FDLSC-CPS-084-2019 | D97: Contratos de prestación de servicios profesionales y de apoyo a la gestión | E97: Contratación directa | F97: Prestación de servicios profesionales y de apoyo a la gestión, o para la ejecución de trabajos artísticos que sólo puedan encomendarse a determinadas personas naturales; | G97: PRESTAR SUS SERVICIOS PROFESIONALES DE APOYO SOCIAL EN EL ACOMPAÑAMIENTO AL COMPONENTE DE TITULACIÓN DE PREDIOS DE LA LOCALIDAD DE SAN CRISTÓBAL, PARA REALIZAR ACTIVIDADES DE SOCIALIZACIÓN, ACOMPAÑAMIENTO Y RECOLECCIÓN DE DOCUMENTACIÓN, EN CONCORDANCIA CON EL SECTOR HÁBITAT DEL DISTRITO.¿ | H97: Inversión | I97: 15 | J97: =IF(ISERROR(VLOOKUP(I97,Eje_Pilar!$C$2:$E$47,2,FALSE))," ",VLOOKUP(I97,Eje_Pilar!$C$2:$E$47,2,FALSE)) -> Recuperación, incorporación, vida urbana y control de la ilegalidad | K97: =IF(ISERROR(VLOOKUP(I97,Eje_Pilar!$C$2:$E$47,3,FALSE))," ",VLOOKUP(I97,Eje_Pilar!$C$2:$E$47,3,FALSE)) -> Pilar 2 Democracía Urbana | L97: 3-3-1-15-02-15-1581-000 | M97: 521548821 | N97: DIANA ESPERANZA BOJACA IZQUIERDO | O97: 52800000 | R97: 1 | S97: 3680000 | T97: 56480000 | U97: 51680000 | V97: 2019-02-08 | W97: 2019-02-08 | X97: 2020-01-07 | Y97: 330 | AC97: x | AF97: 0.9150141643 | AH97: =IF(SUMPRODUCT((A$14:A97=A97)*(B$14:B97=B97)*(C$14:C97=C97))>1,0,1) -> 1 | AI97: Contratos de prestación de servicios profesionales y de apoyo a la gestión | AJ97: Contratación directa | AK97: =IFERROR(VLOOKUP(F97,Tipo!$C$12:$C$27,1,FALSE),"NO") -> Prestación de servicios profesionales y de apoyo a la gestión, o para la ejecución de trabajos artísticos que sólo puedan encomendarse a determinadas personas naturales; | AL97: Inversión | AM97: 15
A98: 852019 | B98: 2019 | C98: FDLSC-CPS-085-2019 | D98: Contratos de prestación de servicios profesionales y de apoyo a la gestión | E98: Contratación directa | F98: Prestación de servicios profesionales y de apoyo a la gestión, o para la ejecución de trabajos artísticos que sólo puedan encomendarse a determinadas personas naturales; | G98: EL CONTRATISTA SE OBLIGA CON EL FONDO DE DESARROLLO LOCAL DE SAN CRISTOBAL A PRESTAR SUS SERVICIOS PROFESIONALES DE APOYO A LA CASA DEL CONSUMIDOR EN LAS ACTUACIONES TECNICAS Y ADMINISTRATIVAS EN EL MARCO DEL CONVENIO INTERADMINISTRATIVO 1258 DE 2016 | H98: Inversión | I98: 45 | J98: =IF(ISERROR(VLOOKUP(I98,Eje_Pilar!$C$2:$E$47,2,FALSE))," ",VLOOKUP(I98,Eje_Pilar!$C$2:$E$47,2,FALSE)) -> Gobernanza e influencia local, regional e internacional | K98: =IF(ISERROR(VLOOKUP(I98,Eje_Pilar!$C$2:$E$47,3,FALSE))," ",VLOOKUP(I98,Eje_Pilar!$C$2:$E$47,3,FALSE)) -> Eje Transversal 4 Gobierno Legitimo, Fortalecimiento Local y Eficiencia | L98: 3-3-1-15-07-45-1531-000 | M98: 808097881 | N98: JAIME DARIO PARDO RODRIGUEZ | O98: 53636000 | T98: 53636000 | U98: 35594466 | V98: 2019-02-11 | W98: 2019-02-12 | X98: 2020-01-11 | Y98: 330 | AC98: x | AF98: 0.6636301365 | AH98: =IF(SUMPRODUCT((A$14:A98=A98)*(B$14:B98=B98)*(C$14:C98=C98))>1,0,1) -> 1 | AI98: Contratos de prestación de servicios profesionales y de apoyo a la gestión | AJ98: Contratación directa | AK98: =IFERROR(VLOOKUP(F98,Tipo!$C$12:$C$27,1,FALSE),"NO") -> Prestación de servicios profesionales y de apoyo a la gestión, o para la ejecución de trabajos artísticos que sólo puedan encomendarse a determinadas personas naturales; | AL98: Inversión | AM98: 45
A99: 862019 | B99: 2019 | C99: FDLSC-CPS-086-2019 | D99: Contratos de prestación de servicios profesionales y de apoyo a la gestión | E99: Contratación directa | F99: Prestación de servicios profesionales y de apoyo a la gestión, o para la ejecución de trabajos artísticos que sólo puedan encomendarse a determinadas personas naturales; | G99: EL CONTRATISTA SE OBLIGA CON EL FONDO DE DESARROLLO LOCAL DE SAN CRISTOBAL A LA PRESTACION DE SERVICIOS PROFESIONALES PARA APOYAR AL EQUIPO DE PRENSA Y COMUNICACIONES EN LA REALIZACION DE PRODUCTOS Y PIEZAS DIGITALES, IMPRESAS Y PUBLICITARIAS DE GRAN FORMATO Y DE ANIMACION GRÁFICA, ASÍ COMO APOYAR LA PRODUCCION Y MONTAJE DE EVENTOS | H99: Inversión | I99: 45 | J99: =IF(ISERROR(VLOOKUP(I99,Eje_Pilar!$C$2:$E$47,2,FALSE))," ",VLOOKUP(I99,Eje_Pilar!$C$2:$E$47,2,FALSE)) -> Gobernanza e influencia local, regional e internacional | K99: =IF(ISERROR(VLOOKUP(I99,Eje_Pilar!$C$2:$E$47,3,FALSE))," ",VLOOKUP(I99,Eje_Pilar!$C$2:$E$47,3,FALSE)) -> Eje Transversal 4 Gobierno Legitimo, Fortalecimiento Local y Eficiencia | L99: 3-3-1-15-07-45-1531-000 | M99: 807727910 | N99: LUIS DANIEL MIRANDA CIFUENTES | O99: 52470000 | R99: 1 | S99: 3657000 | T99: 56127000 | U99: 46587000 | V99: 2019-02-08 | W99: 2019-02-08 | X99: 2020-01-07 | Y99: 330 | AC99: x | AF99: 0.8300283286 | AH99: =IF(SUMPRODUCT((A$14:A99=A99)*(B$14:B99=B99)*(C$14:C99=C99))>1,0,1) -> 1 | AI99: Contratos de prestación de servicios profesionales y de apoyo a la gestión | AJ99: Contratación directa | AK99: =IFERROR(VLOOKUP(F99,Tipo!$C$12:$C$27,1,FALSE),"NO") -> Prestación de servicios profesionales y de apoyo a la gestión, o para la ejecución de trabajos artísticos que sólo puedan encomendarse a determinadas personas naturales; | AL99: Inversión | AM99: 45
A100: 872019 | B100: 2019 | C100: FDLSC-CPS-087-2019 | D100: Contratos de prestación de servicios profesionales y de apoyo a la gestión | E100: Contratación directa | F100: Prestación de servicios profesionales y de apoyo a la gestión, o para la ejecución de trabajos artísticos que sólo puedan encomendarse a determinadas personas naturales; | G100: PRESTACIÓN DE SERVICIOS DE APOYO EN LA EJECUCIÓN DE ACTIVIDADES AUXILIARES DE OBRA CIVIL, QUE CONLLEVEN AL MEJORAMIENTO Y ADECUACIÓN DEL ESPACIO PÚBLICO DE LA LOCALIDAD DE SAN CRISTÓBAL. | H100: Inversión | I100: 18 | J100: =IF(ISERROR(VLOOKUP(I100,Eje_Pilar!$C$2:$E$47,2,FALSE))," ",VLOOKUP(I100,Eje_Pilar!$C$2:$E$47,2,FALSE)) -> Mejor movilidad para todos | K100: =IF(ISERROR(VLOOKUP(I100,Eje_Pilar!$C$2:$E$47,3,FALSE))," ",VLOOKUP(I100,Eje_Pilar!$C$2:$E$47,3,FALSE)) -> Pilar 2 Democracía Urbana | L100: 3-3-1-15-02-18-1557-000 | M100: 798191951 | N100: MIGUEL ANGEL ESPINOSA PARRA | O100: 24200000 | R100: 1 | S100: 1686667 | T100: 25886667 | U100: 21486667 | V100: 2019-02-08 | W100: 2019-02-08 | X100: 2020-01-07 | Y100: 330 | AC100: x | AF100: 0.8300283308 | AH100: =IF(SUMPRODUCT((A$14:A100=A100)*(B$14:B100=B100)*(C$14:C100=C100))>1,0,1) -> 1 | AI100: Contratos de prestación de servicios profesionales y de apoyo a la gestión | AJ100: Contratación directa | AK100: =IFERROR(VLOOKUP(F100,Tipo!$C$12:$C$27,1,FALSE),"NO") -> Prestación de servicios profesionales y de apoyo a la gestión, o para la ejecución de trabajos artísticos que sólo puedan encomendarse a determinadas personas naturales; | AL100: Inversión | AM100: 18
A101: 882019 | B101: 2019 | C101: FDLSC-CPS-088-2019 | D101: Contratos de prestación de servicios profesionales y de apoyo a la gestión | E101: Contratación directa | F101: Prestación de servicios profesionales y de apoyo a la gestión, o para la ejecución de trabajos artísticos que sólo puedan encomendarse a determinadas personas naturales; | G101: PRESTACIÓN DE SERVICIOS DE APOYO EN LA EJECUCIÓN DE ACTIVIDADES AUXILIARES DE OBRA CIVIL, QUE CONLLEVEN AL MEJORAMIENTO Y ADECUACIÓN DEL ESPACIO PÚBLICO DE LA LOCALIDAD DE SAN CRISTÓBAL. | H101: Inversión | I101: 18 | J101: =IF(ISERROR(VLOOKUP(I101,Eje_Pilar!$C$2:$E$47,2,FALSE))," ",VLOOKUP(I101,Eje_Pilar!$C$2:$E$47,2,FALSE)) -> Mejor movilidad para todos | K101: =IF(ISERROR(VLOOKUP(I101,Eje_Pilar!$C$2:$E$47,3,FALSE))," ",VLOOKUP(I101,Eje_Pilar!$C$2:$E$47,3,FALSE)) -> Pilar 2 Democracía Urbana | L101: 3-3-1-15-02-18-1557-000 | M101: 798459394 | N101: FREDY RODRIGUEZ GARCIA | O101: 24200000 | R101: 1 | S101: 1686667 | T101: 25886667 | U101: 21486667 | V101: 2019-02-08 | W101: 2019-02-08 | X101: 2020-01-07 | Y101: 330 | AC101: x | AF101: 0.8300283308 | AH101: =IF(SUMPRODUCT((A$14:A101=A101)*(B$14:B101=B101)*(C$14:C101=C101))>1,0,1) -> 1 | AI101: Contratos de prestación de servicios profesionales y de apoyo a la gestión | AJ101: Contratación directa | AK101: =IFERROR(VLOOKUP(F101,Tipo!$C$12:$C$27,1,FALSE),"NO") -> Prestación de servicios profesionales y de apoyo a la gestión, o para la ejecución de trabajos artísticos que sólo puedan encomendarse a determinadas personas naturales; | AL101: Inversión | AM101: 18
A102: 892019 | B102: 2019 | C102: FDLSC-CPS-089-2019 | D102: Contratos de prestación de servicios profesionales y de apoyo a la gestión | E102: Contratación directa | F102: Prestación de servicios profesionales y de apoyo a la gestión, o para la ejecución de trabajos artísticos que sólo puedan encomendarse a determinadas personas naturales; | G102: EL CONTRATISTA SE OBLIGA CON EL FONDO DE DESARROLLO LOCAL DE SAN CRISTOBAL A PRESTAR SUS SERVICIOS COMO APOYO TÉCNICO Y ADMINISTRATIVO A LA GESTIÓN LOCAL EN LOS TEMAS DE MITIGACIÓN DEL RIESGO Y GESTIÓN AMBIENTAL EN CAMPO, EN EL MARCO DEL PLAN DE DESARROLLO LOCAL ¿SAN CRISTÓBAL MEJOR PARA TODOS: UNA LOCALIDAD SANA, FELIZ Y EN PAZ | H102: Inversión | I102: 4 | J102: =IF(ISERROR(VLOOKUP(I102,Eje_Pilar!$C$2:$E$47,2,FALSE))," ",VLOOKUP(I102,Eje_Pilar!$C$2:$E$47,2,FALSE)) -> Familias protegidas y adaptadas al cambio climático | K102: =IF(ISERROR(VLOOKUP(I102,Eje_Pilar!$C$2:$E$47,3,FALSE))," ",VLOOKUP(I102,Eje_Pilar!$C$2:$E$47,3,FALSE)) -> Pilar 1 Igualdad de Calidad de Vida | L102: 3-3-1-15-01-04-1579-000 | M102: 10238826617 | N102: CRISTIAN CAMILO RUBIANO GRANADA | O102: 33000000 | S102: 2100000 | T102: 35100000 | U102: 31500000 | V102: 2019-02-08 | W102: 2019-02-08 | X102: 2020-01-07 | Y102: 330 | AC102: x | AF102: 0.8974358974 | AH102: =IF(SUMPRODUCT((A$14:A102=A102)*(B$14:B102=B102)*(C$14:C102=C102))>1,0,1) -> 1 | AI102: Contratos de prestación de servicios profesionales y de apoyo a la gestión | AJ102: Contratación directa | AK102: =IFERROR(VLOOKUP(F102,Tipo!$C$12:$C$27,1,FALSE),"NO") -> Prestación de servicios profesionales y de apoyo a la gestión, o para la ejecución de trabajos artísticos que sólo puedan encomendarse a determinadas personas naturales; | AL102: Inversión | AM102: 4
A103: 902019 | B103: 2019 | C103: FDLSC-CPS-090-2019 | D103: Contratos de prestación de servicios profesionales y de apoyo a la gestión | E103: Contratación directa | F103: Prestación de servicios profesionales y de apoyo a la gestión, o para la ejecución de trabajos artísticos que sólo puedan encomendarse a determinadas personas naturales; | G103: EL CONTRATISTA SE OBLIGA PARA CON EL FONDO DE DESARROLLO LOCAL DE SAN CRISTOBAL A PRESTAR SUS SERVICIOS PROFESIONALES PARA EL AREA DE GESTION DEL DESARROLLO LOCAL PARA LA FORMULACION Y EL SEGUIMIENTO DE LOS PROYECTOS DE GESTION Y MITIGACION DEL RIESGO EN CUMPLIMIENTO DE LAS METAS ESTABLECIDAS EN EL PLAN DE DESARROLLO LOCAL 2017-2020 DE CONFORMIDAD CON LAS OBLIGACIONES CONTENIDAS EN LOS ESTUDIOS PREVIOS. | H103: Inversión | I103: 4 | J103: =IF(ISERROR(VLOOKUP(I103,Eje_Pilar!$C$2:$E$47,2,FALSE))," ",VLOOKUP(I103,Eje_Pilar!$C$2:$E$47,2,FALSE)) -> Familias protegidas y adaptadas al cambio climático | K103: =IF(ISERROR(VLOOKUP(I103,Eje_Pilar!$C$2:$E$47,3,FALSE))," ",VLOOKUP(I103,Eje_Pilar!$C$2:$E$47,3,FALSE)) -> Pilar 1 Igualdad de Calidad de Vida | L103: 3-3-1-15-01-04-1579-000 | M103: 808270595 | N103: JULIAN ARIZA BACHILLER | O103: 52470000 | R103: 1 | S103: 2544000 | T103: 55014000 | U103: 50244000 | V103: 2019-02-11 | W103: 2019-02-11 | X103: 2020-01-10 | Y103: 330 | AC103: x | AF103: 0.9132947977 | AH103: =IF(SUMPRODUCT((A$14:A103=A103)*(B$14:B103=B103)*(C$14:C103=C103))>1,0,1) -> 1 | AI103: Contratos de prestación de servicios profesionales y de apoyo a la gestión | AJ103: Contratación directa | AK103: =IFERROR(VLOOKUP(F103,Tipo!$C$12:$C$27,1,FALSE),"NO") -> Prestación de servicios profesionales y de apoyo a la gestión, o para la ejecución de trabajos artísticos que sólo puedan encomendarse a determinadas personas naturales; | AL103: Inversión | AM103: 4
A104: 912019 | B104: 2019 | C104: FDLSC-CPS-091-2019 | D104: Contratos de prestación de servicios profesionales y de apoyo a la gestión | E104: Contratación directa | F104: Prestación de servicios profesionales y de apoyo a la gestión, o para la ejecución de trabajos artísticos que sólo puedan encomendarse a determinadas personas naturales; | G104: PRESTAR LOS SERVICIOS PROFESIONALES PARA LA OPERACIÓN, PRESTACIÓN, SEGUIMIENTO Y CUMPLIMIENTO DE LOS PROCEDIMIENTOS ADMINISTRATIVOS, OPERATIVOS Y PROGRAMÁTICOS DEL SERVICIO APOYO ECONÓMICO TIPO C, QUE CONTRIBUYAN A LA GARANTÍA DE LOS DERECHOS DE LA POBLACIÓN MAYOR EN EL MARCO DE LA POLÍTICA PÚBLICA SOCIAL PARA EL ENVEJECIMIENTO Y LA VEJEZ EN EL DISTRITO CAPITAL A CARGO DE LA ALCALDÍA LOCAL. | H104: Inversión | I104: 3 | J104: =IF(ISERROR(VLOOKUP(I104,Eje_Pilar!$C$2:$E$47,2,FALSE))," ",VLOOKUP(I104,Eje_Pilar!$C$2:$E$47,2,FALSE)) -> Igualdad y autonomía para una Bogotá incluyente | K104: =IF(ISERROR(VLOOKUP(I104,Eje_Pilar!$C$2:$E$47,3,FALSE))," ",VLOOKUP(I104,Eje_Pilar!$C$2:$E$47,3,FALSE)) -> Pilar 1 Igualdad de Calidad de Vida | L104: 3-3-1-15-01-03-1509-000 | M104: 10229398119 | N104: CINDY MARIAN GUEVARA GOMEZ | O104: 52800000 | R104: 1 | S104: 2720000 | T104: 55520000 | U104: 50720000 | V104: 2019-02-11 | W104: 2019-02-11 | X104: 2020-01-10 | Y104: 330 | AC104: x | AF104: 0.9135446686 | AH104: =IF(SUMPRODUCT((A$14:A104=A104)*(B$14:B104=B104)*(C$14:C104=C104))>1,0,1) -> 1 | AI104: Contratos de prestación de servicios profesionales y de apoyo a la gestión | AJ104: Contratación directa | AK104: =IFERROR(VLOOKUP(F104,Tipo!$C$12:$C$27,1,FALSE),"NO") -> Prestación de servicios profesionales y de apoyo a la gestión, o para la ejecución de trabajos artísticos que sólo puedan encomendarse a determinadas personas naturales; | AL104: Inversión | AM104: 3
A105: 922019 | B105: 2019 | C105: FDLSC-CPS-092-2019 | D105: Contratos de prestación de servicios profesionales y de apoyo a la gestión | E105: Contratación directa | F105: Prestación de servicios profesionales y de apoyo a la gestión, o para la ejecución de trabajos artísticos que sólo puedan encomendarse a determinadas personas naturales; | G105: EL CONTRATISTA SE OBLIGA A PRESTAR SUS SERVICIOS PROFESIONALES DE APOYO JURIDICO A LA EJECUCIÓN DE LAS ACCIONES REQUERIDAS PARA EL TRÁMITE E IMPULSO PROCESAL DE LAS ACTUACIONES CONTRAVENCIONALES Y/O QUERELLAS QUE CURSEN EN LAS INSPECCIONES DE POLICIA DE LA LOCALIDAD | H105: Inversión | I105: 45 | J105: =IF(ISERROR(VLOOKUP(I105,Eje_Pilar!$C$2:$E$47,2,FALSE))," ",VLOOKUP(I105,Eje_Pilar!$C$2:$E$47,2,FALSE)) -> Gobernanza e influencia local, regional e internacional | K105: =IF(ISERROR(VLOOKUP(I105,Eje_Pilar!$C$2:$E$47,3,FALSE))," ",VLOOKUP(I105,Eje_Pilar!$C$2:$E$47,3,FALSE)) -> Eje Transversal 4 Gobierno Legitimo, Fortalecimiento Local y Eficiencia | L105: 3-3-1-15-07-45-1531-000 | M105: 523075927 | N105: SANDRA VIVIANA RIATIVA PINILLA | O105: 52470000 | R105: 1 | S105: 3180000 | T105: 55650000 | U105: 37916666 | V105: 2019-02-11 | W105: 2019-02-11 | X105: 2020-01-10 | Y105: 330 | AC105: x | AF105: 0.6813417071 | AH105: =IF(SUMPRODUCT((A$14:A105=A105)*(B$14:B105=B105)*(C$14:C105=C105))>1,0,1) -> 1 | AI105: Contratos de prestación de servicios profesionales y de apoyo a la gestión | AJ105: Contratación directa | AK105: =IFERROR(VLOOKUP(F105,Tipo!$C$12:$C$27,1,FALSE),"NO") -> Prestación de servicios profesionales y de apoyo a la gestión, o para la ejecución de trabajos artísticos que sólo puedan encomendarse a determinadas personas naturales; | AL105: Inversión | AM105: 45
A106: 932019 | B106: 2019 | C106: FDLSC-CPS-093-2019 | D106: Contratos de prestación de servicios profesionales y de apoyo a la gestión | E106: Contratación directa | F106: Prestación de servicios profesionales y de apoyo a la gestión, o para la ejecución de trabajos artísticos que sólo puedan encomendarse a determinadas personas naturales; | G106: PRESTAR LOS SERVICIOS PROFESIONALES PARA LA OPERACIÓN, PRESTACIÓN, SEGUIMIENTO Y CUMPLIMIENTO DE LOS PROCEDIMIENTOS ADMINISTRATIVOS, OPERATIVOS Y PROGRAMÁTICOS DEL SERVICIO APOYO ECONÓMICO TIPO C, QUE CONTRIBUYAN A LA GARANTÍA DE LOS DERECHOS DE LA POBLACIÓN MAYOR EN EL MARCO DE LA POLÍTICA PÚBLICA SOCIAL PARA EL ENVEJECIMIENTO Y LA VEJEZ EN EL DISTRITO CAPITAL A CARGO DE LA ALCALDÍA LOCAL. | H106: Inversión | I106: 3 | J106: =IF(ISERROR(VLOOKUP(I106,Eje_Pilar!$C$2:$E$47,2,FALSE))," ",VLOOKUP(I106,Eje_Pilar!$C$2:$E$47,2,FALSE)) -> Igualdad y autonomía para una Bogotá incluyente | K106: =IF(ISERROR(VLOOKUP(I106,Eje_Pilar!$C$2:$E$47,3,FALSE))," ",VLOOKUP(I106,Eje_Pilar!$C$2:$E$47,3,FALSE)) -> Pilar 1 Igualdad de Calidad de Vida | L106: 3-3-1-15-01-03-1509-000 | M106: 10238757838 | N106: JAIRO YECID VILLALBA AREVALO | O106: 52800000 | R106: 1 | S106: 1920000 | T106: 54720000 | U106: 49920000 | V106: 2019-02-11 | W106: 2019-02-25 | X106: 2020-01-24 | Y106: 330 | AC106: x | AF106: 0.9122807018 | AH106: =IF(SUMPRODUCT((A$14:A106=A106)*(B$14:B106=B106)*(C$14:C106=C106))>1,0,1) -> 1 | AI106: Contratos de prestación de servicios profesionales y de apoyo a la gestión | AJ106: Contratación directa | AK106: =IFERROR(VLOOKUP(F106,Tipo!$C$12:$C$27,1,FALSE),"NO") -> Prestación de servicios profesionales y de apoyo a la gestión, o para la ejecución de trabajos artísticos que sólo puedan encomendarse a determinadas personas naturales; | AL106: Inversión | AM106: 3
A107: 942019 | B107: 2019 | C107: FDLSC-CPS-094-2019 | D107: Contratos de prestación de servicios profesionales y de apoyo a la gestión | E107: Contratación directa | F107: Prestación de servicios profesionales y de apoyo a la gestión, o para la ejecución de trabajos artísticos que sólo puedan encomendarse a determinadas personas naturales; | G107: EL CONTRATISTA SE OBLIGA CON EL FONDO DE DESARROLLO LOCAL DE SAN CRISTÓBAL A PRESTAR SUS SERVICIOS PROFESIONALES PARA APOYAR LA GESTIÓN LOCAL EN EL DESARROLLO DE LA ESTRATEGIA PARA EL MANEJO INTEGRAL DE PUNTOS CRÍTICOS POR ACUMULACIÓN DE RESIDUOS SÓLIDOS CON ENFOQUE COMUNITARIO DENOMINADA ¿JUÉGALE LIMPIO A SAN CRISTÓBAL | H107: Inversión | I107: 45 | J107: =IF(ISERROR(VLOOKUP(I107,Eje_Pilar!$C$2:$E$47,2,FALSE))," ",VLOOKUP(I107,Eje_Pilar!$C$2:$E$47,2,FALSE)) -> Gobernanza e influencia local, regional e internacional | K107: =IF(ISERROR(VLOOKUP(I107,Eje_Pilar!$C$2:$E$47,3,FALSE))," ",VLOOKUP(I107,Eje_Pilar!$C$2:$E$47,3,FALSE)) -> Eje Transversal 4 Gobierno Legitimo, Fortalecimiento Local y Eficiencia | L107: 3-3-1-15-07-45-1531-000 | M107: 305070773 | N107: MARIS STELLA PILLIMUE CABRERA | O107: 50160000 | R107: 1 | S107: 2432000 | T107: 52592000 | U107: 48032000 | V107: 2019-02-15 | W107: 2019-02-15 | X107: 2020-01-14 | Y107: 330 | AC107: x | AF107: 0.9132947977 | AH107: =IF(SUMPRODUCT((A$14:A107=A107)*(B$14:B107=B107)*(C$14:C107=C107))>1,0,1) -> 1 | AI107: Contratos de prestación de servicios profesionales y de apoyo a la gestión | AJ107: Contratación directa | AK107: =IFERROR(VLOOKUP(F107,Tipo!$C$12:$C$27,1,FALSE),"NO") -> Prestación de servicios profesionales y de apoyo a la gestión, o para la ejecución de trabajos artísticos que sólo puedan encomendarse a determinadas personas naturales; | AL107: Inversión | AM107: 45
A108: 952019 | B108: 2019 | C108: FDLSC-CPS-095-2019 | D108: Contratos de prestación de servicios profesionales y de apoyo a la gestión | E108: Contratación directa | F108: Prestación de servicios profesionales y de apoyo a la gestión, o para la ejecución de trabajos artísticos que sólo puedan encomendarse a determinadas personas naturales; | G108: PRESTAR SUS SERVICIOS PROFESIONALES DE APOYO JURÍDICO EN EL ACOMPAÑAMIENTO AL COMPONENTE DE TITULACIÓN DE PREDIOS Y DEL SECTOR HÁBITAT DE LA LOCALIDAD DE SAN CRISTÓBAL, A TRAVÉS DE ESTUDIOS DE TÍTULOS, ASESORÍA A BENEFICIARIOS, RECOLECCIÓN DE DOCUMENTACIÓN Y PRESENTACIÓN DE DEMANDAS | H108: Inversión | I108: 15 | J108: =IF(ISERROR(VLOOKUP(I108,Eje_Pilar!$C$2:$E$47,2,FALSE))," ",VLOOKUP(I108,Eje_Pilar!$C$2:$E$47,2,FALSE)) -> Recuperación, incorporación, vida urbana y control de la ilegalidad | K108: =IF(ISERROR(VLOOKUP(I108,Eje_Pilar!$C$2:$E$47,3,FALSE))," ",VLOOKUP(I108,Eje_Pilar!$C$2:$E$47,3,FALSE)) -> Pilar 2 Democracía Urbana | L108: 3-3-1-15-02-15-1581-000 | M108: 796968371 | N108: EDWIN GUILLERMO MOLINA CARDONA | O108: 51370000 | R108: 1 | S108: 3113333 | T108: 54483333 | U108: 45143320 | V108: 2019-02-11 | W108: 2019-02-11 | X108: 2020-01-10 | Y108: 330 | AC108: x | AF108: 0.8285711889 | AH108: =IF(SUMPRODUCT((A$14:A108=A108)*(B$14:B108=B108)*(C$14:C108=C108))>1,0,1) -> 1 | AI108: Contratos de prestación de servicios profesionales y de apoyo a la gestión | AJ108: Contratación directa | AK108: =IFERROR(VLOOKUP(F108,Tipo!$C$12:$C$27,1,FALSE),"NO") -> Prestación de servicios profesionales y de apoyo a la gestión, o para la ejecución de trabajos artísticos que sólo puedan encomendarse a determinadas personas naturales; | AL108: Inversión | AM108: 15
A109: 962019 | B109: 2019 | C109: FDLSC-CPS-096-2019 | D109: Contratos de prestación de servicios profesionales y de apoyo a la gestión | E109: Contratación directa | F109: Prestación de servicios profesionales y de apoyo a la gestión, o para la ejecución de trabajos artísticos que sólo puedan encomendarse a determinadas personas naturales; | G109: EL CONTRATISTA SE OBLIGA PARA CON EL FONDO DE DESARROLLO LOCAL DE SAN CRISTÓBAL A PRESTAR SUS SERVICIOS PROFESIONALES, DE APOYO AL ÁREA DE GESTIÓN DEL DESARROLLO LOCAL - CONTRATACIÓN, PARA FORTALECER LAS ETAPAS PRECONTRACTUALES Y CONTRACTUALES QUE ADELANTE LA ADMINISTRACIÓN LOCAL DE SAN CRISTÓBAL | H109: Inversión | I109: 45 | J109: =IF(ISERROR(VLOOKUP(I109,Eje_Pilar!$C$2:$E$47,2,FALSE))," ",VLOOKUP(I109,Eje_Pilar!$C$2:$E$47,2,FALSE)) -> Gobernanza e influencia local, regional e internacional | K109: =IF(ISERROR(VLOOKUP(I109,Eje_Pilar!$C$2:$E$47,3,FALSE))," ",VLOOKUP(I109,Eje_Pilar!$C$2:$E$47,3,FALSE)) -> Eje Transversal 4 Gobierno Legitimo, Fortalecimiento Local y Eficiencia | L109: 3-3-1-15-07-45-1531-000 | M109: 10190151043 | N109: DELCY VIVIANA GOMEZ ORTIZ | O109: 66000000 | R109: 1 | S109: 3200000 | T109: 69200000 | U109: 64000000 | V109: 2019-02-08 | W109: 2019-02-11 | X109: 2020-01-10 | Y109: 330 | AC109: x | AF109: 0.9248554913 | AH109: =IF(SUMPRODUCT((A$14:A109=A109)*(B$14:B109=B109)*(C$14:C109=C109))>1,0,1) -> 1 | AI109: Contratos de prestación de servicios profesionales y de apoyo a la gestión | AJ109: Contratación directa | AK109: =IFERROR(VLOOKUP(F109,Tipo!$C$12:$C$27,1,FALSE),"NO") -> Prestación de servicios profesionales y de apoyo a la gestión, o para la ejecución de trabajos artísticos que sólo puedan encomendarse a determinadas personas naturales; | AL109: Inversión | AM109: 45
A110: 972019 | B110: 2019 | C110: FDLSC-CPS-097-2019 | D110: Contratos de prestación de servicios profesionales y de apoyo a la gestión | E110: Contratación directa | F110: Prestación de servicios profesionales y de apoyo a la gestión, o para la ejecución de trabajos artísticos que sólo puedan encomendarse a determinadas personas naturales; | G110: ¿EL CONTRATISTA SE OBLIGA CON EL FONDO DE DESARROLLO LOCAL DE SAN CRISTOBAL A PRESTAR SUS SERVICIOS PROFESIONALES PARA LA IMPLEMENTACION, SOCIALIZACION, EVALUACION Y SEGUIMIENTO DEL SISTEMA INTEGRADO DE GESTIÓN DE CALIDAD (SIG), ORIENTADO AL DESARROLLO EFICIENTE DE PROCESOS Y PROCEDIMIENTOS EN CUMPLIMIENTO A LAS METAS ESTABLECIDAS EN EL "PLAN DE DESARROLLO LOCAL 2017-2020 | H110: Inversión | I110: 45 | J110: =IF(ISERROR(VLOOKUP(I110,Eje_Pilar!$C$2:$E$47,2,FALSE))," ",VLOOKUP(I110,Eje_Pilar!$C$2:$E$47,2,FALSE)) -> Gobernanza e influencia local, regional e internacional | K110: =IF(ISERROR(VLOOKUP(I110,Eje_Pilar!$C$2:$E$47,3,FALSE))," ",VLOOKUP(I110,Eje_Pilar!$C$2:$E$47,3,FALSE)) -> Eje Transversal 4 Gobierno Legitimo, Fortalecimiento Local y Eficiencia | L110: 3-3-1-15-07-45-1531-000 | M110: 799762801 | N110: ARNOLDO ELIECER SOSA RODRIGUEZ | O110: 52470000 | R110: 1 | S110: 3180000 | T110: 55650000 | U110: 50880000 | V110: 2019-02-11 | W110: 2019-02-11 | X110: 2020-01-10 | Y110: 330 | AC110: x | AF110: 0.9142857143 | AH110: =IF(SUMPRODUCT((A$14:A110=A110)*(B$14:B110=B110)*(C$14:C110=C110))>1,0,1) -> 1 | AI110: Contratos de prestación de servicios profesionales y de apoyo a la gestión | AJ110: Contratación directa | AK110: =IFERROR(VLOOKUP(F110,Tipo!$C$12:$C$27,1,FALSE),"NO") -> Prestación de servicios profesionales y de apoyo a la gestión, o para la ejecución de trabajos artísticos que sólo puedan encomendarse a determinadas personas naturales; | AL110: Inversión | AM110: 45
A111: 982019 | B111: 2019 | C111: FDLSC-CPS-098-2019 | D111: Contratos de prestación de servicios profesionales y de apoyo a la gestión | E111: Contratación directa | F111: Prestación de servicios profesionales y de apoyo a la gestión, o para la ejecución de trabajos artísticos que sólo puedan encomendarse a determinadas personas naturales; | G111: EL CONTRATISTA SE OBLIGA A PRESTAR SUS SERVICIOS PROFESIONALES PARA APOYAR AL EQUIPO DE PRENSA Y COMUNICACIONES EN LA REALIZACION Y PUBLICACION DE CONTENIDOS DE REDES SOCIALES Y CANALES DE DIVULGACION DIGITAL (SITIO WEB) DE LA ALCALDIA LOCAL DE SAN CRISTOBAL | H111: Inversión | I111: 45 | J111: =IF(ISERROR(VLOOKUP(I111,Eje_Pilar!$C$2:$E$47,2,FALSE))," ",VLOOKUP(I111,Eje_Pilar!$C$2:$E$47,2,FALSE)) -> Gobernanza e influencia local, regional e internacional | K111: =IF(ISERROR(VLOOKUP(I111,Eje_Pilar!$C$2:$E$47,3,FALSE))," ",VLOOKUP(I111,Eje_Pilar!$C$2:$E$47,3,FALSE)) -> Eje Transversal 4 Gobierno Legitimo, Fortalecimiento Local y Eficiencia | L111: 3-3-1-15-07-45-1531-000 | M111: 10537729522 | N111: OSCAR DAVID DIAZ MAULEDOUX | O111: 52470000 | R111: 1 | S111: 2862000 | T111: 55332000 | U111: 45792000 | V111: 2019-02-12 | W111: 2019-02-13 | X111: 2020-01-12 | Y111: 330 | AC111: x | AF111: 0.8275862069 | AH111: =IF(SUMPRODUCT((A$14:A111=A111)*(B$14:B111=B111)*(C$14:C111=C111))>1,0,1) -> 1 | AI111: Contratos de prestación de servicios profesionales y de apoyo a la gestión | AJ111: Contratación directa | AK111: =IFERROR(VLOOKUP(F111,Tipo!$C$12:$C$27,1,FALSE),"NO") -> Prestación de servicios profesionales y de apoyo a la gestión, o para la ejecución de trabajos artísticos que sólo puedan encomendarse a determinadas personas naturales; | AL111: Inversión | AM111: 45
A112: 992019 | B112: 2019 | C112: FDLSC-CPS-099-2019 | D112: Contratos de prestación de servicios profesionales y de apoyo a la gestión | E112: Contratación directa | F112: Prestación de servicios profesionales y de apoyo a la gestión, o para la ejecución de trabajos artísticos que sólo puedan encomendarse a determinadas personas naturales; | G112: EL CONTRATISTA SE OBLIGA CON EL FONDO DE DESARROLLO LOCAL DE SAN CRISTOBAL A LA PRESTACION DE SERVICIOS PROFESIONALES PARA LA FORMULACIÓN, EVALUACIÓN, PRESENTACIÓN Y SEGUIMIENTO DE LOS DIFERENTES PROYECTOS DEL FONDO DE GESTION ARTISTICA Y CULTURAL DE LOS TERRITORIOS Y APOYAR EN GENERAL TODOS LOS PROCESOS DE GESTIONES CULTURALES EN LA LOCALIDAD Y AQUELLOS QUE SEAN DE COMPETENCIA DEL FONDO DE DESARROLLO LOCAL | H112: Inversión | I112: 45 | J112: =IF(ISERROR(VLOOKUP(I112,Eje_Pilar!$C$2:$E$47,2,FALSE))," ",VLOOKUP(I112,Eje_Pilar!$C$2:$E$47,2,FALSE)) -> Gobernanza e influencia local, regional e internacional | K112: =IF(ISERROR(VLOOKUP(I112,Eje_Pilar!$C$2:$E$47,3,FALSE))," ",VLOOKUP(I112,Eje_Pilar!$C$2:$E$47,3,FALSE)) -> Eje Transversal 4 Gobierno Legitimo, Fortalecimiento Local y Eficiencia | L112: 3-3-1-15-07-45-1531-000 | M112: 808077906 | N112: FELIX ANTONIO CASTILLO MOSQUERA | O112: 52470000 | R112: 1 | T112: 52470000 | U112: 41340000 | V112: 2019-02-11 | W112: 2019-02-11 | X112: 2020-01-10 | Y112: 330 | AC112: x | AF112: 0.7878787879 | AH112: =IF(SUMPRODUCT((A$14:A112=A112)*(B$14:B112=B112)*(C$14:C112=C112))>1,0,1) -> 1 | AI112: Contratos de prestación de servicios profesionales y de apoyo a la gestión | AJ112: Contratación directa | AK112: =IFERROR(VLOOKUP(F112,Tipo!$C$12:$C$27,1,FALSE),"NO") -> Prestación de servicios profesionales y de apoyo a la gestión, o para la ejecución de trabajos artísticos que sólo puedan encomendarse a determinadas personas naturales; | AL112: Inversión | AM112: 45
A113: 1002019 | B113: 2019 | C113: FDLSC-CPS-100-2019 | D113: Contratos de prestación de servicios profesionales y de apoyo a la gestión | E113: Contratación directa | F113: Prestación de servicios profesionales y de apoyo a la gestión, o para la ejecución de trabajos artísticos que sólo puedan encomendarse a determinadas personas naturales; | G113: EL CONTRATISTA SE OBLIGA CON EL FONDO DE DESARROLLO LOCAL DE SAN CRISTOBAL A PRESTAR SERVICIOS PROFESIONALES PARA APOYAR JURIDICAMENTE LA EJECUCION DE LAS ACCIONES REQUERIDAS PARA LA DEPURACION DE LAS ACTUACIONES ADMINISTRATIVAS QUE CURSAN EN LA ALCALDIA LOCAL | H113: Inversión | I113: 45 | J113: =IF(ISERROR(VLOOKUP(I113,Eje_Pilar!$C$2:$E$47,2,FALSE))," ",VLOOKUP(I113,Eje_Pilar!$C$2:$E$47,2,FALSE)) -> Gobernanza e influencia local, regional e internacional | K113: =IF(ISERROR(VLOOKUP(I113,Eje_Pilar!$C$2:$E$47,3,FALSE))," ",VLOOKUP(I113,Eje_Pilar!$C$2:$E$47,3,FALSE)) -> Eje Transversal 4 Gobierno Legitimo, Fortalecimiento Local y Eficiencia | L113: 3-3-1-15-07-45-1531-000 | M113: 10916653659 | N113: LUIS ANDRES ALVAREZ TORRADO | O113: 33250000 | R113: 1 | S113: 16625000 | T113: 49875000 | U113: 42749999 | V113: 2019-02-12 | W113: 2019-02-12 | X113: 2019-09-11 | Y113: 210 | AC113: x | AF113: 0.8571428371 | AH113: =IF(SUMPRODUCT((A$14:A113=A113)*(B$14:B113=B113)*(C$14:C113=C113))>1,0,1) -> 1 | AI113: =IFERROR(VLOOKUP(D113,tipo,1,FALSE),"NO") -> Contratos de prestación de servicios profesionales y de apoyo a la gestión | AJ113: =IFERROR(VLOOKUP(E113,modal,1,FALSE),"NO") -> Contratación directa | AK113: =IFERROR(VLOOKUP(F113,Tipo!$C$12:$C$27,1,FALSE),"NO") -> Prestación de servicios profesionales y de apoyo a la gestión, o para la ejecución de trabajos artísticos que sólo puedan encomendarse a determinadas personas naturales; | AL113: =IFERROR(VLOOKUP(H113,afectacion,1,FALSE),"NO") -> Inversión | AM113: =IFERROR(VLOOKUP(I113,programa,1,FALSE),"NO") -> 45
A114: 1012019 | B114: 2019 | C114: FDLSC-CPS-101-2019 | D114: Contratos de prestación de servicios profesionales y de apoyo a la gestión | E114: Contratación directa | F114: Prestación de servicios profesionales y de apoyo a la gestión, o para la ejecución de trabajos artísticos que sólo puedan encomendarse a determinadas personas naturales; | G114: EL CONTRATISTA SE OBLIGA CON EL FONDO DE DESARROLLO LOCAL DE SAN CRISTOBAL A PRESTAR SERVICIOS PROFESIONALES PARA APOYAR JURIDICAMENTE LA EJECUCION DE LAS ACCIONES REQUERIDAS PARA LA DEPURACION DE LAS ACTUACIONES ADMINISTRATIVAS QUE CURSAN EN LA ALCALDIA LOCAL | H114: Inversión | I114: 45 | J114: =IF(ISERROR(VLOOKUP(I114,Eje_Pilar!$C$2:$E$47,2,FALSE))," ",VLOOKUP(I114,Eje_Pilar!$C$2:$E$47,2,FALSE)) -> Gobernanza e influencia local, regional e internacional | K114: =IF(ISERROR(VLOOKUP(I114,Eje_Pilar!$C$2:$E$47,3,FALSE))," ",VLOOKUP(I114,Eje_Pilar!$C$2:$E$47,3,FALSE)) -> Eje Transversal 4 Gobierno Legitimo, Fortalecimiento Local y Eficiencia | L114: 3-3-1-15-07-45-1531-000 | M114: 10136373751 | N114: ANDREA KATHERIN ABRL RODRIGUEZ | O114: 33250000 | R114: 1 | S114: 16625000 | T114: =+O114+Q114+S114 -> 49875000 | U114: 45758333 | V114: 2019-02-12 | W114: 2019-02-12 | X114: 2020-09-11 | Y114: 210 | AC114: x | AF114: 0.9174603108 | AH114: =IF(SUMPRODUCT((A$14:A114=A114)*(B$14:B114=B114)*(C$14:C114=C114))>1,0,1) -> 1 | AI114: Contratos de prestación de servicios profesionales y de apoyo a la gestión | AJ114: Contratación directa | AK114: =IFERROR(VLOOKUP(F114,Tipo!$C$12:$C$27,1,FALSE),"NO") -> Prestación de servicios profesionales y de apoyo a la gestión, o para la ejecución de trabajos artísticos que sólo puedan encomendarse a determinadas personas naturales; | AL114: Inversión | AM114: 45
A115: 1022019 | B115: 2019 | C115: FDLSC-CPS-102-2019 | D115: Contratos de prestación de servicios profesionales y de apoyo a la gestión | E115: Contratación directa | F115: Prestación de servicios profesionales y de apoyo a la gestión, o para la ejecución de trabajos artísticos que sólo puedan encomendarse a determinadas personas naturales; | G115: EL CONTRATISTA SE OBLIGA CON EL FONDO DE DESARROLLO LOCAL DE SAN CRISTOBAL A PRESTAR SERVICIOS PROFESIONALES PARA APOYAR JURIDICAMENTE LA EJECUCION DE LAS ACCIONES REQUERIDAS PARA LA DEPURACION DE LAS ACTUACIONES ADMINISTRATIVAS QUE CURSAN EN LA ALCALDIA LOCAL | H115: Inversión | I115: 45 | J115: =IF(ISERROR(VLOOKUP(I115,Eje_Pilar!$C$2:$E$47,2,FALSE))," ",VLOOKUP(I115,Eje_Pilar!$C$2:$E$47,2,FALSE)) -> Gobernanza e influencia local, regional e internacional | K115: =IF(ISERROR(VLOOKUP(I115,Eje_Pilar!$C$2:$E$47,3,FALSE))," ",VLOOKUP(I115,Eje_Pilar!$C$2:$E$47,3,FALSE)) -> Eje Transversal 4 Gobierno Legitimo, Fortalecimiento Local y Eficiencia | L115: 3-3-1-15-07-45-1531-000 | M115: 519244620 | N115: ANA DEL PILAR DUARTE MURILLO | O115: 33250000 | R115: 1 | S115: 16625000 | T115: 49875000 | U115: 35200000 | V115: 2019-02-12 | W115: 2019-02-12 | X115: 2020-01-11 | Y115: 210 | AC115: x | AF115: 0.705764411 | AH115: =IF(SUMPRODUCT((A$14:A115=A115)*(B$14:B115=B115)*(C$14:C115=C115))>1,0,1) -> 1 | AI115: Contratos de prestación de servicios profesionales y de apoyo a la gestión | AJ115: Contratación directa | AK115: =IFERROR(VLOOKUP(F115,Tipo!$C$12:$C$27,1,FALSE),"NO") -> Prestación de servicios profesionales y de apoyo a la gestión, o para la ejecución de trabajos artísticos que sólo puedan encomendarse a determinadas personas naturales; | AL115: Inversión | AM115: 45
A116: 1032019 | B116: 2019 | C116: FDLSC-CPS-103-2019 | D116: Contratos de prestación de servicios profesionales y de apoyo a la gestión | E116: Contratación directa | F116: Prestación de servicios profesionales y de apoyo a la gestión, o para la ejecución de trabajos artísticos que sólo puedan encomendarse a determinadas personas naturales; | G116: EL CONTRATISTA SE OBLIGA CON EL FONDO DE DESARROLLO LOCAL DE SAN CRISTOBAL A PRESTAR SERVICIOS PROFESIONALES PARA APOYAR JURIDICAMENTE LA EJECUCION DE LAS ACCIONES REQUERIDAS PARA LA DEPURACION DE LAS ACTUACIONES ADMINISTRATIVAS QUE CURSAN EN LA ALCALDIA LOCAL | H116: Inversión | I116: 45 | J116: =IF(ISERROR(VLOOKUP(I116,Eje_Pilar!$C$2:$E$47,2,FALSE))," ",VLOOKUP(I116,Eje_Pilar!$C$2:$E$47,2,FALSE)) -> Gobernanza e influencia local, regional e internacional | K116: =IF(ISERROR(VLOOKUP(I116,Eje_Pilar!$C$2:$E$47,3,FALSE))," ",VLOOKUP(I116,Eje_Pilar!$C$2:$E$47,3,FALSE)) -> Eje Transversal 4 Gobierno Legitimo, Fortalecimiento Local y Eficiencia | L116: 3-3-1-15-07-45-1531-000 | M116: 10474039805 | N116: KELLYS PATRICIA HERNANDEZ ARROYO | O116: 33250000 | R116: 1 | S116: 16625000 | T116: 49875000 | U116: 47758333 | V116: 2019-02-12 | W116: 2019-02-12 | X116: 2019-09-11 | Y116: 210 | AC116: x | AF116: 0.9575605614 | AH116: =IF(SUMPRODUCT((A$14:A116=A116)*(B$14:B116=B116)*(C$14:C116=C116))>1,0,1) -> 1 | AI116: Contratos de prestación de servicios profesionales y de apoyo a la gestión | AJ116: Contratación directa | AK116: =IFERROR(VLOOKUP(F116,Tipo!$C$12:$C$27,1,FALSE),"NO") -> Prestación de servicios profesionales y de apoyo a la gestión, o para la ejecución de trabajos artísticos que sólo puedan encomendarse a determinadas personas naturales; | AL116: Inversión | AM116: 45
A117: 1042019 | B117: 2019 | C117: FDLSC-CPS-104-2019 | D117: Contratos de prestación de servicios profesionales y de apoyo a la gestión | E117: Contratación directa | F117: Prestación de servicios profesionales y de apoyo a la gestión, o para la ejecución de trabajos artísticos que sólo puedan encomendarse a determinadas personas naturales; | G117: EL CONTRATISTA SE OBLIGA CON EL FONDO DE DESARROLLO LOCAL DE SAN CRISTOBAL A PRESTAR SERVICIOS PROFESIONALES PARA APOYAR JURIDICAMENTE LA EJECUCION DE LAS ACCIONES REQUERIDAS PARA LA DEPURACION DE LAS ACTUACIONES ADMINISTRATIVAS QUE CURSAN EN LA ALCALDIA LOCAL | H117: Inversión | I117: 45 | J117: =IF(ISERROR(VLOOKUP(I117,Eje_Pilar!$C$2:$E$47,2,FALSE))," ",VLOOKUP(I117,Eje_Pilar!$C$2:$E$47,2,FALSE)) -> Gobernanza e influencia local, regional e internacional | K117: =IF(ISERROR(VLOOKUP(I117,Eje_Pilar!$C$2:$E$47,3,FALSE))," ",VLOOKUP(I117,Eje_Pilar!$C$2:$E$47,3,FALSE)) -> Eje Transversal 4 Gobierno Legitimo, Fortalecimiento Local y Eficiencia | L117: 3-3-1-15-07-45-1531-000 | M117: 794059025 | N117: ORLANDO AVENDAÑO RAMIREZ | O117: 33250000 | R117: 1 | S117: 16625000 | T117: 49875000 | U117: 45600000 | V117: 2019-02-12 | W117: 2019-02-13 | X117: 2019-09-12 | Y117: 210 | AC117: x | AF117: 0.9142857143 | AH117: =IF(SUMPRODUCT((A$14:A117=A117)*(B$14:B117=B117)*(C$14:C117=C117))>1,0,1) -> 1 | AI117: Contratos de prestación de servicios profesionales y de apoyo a la gestión | AJ117: Contratación directa | AK117: =IFERROR(VLOOKUP(F117,Tipo!$C$12:$C$27,1,FALSE),"NO") -> Prestación de servicios profesionales y de apoyo a la gestión, o para la ejecución de trabajos artísticos que sólo puedan encomendarse a determinadas personas naturales; | AL117: Inversión | AM117: 45
A118: 1052019 | B118: 2019 | C118: FDLSC-CPS-105-2019 | D118: Contratos de prestación de servicios profesionales y de apoyo a la gestión | E118: Contratación directa | F118: Prestación de servicios profesionales y de apoyo a la gestión, o para la ejecución de trabajos artísticos que sólo puedan encomendarse a determinadas personas naturales; | G118: EL CONTRATISTA SE OBLIGA CON EL FONDO DE DESARROLLO LOCAL DE SAN CRISTOBAL A PRESTAR SERVICIOS PROFESIONALES PARA APOYAR JURIDICAMENTE LA EJECUCION DE LAS ACCIONES REQUERIDAS PARA LA DEPURACION DE LAS ACTUACIONES ADMINISTRATIVAS QUE CURSAN EN LA ALCALDIA LOCAL | H118: Inversión | I118: 45 | J118: =IF(ISERROR(VLOOKUP(I118,Eje_Pilar!$C$2:$E$47,2,FALSE))," ",VLOOKUP(I118,Eje_Pilar!$C$2:$E$47,2,FALSE)) -> Gobernanza e influencia local, regional e internacional | K118: =IF(ISERROR(VLOOKUP(I118,Eje_Pilar!$C$2:$E$47,3,FALSE))," ",VLOOKUP(I118,Eje_Pilar!$C$2:$E$47,3,FALSE)) -> Eje Transversal 4 Gobierno Legitimo, Fortalecimiento Local y Eficiencia | L118: 3-3-1-15-07-45-1531-000 | M118: 417838186 | N118: DORA VICTORIA CASTIBLANCO MENDOZA | O118: 33250000 | R118: 1 | S118: 12666666 | T118: 45916666 | U118: 44333333 | V118: 2019-02-15 | W118: 2019-02-21 | X118: 2019-09-20 | Y118: 210 | AC118: x | AF118: 0.9655172481 | AH118: =IF(SUMPRODUCT((A$14:A118=A118)*(B$14:B118=B118)*(C$14:C118=C118))>1,0,1) -> 1 | AI118: Contratos de prestación de servicios profesionales y de apoyo a la gestión | AJ118: Contratación directa | AK118: =IFERROR(VLOOKUP(F118,Tipo!$C$12:$C$27,1,FALSE),"NO") -> Prestación de servicios profesionales y de apoyo a la gestión, o para la ejecución de trabajos artísticos que sólo puedan encomendarse a determinadas personas naturales; | AL118: Inversión | AM118: 45
A119: 1062019 | B119: 2019 | C119: FDLSC-CPS-106-2019 | D119: Contratos de prestación de servicios profesionales y de apoyo a la gestión | E119: Contratación directa | F119: Prestación de servicios profesionales y de apoyo a la gestión, o para la ejecución de trabajos artísticos que sólo puedan encomendarse a determinadas personas naturales; | G119: EL CONTRATISTA SE OBLIGA CON EL FONDO DE DESARROLLO LOCAL DE SAN CRISTOBAL A PRESTAR SERVICIOS PROFESIONALES PARA APOYAR JURIDICAMENTE LA EJECUCION DE LAS ACCIONES REQUERIDAS PARA LA DEPURACION DE LAS ACTUACIONES ADMINISTRATIVAS QUE CURSAN EN LA ALCALDIA LOCAL | H119: Inversión | I119: 45 | J119: =IF(ISERROR(VLOOKUP(I119,Eje_Pilar!$C$2:$E$47,2,FALSE))," ",VLOOKUP(I119,Eje_Pilar!$C$2:$E$47,2,FALSE)) -> Gobernanza e influencia local, regional e internacional | K119: =IF(ISERROR(VLOOKUP(I119,Eje_Pilar!$C$2:$E$47,3,FALSE))," ",VLOOKUP(I119,Eje_Pilar!$C$2:$E$47,3,FALSE)) -> Eje Transversal 4 Gobierno Legitimo, Fortalecimiento Local y Eficiencia | L119: 3-3-1-15-07-45-1531-000 | M119: 527714862 | N119: ERIKA ANDREA GONZALEZ GARCIA | O119: 33250000 | R119: 1 | S119: 16625000 | T119: 49875000 | U119: 45441666 | V119: 2019-02-13 | W119: 2019-02-12 | X119: 2019-09-11 | Y119: 210 | AC119: x | AF119: 0.9111110977 | AH119: =IF(SUMPRODUCT((A$14:A119=A119)*(B$14:B119=B119)*(C$14:C119=C119))>1,0,1) -> 1 | AI119: Contratos de prestación de servicios profesionales y de apoyo a la gestión | AJ119: Contratación directa | AK119: =IFERROR(VLOOKUP(F119,Tipo!$C$12:$C$27,1,FALSE),"NO") -> Prestación de servicios profesionales y de apoyo a la gestión, o para la ejecución de trabajos artísticos que sólo puedan encomendarse a determinadas personas naturales; | AL119: Inversión | AM119: 45
A120: 1072019 | B120: 2019 | C120: FDLSC-CPS-107-2019 | D120: Contratos de prestación de servicios profesionales y de apoyo a la gestión | E120: Contratación directa | F120: Prestación de servicios profesionales y de apoyo a la gestión, o para la ejecución de trabajos artísticos que sólo puedan encomendarse a determinadas personas naturales; | G120: EL CONTRATISTA SE OBLIGA CON EL FONDO DE DESARROLLO LOCAL DE SAN CRISTOBAL A PRESTAR SERVICIOS PROFESIONALES PARA APOYAR JURIDICAMENTE LA EJECUCION DE LAS ACCIONES REQUERIDAS PARA LA DEPURACION DE LAS ACTUACIONES ADMINISTRATIVAS QUE CURSAN EN LA ALCALDIA LOCAL | H120: Inversión | I120: 45 | J120: =IF(ISERROR(VLOOKUP(I120,Eje_Pilar!$C$2:$E$47,2,FALSE))," ",VLOOKUP(I120,Eje_Pilar!$C$2:$E$47,2,FALSE)) -> Gobernanza e influencia local, regional e internacional | K120: =IF(ISERROR(VLOOKUP(I120,Eje_Pilar!$C$2:$E$47,3,FALSE))," ",VLOOKUP(I120,Eje_Pilar!$C$2:$E$47,3,FALSE)) -> Eje Transversal 4 Gobierno Legitimo, Fortalecimiento Local y Eficiencia | L120: 3-3-1-15-07-45-1531-000 | M120: 801148109 | N120: PEDRO NICOLAS LADINO SALAMANCA | O120: 33250000 | R120: 1 | S120: 14250000 | T120: 47500000 | U120: 8866666 | V120: 2019-02-20 | W120: 2019-02-20 | X120: 2019-09-20 | Y120: 210 | AC120: x | AF120: 0.1866666526 | AH120: =IF(SUMPRODUCT((A$14:A120=A120)*(B$14:B120=B120)*(C$14:C120=C120))>1,0,1) -> 1 | AI120: Contratos de prestación de servicios profesionales y de apoyo a la gestión | AJ120: Contratación directa | AK120: =IFERROR(VLOOKUP(F120,Tipo!$C$12:$C$27,1,FALSE),"NO") -> Prestación de servicios profesionales y de apoyo a la gestión, o para la ejecución de trabajos artísticos que sólo puedan encomendarse a determinadas personas naturales; | AL120: Inversión | AM120: 45
A121: 1082019 | B121: 2019 | C121: FDLSC-CPS-108-2019 | D121: Contratos de prestación de servicios profesionales y de apoyo a la gestión | E121: Contratación directa | F121: Prestación de servicios profesionales y de apoyo a la gestión, o para la ejecución de trabajos artísticos que sólo puedan encomendarse a determinadas personas naturales; | G121: EL CONTRATISTA SE OBLIGA CON EL FONDO DE DESARROLLO LOCAL DE SAN CRISTOBAL A PRESTAR SERVICIOS PROFESIONALES PARA APOYAR JURIDICAMENTE LA EJECUCION DE LAS ACCIONES REQUERIDAS PARA LA DEPURACION DE LAS ACTUACIONES ADMINISTRATIVAS QUE CURSAN EN LA ALCALDIA LOCAL | H121: Inversión | I121: 45 | J121: =IF(ISERROR(VLOOKUP(I121,Eje_Pilar!$C$2:$E$47,2,FALSE))," ",VLOOKUP(I121,Eje_Pilar!$C$2:$E$47,2,FALSE)) -> Gobernanza e influencia local, regional e internacional | K121: =IF(ISERROR(VLOOKUP(I121,Eje_Pilar!$C$2:$E$47,3,FALSE))," ",VLOOKUP(I121,Eje_Pilar!$C$2:$E$47,3,FALSE)) -> Eje Transversal 4 Gobierno Legitimo, Fortalecimiento Local y Eficiencia | L121: 3-3-1-15-07-45-1531-000 | M121: 193250931 | N121: EDGAR ARMANDO GUTIERREZ TORRES | O121: 33250000 | R121: 1 | S121: 16625000 | T121: 49875000 | U121: 33250000 | V121: 2019-02-25 | W121: 2019-02-25 | X121: 2019-09-24 | Y121: 210 | AC121: x | AF121: 0.6666666667 | AH121: =IF(SUMPRODUCT((A$14:A121=A121)*(B$14:B121=B121)*(C$14:C121=C121))>1,0,1) -> 1 | AI121: Contratos de prestación de servicios profesionales y de apoyo a la gestión | AJ121: Contratación directa | AK121: =IFERROR(VLOOKUP(F121,Tipo!$C$12:$C$27,1,FALSE),"NO") -> Prestación de servicios profesionales y de apoyo a la gestión, o para la ejecución de trabajos artísticos que sólo puedan encomendarse a determinadas personas naturales; | AL121: Inversión | AM121: 45
A122: 1092019 | B122: 2019 | C122: FDLSC-CPS-109-2019 | D122: Contratos de prestación de servicios profesionales y de apoyo a la gestión | E122: Contratación directa | F122: Prestación de servicios profesionales y de apoyo a la gestión, o para la ejecución de trabajos artísticos que sólo puedan encomendarse a determinadas personas naturales; | G122: EL CONTRATISTA SE OBLIGA CON EL FONDO DE DESARROLLO LOCAL DE SAN CRISTOBAL A PRESTAR SERVICIOS PROFESIONALES PARA APOYAR JURIDICAMENTE LA EJECUCION DE LAS ACCIONES REQUERIDAS PARA LA DEPURACION DE LAS ACTUACIONES ADMINISTRATIVAS QUE CURSAN EN LA ALCALDIA LOCAL | H122: Inversión | I122: 45 | J122: =IF(ISERROR(VLOOKUP(I122,Eje_Pilar!$C$2:$E$47,2,FALSE))," ",VLOOKUP(I122,Eje_Pilar!$C$2:$E$47,2,FALSE)) -> Gobernanza e influencia local, regional e internacional | K122: =IF(ISERROR(VLOOKUP(I122,Eje_Pilar!$C$2:$E$47,3,FALSE))," ",VLOOKUP(I122,Eje_Pilar!$C$2:$E$47,3,FALSE)) -> Eje Transversal 4 Gobierno Legitimo, Fortalecimiento Local y Eficiencia | L122: 3-3-1-15-07-45-1531-000 | M122: 113390609 | N122: JOSE DE LOS REYES BALLESTEROS BALLESTEROS | O122: 33250000 | R122: 1 | S122: 16625000 | T122: 49875000 | U122: 44333333 | V122: 2019-02-20 | W122: 2019-02-21 | X122: 2019-09-20 | Y122: 210 | AC122: x | AF122: 0.8888888822 | AH122: =IF(SUMPRODUCT((A$14:A122=A122)*(B$14:B122=B122)*(C$14:C122=C122))>1,0,1) -> 1 | AI122: Contratos de prestación de servicios profesionales y de apoyo a la gestión | AJ122: Contratación directa | AK122: =IFERROR(VLOOKUP(F122,Tipo!$C$12:$C$27,1,FALSE),"NO") -> Prestación de servicios profesionales y de apoyo a la gestión, o para la ejecución de trabajos artísticos que sólo puedan encomendarse a determinadas personas naturales; | AL122: Inversión | AM122: 45
A123: 1102019 | B123: 2019 | C123: FDLSC-CPS-110-2019 | D123: Contratos de prestación de servicios profesionales y de apoyo a la gestión | E123: Contratación directa | F123: Prestación de servicios profesionales y de apoyo a la gestión, o para la ejecución de trabajos artísticos que sólo puedan encomendarse a determinadas personas naturales; | G123: EL CONTRATISTA SE OBLIGA CON EL FONDO DE DESARROLLO LOCAL DE SAN CRISTOBAL A PRESTAR SERVICIOS PROFESIONALES PARA APOYAR JURIDICAMENTE LA EJECUCION DE LAS ACCIONES REQUERIDAS PARA LA DEPURACION DE LAS ACTUACIONES ADMINISTRATIVAS QUE CURSAN EN LA ALCALDIA LOCAL | H123: Inversión | I123: 45 | J123: =IF(ISERROR(VLOOKUP(I123,Eje_Pilar!$C$2:$E$47,2,FALSE))," ",VLOOKUP(I123,Eje_Pilar!$C$2:$E$47,2,FALSE)) -> Gobernanza e influencia local, regional e internacional | K123: =IF(ISERROR(VLOOKUP(I123,Eje_Pilar!$C$2:$E$47,3,FALSE))," ",VLOOKUP(I123,Eje_Pilar!$C$2:$E$47,3,FALSE)) -> Eje Transversal 4 Gobierno Legitimo, Fortalecimiento Local y Eficiencia | L123: 3-3-1-15-07-45-1531-000 | M123: 525409174 | N123: ANLLY PAOLA NIETO MOLINA | O123: 38000000 | T123: 38000000 | U123: 34833333 | V123: 2019-05-20 | W123: 2019-05-20 | X123: 2020-01-09 | Y123: 210 | AC123: x | AF123: 0.9166666579 | AH123: =IF(SUMPRODUCT((A$14:A123=A123)*(B$14:B123=B123)*(C$14:C123=C123))>1,0,1) -> 1 | AI123: Contratos de prestación de servicios profesionales y de apoyo a la gestión | AJ123: Contratación directa | AK123: =IFERROR(VLOOKUP(F123,Tipo!$C$12:$C$27,1,FALSE),"NO") -> Prestación de servicios profesionales y de apoyo a la gestión, o para la ejecución de trabajos artísticos que sólo puedan encomendarse a determinadas personas naturales; | AL123: Inversión | AM123: 45
A124: 1122019 | B124: 2019 | C124: FDLSC-CPS-112-2019 | D124: Contratos de prestación de servicios profesionales y de apoyo a la gestión | E124: Contratación directa | F124: Prestación de servicios profesionales y de apoyo a la gestión, o para la ejecución de trabajos artísticos que sólo puedan encomendarse a determinadas personas naturales; | G124: EL CONTRATISTA SE OBLIGA CON EL FONDO DE DESARROLLO LOCAL DE SAN CRISTOBAL A PRESTAR SERVICIOS PROFESIONALES PARA APOYAR TECNICAMENTE LAS DISTINTAS ETAPAS DE LOS PROCESOS DE COMPETENCIA DE LA ALCALDIA LOCAL PARA LA DEPURACION DE ACTUACIONES ADMINISTRATIVAS | H124: Inversión | I124: 45 | J124: =IF(ISERROR(VLOOKUP(I124,Eje_Pilar!$C$2:$E$47,2,FALSE))," ",VLOOKUP(I124,Eje_Pilar!$C$2:$E$47,2,FALSE)) -> Gobernanza e influencia local, regional e internacional | K124: =IF(ISERROR(VLOOKUP(I124,Eje_Pilar!$C$2:$E$47,3,FALSE))," ",VLOOKUP(I124,Eje_Pilar!$C$2:$E$47,3,FALSE)) -> Eje Transversal 4 Gobierno Legitimo, Fortalecimiento Local y Eficiencia | L124: 3-3-1-15-07-45-1531-000 | M124: 10238872989 | N124: JUAN PABLO ORTEGA WALTEROS | O124: 37800000 | R124: 1 | S124: 18900000 | T124: 56700000 | U124: 23305000 | V124: 2019-02-12 | W124: 2019-02-13 | X124: 2020-09-12 | Y124: 210 | AC124: x | AF124: 0.4110229277 | AH124: =IF(SUMPRODUCT((A$14:A124=A124)*(B$14:B124=B124)*(C$14:C124=C124))>1,0,1) -> 1 | AI124: Contratos de prestación de servicios profesionales y de apoyo a la gestión | AJ124: Contratación directa | AK124: =IFERROR(VLOOKUP(F124,Tipo!$C$12:$C$27,1,FALSE),"NO") -> Prestación de servicios profesionales y de apoyo a la gestión, o para la ejecución de trabajos artísticos que sólo puedan encomendarse a determinadas personas naturales; | AL124: Inversión | AM124: 45
A125: 1132019 | B125: 2019 | C125: FDLSC-CPS-113-2019 | D125: Contratos de prestación de servicios profesionales y de apoyo a la gestión | E125: Contratación directa | F125: Prestación de servicios profesionales y de apoyo a la gestión, o para la ejecución de trabajos artísticos que sólo puedan encomendarse a determinadas personas naturales; | G125: EL CONTRATISTA SE OBLIGA CON EL FONDO DE DESARROLLO LOCAL DE SAN CRISTOBAL A PRESTAR SERVICIOS PROFESIONALES PARA APOYAR TECNICAMENTE LAS DISTINTAS ETAPAS DE LOS PROCESOS DE COMPETENCIA DE LA ALCALDIA LOCAL PARA LA DEPURACION DE ACTUACIONES ADMINISTRATIVAS | H125: Inversión | I125: 45 | J125: =IF(ISERROR(VLOOKUP(I125,Eje_Pilar!$C$2:$E$47,2,FALSE))," ",VLOOKUP(I125,Eje_Pilar!$C$2:$E$47,2,FALSE)) -> Gobernanza e influencia local, regional e internacional | K125: =IF(ISERROR(VLOOKUP(I125,Eje_Pilar!$C$2:$E$47,3,FALSE))," ",VLOOKUP(I125,Eje_Pilar!$C$2:$E$47,3,FALSE)) -> Eje Transversal 4 Gobierno Legitimo, Fortalecimiento Local y Eficiencia | L125: 3-3-1-15-07-45-1531-000 | M125: 71423260 | N125: VICTOR JOSE MENDOZA MANJARRES | O125: 37800000 | R125: 1 | S125: 18900000 | T125: 56700000 | U125: 52020000 | V125: 2019-02-12 | W125: 2019-02-12 | X125: 2020-01-11 | Y125: 210 | AC125: x | AF125: 0.9174603175 | AH125: =IF(SUMPRODUCT((A$14:A125=A125)*(B$14:B125=B125)*(C$14:C125=C125))>1,0,1) -> 1 | AI125: Contratos de prestación de servicios profesionales y de apoyo a la gestión | AJ125: Contratación directa | AK125: =IFERROR(VLOOKUP(F125,Tipo!$C$12:$C$27,1,FALSE),"NO") -> Prestación de servicios profesionales y de apoyo a la gestión, o para la ejecución de trabajos artísticos que sólo puedan encomendarse a determinadas personas naturales; | AL125: Inversión | AM125: 45
A126: 1142019 | B126: 2019 | C126: FDLSC-CPS-114-2019 | D126: Contratos de prestación de servicios profesionales y de apoyo a la gestión | E126: Contratación directa | F126: Prestación de servicios profesionales y de apoyo a la gestión, o para la ejecución de trabajos artísticos que sólo puedan encomendarse a determinadas personas naturales; | G126: EL CONTRATISTA SE OBLIGA CON EL FONDO DE DESARROLLO LOCAL DE SAN CRISTOBAL A PRESTAR SERVICIOS PROFESIONALES PARA APOYAR TECNICAMENTE LAS DISTINTAS ETAPAS DE LOS PROCESOS DE COMPETENCIA DE LA ALCALDIA LOCAL PARA LA DEPURACION DE ACTUACIONES ADMINISTRATIVAS | H126: Inversión | I126: 45 | J126: =IF(ISERROR(VLOOKUP(I126,Eje_Pilar!$C$2:$E$47,2,FALSE))," ",VLOOKUP(I126,Eje_Pilar!$C$2:$E$47,2,FALSE)) -> Gobernanza e influencia local, regional e internacional | K126: =IF(ISERROR(VLOOKUP(I126,Eje_Pilar!$C$2:$E$47,3,FALSE))," ",VLOOKUP(I126,Eje_Pilar!$C$2:$E$47,3,FALSE)) -> Eje Transversal 4 Gobierno Legitimo, Fortalecimiento Local y Eficiencia | L126: 3-3-1-15-07-45-1531-000 | M126: 524842840 | N126: LILIANA ANDREA VASQUEZ VALENCIA | O126: 37800000 | R126: 1 | S126: 18900000 | T126: 56700000 | U126: 37800000 | V126: 2019-02-12 | W126: 2019-02-12 | X126: 2019-09-11 | Y126: 210 | AC126: x | AF126: 0.6666666667 | AH126: =IF(SUMPRODUCT((A$14:A126=A126)*(B$14:B126=B126)*(C$14:C126=C126))>1,0,1) -> 1 | AI126: Contratos de prestación de servicios profesionales y de apoyo a la gestión | AJ126: Contratación directa | AK126: =IFERROR(VLOOKUP(F126,Tipo!$C$12:$C$27,1,FALSE),"NO") -> Prestación de servicios profesionales y de apoyo a la gestión, o para la ejecución de trabajos artísticos que sólo puedan encomendarse a determinadas personas naturales; | AL126: Inversión | AM126: 45
A127: 1152019 | B127: 2019 | C127: FDLSC-CPS-115-2019 | D127: Contratos de prestación de servicios profesionales y de apoyo a la gestión | E127: Contratación directa | F127: Prestación de servicios profesionales y de apoyo a la gestión, o para la ejecución de trabajos artísticos que sólo puedan encomendarse a determinadas personas naturales; | G127: EL CONTRATISTA SE OBLIGA CON EL FONDO DE DESARROLLO LOCAL DE SAN CRISTOBAL A PRESTAR SERVICIOS PROFESIONALES PARA APOYAR TECNICAMENTE LAS DISTINTAS ETAPAS DE LOS PROCESOS DE COMPETENCIA DE LA ALCALDIA LOCAL PARA LA DEPURACION DE ACTUACIONES ADMINISTRATIVAS | H127: Inversión | I127: 45 | J127: =IF(ISERROR(VLOOKUP(I127,Eje_Pilar!$C$2:$E$47,2,FALSE))," ",VLOOKUP(I127,Eje_Pilar!$C$2:$E$47,2,FALSE)) -> Gobernanza e influencia local, regional e internacional | K127: =IF(ISERROR(VLOOKUP(I127,Eje_Pilar!$C$2:$E$47,3,FALSE))," ",VLOOKUP(I127,Eje_Pilar!$C$2:$E$47,3,FALSE)) -> Eje Transversal 4 Gobierno Legitimo, Fortalecimiento Local y Eficiencia | L127: 3-3-1-15-07-45-1531-000 | M127: 10305277784 | N127: NELSON FABIAN QUINTERO LOZANO | O127: 37800000 | R127: 1 | S127: 18900000 | T127: 56700000 | U127: 37800000 | V127: 2019-02-12 | W127: 2019-02-12 | X127: 2019-09-11 | Y127: 210 | AC127: x | AF127: 0.6666666667 | AH127: =IF(SUMPRODUCT((A$14:A127=A127)*(B$14:B127=B127)*(C$14:C127=C127))>1,0,1) -> 1 | AI127: Contratos de prestación de servicios profesionales y de apoyo a la gestión | AJ127: Contratación directa | AK127: =IFERROR(VLOOKUP(F127,Tipo!$C$12:$C$27,1,FALSE),"NO") -> Prestación de servicios profesionales y de apoyo a la gestión, o para la ejecución de trabajos artísticos que sólo puedan encomendarse a determinadas personas naturales; | AL127: Inversión | AM127: 45
A128: 1162019 | B128: 2019 | C128: FDLSC-CPS-116-2019 | D128: Contratos de prestación de servicios profesionales y de apoyo a la gestión | E128: Contratación directa | F128: Prestación de servicios profesionales y de apoyo a la gestión, o para la ejecución de trabajos artísticos que sólo puedan encomendarse a determinadas personas naturales; | G128: EL CONTRATISTA SE OBLIGA CON EL FONDO DE DESARROLLO LOCAL DE SAN CRISTOBAL A PRESTAR SERVICIOS PROFESIONALES PARA APOYAR TECNICAMENTE LAS DISTINTAS ETAPAS DE LOS PROCESOS DE COMPETENCIA DE LA ALCALDIA LOCAL PARA LA DEPURACION DE ACTUACIONES ADMINISTRATIVAS | H128: Inversión | I128: 45 | J128: =IF(ISERROR(VLOOKUP(I128,Eje_Pilar!$C$2:$E$47,2,FALSE))," ",VLOOKUP(I128,Eje_Pilar!$C$2:$E$47,2,FALSE)) -> Gobernanza e influencia local, regional e internacional | K128: =IF(ISERROR(VLOOKUP(I128,Eje_Pilar!$C$2:$E$47,3,FALSE))," ",VLOOKUP(I128,Eje_Pilar!$C$2:$E$47,3,FALSE)) -> Eje Transversal 4 Gobierno Legitimo, Fortalecimiento Local y Eficiencia | L128: 3-3-1-15-07-45-1531-000 | M128: 795828561 | N128: FREDY FRANKY GARZON SALAS | O128: 37800000 | R128: 1 | S128: 18900000 | T128: 56700000 | U128: 37800000 | V128: 2019-02-12 | W128: 2019-02-12 | X128: 2019-09-11 | Y128: 210 | AC128: x | AF128: 0.6666666667 | AH128: =IF(SUMPRODUCT((A$14:A128=A128)*(B$14:B128=B128)*(C$14:C128=C128))>1,0,1) -> 1 | AI128: Contratos de prestación de servicios profesionales y de apoyo a la gestión | AJ128: Contratación directa | AK128: =IFERROR(VLOOKUP(F128,Tipo!$C$12:$C$27,1,FALSE),"NO") -> Prestación de servicios profesionales y de apoyo a la gestión, o para la ejecución de trabajos artísticos que sólo puedan encomendarse a determinadas personas naturales; | AL128: Inversión | AM128: 45
A129: 1172019 | B129: 2019 | C129: FDLSC-CPS-117-2019 | D129: Contratos de prestación de servicios profesionales y de apoyo a la gestión | E129: Contratación directa | F129: Prestación de servicios profesionales y de apoyo a la gestión, o para la ejecución de trabajos artísticos que sólo puedan encomendarse a determinadas personas naturales; | G129: EL CONTRATISTA SE OBLIGA CON EL FONDO DE DESARROLLO LOCAL DE SAN CRISTOBAL A PRESTAR SERVICIOS PROFESIONALES PARA APOYAR TECNICAMENTE LAS DISTINTAS ETAPAS DE LOS PROCESOS DE COMPETENCIA DE LA ALCALDIA LOCAL PARA LA DEPURACION DE ACTUACIONES ADMINISTRATIVAS | H129: Inversión | I129: 45 | J129: =IF(ISERROR(VLOOKUP(I129,Eje_Pilar!$C$2:$E$47,2,FALSE))," ",VLOOKUP(I129,Eje_Pilar!$C$2:$E$47,2,FALSE)) -> Gobernanza e influencia local, regional e internacional | K129: =IF(ISERROR(VLOOKUP(I129,Eje_Pilar!$C$2:$E$47,3,FALSE))," ",VLOOKUP(I129,Eje_Pilar!$C$2:$E$47,3,FALSE)) -> Eje Transversal 4 Gobierno Legitimo, Fortalecimiento Local y Eficiencia | L129: 3-3-1-15-07-45-1531-000 | M129: 798071182 | N129: JONATHAN ANDRES MORENO MORALES | O129: 37800000 | R129: 1 | S129: 18900000 | T129: 56700000 | U129: 8820000 | V129: 2019-02-12 | W129: 2019-02-12 | X129: 2019-09-11 | Y129: 210 | AC129: x | AF129: 0.1555555556 | AH129: =IF(SUMPRODUCT((A$14:A129=A129)*(B$14:B129=B129)*(C$14:C129=C129))>1,0,1) -> 1 | AI129: Contratos de prestación de servicios profesionales y de apoyo a la gestión | AJ129: Contratación directa | AK129: =IFERROR(VLOOKUP(F129,Tipo!$C$12:$C$27,1,FALSE),"NO") -> Prestación de servicios profesionales y de apoyo a la gestión, o para la ejecución de trabajos artísticos que sólo puedan encomendarse a determinadas personas naturales; | AL129: Inversión | AM129: 45
A130: 1182019 | B130: 2019 | C130: FDLSC-CPS-118-2019 | D130: Contratos de prestación de servicios profesionales y de apoyo a la gestión | E130: Contratación directa | F130: Prestación de servicios profesionales y de apoyo a la gestión, o para la ejecución de trabajos artísticos que sólo puedan encomendarse a determinadas personas naturales; | G130: EL CONTRATISTA SE OBLIGA PARA CON EL FONDO DE DESARROLLO LOCAL DE SAN CRISTOBAL A APOYAR LA GESTION DOCUMENTAL, ACOMPAÑANDO AL EQUIPO JURIDICO DE DEPURACION EN LAS LABORES OPERATIVAS QUE GENERA EL PROCESO DE IMPULSO DE LAS ACTUACIONES ADMINISTRATIVAS EXISTENTES EN LADIFERENTES ALCALDIA LOCAL | H130: Inversión | I130: 45 | J130: =IF(ISERROR(VLOOKUP(I130,Eje_Pilar!$C$2:$E$47,2,FALSE))," ",VLOOKUP(I130,Eje_Pilar!$C$2:$E$47,2,FALSE)) -> Gobernanza e influencia local, regional e internacional | K130: =IF(ISERROR(VLOOKUP(I130,Eje_Pilar!$C$2:$E$47,3,FALSE))," ",VLOOKUP(I130,Eje_Pilar!$C$2:$E$47,3,FALSE)) -> Eje Transversal 4 Gobierno Legitimo, Fortalecimiento Local y Eficiencia | L130: 3-3-1-15-07-45-1531-000 | M130: 796852271 | N130: JULIO CESAR OTALORA NEISA | O130: 15820000 | R130: 1 | S130: 7910000 | T130: 23730000 | U130: 2260000 | V130: 2019-02-13 | W130: 2019-02-13 | X130: 2019-09-12 | Y130: 210 | AC130: x | AF130: 0.09523809524 | AH130: =IF(SUMPRODUCT((A$14:A130=A130)*(B$14:B130=B130)*(C$14:C130=C130))>1,0,1) -> 1 | AI130: Contratos de prestación de servicios profesionales y de apoyo a la gestión | AJ130: Contratación directa | AK130: =IFERROR(VLOOKUP(F130,Tipo!$C$12:$C$27,1,FALSE),"NO") -> Prestación de servicios profesionales y de apoyo a la gestión, o para la ejecución de trabajos artísticos que sólo puedan encomendarse a determinadas personas naturales; | AL130: Inversión | AM130: 45
A131: 1192019 | B131: 2019 | C131: FDLSC-CPS-119-2019 | D131: Contratos de prestación de servicios profesionales y de apoyo a la gestión | E131: Contratación directa | F131: Prestación de servicios profesionales y de apoyo a la gestión, o para la ejecución de trabajos artísticos que sólo puedan encomendarse a determinadas personas naturales; | G131: EL CONTRATISTA SE OBLIGA CON EL FONDO DE DESARROLLO LOCAL DE SAN CRISTOBAL A PRESTAR SERVICIOS PROFESIONALES ESPECIALIZADOS EN LAS ETAPAS CONTRACTUALES Y POSCONTRACTUALES - LIQUIDACIONES DE ACUERDO AL PLAN DE ADQUISICIONES Y AL PLAN DE CONTRATACION | H131: Inversión | I131: 45 | J131: =IF(ISERROR(VLOOKUP(I131,Eje_Pilar!$C$2:$E$47,2,FALSE))," ",VLOOKUP(I131,Eje_Pilar!$C$2:$E$47,2,FALSE)) -> Gobernanza e influencia local, regional e internacional | K131: =IF(ISERROR(VLOOKUP(I131,Eje_Pilar!$C$2:$E$47,3,FALSE))," ",VLOOKUP(I131,Eje_Pilar!$C$2:$E$47,3,FALSE)) -> Eje Transversal 4 Gobierno Legitimo, Fortalecimiento Local y Eficiencia | L131: 3-3-1-15-07-45-1531-000 | M131: 519803068 | N131: NUBIA ROCIO POVEDA PARRA | O131: 88000000 | R131: 1 | S131: 5333333 | T131: 93333333 | U131: 85333333 | V131: 2019-02-11 | W131: 2019-02-11 | X131: 2020-01-10 | Y131: 330 | AC131: x | AF131: 0.914285714 | AH131: =IF(SUMPRODUCT((A$14:A131=A131)*(B$14:B131=B131)*(C$14:C131=C131))>1,0,1) -> 1 | AI131: Contratos de prestación de servicios profesionales y de apoyo a la gestión | AJ131: Contratación directa | AK131: =IFERROR(VLOOKUP(F131,Tipo!$C$12:$C$27,1,FALSE),"NO") -> Prestación de servicios profesionales y de apoyo a la gestión, o para la ejecución de trabajos artísticos que sólo puedan encomendarse a determinadas personas naturales; | AL131: Inversión | AM131: 45
A132: 1202019 | B132: 2019 | C132: FDLSC-CPS-120-2019 | D132: Contratos de prestación de servicios profesionales y de apoyo a la gestión | E132: Contratación directa | F132: Prestación de servicios profesionales y de apoyo a la gestión, o para la ejecución de trabajos artísticos que sólo puedan encomendarse a determinadas personas naturales; | G132: EL CONTRATISTA SE OBLIGA CON EL FONDO DE DESARROLLO LOCAL DE SAN CRISTOBAL A PRESTAR SERVICIOS PROFESIONALES PARA APOYAR JURIDICAMENTE LA EJECUCIÓN DE LAS ACCIONES REQUERIDAS PARA LA DEPURACIÓN DE LAS ACTUACIONES ADMINISTRATIVAS QUE CURSAN EN LA ALCALDÍA LOCAL EN MATERIA DE ESPACIO PUBLICO Y ESTABLECIMIENTOS DE COMERCIO | H132: Inversión | I132: 45 | J132: =IF(ISERROR(VLOOKUP(I132,Eje_Pilar!$C$2:$E$47,2,FALSE))," ",VLOOKUP(I132,Eje_Pilar!$C$2:$E$47,2,FALSE)) -> Gobernanza e influencia local, regional e internacional | K132: =IF(ISERROR(VLOOKUP(I132,Eje_Pilar!$C$2:$E$47,3,FALSE))," ",VLOOKUP(I132,Eje_Pilar!$C$2:$E$47,3,FALSE)) -> Eje Transversal 4 Gobierno Legitimo, Fortalecimiento Local y Eficiencia | L132: 3-3-1-15-07-45-1531-000 | M132: 10324395797 | N132: ANDERSON GUTIERREZ MEJIA | O132: 63800000 | R132: 1 | S132: 3286667 | T132: 67086667 | U132: 61479999 | V132: 2019-02-13 | W132: 2019-02-14 | X132: 2020-01-13 | Y132: 330 | AC132: x | AF132: 0.9164264935 | AH132: =IF(SUMPRODUCT((A$14:A132=A132)*(B$14:B132=B132)*(C$14:C132=C132))>1,0,1) -> 1 | AI132: Contratos de prestación de servicios profesionales y de apoyo a la gestión | AJ132: Contratación directa | AK132: =IFERROR(VLOOKUP(F132,Tipo!$C$12:$C$27,1,FALSE),"NO") -> Prestación de servicios profesionales y de apoyo a la gestión, o para la ejecución de trabajos artísticos que sólo puedan encomendarse a determinadas personas naturales; | AL132: Inversión | AM132: 45
A133: 1212019 | B133: 2019 | C133: FDLSC-CPS-121-2019 | D133: Contratos de prestación de servicios profesionales y de apoyo a la gestión | E133: Contratación directa | F133: Prestación de servicios profesionales y de apoyo a la gestión, o para la ejecución de trabajos artísticos que sólo puedan encomendarse a determinadas personas naturales; | G133: EL CONTRATISTA SE OBLIGA CON EL FONDO DE DESARROLLO LOCAL DE SAN CRISTOBAL A PRESTAR SERVICIOS PROFESIONALES PARA APOYAR JURIDICAMENTE LA EJECUCIÓN DE LAS ACCIONES REQUERIDAS PARA LA DEPURACIÓN DE LAS ACTUACIONES ADMINISTRATIVAS QUE CURSAN EN LA ALCALDÍA LOCAL EN MATERIA DE ESPACIO PUBLICO Y ESTABLECIMIENTOS DE COMERCIO | H133: Inversión | I133: 45 | J133: =IF(ISERROR(VLOOKUP(I133,Eje_Pilar!$C$2:$E$47,2,FALSE))," ",VLOOKUP(I133,Eje_Pilar!$C$2:$E$47,2,FALSE)) -> Gobernanza e influencia local, regional e internacional | K133: =IF(ISERROR(VLOOKUP(I133,Eje_Pilar!$C$2:$E$47,3,FALSE))," ",VLOOKUP(I133,Eje_Pilar!$C$2:$E$47,3,FALSE)) -> Eje Transversal 4 Gobierno Legitimo, Fortalecimiento Local y Eficiencia | L133: 3-3-1-15-07-45-1531-000 | M133: 797578691 | N133: VLADIMIR CARRILLO PALLARES | O133: 63800000 | T133: 63800000 | U133: 52200000 | V133: 2019-02-26 | W133: 2019-02-25 | X133: 2020-01-24 | Y133: 330 | AC133: x | AF133: 0.8181818182 | AH133: =IF(SUMPRODUCT((A$14:A133=A133)*(B$14:B133=B133)*(C$14:C133=C133))>1,0,1) -> 1 | AI133: Contratos de prestación de servicios profesionales y de apoyo a la gestión | AJ133: Contratación directa | AK133: =IFERROR(VLOOKUP(F133,Tipo!$C$12:$C$27,1,FALSE),"NO") -> Prestación de servicios profesionales y de apoyo a la gestión, o para la ejecución de trabajos artísticos que sólo puedan encomendarse a determinadas personas naturales; | AL133: Inversión | AM133: 45
A134: 1222019 | B134: 2019 | C134: FDLSC-CPS-122-2019 | D134: Contratos de prestación de servicios profesionales y de apoyo a la gestión | E134: Contratación directa | F134: Prestación de servicios profesionales y de apoyo a la gestión, o para la ejecución de trabajos artísticos que sólo puedan encomendarse a determinadas personas naturales; | G134: PRESTACION DE SERVICIOS PROFESIONALES PARA APOYAR LA CONSTRUCCION, DESARROLLO, IMPLEMENTACIÓN Y EVALUACION DE LA ESTRATEGIA INSTITUCIONAL PARA LA PREVENCION DE LA VIOLENCIA CONTRA NIÑOS Y NIÑAS Y LA PROMOCIÓN DEL BUEN TRATO EN LAS FAMILIAS, EN EL MARCO DEL PROYECTO 1492 ¿NIÑOS Y NIÑAS SANOS Y FELICES EN SAN CRISTÓBAL¿. | H134: Inversión | I134: 2 | J134: =IF(ISERROR(VLOOKUP(I134,Eje_Pilar!$C$2:$E$47,2,FALSE))," ",VLOOKUP(I134,Eje_Pilar!$C$2:$E$47,2,FALSE)) -> Desarrollo integral desde la gestación hasta la adolescencia | K134: =IF(ISERROR(VLOOKUP(I134,Eje_Pilar!$C$2:$E$47,3,FALSE))," ",VLOOKUP(I134,Eje_Pilar!$C$2:$E$47,3,FALSE)) -> Pilar 1 Igualdad de Calidad de Vida | L134: 3-3-1-15-01-02-1492-000 | M134: 10324194602 | N134: MARTHA ESPERANZA ROMERO NIÑO | O134: 27600000 | R134: 1 | S134: 13800000 | T134: 41400000 | U134: 41400000 | V134: 2019-02-13 | W134: 2019-02-13 | X134: 2019-08-12 | Y134: 180 | AC134: x | AF134: 1 | AH134: =IF(SUMPRODUCT((A$14:A134=A134)*(B$14:B134=B134)*(C$14:C134=C134))>1,0,1) -> 1 | AI134: Contratos de prestación de servicios profesionales y de apoyo a la gestión | AJ134: Contratación directa | AK134: =IFERROR(VLOOKUP(F134,Tipo!$C$12:$C$27,1,FALSE),"NO") -> Prestación de servicios profesionales y de apoyo a la gestión, o para la ejecución de trabajos artísticos que sólo puedan encomendarse a determinadas personas naturales; | AL134: Inversión | AM134: 2
A135: 1232019 | B135: 2019 | C135: FDLSC-CPS-123-2019 | D135: Contratos de prestación de servicios profesionales y de apoyo a la gestión | E135: Contratación directa | F135: Prestación de servicios profesionales y de apoyo a la gestión, o para la ejecución de trabajos artísticos que sólo puedan encomendarse a determinadas personas naturales; | G135: PRESTACION DE SERVICIOS PROFESIONALES PARA APOYAR LA CONSTRUCCION, DESARROLLO, IMPLEMENTACIÓN Y EVALUACION DE LA ESTRATEGIA INSTITUCIONAL PARA LA PREVENCION DE LA VIOLENCIA CONTRA NIÑOS Y NIÑAS Y LA PROMOCIÓN DEL BUEN TRATO EN LAS FAMILIAS, EN EL MARCO DEL PROYECTO 1492 ¿NIÑOS Y NIÑAS SANOS Y FELICES EN SAN CRISTÓBAL¿. | H135: Inversión | I135: 2 | J135: =IF(ISERROR(VLOOKUP(I135,Eje_Pilar!$C$2:$E$47,2,FALSE))," ",VLOOKUP(I135,Eje_Pilar!$C$2:$E$47,2,FALSE)) -> Desarrollo integral desde la gestación hasta la adolescencia | K135: =IF(ISERROR(VLOOKUP(I135,Eje_Pilar!$C$2:$E$47,3,FALSE))," ",VLOOKUP(I135,Eje_Pilar!$C$2:$E$47,3,FALSE)) -> Pilar 1 Igualdad de Calidad de Vida | L135: 3-3-1-15-01-02-1492-000 | M135: 809135942 | N135: CARLOS ALEXANDER CASTILLO MUÑOZ | O135: 27600000 | T135: 27600000 | U135: 24993333 | V135: 2019-02-13 | W135: 2019-02-13 | X135: 2019-08-12 | Y135: 180 | AD135: x | AF135: 0.9055555435 | AH135: =IF(SUMPRODUCT((A$14:A135=A135)*(B$14:B135=B135)*(C$14:C135=C135))>1,0,1) -> 1 | AI135: Contratos de prestación de servicios profesionales y de apoyo a la gestión | AJ135: Contratación directa | AK135: =IFERROR(VLOOKUP(F135,Tipo!$C$12:$C$27,1,FALSE),"NO") -> Prestación de servicios profesionales y de apoyo a la gestión, o para la ejecución de trabajos artísticos que sólo puedan encomendarse a determinadas personas naturales; | AL135: Inversión | AM135: 2
A136: 1242019 | B136: 2019 | C136: FDLSC-CPS-124-2019 | D136: Contratos de prestación de servicios profesionales y de apoyo a la gestión | E136: Contratación directa | F136: Prestación de servicios profesionales y de apoyo a la gestión, o para la ejecución de trabajos artísticos que sólo puedan encomendarse a determinadas personas naturales; | G136: PRESTACION DE SERVICIOS PROFESIONALES PARA APOYAR LA CONSTRUCCION, DESARROLLO, IMPLEMENTACIÓN Y EVALUACION DE LA ESTRATEGIA INSTITUCIONAL PARA LA PREVENCION DE LA VIOLENCIA CONTRA NIÑOS Y NIÑAS Y LA PROMOCIÓN DEL BUEN TRATO EN LAS FAMILIAS, EN EL MARCO DEL PROYECTO 1492 ¿NIÑOS Y NIÑAS SANOS Y FELICES EN SAN CRISTÓBAL¿. | H136: Inversión | I136: 2 | J136: =IF(ISERROR(VLOOKUP(I136,Eje_Pilar!$C$2:$E$47,2,FALSE))," ",VLOOKUP(I136,Eje_Pilar!$C$2:$E$47,2,FALSE)) -> Desarrollo integral desde la gestación hasta la adolescencia | K136: =IF(ISERROR(VLOOKUP(I136,Eje_Pilar!$C$2:$E$47,3,FALSE))," ",VLOOKUP(I136,Eje_Pilar!$C$2:$E$47,3,FALSE)) -> Pilar 1 Igualdad de Calidad de Vida | L136: 3-3-1-15-01-02-1492-000 | M136: 528968253 | N136: YENNY MARCELA JIMENEZ GOMEZ | O136: 27600000 | R136: 1 | S136: 13800000 | T136: 41400000 | U136: 27600000 | V136: 2019-02-27 | W136: 2019-03-01 | X136: 2019-08-31 | Y136: 180 | AC136: x | AF136: 0.6666666667 | AH136: =IF(SUMPRODUCT((A$14:A136=A136)*(B$14:B136=B136)*(C$14:C136=C136))>1,0,1) -> 1 | AI136: Contratos de prestación de servicios profesionales y de apoyo a la gestión | AJ136: Contratación directa | AK136: =IFERROR(VLOOKUP(F136,Tipo!$C$12:$C$27,1,FALSE),"NO") -> Prestación de servicios profesionales y de apoyo a la gestión, o para la ejecución de trabajos artísticos que sólo puedan encomendarse a determinadas personas naturales; | AL136: Inversión | AM136: 2
A137: 1252019 | B137: 2019 | C137: FDLSC-CPS-125-2019 | D137: Contratos de prestación de servicios profesionales y de apoyo a la gestión | E137: Contratación directa | F137: Prestación de servicios profesionales y de apoyo a la gestión, o para la ejecución de trabajos artísticos que sólo puedan encomendarse a determinadas personas naturales; | G137: PRESTACION DE SERVICIOS PROFESIONALES PARA APOYAR LA CONSTRUCCION, DESARROLLO, IMPLEMENTACIÓN Y EVALUACION DE LA ESTRATEGIA INSTITUCIONAL PARA LA PREVENCION DE LA VIOLENCIA CONTRA NIÑOS Y NIÑAS Y LA PROMOCIÓN DEL BUEN TRATO EN LAS FAMILIAS, EN EL MARCO DEL PROYECTO 1492 ¿NIÑOS Y NIÑAS SANOS Y FELICES EN SAN CRISTÓBAL¿. | H137: Inversión | I137: 2 | J137: =IF(ISERROR(VLOOKUP(I137,Eje_Pilar!$C$2:$E$47,2,FALSE))," ",VLOOKUP(I137,Eje_Pilar!$C$2:$E$47,2,FALSE)) -> Desarrollo integral desde la gestación hasta la adolescencia | K137: =IF(ISERROR(VLOOKUP(I137,Eje_Pilar!$C$2:$E$47,3,FALSE))," ",VLOOKUP(I137,Eje_Pilar!$C$2:$E$47,3,FALSE)) -> Pilar 1 Igualdad de Calidad de Vida | L137: 3-3-1-15-01-02-1492-000 | M137: 10238671828 | N137: MARIA ANGELICA RIVERA CAMARGO | O137: 27600000 | R137: 1 | S137: 13800000 | T137: 41400000 | U137: 27600000 | V137: 2019-02-21 | W137: 2019-02-21 | X137: 2020-08-20 | Y137: 180 | AC137: x | AF137: 0.6666666667 | AH137: =IF(SUMPRODUCT((A$14:A137=A137)*(B$14:B137=B137)*(C$14:C137=C137))>1,0,1) -> 1 | AI137: Contratos de prestación de servicios profesionales y de apoyo a la gestión | AJ137: Contratación directa | AK137: =IFERROR(VLOOKUP(F137,Tipo!$C$12:$C$27,1,FALSE),"NO") -> Prestación de servicios profesionales y de apoyo a la gestión, o para la ejecución de trabajos artísticos que sólo puedan encomendarse a determinadas personas naturales; | AL137: Inversión | AM137: 2
A138: 1262019 | B138: 2019 | C138: FDLSC-CPS-126-2019 | D138: Contratos de prestación de servicios profesionales y de apoyo a la gestión | E138: Contratación directa | F138: Prestación de servicios profesionales y de apoyo a la gestión, o para la ejecución de trabajos artísticos que sólo puedan encomendarse a determinadas personas naturales; | G138: PRESTACION DE SERVICIOS TECNICOS PARA APOYAR ADMINISTRATIVA, OPERATIVA Y LOGISTICAMENTE EL EQUIPO DE PROFESIONALES ENCARGADO DE LA CONSTRUCCION, DESARROLLO, IMPLEMENTACIÓN Y EVALUACION DE LA ESTRATEGIA INSTITUCIONAL PARA LA PREVENCION DE LA VIOLENCIA CONTRA NIÑOS Y NIÑAS Y LA PROMOCIÓN DEL BUEN TRATO EN LAS FAMILIAS, EN EL MARCO DEL PROYECTO 1492 ¿NIÑOS Y NIÑAS SANOS Y FELICES EN SAN CRISTÓBAL¿. | H138: Inversión | I138: 2 | J138: =IF(ISERROR(VLOOKUP(I138,Eje_Pilar!$C$2:$E$47,2,FALSE))," ",VLOOKUP(I138,Eje_Pilar!$C$2:$E$47,2,FALSE)) -> Desarrollo integral desde la gestación hasta la adolescencia | K138: =IF(ISERROR(VLOOKUP(I138,Eje_Pilar!$C$2:$E$47,3,FALSE))," ",VLOOKUP(I138,Eje_Pilar!$C$2:$E$47,3,FALSE)) -> Pilar 1 Igualdad de Calidad de Vida | L138: 3-3-1-15-01-02-1492-000 | M138: 10142670940 | N138: GINA ALEXANDRA BERMUDEZ GOMEZ | O138: 18000000 | R138: 1 | T138: 18000000 | U138: 2300000 | V138: 2019-04-26 | W138: 2019-04-29 | X138: 2019-10-28 | Y138: 180 | AD138: x | AF138: 0.1277777778 | AH138: =IF(SUMPRODUCT((A$14:A138=A138)*(B$14:B138=B138)*(C$14:C138=C138))>1,0,1) -> 1 | AI138: Contratos de prestación de servicios profesionales y de apoyo a la gestión | AJ138: Contratación directa | AK138: =IFERROR(VLOOKUP(F138,Tipo!$C$12:$C$27,1,FALSE),"NO") -> Prestación de servicios profesionales y de apoyo a la gestión, o para la ejecución de trabajos artísticos que sólo puedan encomendarse a determinadas personas naturales; | AL138: Inversión | AM138: 2
A139: 1272019 | B139: 2019 | C139: FDLSC-CPS-127-2019 | D139: Contratos de prestación de servicios profesionales y de apoyo a la gestión | E139: Contratación directa | F139: Prestación de servicios profesionales y de apoyo a la gestión, o para la ejecución de trabajos artísticos que sólo puedan encomendarse a determinadas personas naturales; | G139: PRESTACION DE SERVICIOS TECNICOS PARA APOYAR ADMINISTRATIVA, OPERATIVA Y LOGISTICAMENTE EL EQUIPO DE PROFESIONALES ENCARGADO DE LA CONSTRUCCION, DESARROLLO, IMPLEMENTACIÓN Y EVALUACION DE LA ESTRATEGIA INSTITUCIONAL PARA LA PREVENCION DE LA VIOLENCIA CONTRA NIÑOS Y NIÑAS Y LA PROMOCIÓN DEL BUEN TRATO EN LAS FAMILIAS, EN EL MARCO DEL PROYECTO 1492 ¿NIÑOS Y NIÑAS SANOS Y FELICES EN SAN CRISTÓBAL¿. | H139: Inversión | I139: 2 | J139: =IF(ISERROR(VLOOKUP(I139,Eje_Pilar!$C$2:$E$47,2,FALSE))," ",VLOOKUP(I139,Eje_Pilar!$C$2:$E$47,2,FALSE)) -> Desarrollo integral desde la gestación hasta la adolescencia | K139: =IF(ISERROR(VLOOKUP(I139,Eje_Pilar!$C$2:$E$47,3,FALSE))," ",VLOOKUP(I139,Eje_Pilar!$C$2:$E$47,3,FALSE)) -> Pilar 1 Igualdad de Calidad de Vida | L139: 3-3-1-15-01-02-1492-000 | M139: 10305963303 | N139: VIVIANA MARCELA NIÑO RODRIGUEZ | O139: 18000000 | R139: 1 | S139: 9000000 | T139: 27000000 | U139: 27000000 | V139: 2019-02-21 | W139: 2019-02-21 | X139: 2019-08-20 | Y139: 180 | AC139: x | AF139: 1 | AH139: =IF(SUMPRODUCT((A$14:A139=A139)*(B$14:B139=B139)*(C$14:C139=C139))>1,0,1) -> 1 | AI139: Contratos de prestación de servicios profesionales y de apoyo a la gestión | AJ139: Contratación directa | AK139: =IFERROR(VLOOKUP(F139,Tipo!$C$12:$C$27,1,FALSE),"NO") -> Prestación de servicios profesionales y de apoyo a la gestión, o para la ejecución de trabajos artísticos que sólo puedan encomendarse a determinadas personas naturales; | AL139: Inversión | AM139: 2
A140: 1282019 | B140: 2019 | C140: FDLSC-CPS-128-2019 | D140: Contratos de prestación de servicios profesionales y de apoyo a la gestión | E140: Contratación directa | F140: Prestación de servicios profesionales y de apoyo a la gestión, o para la ejecución de trabajos artísticos que sólo puedan encomendarse a determinadas personas naturales; | G140: PRESTACION DE SERVICIOS TECNICOS PARA APOYAR ADMINISTRATIVA, OPERATIVA Y LOGISTICAMENTE EL EQUIPO DE PROFESIONALES ENCARGADO DE LA CONSTRUCCION, DESARROLLO, IMPLEMENTACIÓN Y EVALUACION DE LA ESTRATEGIA INSTITUCIONAL PARA LA PREVENCION DE LA VIOLENCIA CONTRA NIÑOS Y NIÑAS Y LA PROMOCIÓN DEL BUEN TRATO EN LAS FAMILIAS, EN EL MARCO DEL PROYECTO 1492 ¿NIÑOS Y NIÑAS SANOS Y FELICES EN SAN CRISTÓBAL¿. | H140: Inversión | I140: 2 | J140: =IF(ISERROR(VLOOKUP(I140,Eje_Pilar!$C$2:$E$47,2,FALSE))," ",VLOOKUP(I140,Eje_Pilar!$C$2:$E$47,2,FALSE)) -> Desarrollo integral desde la gestación hasta la adolescencia | K140: =IF(ISERROR(VLOOKUP(I140,Eje_Pilar!$C$2:$E$47,3,FALSE))," ",VLOOKUP(I140,Eje_Pilar!$C$2:$E$47,3,FALSE)) -> Pilar 1 Igualdad de Calidad de Vida | L140: 3-3-1-15-01-02-1492-000 | M140: 10238958191 | N140: LUZ ANGIE DIAZ PANTOJA | O140: 18000000 | R140: 1 | S140: 6000000 | T140: 24000000 | U140: 18000000 | V140: 2019-04-24 | W140: 2019-04-25 | X140: 2019-10-24 | Y140: 180 | AC140: x | AF140: 0.75 | AH140: =IF(SUMPRODUCT((A$14:A140=A140)*(B$14:B140=B140)*(C$14:C140=C140))>1,0,1) -> 1 | AI140: Contratos de prestación de servicios profesionales y de apoyo a la gestión | AJ140: Contratación directa | AK140: =IFERROR(VLOOKUP(F140,Tipo!$C$12:$C$27,1,FALSE),"NO") -> Prestación de servicios profesionales y de apoyo a la gestión, o para la ejecución de trabajos artísticos que sólo puedan encomendarse a determinadas personas naturales; | AL140: Inversión | AM140: 2
A141: 1292019 | B141: 2019 | C141: FDLSC-CPS-129-2019 | D141: Contratos de prestación de servicios profesionales y de apoyo a la gestión | E141: Contratación directa | F141: Prestación de servicios profesionales y de apoyo a la gestión, o para la ejecución de trabajos artísticos que sólo puedan encomendarse a determinadas personas naturales; | G141: EL CONTRATISTA SE OBLIGA CON EL FONDO DE DESARROLLO LOCAL DE SAN CRISTOBAL A PRESTAR SERVICIOS PROFESIONALES PARA APOYAR TECNICAMENTE LAS DISTINTAS ETAPAS DE LOS PROCESOS DE COMPETENCIA DE LA ALCALDIA LOCAL PARA LA DEPURACION DE ACTUACIONES ADMINISTRATIVAS | H141: Inversión | I141: 45 | J141: =IF(ISERROR(VLOOKUP(I141,Eje_Pilar!$C$2:$E$47,2,FALSE))," ",VLOOKUP(I141,Eje_Pilar!$C$2:$E$47,2,FALSE)) -> Gobernanza e influencia local, regional e internacional | K141: =IF(ISERROR(VLOOKUP(I141,Eje_Pilar!$C$2:$E$47,3,FALSE))," ",VLOOKUP(I141,Eje_Pilar!$C$2:$E$47,3,FALSE)) -> Eje Transversal 4 Gobierno Legitimo, Fortalecimiento Local y Eficiencia | L141: 3-3-1-15-07-45-1531-000 | M141: 194374664 | N141: ALFONSO PINZON MUÑOZ | O141: 37800000 | R141: 1 | S141: 18900000 | T141: 56700000 | U141: 37800000 | V141: 2019-02-12 | W141: 2019-02-12 | X141: 2019-09-11 | Y141: 210 | AC141: x | AF141: 0.6666666667 | AH141: =IF(SUMPRODUCT((A$14:A141=A141)*(B$14:B141=B141)*(C$14:C141=C141))>1,0,1) -> 1 | AI141: Contratos de prestación de servicios profesionales y de apoyo a la gestión | AJ141: Contratación directa | AK141: =IFERROR(VLOOKUP(F141,Tipo!$C$12:$C$27,1,FALSE),"NO") -> Prestación de servicios profesionales y de apoyo a la gestión, o para la ejecución de trabajos artísticos que sólo puedan encomendarse a determinadas personas naturales; | AL141: Inversión | AM141: 45
A142: 1302019 | B142: 2019 | C142: FDLSC-CPS-130-2019 | D142: Contratos de prestación de servicios profesionales y de apoyo a la gestión | E142: Contratación directa | F142: Prestación de servicios profesionales y de apoyo a la gestión, o para la ejecución de trabajos artísticos que sólo puedan encomendarse a determinadas personas naturales; | G142: EL CONTRATISTA SE OBLIGA CON EL FONDO DE DESARROLLO LOCAL DE SAN CRISTOBAL A PRESTAR SERVICIOS PROFESIONALES PARA APOYAR TECNICAMENTE LAS DISTINTAS ETAPAS DE LOS PROCESOS DE COMPETENCIA DE LA ALCALDIA LOCAL PARA LA DEPURACION DE ACTUACIONES ADMINISTRATIVAS | H142: Inversión | I142: 45 | J142: =IF(ISERROR(VLOOKUP(I142,Eje_Pilar!$C$2:$E$47,2,FALSE))," ",VLOOKUP(I142,Eje_Pilar!$C$2:$E$47,2,FALSE)) -> Gobernanza e influencia local, regional e internacional | K142: =IF(ISERROR(VLOOKUP(I142,Eje_Pilar!$C$2:$E$47,3,FALSE))," ",VLOOKUP(I142,Eje_Pilar!$C$2:$E$47,3,FALSE)) -> Eje Transversal 4 Gobierno Legitimo, Fortalecimiento Local y Eficiencia | L142: 3-3-1-15-07-45-1531-000 | M142: 797834911 | N142: LUIS ALEJANDRO CUESTAS MARTIN | O142: 37800000 | R142: 1 | S142: 18900000 | T142: 56700000 | U142: 37800000 | V142: 2019-02-12 | W142: 2019-02-12 | X142: 2019-09-11 | Y142: 210 | AC142: x | AF142: 0.6666666667 | AH142: =IF(SUMPRODUCT((A$14:A142=A142)*(B$14:B142=B142)*(C$14:C142=C142))>1,0,1) -> 1 | AI142: Contratos de prestación de servicios profesionales y de apoyo a la gestión | AJ142: Contratación directa | AK142: =IFERROR(VLOOKUP(F142,Tipo!$C$12:$C$27,1,FALSE),"NO") -> Prestación de servicios profesionales y de apoyo a la gestión, o para la ejecución de trabajos artísticos que sólo puedan encomendarse a determinadas personas naturales; | AL142: Inversión | AM142: 45
A143: 1312019 | B143: 2019 | C143: FDLSC-CPS-131-2019 | D143: Contratos de prestación de servicios profesionales y de apoyo a la gestión | E143: Contratación directa | F143: Prestación de servicios profesionales y de apoyo a la gestión, o para la ejecución de trabajos artísticos que sólo puedan encomendarse a determinadas personas naturales; | G143: EL CONTRATISTA SE OBLIGA CON EL FONDO DE DESARROLLO LOCAL DE SAN CRISTOBAL A PRESTAR SERVICIOS PROFESIONALES PARA APOYAR TECNICAMENTE LAS DISTINTAS ETAPAS DE LOS PROCESOS DE COMPETENCIA DE LA ALCALDIA LOCAL PARA LA DEPURACION DE ACTUACIONES ADMINISTRATIVAS | H143: Inversión | I143: 45 | J143: =IF(ISERROR(VLOOKUP(I143,Eje_Pilar!$C$2:$E$47,2,FALSE))," ",VLOOKUP(I143,Eje_Pilar!$C$2:$E$47,2,FALSE)) -> Gobernanza e influencia local, regional e internacional | K143: =IF(ISERROR(VLOOKUP(I143,Eje_Pilar!$C$2:$E$47,3,FALSE))," ",VLOOKUP(I143,Eje_Pilar!$C$2:$E$47,3,FALSE)) -> Eje Transversal 4 Gobierno Legitimo, Fortalecimiento Local y Eficiencia | L143: 3-3-1-15-07-45-1531-000 | M143: 191468969 | N143: AUGUSTO ENRIQUE CASTRO CORTES | O143: 37800000 | R143: 1 | S143: 18900000 | T143: 56700000 | U143: 51840000 | V143: 2019-02-12 | W143: 2019-02-13 | X143: 2019-09-12 | Y143: 210 | AC143: x | AF143: 0.9142857143 | AH143: =IF(SUMPRODUCT((A$14:A143=A143)*(B$14:B143=B143)*(C$14:C143=C143))>1,0,1) -> 1 | AI143: Contratos de prestación de servicios profesionales y de apoyo a la gestión | AJ143: Contratación directa | AK143: =IFERROR(VLOOKUP(F143,Tipo!$C$12:$C$27,1,FALSE),"NO") -> Prestación de servicios profesionales y de apoyo a la gestión, o para la ejecución de trabajos artísticos que sólo puedan encomendarse a determinadas personas naturales; | AL143: Inversión | AM143: 45
A144: 1322019 | B144: 2019 | C144: FDLSC-CPS-132-2019 | D144: Contratos de prestación de servicios profesionales y de apoyo a la gestión | E144: Contratación directa | F144: Prestación de servicios profesionales y de apoyo a la gestión, o para la ejecución de trabajos artísticos que sólo puedan encomendarse a determinadas personas naturales; | G144: EL CONTRATISTA SE OBLIGA CON EL FONDO DE DESARROLLO LOCAL DE SAN CRISTOBAL A PRESTAR SERVICIOS PROFESIONALES PARA APOYAR TECNICAMENTE LAS DISTINTAS ETAPAS DE LOS PROCESOS DE COMPETENCIA DE LA ALCALDIA LOCAL PARA LA DEPURACION DE ACTUACIONES ADMINISTRATIVAS | H144: Inversión | I144: 45 | J144: =IF(ISERROR(VLOOKUP(I144,Eje_Pilar!$C$2:$E$47,2,FALSE))," ",VLOOKUP(I144,Eje_Pilar!$C$2:$E$47,2,FALSE)) -> Gobernanza e influencia local, regional e internacional | K144: =IF(ISERROR(VLOOKUP(I144,Eje_Pilar!$C$2:$E$47,3,FALSE))," ",VLOOKUP(I144,Eje_Pilar!$C$2:$E$47,3,FALSE)) -> Eje Transversal 4 Gobierno Legitimo, Fortalecimiento Local y Eficiencia | L144: 3-3-1-15-07-45-1531-000 | M144: 194563663 | N144: EDGAR GOYENECHE MUÑOZ | O144: 37800000 | R144: 1 | S144: 18900000 | T144: 56700000 | U144: 37800000 | V144: 2019-02-27 | W144: 2019-02-25 | X144: 2020-01-24 | Y144: 210 | AC144: x | AF144: =IF(ISERROR(U144/T144),"-",(U144/T144)) -> 0.6666666667 | AH144: =IF(SUMPRODUCT((A$14:A144=A144)*(B$14:B144=B144)*(C$14:C144=C144))>1,0,1) -> 1 | AI144: Contratos de prestación de servicios profesionales y de apoyo a la gestión | AJ144: Contratación directa | AK144: =IFERROR(VLOOKUP(F144,Tipo!$C$12:$C$27,1,FALSE),"NO") -> Prestación de servicios profesionales y de apoyo a la gestión, o para la ejecución de trabajos artísticos que sólo puedan encomendarse a determinadas personas naturales; | AL144: Inversión | AM144: 45
A145: 1332019 | B145: 2019 | C145: FDLSC-CPS-133-2019 | D145: Contratos de prestación de servicios profesionales y de apoyo a la gestión | E145: Contratación directa | F145: Prestación de servicios profesionales y de apoyo a la gestión, o para la ejecución de trabajos artísticos que sólo puedan encomendarse a determinadas personas naturales; | G145: EL CONTRATISTA SE OBLIGA CON EL FONDO DE DESARROLLO LOCAL DE SAN CRISTOBAL A PRESTAR SERVICIOS PROFESIONALES PARA APOYAR TECNICAMENTE LAS DISTINTAS ETAPAS DE LOS PROCESOS DE COMPETENCIA DE LA ALCALDIA LOCAL PARA LA DEPURACION DE ACTUACIONES ADMINISTRATIVAS | H145: Inversión | I145: 45 | J145: =IF(ISERROR(VLOOKUP(I145,Eje_Pilar!$C$2:$E$47,2,FALSE))," ",VLOOKUP(I145,Eje_Pilar!$C$2:$E$47,2,FALSE)) -> Gobernanza e influencia local, regional e internacional | K145: =IF(ISERROR(VLOOKUP(I145,Eje_Pilar!$C$2:$E$47,3,FALSE))," ",VLOOKUP(I145,Eje_Pilar!$C$2:$E$47,3,FALSE)) -> Eje Transversal 4 Gobierno Legitimo, Fortalecimiento Local y Eficiencia | L145: 3-3-1-15-07-45-1531-000 | M145: 790417777 | N145: GUILLERMO FORERO APONTE | O145: 37800000 | R145: 1 | S145: 18900000 | T145: 56700000 | U145: 44280000 | V145: 2019-02-25 | W145: 2019-02-25 | X145: 2020-01-24 | Y145: 210 | AC145: x | AF145: 0.780952381 | AH145: =IF(SUMPRODUCT((A$14:A145=A145)*(B$14:B145=B145)*(C$14:C145=C145))>1,0,1) -> 1 | AI145: Contratos de prestación de servicios profesionales y de apoyo a la gestión | AJ145: Contratación directa | AK145: =IFERROR(VLOOKUP(F145,Tipo!$C$12:$C$27,1,FALSE),"NO") -> Prestación de servicios profesionales y de apoyo a la gestión, o para la ejecución de trabajos artísticos que sólo puedan encomendarse a determinadas personas naturales; | AL145: Inversión | AM145: 45
A146: 1342019 | B146: 2019 | C146: FDLSC-CPS-134-2019 | D146: Contratos de prestación de servicios profesionales y de apoyo a la gestión | E146: Contratación directa | F146: Prestación de servicios profesionales y de apoyo a la gestión, o para la ejecución de trabajos artísticos que sólo puedan encomendarse a determinadas personas naturales; | G146: EL CONTRATISTA SE OBLIGA CON EL FONDO DE DESARROLLO LOCAL DE SAN CRISTOBAL A PRESTAR SERVICIOS PROFESIONALES PARA APOYAR TECNICAMENTE LAS DISTINTAS ETAPAS DE LOS PROCESOS DE COMPETENCIA DE LA ALCALDIA LOCAL PARA LA DEPURACION DE ACTUACIONES ADMINISTRATIVAS | H146: Inversión | I146: 45 | J146: =IF(ISERROR(VLOOKUP(I146,Eje_Pilar!$C$2:$E$47,2,FALSE))," ",VLOOKUP(I146,Eje_Pilar!$C$2:$E$47,2,FALSE)) -> Gobernanza e influencia local, regional e internacional | K146: =IF(ISERROR(VLOOKUP(I146,Eje_Pilar!$C$2:$E$47,3,FALSE))," ",VLOOKUP(I146,Eje_Pilar!$C$2:$E$47,3,FALSE)) -> Eje Transversal 4 Gobierno Legitimo, Fortalecimiento Local y Eficiencia | L146: 3-3-1-15-07-45-1531-000 | M146: 797486918 | N146: ALVARO ALEXIS MEDINA ROMERO | O146: 37800000 | R146: 1 | S146: 18900000 | T146: 56700000 | U146: 54540000 | V146: 2019-02-20 | W146: 2019-02-21 | X146: 2019-09-20 | Y146: 210 | AC146: x | AF146: 0.9619047619 | AH146: =IF(SUMPRODUCT((A$14:A146=A146)*(B$14:B146=B146)*(C$14:C146=C146))>1,0,1) -> 1 | AI146: Contratos de prestación de servicios profesionales y de apoyo a la gestión | AJ146: Contratación directa | AK146: =IFERROR(VLOOKUP(F146,Tipo!$C$12:$C$27,1,FALSE),"NO") -> Prestación de servicios profesionales y de apoyo a la gestión, o para la ejecución de trabajos artísticos que sólo puedan encomendarse a determinadas personas naturales; | AL146: Inversión | AM146: 45
A147: 1352019 | B147: 2019 | C147: FDLSC-CPS-135-2019 | D147: Contratos de prestación de servicios profesionales y de apoyo a la gestión | E147: Contratación directa | F147: Prestación de servicios profesionales y de apoyo a la gestión, o para la ejecución de trabajos artísticos que sólo puedan encomendarse a determinadas personas naturales; | G147: EL CONTRATISTA SE OBLIGA CON EL FONDO DE DESARROLLO LOCAL DE SAN CRISTOBAL A PRESTAR SERVICIOS PROFESIONALES PARA APOYAR TECNICAMENTE LAS DISTINTAS ETAPAS DE LOS PROCESOS DE COMPETENCIA DE LA ALCALDIA LOCAL PARA LA DEPURACION DE ACTUACIONES ADMINISTRATIVAS | H147: Inversión | I147: 45 | J147: =IF(ISERROR(VLOOKUP(I147,Eje_Pilar!$C$2:$E$47,2,FALSE))," ",VLOOKUP(I147,Eje_Pilar!$C$2:$E$47,2,FALSE)) -> Gobernanza e influencia local, regional e internacional | K147: =IF(ISERROR(VLOOKUP(I147,Eje_Pilar!$C$2:$E$47,3,FALSE))," ",VLOOKUP(I147,Eje_Pilar!$C$2:$E$47,3,FALSE)) -> Eje Transversal 4 Gobierno Legitimo, Fortalecimiento Local y Eficiencia | L147: 3-3-1-15-07-45-1531-000 | M147: 193411437 | N147: JOSE ALFREDO MORA MORA | O147: 37800000 | R147: 1 | S147: 18900000 | T147: 56700000 | U147: 50400000 | V147: 2019-02-20 | W147: 2019-02-21 | X147: 2019-09-20 | Y147: 210 | AC147: x | AF147: 0.8888888889 | AH147: =IF(SUMPRODUCT((A$14:A147=A147)*(B$14:B147=B147)*(C$14:C147=C147))>1,0,1) -> 1 | AI147: Contratos de prestación de servicios profesionales y de apoyo a la gestión | AJ147: Contratación directa | AK147: =IFERROR(VLOOKUP(F147,Tipo!$C$12:$C$27,1,FALSE),"NO") -> Prestación de servicios profesionales y de apoyo a la gestión, o para la ejecución de trabajos artísticos que sólo puedan encomendarse a determinadas personas naturales; | AL147: Inversión | AM147: 45
A148: 1362019 | B148: 2019 | C148: FDLSC-CPS-136-2019 | D148: Contratos de prestación de servicios profesionales y de apoyo a la gestión | E148: Contratación directa | F148: Prestación de servicios profesionales y de apoyo a la gestión, o para la ejecución de trabajos artísticos que sólo puedan encomendarse a determinadas personas naturales; | G148: EL CONTRATISTA SE OBLIGA PARA CON EL FONDO DE DESARROLLO LOCAL DE SAN CRISTOBAL A APOYAR LA GESTION DOCUMENTAL, ACOMPAÑANDO AL EQUIPO JURIDICO DE DEPURACION EN LAS LABORES OPERATIVAS QUE GENERA EL PROCESO DE IMPULSO DE LAS ACTUACIONES ADMINISTRATIVAS EXISTENTES EN LADIFERENTES ALCALDIA LOCAL | H148: Inversión | I148: 45 | J148: =IF(ISERROR(VLOOKUP(I148,Eje_Pilar!$C$2:$E$47,2,FALSE))," ",VLOOKUP(I148,Eje_Pilar!$C$2:$E$47,2,FALSE)) -> Gobernanza e influencia local, regional e internacional | K148: =IF(ISERROR(VLOOKUP(I148,Eje_Pilar!$C$2:$E$47,3,FALSE))," ",VLOOKUP(I148,Eje_Pilar!$C$2:$E$47,3,FALSE)) -> Eje Transversal 4 Gobierno Legitimo, Fortalecimiento Local y Eficiencia | L148: 3-3-1-15-07-45-1531-000 | M148: 521635095 | N148: SANDRA LILIANA CARDONA MUÑOZ | O148: 15820000 | R148: 1 | S148: 18900000 | T148: 34720000 | U148: 20114000 | V148: 2019-03-01 | W148: 2019-03-04 | X148: 2019-10-03 | Y148: 210 | AC148: x | AF148: 0.5793202765 | AH148: =IF(SUMPRODUCT((A$14:A148=A148)*(B$14:B148=B148)*(C$14:C148=C148))>1,0,1) -> 1 | AI148: Contratos de prestación de servicios profesionales y de apoyo a la gestión | AJ148: Contratación directa | AK148: =IFERROR(VLOOKUP(F148,Tipo!$C$12:$C$27,1,FALSE),"NO") -> Prestación de servicios profesionales y de apoyo a la gestión, o para la ejecución de trabajos artísticos que sólo puedan encomendarse a determinadas personas naturales; | AL148: Inversión | AM148: 45
A149: 1372019 | B149: 2019 | C149: FDLSC-CPS-137-2019 | D149: Contratos de prestación de servicios profesionales y de apoyo a la gestión | E149: Contratación directa | F149: Prestación de servicios profesionales y de apoyo a la gestión, o para la ejecución de trabajos artísticos que sólo puedan encomendarse a determinadas personas naturales; | G149: EL CONTRATISTA SE OBLIGA PARA CON EL FONDO DE DESARROLLO LOCAL DE SAN CRISTOBAL A APOYAR LA GESTION DOCUMENTAL, ACOMPAÑANDO AL EQUIPO JURIDICO DE DEPURACION EN LAS LABORES OPERATIVAS QUE GENERA EL PROCESO DE IMPULSO DE LAS ACTUACIONES ADMINISTRATIVAS EXISTENTES EN LADIFERENTES ALCALDIA LOCAL | H149: Inversión | I149: 45 | J149: =IF(ISERROR(VLOOKUP(I149,Eje_Pilar!$C$2:$E$47,2,FALSE))," ",VLOOKUP(I149,Eje_Pilar!$C$2:$E$47,2,FALSE)) -> Gobernanza e influencia local, regional e internacional | K149: =IF(ISERROR(VLOOKUP(I149,Eje_Pilar!$C$2:$E$47,3,FALSE))," ",VLOOKUP(I149,Eje_Pilar!$C$2:$E$47,3,FALSE)) -> Eje Transversal 4 Gobierno Legitimo, Fortalecimiento Local y Eficiencia | L149: 3-3-1-15-07-45-1531-000 | M149: 515911474 | N149: ROSA MARIA PATIÑO | O149: 15820000 | R149: 1 | S149: 7910000 | T149: 23730000 | U149: 15820000 | V149: 2019-02-13 | W149: 2019-02-14 | X149: 2019-09-13 | Y149: 210 | AC149: x | AF149: 0.6666666667 | AH149: =IF(SUMPRODUCT((A$14:A149=A149)*(B$14:B149=B149)*(C$14:C149=C149))>1,0,1) -> 1 | AI149: Contratos de prestación de servicios profesionales y de apoyo a la gestión | AJ149: Contratación directa | AK149: =IFERROR(VLOOKUP(F149,Tipo!$C$12:$C$27,1,FALSE),"NO") -> Prestación de servicios profesionales y de apoyo a la gestión, o para la ejecución de trabajos artísticos que sólo puedan encomendarse a determinadas personas naturales; | AL149: Inversión | AM149: 45
A150: 1382019 | B150: 2019 | C150: FDLSC-CPS-138-2019 | D150: Contratos de prestación de servicios profesionales y de apoyo a la gestión | E150: Contratación directa | F150: Prestación de servicios profesionales y de apoyo a la gestión, o para la ejecución de trabajos artísticos que sólo puedan encomendarse a determinadas personas naturales; | G150: EL CONTRATISTA SE OBLIGA PARA CON EL FONDO DE DESARROLLO LOCAL DE SAN CRISTOBAL A APOYAR LA GESTION DOCUMENTAL, ACOMPAÑANDO AL EQUIPO JURIDICO DE DEPURACION EN LAS LABORES OPERATIVAS QUE GENERA EL PROCESO DE IMPULSO DE LAS ACTUACIONES ADMINISTRATIVAS EXISTENTES EN LADIFERENTES ALCALDIA LOCAL | H150: Inversión | I150: 45 | J150: =IF(ISERROR(VLOOKUP(I150,Eje_Pilar!$C$2:$E$47,2,FALSE))," ",VLOOKUP(I150,Eje_Pilar!$C$2:$E$47,2,FALSE)) -> Gobernanza e influencia local, regional e internacional | K150: =IF(ISERROR(VLOOKUP(I150,Eje_Pilar!$C$2:$E$47,3,FALSE))," ",VLOOKUP(I150,Eje_Pilar!$C$2:$E$47,3,FALSE)) -> Eje Transversal 4 Gobierno Legitimo, Fortalecimiento Local y Eficiencia | L150: 3-3-1-15-07-45-1531-000 | M150: 10160407735 | N150: LAURA XIMENA ARISTIZABAL ACOSTA | O150: 15820000 | R150: 1 | S150: 7910000 | T150: 23730000 | U150: 15820000 | V150: 2019-02-20 | W150: 2019-02-21 | X150: 2019-09-20 | Y150: 210 | AC150: x | AF150: 0.6666666667 | AH150: =IF(SUMPRODUCT((A$14:A150=A150)*(B$14:B150=B150)*(C$14:C150=C150))>1,0,1) -> 1 | AI150: Contratos de prestación de servicios profesionales y de apoyo a la gestión | AJ150: Contratación directa | AK150: =IFERROR(VLOOKUP(F150,Tipo!$C$12:$C$27,1,FALSE),"NO") -> Prestación de servicios profesionales y de apoyo a la gestión, o para la ejecución de trabajos artísticos que sólo puedan encomendarse a determinadas personas naturales; | AL150: Inversión | AM150: 45
A151: 1392019 | B151: 2019 | C151: FDLSC-CPS-139-2019 | D151: Contratos de prestación de servicios profesionales y de apoyo a la gestión | E151: Contratación directa | F151: Prestación de servicios profesionales y de apoyo a la gestión, o para la ejecución de trabajos artísticos que sólo puedan encomendarse a determinadas personas naturales; | G151: EL CONTRATISTA SE OBLIGA PARA CON EL FONDO DE DESARROLLO LOCAL DE SAN CRISTOBAL A APOYAR LA GESTION DOCUMENTAL, ACOMPAÑANDO AL EQUIPO JURIDICO DE DEPURACION EN LAS LABORES OPERATIVAS QUE GENERA EL PROCESO DE IMPULSO DE LAS ACTUACIONES ADMINISTRATIVAS EXISTENTES EN LADIFERENTES ALCALDIA LOCAL | H151: Inversión | I151: 45 | J151: =IF(ISERROR(VLOOKUP(I151,Eje_Pilar!$C$2:$E$47,2,FALSE))," ",VLOOKUP(I151,Eje_Pilar!$C$2:$E$47,2,FALSE)) -> Gobernanza e influencia local, regional e internacional | K151: =IF(ISERROR(VLOOKUP(I151,Eje_Pilar!$C$2:$E$47,3,FALSE))," ",VLOOKUP(I151,Eje_Pilar!$C$2:$E$47,3,FALSE)) -> Eje Transversal 4 Gobierno Legitimo, Fortalecimiento Local y Eficiencia | L151: 3-3-1-15-07-45-1531-000 | M151: 10229389517 | N151: JORGE EDUARDO GOMEZ VALBUENA | O151: 15820000 | R151: 1 | S151: 7910000 | T151: 23730000 | U151: 2606666 | V151: 2019-02-20 | W151: 2019-02-21 | X151: 2019-09-20 | Y151: 210 | AC151: x | AF151: 0.1098468605 | AH151: =IF(SUMPRODUCT((A$14:A151=A151)*(B$14:B151=B151)*(C$14:C151=C151))>1,0,1) -> 1 | AI151: Contratos de prestación de servicios profesionales y de apoyo a la gestión | AJ151: Contratación directa | AK151: =IFERROR(VLOOKUP(F151,Tipo!$C$12:$C$27,1,FALSE),"NO") -> Prestación de servicios profesionales y de apoyo a la gestión, o para la ejecución de trabajos artísticos que sólo puedan encomendarse a determinadas personas naturales; | AL151: Inversión | AM151: 45
A152: 1402019 | B152: 2019 | C152: FDLSC-CPS-140-2019 | D152: Contratos de prestación de servicios profesionales y de apoyo a la gestión | E152: Contratación directa | F152: Prestación de servicios profesionales y de apoyo a la gestión, o para la ejecución de trabajos artísticos que sólo puedan encomendarse a determinadas personas naturales; | G152: EL CONTRATISTA SE OBLIGA PARA CON LA ALCALDÍA LOCAL DE SAN CRISTOBAL A PRESTAR SUS SERVICIOS PERSONALES EN EL AREA DE GESTION DE DESARROLLO LOCAL PARA LA GESTION DOCUMENTAL, REALIZANDO LAS ACTIVIDADES QUE REQUIERA EL ARCHIVO EN LO RELATIVO A CLASIFICACION, FOLIACION, DEPURACION, SEGÚN LOS PROGRAMAS Y PROCEDIMIENTOS ESTABLECIDOS. | H152: Inversión | I152: 45 | J152: =IF(ISERROR(VLOOKUP(I152,Eje_Pilar!$C$2:$E$47,2,FALSE))," ",VLOOKUP(I152,Eje_Pilar!$C$2:$E$47,2,FALSE)) -> Gobernanza e influencia local, regional e internacional | K152: =IF(ISERROR(VLOOKUP(I152,Eje_Pilar!$C$2:$E$47,3,FALSE))," ",VLOOKUP(I152,Eje_Pilar!$C$2:$E$47,3,FALSE)) -> Eje Transversal 4 Gobierno Legitimo, Fortalecimiento Local y Eficiencia | L152: 3-3-1-15-07-45-1531-000 | M152: 530448617 | N152: ENERIETH CUADROS HERNANDEZ | O152: 24835800 | R152: 1 | S152: 752600 | T152: 25588400 | U152: 23330600 | V152: 2019-02-20 | W152: 2019-02-21 | X152: 2020-01-20 | Y152: 330 | AC152: x | AF152: 0.9117647059 | AH152: =IF(SUMPRODUCT((A$14:A152=A152)*(B$14:B152=B152)*(C$14:C152=C152))>1,0,1) -> 1 | AI152: Contratos de prestación de servicios profesionales y de apoyo a la gestión | AJ152: Contratación directa | AK152: =IFERROR(VLOOKUP(F152,Tipo!$C$12:$C$27,1,FALSE),"NO") -> Prestación de servicios profesionales y de apoyo a la gestión, o para la ejecución de trabajos artísticos que sólo puedan encomendarse a determinadas personas naturales; | AL152: Inversión | AM152: 45
A153: 1412019 | B153: 2019 | C153: FDLSC-CPS-141-2019 | D153: Contratos de prestación de servicios profesionales y de apoyo a la gestión | E153: Contratación directa | F153: Prestación de servicios profesionales y de apoyo a la gestión, o para la ejecución de trabajos artísticos que sólo puedan encomendarse a determinadas personas naturales; | G153: PRESTAR LOS SERVICIOS PERSONALES PARA APOYAR LAS LABORES DE ENTREGA Y RECIBO DE LAS COMUNICACIONES EMITIDAS O RECIBIDAS POR LAS INSPECCIONES DE POLICIA DE LA LOCALIDAD. | H153: Inversión | I153: 45 | J153: =IF(ISERROR(VLOOKUP(I153,Eje_Pilar!$C$2:$E$47,2,FALSE))," ",VLOOKUP(I153,Eje_Pilar!$C$2:$E$47,2,FALSE)) -> Gobernanza e influencia local, regional e internacional | K153: =IF(ISERROR(VLOOKUP(I153,Eje_Pilar!$C$2:$E$47,3,FALSE))," ",VLOOKUP(I153,Eje_Pilar!$C$2:$E$47,3,FALSE)) -> Eje Transversal 4 Gobierno Legitimo, Fortalecimiento Local y Eficiencia | L153: 3-3-1-15-07-45-1531-000 | M153: 10239363694 | N153: ZULMA NATALIA TIBOCHA GOMEZ | O153: 16590000 | T153: 16590000 | U153: 14536000 | V153: 2019-06-26 | W153: 2019-06-27 | X153: 2020-01-26 | Y153: 210 | AC153: x | AF153: 0.8761904762 | AH153: =IF(SUMPRODUCT((A$14:A153=A153)*(B$14:B153=B153)*(C$14:C153=C153))>1,0,1) -> 1 | AI153: Contratos de prestación de servicios profesionales y de apoyo a la gestión | AJ153: Contratación directa | AK153: =IFERROR(VLOOKUP(F153,Tipo!$C$12:$C$27,1,FALSE),"NO") -> Prestación de servicios profesionales y de apoyo a la gestión, o para la ejecución de trabajos artísticos que sólo puedan encomendarse a determinadas personas naturales; | AL153: Inversión | AM153: 45
A154: 1422019 | B154: 2019 | C154: FDLSC-CPS-142-2019 | D154: Contratos de prestación de servicios profesionales y de apoyo a la gestión | E154: Contratación directa | F154: Prestación de servicios profesionales y de apoyo a la gestión, o para la ejecución de trabajos artísticos que sólo puedan encomendarse a determinadas personas naturales; | G154: EL CONTRATISTA SE OBLIGA PARA CON EL FONDO DE DESARROLLO LOCAL A APOYAR LA CONDUCCIÓN DE VEHICULOS LIVIANOS, PESADOS Y/ O MAQUINARIA PESADA QUE SE ENCUENTRAN AL SERVICIO DE LA ALCALDIA LOCAL DE SAN CRISTOBAL EN EL MARCO DEL PLAN DE DESARROLLO 2017-2020. | H154: Inversión | I154: 45 | J154: =IF(ISERROR(VLOOKUP(I154,Eje_Pilar!$C$2:$E$47,2,FALSE))," ",VLOOKUP(I154,Eje_Pilar!$C$2:$E$47,2,FALSE)) -> Gobernanza e influencia local, regional e internacional | K154: =IF(ISERROR(VLOOKUP(I154,Eje_Pilar!$C$2:$E$47,3,FALSE))," ",VLOOKUP(I154,Eje_Pilar!$C$2:$E$47,3,FALSE)) -> Eje Transversal 4 Gobierno Legitimo, Fortalecimiento Local y Eficiencia | L154: 3-3-1-15-07-45-1531-000 | M154: 797375715 | N154: LUCAS WILSON GONZALEZ MENDOZA | O154: 16324000 | T154: 16324000 | U154: 14457000 | V154: 2019-06-26 | W154: 2019-06-28 | X154: 2020-01-17 | Y154: 210 | AC154: x | AF154: 0.8856285224 | AH154: =IF(SUMPRODUCT((A$14:A154=A154)*(B$14:B154=B154)*(C$14:C154=C154))>1,0,1) -> 1 | AI154: Contratos de prestación de servicios profesionales y de apoyo a la gestión | AJ154: Contratación directa | AK154: =IFERROR(VLOOKUP(F154,Tipo!$C$12:$C$27,1,FALSE),"NO") -> Prestación de servicios profesionales y de apoyo a la gestión, o para la ejecución de trabajos artísticos que sólo puedan encomendarse a determinadas personas naturales; | AL154: Inversión | AM154: 45
A155: 1432019 | B155: 2019 | C155: FDLSC-CPS-143-2019 | D155: Contratos de prestación de servicios profesionales y de apoyo a la gestión | E155: Contratación directa | F155: Prestación de servicios profesionales y de apoyo a la gestión, o para la ejecución de trabajos artísticos que sólo puedan encomendarse a determinadas personas naturales; | G155: PRESTAR LOS SERVICIOS PROFESIONALES PARA LA OPERACIÓN, SEGUIMIENTO Y CUMPLIMIENTO DE LOS PROCESOS Y PROCEDIMIENTOS DEL SERVICIO APOYO ECONÓMICO TIPO C, REQUERIDOS PARA EL OPORTUNO Y ADECUADO REGISTRO, CRUCE Y REPORTE DE LOS DATOS EN EL SISTEMA MISIONAL ¿ SIRBE, QUE CONTRIBUYAN A LA GARANTÍA DE LOS DERECHOS DE LA POBLACIÓN MAYOR EN EL MARCO DE LA POLÍTICA PÚBLICA SOCIAL PARA EL ENVEJECIMIENTO Y LA VEJEZ EN EL DISTRITO CAPITAL A CARGO DE LA ALCALDÍA LOCAL | H155: Inversión | I155: 3 | J155: =IF(ISERROR(VLOOKUP(I155,Eje_Pilar!$C$2:$E$47,2,FALSE))," ",VLOOKUP(I155,Eje_Pilar!$C$2:$E$47,2,FALSE)) -> Igualdad y autonomía para una Bogotá incluyente | K155: =IF(ISERROR(VLOOKUP(I155,Eje_Pilar!$C$2:$E$47,3,FALSE))," ",VLOOKUP(I155,Eje_Pilar!$C$2:$E$47,3,FALSE)) -> Pilar 1 Igualdad de Calidad de Vida | L155: 3-3-1-15-01-03-1509-000 | M155: 522205036 | N155: DIANA CONSTANZA REINA MORENO | O155: 57200000 | R155: 1 | S155: 3466667 | T155: 60666667 | U155: 55466666 | V155: 2019-02-11 | W155: 2019-02-11 | X155: 2020-01-10 | Y155: 330 | AC155: x | AF155: 0.9142856983 | AH155: =IF(SUMPRODUCT((A$14:A155=A155)*(B$14:B155=B155)*(C$14:C155=C155))>1,0,1) -> 1 | AI155: Contratos de prestación de servicios profesionales y de apoyo a la gestión | AJ155: Contratación directa | AK155: =IFERROR(VLOOKUP(F155,Tipo!$C$12:$C$27,1,FALSE),"NO") -> Prestación de servicios profesionales y de apoyo a la gestión, o para la ejecución de trabajos artísticos que sólo puedan encomendarse a determinadas personas naturales; | AL155: Inversión | AM155: 3
A156: 1442019 | B156: 2019 | C156: FDLSC-CPS-144-2019 | D156: Contratos de prestación de servicios profesionales y de apoyo a la gestión | E156: Contratación directa | F156: Prestación de servicios profesionales y de apoyo a la gestión, o para la ejecución de trabajos artísticos que sólo puedan encomendarse a determinadas personas naturales; | G156: EL CONTRATISTA SE OBLIGA PARA CON LA ALCALDÍA LOCAL DE SAN CRISTOBAL A PRESTAR SUS SERVICIOS EN EL ÁREA DE GESTIÓN DE DESARROLLO LOCAL ¿ CDI, PARA LA ATENCION, RECEPCION Y TRAMITE DE LOS DOCUMENTOS Y CORRESPONDENCIA EN GENERAL, EN EL HORARIO DE ATENCION ESTABLECIDO POR LA SECRETARIA DISTRITAL DE GOBIERNO. | H156: Inversión | I156: 45 | J156: =IF(ISERROR(VLOOKUP(I156,Eje_Pilar!$C$2:$E$47,2,FALSE))," ",VLOOKUP(I156,Eje_Pilar!$C$2:$E$47,2,FALSE)) -> Gobernanza e influencia local, regional e internacional | K156: =IF(ISERROR(VLOOKUP(I156,Eje_Pilar!$C$2:$E$47,3,FALSE))," ",VLOOKUP(I156,Eje_Pilar!$C$2:$E$47,3,FALSE)) -> Eje Transversal 4 Gobierno Legitimo, Fortalecimiento Local y Eficiencia | L156: 3-3-1-15-07-45-1531-000 | M156: 10238986119 | N156: VIVIAN ALEXANDRA OTALORA GIL | O156: 24835800 | R156: 1 | S156: 1429940 | T156: 26265740 | U156: 21750140 | V156: 2019-02-11 | W156: 2019-02-12 | X156: 2020-01-11 | Y156: 330 | AC156: x | AF156: 0.8280802292 | AH156: =IF(SUMPRODUCT((A$14:A156=A156)*(B$14:B156=B156)*(C$14:C156=C156))>1,0,1) -> 1 | AI156: Contratos de prestación de servicios profesionales y de apoyo a la gestión | AJ156: Contratación directa | AK156: =IFERROR(VLOOKUP(F156,Tipo!$C$12:$C$27,1,FALSE),"NO") -> Prestación de servicios profesionales y de apoyo a la gestión, o para la ejecución de trabajos artísticos que sólo puedan encomendarse a determinadas personas naturales; | AL156: Inversión | AM156: 45
A157: 1452019 | B157: 2019 | C157: FDLSC-CPS-145-2019 | D157: Contratos de prestación de servicios profesionales y de apoyo a la gestión | E157: Contratación directa | F157: Prestación de servicios profesionales y de apoyo a la gestión, o para la ejecución de trabajos artísticos que sólo puedan encomendarse a determinadas personas naturales; | G157: PRESTAR LOS SERVICIOS PROFESIONALES PARA LA OPERACIÓN, PRESTACIÓN, SEGUIMIENTO Y CUMPLIMIENTO DE LOS PROCEDIMIENTOS ADMINISTRATIVOS, OPERATIVOS Y PROGRAMÁTICOS DEL SERVICIO APOYO ECONÓMICO TIPO C, QUE CONTRIBUYAN A LA GARANTÍA DE LOS DERECHOS DE LA POBLACIÓN MAYOR EN EL MARCO DE LA POLÍTICA PÚBLICA SOCIAL PARA EL ENVEJECIMIENTO Y LA VEJEZ EN EL DISTRITO CAPITAL A CARGO DE LA ALCALDÍA LOCAL. | H157: Inversión | I157: 3 | J157: =IF(ISERROR(VLOOKUP(I157,Eje_Pilar!$C$2:$E$47,2,FALSE))," ",VLOOKUP(I157,Eje_Pilar!$C$2:$E$47,2,FALSE)) -> Igualdad y autonomía para una Bogotá incluyente | K157: =IF(ISERROR(VLOOKUP(I157,Eje_Pilar!$C$2:$E$47,3,FALSE))," ",VLOOKUP(I157,Eje_Pilar!$C$2:$E$47,3,FALSE)) -> Pilar 1 Igualdad de Calidad de Vida | L157: 3-3-1-15-01-03-1509-000 | M157: 10136529561 | N157: SARASOFIA MARGARITA PINEDA CAMACHO | O157: 52800000 | R157: 1 | S157: 3200000 | T157: 56000000 | U157: 51200000 | V157: 2019-02-11 | W157: 2019-02-11 | X157: 2020-01-10 | Y157: 330 | AC157: x | AF157: 0.9142857143 | AH157: =IF(SUMPRODUCT((A$14:A157=A157)*(B$14:B157=B157)*(C$14:C157=C157))>1,0,1) -> 1 | AI157: Contratos de prestación de servicios profesionales y de apoyo a la gestión | AJ157: Contratación directa | AK157: =IFERROR(VLOOKUP(F157,Tipo!$C$12:$C$27,1,FALSE),"NO") -> Prestación de servicios profesionales y de apoyo a la gestión, o para la ejecución de trabajos artísticos que sólo puedan encomendarse a determinadas personas naturales; | AL157: Inversión | AM157: 3
A158: 1462019 | B158: 2019 | C158: FDLSC-CPS-146-2019 | D158: Contratos de prestación de servicios profesionales y de apoyo a la gestión | E158: Contratación directa | F158: Prestación de servicios profesionales y de apoyo a la gestión, o para la ejecución de trabajos artísticos que sólo puedan encomendarse a determinadas personas naturales; | G158: PRESTAR LOS SERVICIOS PROFESIONALES PARA LA OPERACIÓN, PRESTACIÓN, SEGUIMIENTO Y CUMPLIMIENTO DE LOS PROCEDIMIENTOS ADMINISTRATIVOS, OPERATIVOS Y PROGRAMÁTICOS DEL SERVICIO APOYO ECONÓMICO TIPO C, QUE CONTRIBUYAN A LA GARANTÍA DE LOS DERECHOS DE LA POBLACIÓN MAYOR EN EL MARCO DE LA POLÍTICA PÚBLICA SOCIAL PARA EL ENVEJECIMIENTO Y LA VEJEZ EN EL DISTRITO CAPITAL A CARGO DE LA ALCALDÍA LOCAL. | H158: Inversión | I158: 3 | J158: =IF(ISERROR(VLOOKUP(I158,Eje_Pilar!$C$2:$E$47,2,FALSE))," ",VLOOKUP(I158,Eje_Pilar!$C$2:$E$47,2,FALSE)) -> Igualdad y autonomía para una Bogotá incluyente | K158: =IF(ISERROR(VLOOKUP(I158,Eje_Pilar!$C$2:$E$47,3,FALSE))," ",VLOOKUP(I158,Eje_Pilar!$C$2:$E$47,3,FALSE)) -> Pilar 1 Igualdad de Calidad de Vida | L158: 3-3-1-15-01-03-1509-000 | M158: 522905841 | N158: SANDRA CAROLINA CORTES GUTIERREZ | O158: 52800000 | R158: 1 | S158: 3040000 | T158: 55840000 | U158: 51040000 | V158: 2019-02-11 | W158: 2019-02-12 | X158: 2020-01-11 | Y158: 330 | AC158: x | AF158: 0.9140401146 | AH158: =IF(SUMPRODUCT((A$14:A158=A158)*(B$14:B158=B158)*(C$14:C158=C158))>1,0,1) -> 1 | AI158: Contratos de prestación de servicios profesionales y de apoyo a la gestión | AJ158: Contratación directa | AK158: =IFERROR(VLOOKUP(F158,Tipo!$C$12:$C$27,1,FALSE),"NO") -> Prestación de servicios profesionales y de apoyo a la gestión, o para la ejecución de trabajos artísticos que sólo puedan encomendarse a determinadas personas naturales; | AL158: Inversión | AM158: 3
A159: 1472019 | B159: 2019 | C159: FDLSC-CPS-147-2019 | D159: Contratos de prestación de servicios profesionales y de apoyo a la gestión | E159: Contratación directa | F159: Prestación de servicios profesionales y de apoyo a la gestión, o para la ejecución de trabajos artísticos que sólo puedan encomendarse a determinadas personas naturales; | G159: PRESTAR LOS SERVICIOS PROFESIONALES PARA LA OPERACIÓN, PRESTACIÓN, SEGUIMIENTO Y CUMPLIMIENTO DE LOS PROCEDIMIENTOS ADMINISTRATIVOS, OPERATIVOS Y PROGRAMÁTICOS DEL SERVICIO APOYO ECONÓMICO TIPO C, QUE CONTRIBUYAN A LA GARANTÍA DE LOS DERECHOS DE LA POBLACIÓN MAYOR EN EL MARCO DE LA POLÍTICA PÚBLICA SOCIAL PARA EL ENVEJECIMIENTO Y LA VEJEZ EN EL DISTRITO CAPITAL A CARGO DE LA ALCALDÍA LOCAL. | H159: Inversión | I159: 3 | J159: =IF(ISERROR(VLOOKUP(I159,Eje_Pilar!$C$2:$E$47,2,FALSE))," ",VLOOKUP(I159,Eje_Pilar!$C$2:$E$47,2,FALSE)) -> Igualdad y autonomía para una Bogotá incluyente | K159: =IF(ISERROR(VLOOKUP(I159,Eje_Pilar!$C$2:$E$47,3,FALSE))," ",VLOOKUP(I159,Eje_Pilar!$C$2:$E$47,3,FALSE)) -> Pilar 1 Igualdad de Calidad de Vida | L159: 3-3-1-15-01-03-1509-000 | M159: 10229727671 | N159: LUZ YANETH MORENO OTALORA | O159: 52800000 | R159: 1 | S159: 3040000 | T159: 55840000 | U159: 51040000 | V159: 2019-02-11 | W159: 2019-02-12 | X159: 2020-01-11 | Y159: 330 | AC159: x | AF159: 0.9140401146 | AH159: =IF(SUMPRODUCT((A$14:A159=A159)*(B$14:B159=B159)*(C$14:C159=C159))>1,0,1) -> 1 | AI159: Contratos de prestación de servicios profesionales y de apoyo a la gestión | AJ159: Contratación directa | AK159: =IFERROR(VLOOKUP(F159,Tipo!$C$12:$C$27,1,FALSE),"NO") -> Prestación de servicios profesionales y de apoyo a la gestión, o para la ejecución de trabajos artísticos que sólo puedan encomendarse a determinadas personas naturales; | AL159: Inversión | AM159: 3
A160: 1482019 | B160: 2019 | C160: FDLSC-CPS-148-2019 | D160: Contratos de prestación de servicios profesionales y de apoyo a la gestión | E160: Contratación directa | F160: Prestación de servicios profesionales y de apoyo a la gestión, o para la ejecución de trabajos artísticos que sólo puedan encomendarse a determinadas personas naturales; | G160: PRESTAR LOS SERVICIOS TÉCNICOS PARA LA OPERACIÓN, SEGUIMIENTO Y CUMPLIMIENTO DE LOS PROCESOS Y PROCEDIMIENTOS DEL SERVICIO APOYOS PARA LA SEGURIDAD ECONÓMICA TIPO C, REQUERIDOS PARA EL OPORTUNO Y ADECUADO REGISTRO, CRUCE Y REPORTE DE LOS DATOS EN EL SISTEMA MISIONAL¿SIRBE, QUE CONTRIBUYAN A LA GARANTÍA DE LOS DERECHOS DE LA POBLACIÓN MAYOR EN EL MARCO DE LA POLÍTICA PÚBLICA SOCIAL PARA EL ENVEJECIMIENTO Y LA VEJEZ EN EL DISTRITO CAPITAL A CARGO DE LA ALCALDÍA LOCAL. | H160: Inversión | I160: 3 | J160: =IF(ISERROR(VLOOKUP(I160,Eje_Pilar!$C$2:$E$47,2,FALSE))," ",VLOOKUP(I160,Eje_Pilar!$C$2:$E$47,2,FALSE)) -> Igualdad y autonomía para una Bogotá incluyente | K160: =IF(ISERROR(VLOOKUP(I160,Eje_Pilar!$C$2:$E$47,3,FALSE))," ",VLOOKUP(I160,Eje_Pilar!$C$2:$E$47,3,FALSE)) -> Pilar 1 Igualdad de Calidad de Vida | L160: 3-3-1-15-01-03-1509-000 | M160: 10871204528 | N160: YESIKA GARCIA VALENCIA | O160: 35200000 | T160: 35200000 | U160: 30933320 | V160: 2019-02-11 | W160: 2019-02-11 | X160: 2020-01-10 | Y160: 330 | AC160: x | AF160: 0.8787875 | AH160: =IF(SUMPRODUCT((A$14:A160=A160)*(B$14:B160=B160)*(C$14:C160=C160))>1,0,1) -> 1 | AI160: Contratos de prestación de servicios profesionales y de apoyo a la gestión | AJ160: Contratación directa | AK160: =IFERROR(VLOOKUP(F160,Tipo!$C$12:$C$27,1,FALSE),"NO") -> Prestación de servicios profesionales y de apoyo a la gestión, o para la ejecución de trabajos artísticos que sólo puedan encomendarse a determinadas personas naturales; | AL160: Inversión | AM160: 3
A161: 1492019 | B161: 2019 | C161: FDLSC-CPS-149-2019 | D161: Contratos de prestación de servicios profesionales y de apoyo a la gestión | E161: Contratación directa | F161: Prestación de servicios profesionales y de apoyo a la gestión, o para la ejecución de trabajos artísticos que sólo puedan encomendarse a determinadas personas naturales; | G161: EL CONTRATISTA SE OBLIGA CON EL FONDO DE DESARROLLO LOCAL DE SAN CRISTOBAL A PRESTAR SERVICIOS PROFESIONALES ESPECIALIZADOS EN EL ÁREA DE GESTIÓN PARA EL DESARROLLO LOCAL PARA EL FORTALECIMIENTO DE LA FUNCIÓN ADMINISTRATIVA Y DESARROLLO INSTITUCIONAL DEL COMPONENTE SOCIAL EN CUMPLIMIENTO A LAS METAS ESTABLECIDAS EN EL PLAN DE DESARROLLO LOCAL 2017-2020 DE CONFORMIDAD CON LAS CONDICIONES Y OBLIGACIONES CONTENIDAS EN LOS ESTUDIOS PREVIOS | H161: Inversión | I161: 45 | J161: =IF(ISERROR(VLOOKUP(I161,Eje_Pilar!$C$2:$E$47,2,FALSE))," ",VLOOKUP(I161,Eje_Pilar!$C$2:$E$47,2,FALSE)) -> Gobernanza e influencia local, regional e internacional | K161: =IF(ISERROR(VLOOKUP(I161,Eje_Pilar!$C$2:$E$47,3,FALSE))," ",VLOOKUP(I161,Eje_Pilar!$C$2:$E$47,3,FALSE)) -> Eje Transversal 4 Gobierno Legitimo, Fortalecimiento Local y Eficiencia | L161: 3-3-1-15-07-45-1531-000 | M161: 790408050 | N161: ARGEMIRO RINCON ORTIZ | O161: 77440000 | R161: 1 | S161: 4224000 | T161: 81664000 | U161: 67584000 | V161: 2019-02-13 | W161: 2019-02-13 | X161: 2020-01-12 | Y161: 330 | AC161: x | AF161: 0.8275862069 | AH161: =IF(SUMPRODUCT((A$14:A161=A161)*(B$14:B161=B161)*(C$14:C161=C161))>1,0,1) -> 1 | AI161: Contratos de prestación de servicios profesionales y de apoyo a la gestión | AJ161: Contratación directa | AK161: =IFERROR(VLOOKUP(F161,Tipo!$C$12:$C$27,1,FALSE),"NO") -> Prestación de servicios profesionales y de apoyo a la gestión, o para la ejecución de trabajos artísticos que sólo puedan encomendarse a determinadas personas naturales; | AL161: Inversión | AM161: 45
A162: 1502019 | B162: 2019 | C162: FDLSC-CPS-150-2019 | D162: Contratos de prestación de servicios profesionales y de apoyo a la gestión | E162: Contratación directa | F162: Prestación de servicios profesionales y de apoyo a la gestión, o para la ejecución de trabajos artísticos que sólo puedan encomendarse a determinadas personas naturales; | G162: El CONTRATISTA SE OBLIGA CON EL FONDO DE DESARROLLO LOCAL DE SAN CRISTOBAL A PRESTAR SERVICIOS PROFESIONALES PARA APOYAR LA GESTIÓN JURÍDICA DE LAS CASA DEL CONSUMIDOR EN EL MARCO DEL CONVENIO 1258 DE 2016. | H162: Inversión | I162: 45 | J162: =IF(ISERROR(VLOOKUP(I162,Eje_Pilar!$C$2:$E$47,2,FALSE))," ",VLOOKUP(I162,Eje_Pilar!$C$2:$E$47,2,FALSE)) -> Gobernanza e influencia local, regional e internacional | K162: =IF(ISERROR(VLOOKUP(I162,Eje_Pilar!$C$2:$E$47,3,FALSE))," ",VLOOKUP(I162,Eje_Pilar!$C$2:$E$47,3,FALSE)) -> Eje Transversal 4 Gobierno Legitimo, Fortalecimiento Local y Eficiencia | L162: 3-3-1-15-07-45-1531-000 | M162: 798905360 | N162: OMAR ALBERTO IBAÑEZ JIMENEZ | O162: 53636000 | R162: 1 | S162: 2600553 | T162: 56236553 | U162: 46484533 | V162: 2019-02-15 | W162: 2019-02-15 | X162: 2020-01-14 | Y162: 330 | AC162: x | AF162: 0.8265893004 | AH162: =IF(SUMPRODUCT((A$14:A162=A162)*(B$14:B162=B162)*(C$14:C162=C162))>1,0,1) -> 1 | AI162: Contratos de prestación de servicios profesionales y de apoyo a la gestión | AJ162: Contratación directa | AK162: =IFERROR(VLOOKUP(F162,Tipo!$C$12:$C$27,1,FALSE),"NO") -> Prestación de servicios profesionales y de apoyo a la gestión, o para la ejecución de trabajos artísticos que sólo puedan encomendarse a determinadas personas naturales; | AL162: Inversión | AM162: 45
A163: 1512019 | B163: 2019 | C163: FDLSC-CPS-151-2019 | D163: Contratos de prestación de servicios profesionales y de apoyo a la gestión | E163: Contratación directa | F163: Prestación de servicios profesionales y de apoyo a la gestión, o para la ejecución de trabajos artísticos que sólo puedan encomendarse a determinadas personas naturales; | G163: EL CONTRATISTA SE OBLIGA PARA CON LA ALCALDÍA LOCAL DE SAN CRISTOBAL A PRESTAR SUS SERVICIOS EN EL ÁREA DE GESTIÓN DE DESARROLLO LOCAL ¿ CDI, PARA LA ATENCION, RECEPCION Y TRAMITE DE LOS DOCUMENTOS Y CORRESPONDENCIA EN GENERAL, EN EL HORARIO DE ATENCION ESTABLECIDO POR LA SECRETARIA DISTRITAL DE GOBIERNO. | H163: Inversión | I163: 45 | J163: =IF(ISERROR(VLOOKUP(I163,Eje_Pilar!$C$2:$E$47,2,FALSE))," ",VLOOKUP(I163,Eje_Pilar!$C$2:$E$47,2,FALSE)) -> Gobernanza e influencia local, regional e internacional | K163: =IF(ISERROR(VLOOKUP(I163,Eje_Pilar!$C$2:$E$47,3,FALSE))," ",VLOOKUP(I163,Eje_Pilar!$C$2:$E$47,3,FALSE)) -> Eje Transversal 4 Gobierno Legitimo, Fortalecimiento Local y Eficiencia | L163: 3-3-1-15-07-45-1531-000 | M163: 10190163954 | N163: LADY YOLANDA GOMEZ MORENO | O163: 24835800 | T163: 24835800 | U163: 21298580 | V163: 2019-02-18 | W163: 2019-02-18 | X163: 2020-01-17 | Y163: 330 | AC163: x | AF163: 0.8575757576 | AH163: =IF(SUMPRODUCT((A$14:A163=A163)*(B$14:B163=B163)*(C$14:C163=C163))>1,0,1) -> 1 | AI163: Contratos de prestación de servicios profesionales y de apoyo a la gestión | AJ163: Contratación directa | AK163: =IFERROR(VLOOKUP(F163,Tipo!$C$12:$C$27,1,FALSE),"NO") -> Prestación de servicios profesionales y de apoyo a la gestión, o para la ejecución de trabajos artísticos que sólo puedan encomendarse a determinadas personas naturales; | AL163: Inversión | AM163: 45
A164: 1522019 | B164: 2019 | C164: FDLSC-CPS-152-2019 | D164: Contratos de prestación de servicios profesionales y de apoyo a la gestión | E164: Contratación directa | F164: Prestación de servicios profesionales y de apoyo a la gestión, o para la ejecución de trabajos artísticos que sólo puedan encomendarse a determinadas personas naturales; | G164: EL CONTRATISTA SE OBLIGA PARA CON LA ALCALDÍA LOCAL DE SAN CRISTOBAL A PRESTAR SUS SERVICIOS EN EL ÁREA DE GESTIÓN DE DESARROLLO LOCAL ¿ CDI, PARA LA ATENCION, RECEPCION Y TRAMITE DE LOS DOCUMENTOS Y CORRESPONDENCIA EN GENERAL, EN EL HORARIO DE ATENCION ESTABLECIDO POR LA SECRETARIA DISTRITAL DE GOBIERNO. | H164: Inversión | I164: 45 | J164: =IF(ISERROR(VLOOKUP(I164,Eje_Pilar!$C$2:$E$47,2,FALSE))," ",VLOOKUP(I164,Eje_Pilar!$C$2:$E$47,2,FALSE)) -> Gobernanza e influencia local, regional e internacional | K164: =IF(ISERROR(VLOOKUP(I164,Eje_Pilar!$C$2:$E$47,3,FALSE))," ",VLOOKUP(I164,Eje_Pilar!$C$2:$E$47,3,FALSE)) -> Eje Transversal 4 Gobierno Legitimo, Fortalecimiento Local y Eficiencia | L164: 3-3-1-15-07-45-1531-000 | M164: 801195551 | N164: JORGE CAMILO PUENTES LOPEZ | O164: 24835800 | R164: 1 | S164: 1354680 | T164: 26190480 | U164: 23932680 | V164: 2019-02-13 | W164: 2019-02-13 | X164: 2020-01-12 | Y164: 330 | AC164: x | AF164: 0.9137931034 | AH164: =IF(SUMPRODUCT((A$14:A164=A164)*(B$14:B164=B164)*(C$14:C164=C164))>1,0,1) -> 1 | AI164: Contratos de prestación de servicios profesionales y de apoyo a la gestión | AJ164: Contratación directa | AK164: =IFERROR(VLOOKUP(F164,Tipo!$C$12:$C$27,1,FALSE),"NO") -> Prestación de servicios profesionales y de apoyo a la gestión, o para la ejecución de trabajos artísticos que sólo puedan encomendarse a determinadas personas naturales; | AL164: Inversión | AM164: 45
A165: 1532019 | B165: 2019 | C165: FDLSC-CPS-153-2019 | D165: Contratos de prestación de servicios profesionales y de apoyo a la gestión | E165: Contratación directa | F165: Prestación de servicios profesionales y de apoyo a la gestión, o para la ejecución de trabajos artísticos que sólo puedan encomendarse a determinadas personas naturales; | G165: EL CONTRATISTA SE OBLIGA CON EL FONDO DE DESARROLLO LOCAL DE SAN CRISTOBAL A PRESTAR SERVICIOS PROFESIONALES ESPECIALIZADOS EN EL AREA DE GESTION DE DESARROLLO LOCAL PARA LA FORMULACIÓN Y EL SEGUIMIENTO DE LOS PROYECTOS DE GESTIÓN AMBIENTAL, EN CUMPLIMIENTO A LAS METAS ESTABLECIDAS EN EL "PLAN DE DESARROLLO LOCAL 2017-2020" DE CONFORMIDAD CON LAS CONDICIONES Y OBLIGACIONES CONTENIDAS EN LOS ESTUDIOS PREVIOS. | H165: Inversión | I165: 45 | J165: =IF(ISERROR(VLOOKUP(I165,Eje_Pilar!$C$2:$E$47,2,FALSE))," ",VLOOKUP(I165,Eje_Pilar!$C$2:$E$47,2,FALSE)) -> Gobernanza e influencia local, regional e internacional | K165: =IF(ISERROR(VLOOKUP(I165,Eje_Pilar!$C$2:$E$47,3,FALSE))," ",VLOOKUP(I165,Eje_Pilar!$C$2:$E$47,3,FALSE)) -> Eje Transversal 4 Gobierno Legitimo, Fortalecimiento Local y Eficiencia | L165: 3-3-1-15-07-45-1531-000 | M165: 194623156 | N165: PEDRO JULIO ALDANA ALONSO | O165: 77440000 | R165: 1 | S165: 4224000 | T165: 81664000 | U165: 67584000 | V165: 2019-02-13 | W165: 2019-02-13 | X165: 2020-01-12 | Y165: 330 | AC165: x | AF165: 0.8275862069 | AH165: =IF(SUMPRODUCT((A$14:A165=A165)*(B$14:B165=B165)*(C$14:C165=C165))>1,0,1) -> 1 | AI165: Contratos de prestación de servicios profesionales y de apoyo a la gestión | AJ165: Contratación directa | AK165: =IFERROR(VLOOKUP(F165,Tipo!$C$12:$C$27,1,FALSE),"NO") -> Prestación de servicios profesionales y de apoyo a la gestión, o para la ejecución de trabajos artísticos que sólo puedan encomendarse a determinadas personas naturales; | AL165: Inversión | AM165: 45
A166: 1542019 | B166: 2019 | C166: FDLSC-CPS-154-2019 | D166: Contratos de prestación de servicios profesionales y de apoyo a la gestión | E166: Contratación directa | F166: Prestación de servicios profesionales y de apoyo a la gestión, o para la ejecución de trabajos artísticos que sólo puedan encomendarse a determinadas personas naturales; | G166: EL CONTRATISTA SE OBLIGA PARA CON EL FONDO DE DESARROLLO LOCAL DE SAN CRISTOBAL A PRESTAR SUS SERVICIOS TÉCNICOS EN EL ÁREA GESTION POLICIVA PARA APOYAR EL TRAMITE ADMINISTRATIVO Y REALIZAR ACOMPAÑAMIENTO EN LA REALIZACIÓN DE DESPACHOS COMISORIOS, EN LA ATENCIÓN A LA COMUNIDAD EN GENERAL | H166: Inversión | I166: 45 | J166: =IF(ISERROR(VLOOKUP(I166,Eje_Pilar!$C$2:$E$47,2,FALSE))," ",VLOOKUP(I166,Eje_Pilar!$C$2:$E$47,2,FALSE)) -> Gobernanza e influencia local, regional e internacional | K166: =IF(ISERROR(VLOOKUP(I166,Eje_Pilar!$C$2:$E$47,3,FALSE))," ",VLOOKUP(I166,Eje_Pilar!$C$2:$E$47,3,FALSE)) -> Eje Transversal 4 Gobierno Legitimo, Fortalecimiento Local y Eficiencia | L166: 3-3-1-15-07-45-1531-000 | M166: 10238853544 | N166: JENNY PAOLA MARTINEZ CELY | O166: 38500000 | R166: 1 | S166: 1866667 | T166: 40366667 | U166: 36866666 | V166: 2019-02-14 | W166: 2019-02-15 | X166: 2020-01-14 | Y166: 330 | AC166: x | AF166: 0.9132947736 | AH166: =IF(SUMPRODUCT((A$14:A166=A166)*(B$14:B166=B166)*(C$14:C166=C166))>1,0,1) -> 1 | AI166: Contratos de prestación de servicios profesionales y de apoyo a la gestión | AJ166: Contratación directa | AK166: =IFERROR(VLOOKUP(F166,Tipo!$C$12:$C$27,1,FALSE),"NO") -> Prestación de servicios profesionales y de apoyo a la gestión, o para la ejecución de trabajos artísticos que sólo puedan encomendarse a determinadas personas naturales; | AL166: Inversión | AM166: 45
A167: 1552019 | B167: 2019 | C167: FDLSC-CPS-155-2019 | D167: Contratos de prestación de servicios profesionales y de apoyo a la gestión | E167: Contratación directa | F167: Prestación de servicios profesionales y de apoyo a la gestión, o para la ejecución de trabajos artísticos que sólo puedan encomendarse a determinadas personas naturales; | G167: EL CONTRATISTA SE OBLIGA PARA CON EL FONDO DE DESARROLLO LOCAL DE SAN CRISTÓBAL A PRESTAR SUS SERVICIOS TÉCNICOS EN EL ÁREA GESTIÓN POLICIVA - JURÍDICA PARA APOYAR LA GESTIÓN ADMINISTRATIVA Y JURÍDICA EN EL TRAMITE DE DOCUMENTACIÓN Y RESPUESTAS A TODAS LAS SOLICITUDES DENTRO DE LOS TÉRMINOS ESTABLECIDOS Y APOYAR LA GESTIÓN DEL CONSEJO LOCAL DE SEGURIDAD | H167: Inversión | I167: 45 | J167: =IF(ISERROR(VLOOKUP(I167,Eje_Pilar!$C$2:$E$47,2,FALSE))," ",VLOOKUP(I167,Eje_Pilar!$C$2:$E$47,2,FALSE)) -> Gobernanza e influencia local, regional e internacional | K167: =IF(ISERROR(VLOOKUP(I167,Eje_Pilar!$C$2:$E$47,3,FALSE))," ",VLOOKUP(I167,Eje_Pilar!$C$2:$E$47,3,FALSE)) -> Eje Transversal 4 Gobierno Legitimo, Fortalecimiento Local y Eficiencia | L167: 3-3-1-15-07-45-1531-000 | M167: 10160403417 | N167: LEIDY STELANNIA CALDERON SALAMANCA | O167: 38500000 | R167: 1 | S167: 1866666 | T167: 40366666 | U167: 1866666 | V167: 2019-02-14 | W167: 2019-02-15 | X167: 2020-01-14 | Y167: 330 | AC167: x | AF167: 0.04624275881 | AH167: =IF(SUMPRODUCT((A$14:A167=A167)*(B$14:B167=B167)*(C$14:C167=C167))>1,0,1) -> 1 | AI167: Contratos de prestación de servicios profesionales y de apoyo a la gestión | AJ167: Contratación directa | AK167: =IFERROR(VLOOKUP(F167,Tipo!$C$12:$C$27,1,FALSE),"NO") -> Prestación de servicios profesionales y de apoyo a la gestión, o para la ejecución de trabajos artísticos que sólo puedan encomendarse a determinadas personas naturales; | AL167: Inversión | AM167: 45
A168: 1562019 | B168: 2019 | C168: FDLSC-CPS-156-2019 | D168: Contratos de prestación de servicios profesionales y de apoyo a la gestión | E168: Contratación directa | F168: Prestación de servicios profesionales y de apoyo a la gestión, o para la ejecución de trabajos artísticos que sólo puedan encomendarse a determinadas personas naturales; | G168: EL CONTRATISTA SE OBLIGA PARA CON EL FONDO DE DESARROLLO LOCAL A PRESTAR SUS SERVICIOS TECNICOS PARA APOYAR EL FORTALECIMIENTO DE LA GESTION LOCAL DEL RIESGO Y CAMBIO CLIMATICO EN EL MARCO DEL SISTEMA DISTRITAL DE GESTION DE RIESGOS Y CAMBIO CLIMATICO DSGR-CC | H168: Inversión | I168: 45 | J168: =IF(ISERROR(VLOOKUP(I168,Eje_Pilar!$C$2:$E$47,2,FALSE))," ",VLOOKUP(I168,Eje_Pilar!$C$2:$E$47,2,FALSE)) -> Gobernanza e influencia local, regional e internacional | K168: =IF(ISERROR(VLOOKUP(I168,Eje_Pilar!$C$2:$E$47,3,FALSE))," ",VLOOKUP(I168,Eje_Pilar!$C$2:$E$47,3,FALSE)) -> Eje Transversal 4 Gobierno Legitimo, Fortalecimiento Local y Eficiencia | L168: 3-3-1-15-01-04-1579-000 | M168: 10311484391 | N168: JUAN SEBASTIAN RODRIGUEZ AMARILLO | O168: 38500000 | T168: 38500000 | U168: 37100000 | V168: 2019-02-13 | W168: 2019-02-13 | X168: 2020-01-12 | Y168: 330 | AC168: x | AF168: 0.9636363636 | AH168: =IF(SUMPRODUCT((A$14:A168=A168)*(B$14:B168=B168)*(C$14:C168=C168))>1,0,1) -> 1 | AI168: Contratos de prestación de servicios profesionales y de apoyo a la gestión | AJ168: Contratación directa | AK168: =IFERROR(VLOOKUP(F168,Tipo!$C$12:$C$27,1,FALSE),"NO") -> Prestación de servicios profesionales y de apoyo a la gestión, o para la ejecución de trabajos artísticos que sólo puedan encomendarse a determinadas personas naturales; | AL168: Inversión | AM168: 45
A169: 1572019 | B169: 2019 | C169: FDLSC-CPS-157-2019 | D169: Contratos de prestación de servicios profesionales y de apoyo a la gestión | E169: Contratación directa | F169: Prestación de servicios profesionales y de apoyo a la gestión, o para la ejecución de trabajos artísticos que sólo puedan encomendarse a determinadas personas naturales; | G169: EL CONTRATISTA SE OBLIGA PARA CON LA ALCALDÍA LOCAL DE SAN CRISTOBAL A PRESTAR SUS SERVICIOS TECNICOS EN EL AREA DE GESTION DEL DESARROLLO LOCAL PARA LA GESTION DOCUMENTAL, CON EL FIN DE RECEPCIONAR, REVISAR, ORGANIZAR, CLASIFICAR Y PRESERVAR LA DOCUMENTACION DE LA ENTIDAD Y PROPORCIONAR SEGURIDAD DE LOS ARCHIVOS Y DOCUMENTOS DE CADA UNA DE LAS DEPENDENCIAS DE LA ALCADIA LOCAL, REALIZANDO LAS ACTIVIDADES QUE REQUIERA EL ARCHIVO, SEGÚN LOS PROGRAMAS Y PROCEDIMIENTOS ESTABLECIDOS. | H169: Inversión | I169: 45 | J169: =IF(ISERROR(VLOOKUP(I169,Eje_Pilar!$C$2:$E$47,2,FALSE))," ",VLOOKUP(I169,Eje_Pilar!$C$2:$E$47,2,FALSE)) -> Gobernanza e influencia local, regional e internacional | K169: =IF(ISERROR(VLOOKUP(I169,Eje_Pilar!$C$2:$E$47,3,FALSE))," ",VLOOKUP(I169,Eje_Pilar!$C$2:$E$47,3,FALSE)) -> Eje Transversal 4 Gobierno Legitimo, Fortalecimiento Local y Eficiencia | L169: 3-3-1-15-07-45-1531-000 | M169: 10239591787 | N169: YEIMY CAMILA TRIANA VIGOYA | O169: 34980000 | R169: 1 | S169: 1696000 | T169: 36676000 | U169: 33496000 | V169: 2019-02-15 | W169: 2019-02-15 | X169: 2020-01-14 | Y169: 330 | AC169: x | AF169: 0.9132947977 | AH169: =IF(SUMPRODUCT((A$14:A169=A169)*(B$14:B169=B169)*(C$14:C169=C169))>1,0,1) -> 1 | AI169: Contratos de prestación de servicios profesionales y de apoyo a la gestión | AJ169: Contratación directa | AK169: =IFERROR(VLOOKUP(F169,Tipo!$C$12:$C$27,1,FALSE),"NO") -> Prestación de servicios profesionales y de apoyo a la gestión, o para la ejecución de trabajos artísticos que sólo puedan encomendarse a determinadas personas naturales; | AL169: Inversión | AM169: 45
A170: 1582019 | B170: 2019 | C170: FDLSC-CPS-158-2019 | D170: Contratos de prestación de servicios profesionales y de apoyo a la gestión | E170: Contratación directa | F170: Prestación de servicios profesionales y de apoyo a la gestión, o para la ejecución de trabajos artísticos que sólo puedan encomendarse a determinadas personas naturales; | G170: EL CONTRATISTA SE OBLIGA PARA CON EL FONDO DE DESARROLLO LOCAL DE SAN CRISTOBAL A PRESTAR SUS SERVICIOS PERSONALES EN EL AREA GESTION POLICIVA, EN LA ATENCION A LA COMUNIDAD EN GENERAL Y DIRECCIONAMIENTO DE SUS SOLICITUDES VERBALES Y/O ESCRITAS | H170: Inversión | I170: 45 | J170: =IF(ISERROR(VLOOKUP(I170,Eje_Pilar!$C$2:$E$47,2,FALSE))," ",VLOOKUP(I170,Eje_Pilar!$C$2:$E$47,2,FALSE)) -> Gobernanza e influencia local, regional e internacional | K170: =IF(ISERROR(VLOOKUP(I170,Eje_Pilar!$C$2:$E$47,3,FALSE))," ",VLOOKUP(I170,Eje_Pilar!$C$2:$E$47,3,FALSE)) -> Eje Transversal 4 Gobierno Legitimo, Fortalecimiento Local y Eficiencia | L170: 3-3-1-15-07-45-1531-000 | M170: 10324278268 | N170: ANGEE KATHERINE AVILA RODRIGUEZ | O170: 24860000 | R170: 1 | S170: 1205333 | T170: 26065333 | U170: 4705333 | V170: 2019-02-14 | W170: 2019-02-15 | X170: 2020-01-14 | Y170: 330 | AC170: x | AF170: 0.1805207323 | AH170: =IF(SUMPRODUCT((A$14:A170=A170)*(B$14:B170=B170)*(C$14:C170=C170))>1,0,1) -> 1 | AI170: Contratos de prestación de servicios profesionales y de apoyo a la gestión | AJ170: Contratación directa | AK170: =IFERROR(VLOOKUP(F170,Tipo!$C$12:$C$27,1,FALSE),"NO") -> Prestación de servicios profesionales y de apoyo a la gestión, o para la ejecución de trabajos artísticos que sólo puedan encomendarse a determinadas personas naturales; | AL170: Inversión | AM170: 45
A171: 1592019 | B171: 2019 | C171: FDLSC-CPS-159-2019 | D171: Contratos de prestación de servicios profesionales y de apoyo a la gestión | E171: Contratación directa | F171: Prestación de servicios profesionales y de apoyo a la gestión, o para la ejecución de trabajos artísticos que sólo puedan encomendarse a determinadas personas naturales; | G171: APOYAR LA FORMULACION, EJECUCION, SEGUIMIENTO Y MEJORA CONTINUA DE LAS HERRAMIENTAS QUE CONFORMAN LA GESTION AMBIENTAL INSTITUCIONAL DE LA ALCALDIA LOCA | H171: Inversión | I171: 45 | J171: =IF(ISERROR(VLOOKUP(I171,Eje_Pilar!$C$2:$E$47,2,FALSE))," ",VLOOKUP(I171,Eje_Pilar!$C$2:$E$47,2,FALSE)) -> Gobernanza e influencia local, regional e internacional | K171: =IF(ISERROR(VLOOKUP(I171,Eje_Pilar!$C$2:$E$47,3,FALSE))," ",VLOOKUP(I171,Eje_Pilar!$C$2:$E$47,3,FALSE)) -> Eje Transversal 4 Gobierno Legitimo, Fortalecimiento Local y Eficiencia | L171: 3-3-1-15-07-45-1531-000 | M171: 798474457 | N171: JULIO CESAR ESPAÑOL SARMIENTO | O171: 52470000 | S171: 2703000 | T171: 55173000 | U171: 50403000 | V171: 2019-02-14 | W171: 2019-02-14 | X171: 2020-01-13 | Y171: 330 | AC171: x | AF171: 0.9135446686 | AH171: =IF(SUMPRODUCT((A$14:A171=A171)*(B$14:B171=B171)*(C$14:C171=C171))>1,0,1) -> 1 | AI171: Contratos de prestación de servicios profesionales y de apoyo a la gestión | AJ171: Contratación directa | AK171: =IFERROR(VLOOKUP(F171,Tipo!$C$12:$C$27,1,FALSE),"NO") -> Prestación de servicios profesionales y de apoyo a la gestión, o para la ejecución de trabajos artísticos que sólo puedan encomendarse a determinadas personas naturales; | AL171: Inversión | AM171: 45
A172: 1602019 | B172: 2019 | C172: FDLSC-CPS-160-2019 | D172: Contratos de prestación de servicios profesionales y de apoyo a la gestión | E172: Contratación directa | F172: Prestación de servicios profesionales y de apoyo a la gestión, o para la ejecución de trabajos artísticos que sólo puedan encomendarse a determinadas personas naturales; | G172: EL CONTRATISTA SE OBLIGA PARA CON EL FONDO DE DESARROLLO LOCAL DE SAN CRISTÓBAL A PRESTAR SUS SERVICIOS PROFESIONALES PARA EL ÁREA DE GESTIÓN POLICIVA JURÍDICA DE LA ALCALDÍA LOCAL DE SAN CRISTÓBAL Y EN LA GESTIÓN DE ACTUACIONES JURÍDICAS DE LA ENTIDAD EN LO CONCERNIENTE AL CUMPLIMIENTO DEL FALLO DEL CONSEJO DE ESTADO EN LA ACCIÓN POPULAR NO. 25000232500020050066203 RESPECTO DE LA IVC DE LOS CERROS EN EL MARCO DEL PLAN DE DESARROLLO LOCAL ¿SAN CRISTÓBAL MEJOR PARA TODOS: UNA LOCALIDAD SANA, FELIZ Y EN PAZ | H172: Inversión | I172: 45 | J172: =IF(ISERROR(VLOOKUP(I172,Eje_Pilar!$C$2:$E$47,2,FALSE))," ",VLOOKUP(I172,Eje_Pilar!$C$2:$E$47,2,FALSE)) -> Gobernanza e influencia local, regional e internacional | K172: =IF(ISERROR(VLOOKUP(I172,Eje_Pilar!$C$2:$E$47,3,FALSE))," ",VLOOKUP(I172,Eje_Pilar!$C$2:$E$47,3,FALSE)) -> Eje Transversal 4 Gobierno Legitimo, Fortalecimiento Local y Eficiencia | L172: 3-3-1-15-07-45-1531-000 | M172: 803549029 | N172: NESTOR MIGUEL PULECIO ESPINOSA | O172: 33250000 | R172: 1 | S172: 16625000 | T172: 49875000 | U172: 33250000 | V172: 2019-02-15 | W172: 2019-02-18 | X172: 2019-09-17 | Y172: 210 | AC172: x | AF172: 0.6666666667 | AH172: =IF(SUMPRODUCT((A$14:A172=A172)*(B$14:B172=B172)*(C$14:C172=C172))>1,0,1) -> 1 | AI172: Contratos de prestación de servicios profesionales y de apoyo a la gestión | AJ172: Contratación directa | AK172: =IFERROR(VLOOKUP(F172,Tipo!$C$12:$C$27,1,FALSE),"NO") -> Prestación de servicios profesionales y de apoyo a la gestión, o para la ejecución de trabajos artísticos que sólo puedan encomendarse a determinadas personas naturales; | AL172: Inversión | AM172: 45
A173: 1612019 | B173: 2019 | C173: FDLSC-CPS-161-2019 | D173: Contratos de prestación de servicios profesionales y de apoyo a la gestión | E173: Contratación directa | F173: Prestación de servicios profesionales y de apoyo a la gestión, o para la ejecución de trabajos artísticos que sólo puedan encomendarse a determinadas personas naturales; | G173: EL CONTRATISTA SE OBLIGA CON EL FONDO DE DESARROLLO LOCAL DE SAN CRISTOBAL A PRESTAR SERVICIOS PROFESIONALES ESPECIALIZADOS EN EL AREA DE GESTION PARA EL DESARROLLO LOCAL PARA LA FORMULACION Y EL SEGUIMIENTO DE LOS PROYECTOS DE INCLUSION Y GESTION COMUNITARIA Y LA ESTRATEGIA DE ABORDAJE COMUNITARIO GOBIERNO TODO TERRENO EN CUMPLIMIENTO A LAS METAS ESTABLECIDAS EN EL "PLAN DE DESARROLLO LOCAL 2017-2020" DE CONFORMIDAD CON LAS CONDICIONES Y OBLIGACIONES CONTENIDAS EN LOS ESTUDIOS PREVIOS. | H173: Inversión | I173: 45 | J173: =IF(ISERROR(VLOOKUP(I173,Eje_Pilar!$C$2:$E$47,2,FALSE))," ",VLOOKUP(I173,Eje_Pilar!$C$2:$E$47,2,FALSE)) -> Gobernanza e influencia local, regional e internacional | K173: =IF(ISERROR(VLOOKUP(I173,Eje_Pilar!$C$2:$E$47,3,FALSE))," ",VLOOKUP(I173,Eje_Pilar!$C$2:$E$47,3,FALSE)) -> Eje Transversal 4 Gobierno Legitimo, Fortalecimiento Local y Eficiencia | L173: 3-3-1-15-07-45-1531-000 | M173: 10262571591 | N173: LEIDY TATIANA ROMERO ABRIL | O173: 77440000 | R173: 1 | S173: 3989333 | T173: 81429333 | U173: 66880000 | V173: 2019-02-14 | W173: 2019-02-14 | X173: 2020-01-13 | Y173: 330 | AC173: x | AF173: 0.8213256518 | AH173: =IF(SUMPRODUCT((A$14:A173=A173)*(B$14:B173=B173)*(C$14:C173=C173))>1,0,1) -> 1 | AI173: Contratos de prestación de servicios profesionales y de apoyo a la gestión | AJ173: Contratación directa | AK173: =IFERROR(VLOOKUP(F173,Tipo!$C$12:$C$27,1,FALSE),"NO") -> Prestación de servicios profesionales y de apoyo a la gestión, o para la ejecución de trabajos artísticos que sólo puedan encomendarse a determinadas personas naturales; | AL173: Inversión | AM173: 45
A174: 1622019 | B174: 2019 | C174: FDLSC-CPS-162-2019 | D174: Contratos de prestación de servicios profesionales y de apoyo a la gestión | E174: Contratación directa | F174: Prestación de servicios profesionales y de apoyo a la gestión, o para la ejecución de trabajos artísticos que sólo puedan encomendarse a determinadas personas naturales; | G174: EL CONTRATISTA SE OBLIGA CON EL FONDO DE DESARROLLO LOCAL DE SAN CRISTÓBAL A PRESTAR SUS SERVICIOS PERSONALES PARA APOYAR LA GESTIÓN LOCAL EN EL DESARROLLO DE LA ESTRATEGIA PARA EL MANEJO INTEGRAL DE PUNTOS CRÍTICOS POR ACUMULACIÓN DE RESIDUOS SÓLIDOS CON ENFOQUE COMUNITARIO DENOMINADA ¿JUÉGALE LIMPIO A SAN CRISTÓBAL | H174: Inversión | I174: 45 | J174: =IF(ISERROR(VLOOKUP(I174,Eje_Pilar!$C$2:$E$47,2,FALSE))," ",VLOOKUP(I174,Eje_Pilar!$C$2:$E$47,2,FALSE)) -> Gobernanza e influencia local, regional e internacional | K174: =IF(ISERROR(VLOOKUP(I174,Eje_Pilar!$C$2:$E$47,3,FALSE))," ",VLOOKUP(I174,Eje_Pilar!$C$2:$E$47,3,FALSE)) -> Eje Transversal 4 Gobierno Legitimo, Fortalecimiento Local y Eficiencia | L174: 3-3-1-15-07-45-1531-000 | M174: 10536058229 | N174: WILLIAM ALBEIRO SUAREZ MONROY | O174: 24200000 | S174: 1320000 | T174: 25520000 | U174: 23320000 | V174: 2019-02-13 | W174: 2019-02-13 | X174: 2020-01-12 | Y174: 330 | AC174: x | AF174: 0.9137931034 | AH174: =IF(SUMPRODUCT((A$14:A174=A174)*(B$14:B174=B174)*(C$14:C174=C174))>1,0,1) -> 1 | AI174: Contratos de prestación de servicios profesionales y de apoyo a la gestión | AJ174: Contratación directa | AK174: =IFERROR(VLOOKUP(F174,Tipo!$C$12:$C$27,1,FALSE),"NO") -> Prestación de servicios profesionales y de apoyo a la gestión, o para la ejecución de trabajos artísticos que sólo puedan encomendarse a determinadas personas naturales; | AL174: Inversión | AM174: 45
A175: 1632019 | B175: 2019 | C175: FDLSC-CPS-163-2019 | D175: Contratos de prestación de servicios profesionales y de apoyo a la gestión | E175: Contratación directa | F175: Prestación de servicios profesionales y de apoyo a la gestión, o para la ejecución de trabajos artísticos que sólo puedan encomendarse a determinadas personas naturales; | G175: EL CONTRATISTA SE OBLIGA CON EL FONDO DE DESARROLLO LOCAL DE SAN CRISTÓBAL A PRESTAR SUS SERVICIOS PERSONALES PARA APOYAR LA GESTIÓN LOCAL EN EL DESARROLLO DE LA ESTRATEGIA PARA EL MANEJO INTEGRAL DE PUNTOS CRÍTICOS POR ACUMULACIÓN DE RESIDUOS SÓLIDOS CON ENFOQUE COMUNITARIO DENOMINADA ¿JUÉGALE LIMPIO A SAN CRISTÓBAL110211022019 | H175: Inversión | I175: 45 | J175: =IF(ISERROR(VLOOKUP(I175,Eje_Pilar!$C$2:$E$47,2,FALSE))," ",VLOOKUP(I175,Eje_Pilar!$C$2:$E$47,2,FALSE)) -> Gobernanza e influencia local, regional e internacional | K175: =IF(ISERROR(VLOOKUP(I175,Eje_Pilar!$C$2:$E$47,3,FALSE))," ",VLOOKUP(I175,Eje_Pilar!$C$2:$E$47,3,FALSE)) -> Eje Transversal 4 Gobierno Legitimo, Fortalecimiento Local y Eficiencia | L175: 3-3-1-15-07-45-1531-000 | M175: 10323579661 | N175: JULIA CAROLINA GOMEZ BECERRA | O175: 24200000 | S175: 1320000 | T175: 25520000 | U175: 23320000 | V175: 2019-02-13 | W175: 2019-02-13 | X175: 2020-01-12 | Y175: 330 | AC175: x | AF175: 0.9137931034 | AH175: =IF(SUMPRODUCT((A$14:A175=A175)*(B$14:B175=B175)*(C$14:C175=C175))>1,0,1) -> 1 | AI175: Contratos de prestación de servicios profesionales y de apoyo a la gestión | AJ175: Contratación directa | AK175: =IFERROR(VLOOKUP(F175,Tipo!$C$12:$C$27,1,FALSE),"NO") -> Prestación de servicios profesionales y de apoyo a la gestión, o para la ejecución de trabajos artísticos que sólo puedan encomendarse a determinadas personas naturales; | AL175: Inversión | AM175: 45
A176: 1642019 | B176: 2019 | C176: FDLSC-CPS-164-2019 | D176: Contratos de prestación de servicios profesionales y de apoyo a la gestión | E176: Contratación directa | F176: Prestación de servicios profesionales y de apoyo a la gestión, o para la ejecución de trabajos artísticos que sólo puedan encomendarse a determinadas personas naturales; | G176: EL CONTRATISTA SE OBLIGA CON EL FONDO DE DESARROLLO LOCAL DE SAN CRISTÓBAL A PRESTAR SUS SERVICIOS PERSONALES PARA APOYAR LA GESTIÓN LOCAL EN EL DESARROLLO DE LA ESTRATEGIA PARA EL MANEJO INTEGRAL DE PUNTOS CRÍTICOS POR ACUMULACIÓN DE RESIDUOS SÓLIDOS CON ENFOQUE COMUNITARIO DENOMINADA ¿JUÉGALE LIMPIO A SAN CRISTÓBAL | H176: Inversión | I176: 45 | J176: =IF(ISERROR(VLOOKUP(I176,Eje_Pilar!$C$2:$E$47,2,FALSE))," ",VLOOKUP(I176,Eje_Pilar!$C$2:$E$47,2,FALSE)) -> Gobernanza e influencia local, regional e internacional | K176: =IF(ISERROR(VLOOKUP(I176,Eje_Pilar!$C$2:$E$47,3,FALSE))," ",VLOOKUP(I176,Eje_Pilar!$C$2:$E$47,3,FALSE)) -> Eje Transversal 4 Gobierno Legitimo, Fortalecimiento Local y Eficiencia | L176: 3-3-1-15-07-45-1531-000 | M176: 10008016086 | N176: JENNY VERONICA OSORIO CASTRO | O176: 24200000 | S176: 1320000 | T176: 25520000 | U176: 23320000 | V176: 2019-02-13 | W176: 2019-02-13 | X176: 2020-01-12 | Y176: 330 | AC176: x | AF176: 0.9137931034 | AH176: =IF(SUMPRODUCT((A$14:A176=A176)*(B$14:B176=B176)*(C$14:C176=C176))>1,0,1) -> 1 | AI176: Contratos de prestación de servicios profesionales y de apoyo a la gestión | AJ176: Contratación directa | AK176: =IFERROR(VLOOKUP(F176,Tipo!$C$12:$C$27,1,FALSE),"NO") -> Prestación de servicios profesionales y de apoyo a la gestión, o para la ejecución de trabajos artísticos que sólo puedan encomendarse a determinadas personas naturales; | AL176: Inversión | AM176: 45
A177: 1652019 | B177: 2019 | C177: FDLSC-CPS-165-2019 | D177: Contratos de prestación de servicios profesionales y de apoyo a la gestión | E177: Contratación directa | F177: Prestación de servicios profesionales y de apoyo a la gestión, o para la ejecución de trabajos artísticos que sólo puedan encomendarse a determinadas personas naturales; | G177: EL CONTRATISTA SE OBLIGA CON EL FONDO DE DESARROLLO LOCAL DE SAN CRISTÓBAL A PRESTAR SUS SERVICIOS PERSONALES PARA APOYAR LA GESTIÓN LOCAL EN EL DESARROLLO DE LA ESTRATEGIA PARA EL MANEJO INTEGRAL DE PUNTOS CRÍTICOS POR ACUMULACIÓN DE RESIDUOS SÓLIDOS CON ENFOQUE COMUNITARIO DENOMINADA ¿JUÉGALE LIMPIO A SAN CRISTÓBAL | H177: Inversión | I177: 45 | J177: =IF(ISERROR(VLOOKUP(I177,Eje_Pilar!$C$2:$E$47,2,FALSE))," ",VLOOKUP(I177,Eje_Pilar!$C$2:$E$47,2,FALSE)) -> Gobernanza e influencia local, regional e internacional | K177: =IF(ISERROR(VLOOKUP(I177,Eje_Pilar!$C$2:$E$47,3,FALSE))," ",VLOOKUP(I177,Eje_Pilar!$C$2:$E$47,3,FALSE)) -> Eje Transversal 4 Gobierno Legitimo, Fortalecimiento Local y Eficiencia | L177: 3-3-1-15-07-45-1531-000 | M177: 10238808044 | N177: VICTOR ALEXIS BAUTISTA RICO | O177: 24200000 | R177: 1 | S177: 1320000 | T177: 25520000 | U177: 23320000 | V177: 2019-02-13 | W177: 2019-02-13 | X177: 2020-01-12 | Y177: 330 | AC177: x | AF177: 0.9137931034 | AH177: =IF(SUMPRODUCT((A$14:A177=A177)*(B$14:B177=B177)*(C$14:C177=C177))>1,0,1) -> 1 | AI177: =IFERROR(VLOOKUP(D177,tipo,1,FALSE),"NO") -> Contratos de prestación de servicios profesionales y de apoyo a la gestión | AJ177: =IFERROR(VLOOKUP(E177,modal,1,FALSE),"NO") -> Contratación directa | AK177: =IFERROR(VLOOKUP(F177,Tipo!$C$12:$C$27,1,FALSE),"NO") -> Prestación de servicios profesionales y de apoyo a la gestión, o para la ejecución de trabajos artísticos que sólo puedan encomendarse a determinadas personas naturales; | AL177: =IFERROR(VLOOKUP(H177,afectacion,1,FALSE),"NO") -> Inversión | AM177: =IFERROR(VLOOKUP(I177,programa,1,FALSE),"NO") -> 45
A178: 1662019 | B178: 2019 | C178: FDLSC-CPS-166-2019 | D178: Contratos de prestación de servicios profesionales y de apoyo a la gestión | E178: Contratación directa | F178: Prestación de servicios profesionales y de apoyo a la gestión, o para la ejecución de trabajos artísticos que sólo puedan encomendarse a determinadas personas naturales; | G178: EL CONTRATISTA SE OBLIGA CON EL FONDO DE DESARROLLO LOCAL DE SAN CRISTÓBAL A PRESTAR SUS SERVICIOS PERSONALES PARA APOYAR LA GESTIÓN LOCAL EN EL DESARROLLO DE LA ESTRATEGIA PARA EL MANEJO INTEGRAL DE PUNTOS CRÍTICOS POR ACUMULACIÓN DE RESIDUOS SÓLIDOS CON ENFOQUE COMUNITARIO DENOMINADA ¿JUÉGALE LIMPIO A SAN CRISTÓBAL | H178: Inversión | I178: 45 | J178: =IF(ISERROR(VLOOKUP(I178,Eje_Pilar!$C$2:$E$47,2,FALSE))," ",VLOOKUP(I178,Eje_Pilar!$C$2:$E$47,2,FALSE)) -> Gobernanza e influencia local, regional e internacional | K178: =IF(ISERROR(VLOOKUP(I178,Eje_Pilar!$C$2:$E$47,3,FALSE))," ",VLOOKUP(I178,Eje_Pilar!$C$2:$E$47,3,FALSE)) -> Eje Transversal 4 Gobierno Legitimo, Fortalecimiento Local y Eficiencia | L178: 3-3-1-15-07-45-1531-000 | M178: 797054458 | N178: EDILBERTO PARRA CASAS | O178: 24200000 | R178: 1 | S178: 1320000 | T178: =+O178+Q178+S178 -> 25520000 | U178: 23320000 | V178: 2019-02-13 | W178: 2019-02-13 | X178: 2020-01-12 | Y178: 330 | AC178: x | AF178: 0.9137931034 | AH178: =IF(SUMPRODUCT((A$14:A178=A178)*(B$14:B178=B178)*(C$14:C178=C178))>1,0,1) -> 1 | AI178: Contratos de prestación de servicios profesionales y de apoyo a la gestión | AJ178: Contratación directa | AK178: =IFERROR(VLOOKUP(F178,Tipo!$C$12:$C$27,1,FALSE),"NO") -> Prestación de servicios profesionales y de apoyo a la gestión, o para la ejecución de trabajos artísticos que sólo puedan encomendarse a determinadas personas naturales; | AL178: Inversión | AM178: 45
A179: 1692019 | B179: 2019 | C179: FDLSC-CPS-169-2019 | D179: Contratos de prestación de servicios profesionales y de apoyo a la gestión | E179: Contratación directa | F179: Prestación de servicios profesionales y de apoyo a la gestión, o para la ejecución de trabajos artísticos que sólo puedan encomendarse a determinadas personas naturales; | G179: EL CONTRATISTA SE OBLIGA A PRESTAR SUS SERVICIOS PROFESIONALES DE APOYO JURIDICO A LA EJECUCIÓN DE LAS ACCIONES REQUERIDAS PARA EL TRÁMITE E IMPULSO PROCESAL DE LAS ACTUACIONES CONTRAVENCIONALES Y/O QUERELLAS QUE CURSEN EN LAS INSPECCIONES DE POLICIA DE LA LOCALIDAD | H179: Inversión | I179: 45 | J179: =IF(ISERROR(VLOOKUP(I179,Eje_Pilar!$C$2:$E$47,2,FALSE))," ",VLOOKUP(I179,Eje_Pilar!$C$2:$E$47,2,FALSE)) -> Gobernanza e influencia local, regional e internacional | K179: =IF(ISERROR(VLOOKUP(I179,Eje_Pilar!$C$2:$E$47,3,FALSE))," ",VLOOKUP(I179,Eje_Pilar!$C$2:$E$47,3,FALSE)) -> Eje Transversal 4 Gobierno Legitimo, Fortalecimiento Local y Eficiencia | L179: 3-3-1-15-07-45-1531-000 | M179: 799379336 | N179: HERNANDO ELIAS GARCIA VARGAS | O179: 52470000 | R179: 1 | T179: 52470000 | U179: 45633000 | V179: 2019-02-14 | W179: 2019-02-15 | X179: 2020-01-14 | Y179: 330 | AC179: x | AF179: 0.8696969697 | AH179: =IF(SUMPRODUCT((A$14:A179=A179)*(B$14:B179=B179)*(C$14:C179=C179))>1,0,1) -> 1 | AI179: Contratos de prestación de servicios profesionales y de apoyo a la gestión | AJ179: Contratación directa | AK179: =IFERROR(VLOOKUP(F179,Tipo!$C$12:$C$27,1,FALSE),"NO") -> Prestación de servicios profesionales y de apoyo a la gestión, o para la ejecución de trabajos artísticos que sólo puedan encomendarse a determinadas personas naturales; | AL179: Inversión | AM179: 45
A180: 1702019 | B180: 2019 | C180: FDLSC-CPS-170-2019 | D180: Contratos de prestación de servicios profesionales y de apoyo a la gestión | E180: Contratación directa | F180: Prestación de servicios profesionales y de apoyo a la gestión, o para la ejecución de trabajos artísticos que sólo puedan encomendarse a determinadas personas naturales; | G180: EL CONTRATISTA SE OBLIGA A PRESTAR SUS SERVICIOS PROFESIONALES DE APOYO JURIDICO A LA EJECUCIÓN DE LAS ACCIONES REQUERIDAS PARA EL TRÁMITE E IMPULSO PROCESAL DE LAS ACTUACIONES CONTRAVENCIONALES Y/O QUERELLAS QUE CURSEN EN LAS INSPECCIONES DE POLICIA DE LA LOCALIDAD | H180: Inversión | I180: 45 | J180: =IF(ISERROR(VLOOKUP(I180,Eje_Pilar!$C$2:$E$47,2,FALSE))," ",VLOOKUP(I180,Eje_Pilar!$C$2:$E$47,2,FALSE)) -> Gobernanza e influencia local, regional e internacional | K180: =IF(ISERROR(VLOOKUP(I180,Eje_Pilar!$C$2:$E$47,3,FALSE))," ",VLOOKUP(I180,Eje_Pilar!$C$2:$E$47,3,FALSE)) -> Eje Transversal 4 Gobierno Legitimo, Fortalecimiento Local y Eficiencia | L180: 3-3-1-15-07-45-1531-000 | M180: 795533090 | N180: LIBARDO GUASCA DIAZ | O180: 52470000 | R180: 1 | S180: 1908000 | T180: 54378000 | U180: 49608000 | V180: 2019-02-18 | W180: 2019-02-19 | X180: 2020-01-18 | Y180: 330 | AC180: x | AF180: 0.9122807018 | AH180: =IF(SUMPRODUCT((A$14:A180=A180)*(B$14:B180=B180)*(C$14:C180=C180))>1,0,1) -> 1 | AI180: Contratos de prestación de servicios profesionales y de apoyo a la gestión | AJ180: Contratación directa | AK180: =IFERROR(VLOOKUP(F180,Tipo!$C$12:$C$27,1,FALSE),"NO") -> Prestación de servicios profesionales y de apoyo a la gestión, o para la ejecución de trabajos artísticos que sólo puedan encomendarse a determinadas personas naturales; | AL180: Inversión | AM180: 45
A181: 1712019 | B181: 2019 | C181: FDLSC-CPS-171-2019 | D181: Contratos de prestación de servicios profesionales y de apoyo a la gestión | E181: Contratación directa | F181: Prestación de servicios profesionales y de apoyo a la gestión, o para la ejecución de trabajos artísticos que sólo puedan encomendarse a determinadas personas naturales; | G181: EL CONTRATISTA SE OBLIGA A PRESTAR SUS SERVICIOS PROFESIONALES DE APOYO JURIDICO A LA EJECUCIÓN DE LAS ACCIONES REQUERIDAS PARA EL TRÁMITE E IMPULSO PROCESAL DE LAS ACTUACIONES CONTRAVENCIONALES Y/O QUERELLAS QUE CURSEN EN LAS INSPECCIONES DE POLICIA DE LA LOCALIDAD | H181: Inversión | I181: 45 | J181: =IF(ISERROR(VLOOKUP(I181,Eje_Pilar!$C$2:$E$47,2,FALSE))," ",VLOOKUP(I181,Eje_Pilar!$C$2:$E$47,2,FALSE)) -> Gobernanza e influencia local, regional e internacional | K181: =IF(ISERROR(VLOOKUP(I181,Eje_Pilar!$C$2:$E$47,3,FALSE))," ",VLOOKUP(I181,Eje_Pilar!$C$2:$E$47,3,FALSE)) -> Eje Transversal 4 Gobierno Legitimo, Fortalecimiento Local y Eficiencia | L181: 3-3-1-15-07-45-1531-000 | M181: 289468466 | N181: YOLANDA CALDERON | O181: 52470000 | T181: 52470000 | U181: 49608000 | V181: 2019-02-15 | W181: 2019-02-18 | X181: 2020-01-17 | Y181: 330 | AC181: x | AF181: 0.9454545455 | AH181: =IF(SUMPRODUCT((A$14:A181=A181)*(B$14:B181=B181)*(C$14:C181=C181))>1,0,1) -> 1 | AI181: Contratos de prestación de servicios profesionales y de apoyo a la gestión | AJ181: Contratación directa | AK181: =IFERROR(VLOOKUP(F181,Tipo!$C$12:$C$27,1,FALSE),"NO") -> Prestación de servicios profesionales y de apoyo a la gestión, o para la ejecución de trabajos artísticos que sólo puedan encomendarse a determinadas personas naturales; | AL181: Inversión | AM181: 45
A182: 1722019 | B182: 2019 | C182: FDLSC-CPS-172-2019 | D182: Contratos de prestación de servicios profesionales y de apoyo a la gestión | E182: Contratación directa | F182: Prestación de servicios profesionales y de apoyo a la gestión, o para la ejecución de trabajos artísticos que sólo puedan encomendarse a determinadas personas naturales; | G182: EL CONTRATISTA SE OBLIGA CON EL FONDO DE DESARROLLO LOCAL DE SAN CRISTOBAL A PRESTAR SUS SERVICIOS PROFESIONALES PARA LA GESTIÓN EN EL AREA DE DESARROLLO LOCAL DE SAN CRISTOBAL, EN EL APOYO DE LA FORMULACION, PLANEACION, PRESENTACIÓN Y SEGUIMIENTO DE LOS PROYECTOS DE INFRAESTRUCTURA Y OBRAS CIVILES QUE DESARROLLE LA ENTIDAD, Y EN LOS REQUERMIENTOS DE INFRAESTRUCTURA CIVIL QUE TENGA LA ALCALDIA LOCAL DE SAN CRISTOBAL. | H182: Inversión | I182: 18 | J182: =IF(ISERROR(VLOOKUP(I182,Eje_Pilar!$C$2:$E$47,2,FALSE))," ",VLOOKUP(I182,Eje_Pilar!$C$2:$E$47,2,FALSE)) -> Mejor movilidad para todos | K182: =IF(ISERROR(VLOOKUP(I182,Eje_Pilar!$C$2:$E$47,3,FALSE))," ",VLOOKUP(I182,Eje_Pilar!$C$2:$E$47,3,FALSE)) -> Pilar 2 Democracía Urbana | L182: 3-3-1-15-02-18-1557-000 | M182: 10135971087 | N182: SANDRA YINETH FAJARDO USAQUEN | O182: 63800000 | R182: 1 | S182: 3093333 | T182: 66893333 | U182: 55100000 | V182: 2019-02-14 | W182: 2019-02-15 | X182: 2020-01-14 | Y182: 330 | AC182: x | AF182: 0.8236994261 | AH182: =IF(SUMPRODUCT((A$14:A182=A182)*(B$14:B182=B182)*(C$14:C182=C182))>1,0,1) -> 1 | AI182: Contratos de prestación de servicios profesionales y de apoyo a la gestión | AJ182: Contratación directa | AK182: =IFERROR(VLOOKUP(F182,Tipo!$C$12:$C$27,1,FALSE),"NO") -> Prestación de servicios profesionales y de apoyo a la gestión, o para la ejecución de trabajos artísticos que sólo puedan encomendarse a determinadas personas naturales; | AL182: Inversión | AM182: 18
A183: 1732019 | B183: 2019 | C183: FDLSC-CPS-173-2019 | D183: Contratos de prestación de servicios profesionales y de apoyo a la gestión | E183: Contratación directa | F183: Prestación de servicios profesionales y de apoyo a la gestión, o para la ejecución de trabajos artísticos que sólo puedan encomendarse a determinadas personas naturales; | G183: EL CONTRATISTA SE OBLIGA PARA CON LA ALCALDÍA LOCAL DE SAN CRISTOBAL A PRESTAR SUS SERVICIOS PERSONALES EN EL AREA DE GESTION DE DESARROLLO LOCAL PARA LA GESTION DOCUMENTAL, REALIZANDO LAS ACTIVIDADES QUE REQUIERA EL ARCHIVO EN LO RELATIVO A CLASIFICACION, FOLIACION, DEPURACION, SEGÚN LOS PROGRAMAS Y PROCEDIMIENTOS ESTABLECIDOS. | H183: Inversión | I183: 45 | J183: =IF(ISERROR(VLOOKUP(I183,Eje_Pilar!$C$2:$E$47,2,FALSE))," ",VLOOKUP(I183,Eje_Pilar!$C$2:$E$47,2,FALSE)) -> Gobernanza e influencia local, regional e internacional | K183: =IF(ISERROR(VLOOKUP(I183,Eje_Pilar!$C$2:$E$47,3,FALSE))," ",VLOOKUP(I183,Eje_Pilar!$C$2:$E$47,3,FALSE)) -> Eje Transversal 4 Gobierno Legitimo, Fortalecimiento Local y Eficiencia | L183: 3-3-1-15-07-45-1531-000 | M183: 10101996406 | N183: LYCED MENDEZ SOLAQUE | O183: 20320200 | T183: 20320200 | U183: 15729340 | V183: 2019-05-02 | W183: 2019-05-02 | X183: 2020-02-01 | Y183: 330 | AC183: x | AF183: 0.7740740741 | AH183: =IF(SUMPRODUCT((A$14:A183=A183)*(B$14:B183=B183)*(C$14:C183=C183))>1,0,1) -> 1 | AI183: Contratos de prestación de servicios profesionales y de apoyo a la gestión | AJ183: Contratación directa | AK183: =IFERROR(VLOOKUP(F183,Tipo!$C$12:$C$27,1,FALSE),"NO") -> Prestación de servicios profesionales y de apoyo a la gestión, o para la ejecución de trabajos artísticos que sólo puedan encomendarse a determinadas personas naturales; | AL183: Inversión | AM183: 45
